Workbook

Sheet Muni-L1
B1: Fiscal Year 2010 | L1: REVENUES | AA1: EXPENDITURES
B2: Level One | C2: Municipal Code | D2: Municipal Name | E2: County Name | F2: Fiscal Year End | G2: Population | H2: Enrollment | I2: Land Area (sq. mi.) | J2: Full Value | K2: Total Debt Outstanding at EOFY | L2: Real Property Texes & Assessments | M2: Other Real Property Tax Items | N2: Sales & Use Tax | O2: Other Non-Property Taxes | P2: Charges for Services | Q2: Charges to Other Governments | R2: Use & Sale of Property | S2: Other Local Revenues | T2: Local Revenues | U2: State Aid | V2: Federal Aid | W2: Total Revenues | X2: Proceeds of Debt | Y2: Other Services | Z2: Total Revenues & Other Sources | AA2: General Government | AB2: Education | AC2: Public Safety | AD2: Health | AE2: Transportation | AF2: Social Services | AG2: Economic Development | AH2: Culture & Recreation | AI2: Community Services | AJ2: Utilities | AK2: Sanitation | AL2: Employee Benefits | AM2: Debt Service | AN2: Total Expenditures | AO2: Other Uses | AP2: Total Expenditures & Other Uses
B3: Albany County | C3: =C94 -> 010100000000 | D3: =D94 -> County of Albany | E3: Albany | F3: 12/31 | G3: 304204 | H3: 0 | I3: 522.8 | J3: 24780071182 | K3: 274806031 | L3: 67489877 | M3: 6979377 | N3: 228951684 | O3: 4749863 | P3: 65133973 | Q3: 22394261 | R3: 4184595 | S3: 15813507 | T3: 415697135 | U3: 74524039 | V3: 82382833 | W3: 572604007 | X3: 43358500 | Y3: 46424236 | Z3: 662386743 | AA3: 146311349 | AB3: 23588055 | AC3: 59369420 | AD3: 33647998 | AE3: 26142803 | AF3: 202210789 | AG3: 1525331 | AH3: 6304172 | AI3: 7328829 | AJ3: 0 | AK3: 7677302 | AL3: 68512583 | AM3: 22135776 | AN3: 604754408 | AO3: 46424236 | AP3: 651178644
B4: City of Albany | C4: =C95 -> 010201000000 | D4: City of Albany | E4: Albany | F4: 12/31 | G4: 97856 | H4: 0 | I4: 21.4 | J4: 5125089604 | K4: 152198950 | L4: 53056844 | M4: 26263862 | N4: 30350525 | O4: 1527548 | P4: 15681666 | Q4: 1027889 | R4: 1391115 | S4: 10871572 | T4: 140171021 | U4: 21688863 | V4: 11745596 | W4: 173605480 | X4: 670000 | Y4: 440000 | Z4: 174715480 | AA4: 22113971 | AB4: 0 | AC4: 57732938 | AD4: 208730 | AE4: 18605086 | AF4: 2403238 | AG4: 0 | AH4: 5305920 | AI4: 2961649 | AJ4: 0 | AK4: 13924849 | AL4: 48656526 | AM4: 16725695 | AN4: 188638602 | AO4: 440000 | AP4: 189078602
B5: Town of Berne | C5: =C96 -> 010306800000 | D5: Town of Berne | E5: Albany | F5: 12/31 | G5: 2794 | H5: 0 | I5: 64 | J5: 299701688 | K5: 591036 | L5: 1160528 | M5: 4605 | N5: 888183 | O5: 14058 | P5: 37542 | Q5: 0 | R5: 10958 | S5: 39055 | T5: 2154929 | U5: 347544 | V5: 0 | W5: 2502472 | X5: 88227 | Y5: 0 | Z5: 2590700 | AA5: 358567 | AB5: 0 | AC5: 510789 | AD5: 1300 | AE5: 989203 | AF5: 0 | AG5: 0 | AH5: 75861 | AI5: 0 | AJ5: 0 | AK5: 108829 | AL5: 191120 | AM5: 98152 | AN5: 2333820 | AO5: 0 | AP5: 2333820
B6: Town of Bethlehem | C6: =C97 -> 010307100000 | D6: Town of Bethlehem | E6: Albany | F6: 12/31 | G6: 33656 | H6: 0 | I6: 49 | J6: 3396032947 | K6: 20250000 | L6: 10811795 | M6: 1966401 | N6: 9444723 | O6: 707304 | P6: 10683517 | Q6: 40626 | R6: 317646 | S6: 1126579 | T6: 35098591 | U6: 1432107 | V6: 897379 | W6: 37428077 | X6: 43000 | Y6: 261000 | Z6: 37732077 | AA6: 3885268 | AB6: 1192 | AC6: 7144312 | AD6: 3965 | AE6: 5239059 | AF6: 300615 | AG6: 0 | AH6: 2081858 | AI6: 492430 | AJ6: 6477043 | AK6: 5140012 | AL6: 5777893 | AM6: 2044680 | AN6: 38588327 | AO6: 261000 | AP6: 38849327
B7: Town of Coeymans | C7: =C98 -> 010318000000 | D7: Town of Coeymans | E7: Albany | F7: 12/31 | G7: 7418 | H7: 0 | I7: 50.1 | J7: 607063586 | K7: 3978 | L7: 1738076 | M7: 11440 | N7: 1785256 | O7: 13549 | P7: 316534 | Q7: 436915 | R7: 34311 | S7: 257448 | T7: 4593528 | U7: 242142 | V7: 470895 | W7: 5306565 | X7: 0 | Y7: 1791626 | Z7: 7098191 | AA7: 879875 | AB7: 0 | AC7: 1226159 | AD7: 165968 | AE7: 1274456 | AF7: 484427 | AG7: 844 | AH7: 87344 | AI7: 218139 | AJ7: 0 | AK7: 438386 | AL7: 736272 | AM7: 5189 | AN7: 5517059 | AO7: 1791626 | AP7: 7308685
B8: Village of Ravena | C8: =C99 -> 010418004140 | D8: Village of Ravena | E8: Albany | F8: 05/31 | G8: 3268 | H8: 0 | I8: 1.5 | J8: 169328756 | K8: 865000 | L8: 761980 | M8: 4857 | N8: 715669 | O8: 0 | P8: 890280 | Q8: 0 | R8: 49207 | S8: 159697 | T8: 2581690 | U8: 81777 | V8: 54586 | W8: 2718053 | X8: 0 | Y8: 110000 | Z8: 2828053 | AA8: 742493 | AB8: 0 | AC8: 138496 | AD8: 512 | AE8: 289166 | AF8: 0 | AG8: 1304 | AH8: 85918 | AI8: 7060 | AJ8: 302019 | AK8: 278148 | AL8: 481656 | AM8: 195701 | AN8: 2522473 | AO8: 110000 | AP8: 2632473
B9: City of Cohoes | C9: =C100 -> 010209000000 | D9: City of Cohoes | E9: Albany | F9: 12/31 | G9: 16168 | H9: 0 | I9: 3.8 | J9: 689715761 | K9: 10660383 | L9: 6587042 | M9: 785349 | N9: 4886563 | O9: 335351 | P9: 4382652 | Q9: 197928 | R9: 139998 | S9: 619612 | T9: 17934495 | U9: 3717282 | V9: 5979887 | W9: 27631664 | X9: 0 | Y9: 267027 | Z9: 27898691 | AA9: 2631834 | AB9: 0 | AC9: 6982179 | AD9: 0 | AE9: 6231996 | AF9: 0 | AG9: 173947 | AH9: 507297 | AI9: 1323980 | AJ9: 771642 | AK9: 2341882 | AL9: 4588842 | AM9: 1806327 | AN9: 27359926 | AO9: 267027 | AP9: 27626953
B10: Town of Colonie | C10: =C101 -> 010318700000 | D10: Town of Colonie | E10: Albany | F10: 12/31 | G10: 81591 | H10: 0 | I10: 55.9 | J10: 8629079128 | K10: 104955386 | L10: 29894359 | M10: 1176856 | N10: 19446154 | O10: 0 | P10: 26810938 | Q10: 134889 | R10: 2869394 | S10: 7367366 | T10: 87699956 | U10: 3912479 | V10: 6767989 | W10: 98380424 | X10: 766087 | Y10: 2876000 | Z10: 102022511 | AA10: 19791192 | AB10: 0 | AC10: 23554456 | AD10: 62563 | AE10: 9686674 | AF10: 2162718 | AG10: 893013 | AH10: 8501666 | AI10: 146776 | AJ10: 8837132 | AK10: 7476381 | AL10: 17853505 | AM10: 6791305 | AN10: 105757381 | AO10: 2876000 | AP10: 108633381
B11: Village of Colonie | C11: =C102 -> 010418701100 | D11: Village of Colonie | E11: Albany | F11: 05/31 | G11: 7793 | H11: 0 | I11: 3.2 | J11: 843702141 | K11: 0 | L11: 1189824 | M11: 11305 | N11: 2326038 | O11: 126683 | P11: 2827590 | Q11: 0 | R11: 57128 | S11: 88573 | T11: 6627141 | U11: 187683 | V11: 115892 | W11: 6930716 | X11: 0 | Y11: 612360 | Z11: 7543076 | AA11: 708727 | AB11: 0 | AC11: 334935 | AD11: 10583 | AE11: 1320687 | AF11: 0 | AG11: 25994 | AH11: 520847 | AI11: 445775 | AJ11: 1179195 | AK11: 1301700 | AL11: 718178 | AM11: 0 | AN11: 6566621 | AO11: 612360 | AP11: 7178981
B12: Village of Menands | C12: =C103 -> 010418703040 | D12: Village of Menands | E12: Albany | F12: 05/31 | G12: 3990 | H12: 0 | I12: 3.1 | J12: 464248478 | K12: 325000 | L12: 1793552 | M12: 6677 | N12: 1288251 | O12: 81700 | P12: 1307349 | Q12: 181217 | R12: 14943 | S12: 314477 | T12: 4988166 | U12: 131927 | V12: 25848 | W12: 5145941 | X12: 0 | Y12: 0 | Z12: 5145941 | AA12: 630602 | AB12: 0 | AC12: 1176266 | AD12: 0 | AE12: 579255 | AF12: 0 | AG12: 4476 | AH12: 71255 | AI12: 10694 | AJ12: 782294 | AK12: 564448 | AL12: 776927 | AM12: 0 | AN12: 4596217 | AO12: 0 | AP12: 4596217
B13: Town/Village of Green Island | C13: =C104 -> 010334500000 | D13: Town of Green Island | E13: Albany | F13: 12/31 | G13: 2620 | H13: 0 | I13: 0.8 | J13: 140974052 | K13: 0 | L13: 0 | M13: 787 | N13: 51217 | O13: 0 | P13: 3038 | Q13: 0 | R13: 454 | S13: 143782 | T13: 199278 | U13: 45488 | V13: 0 | W13: 244766 | X13: 0 | Y13: 0 | Z13: 244766 | AA13: 285349 | AB13: 0 | AC13: 2000 | AD13: 0 | AE13: 0 | AF13: 0 | AG13: 0 | AH13: 10000 | AI13: 0 | AJ13: 0 | AK13: 0 | AL13: 27644 | AM13: 0 | AN13: 324993 | AO13: 0 | AP13: 324993
B14: Town/Village of Green Island | C14: =C105 -> 010434502040 | D14: Village of Green Island | E14: Albany | F14: 05/31 | G14: 2620 | H14: 0 | I14: 0.8 | J14: 156917509 | K14: 885000 | L14: 1702672 | M14: 399374 | N14: 606525 | O14: 42898 | P14: 1122853 | Q14: 414760 | R14: 174977 | S14: 100351 | T14: 4564410 | U14: 129815 | V14: 381400 | W14: 5075625 | X14: 0 | Y14: 0 | Z14: 5075625 | AA14: 557350 | AB14: 0 | AC14: 1120798 | AD14: 0 | AE14: 279140 | AF14: 354625 | AG14: 0 | AH14: 133831 | AI14: 0 | AJ14: 333394 | AK14: 804532 | AL14: 674865 | AM14: 419917 | AN14: 4678452 | AO14: 0 | AP14: 4678452
B15: Town/Village of Green Island | D15: Town/Village of Green Island | E15: =E14 -> Albany | G15: =G14 -> 2620 | I15: =I14 -> 0.8 | J15: =J14 -> 156917509 | K15: =K13+K14 -> 885000 | L15: 1702672 | M15: 400161 | N15: 657742 | O15: 42898 | P15: 1125891 | Q15: 414760 | R15: 175431 | S15: 244133 | T15: 4763688 | U15: 175303 | V15: 381400 | W15: 5320391 | X15: 0 | Y15: 0 | Z15: 5320391 | AA15: 842699 | AB15: 0 | AC15: 1122798 | AD15: 0 | AE15: 279140 | AF15: 354625 | AG15: 0 | AH15: 143831 | AI15: 0 | AJ15: 333394 | AK15: 804532 | AL15: 702509 | AM15: 419917 | AN15: 5003445 | AO15: 0 | AP15: 5003445
B16: Town of Guilderland | C16: =C107 -> 010335500000 | D16: Town of Guilderland | E16: Albany | F16: 12/31 | G16: 35303 | H16: 0 | I16: 57.9 | J16: 3752152566 | K16: 27917000 | L16: 8268629 | M16: 95679 | N16: 9747640 | O16: 519166 | P16: 7240561 | Q16: 164870 | R16: 465505 | S16: 950635 | T16: 27452685 | U16: 1624711 | V16: 586027 | W16: 29663422 | X16: 0 | Y16: 1233638 | Z16: 30897060 | AA16: 2592473 | AB16: 0 | AC16: 6347532 | AD16: 342933 | AE16: 5967413 | AF16: 38627 | AG16: 648865 | AH16: 1668584 | AI16: 284847 | AJ16: 2633803 | AK16: 3287643 | AL16: 4063036 | AM16: 3083298 | AN16: 30959053 | AO16: 1233638 | AP16: 32192690
B17: Village of Altamont | C17: =C108 -> 010435500120 | D17: Village of Altamont | E17: Albany | F17: 05/31 | G17: 1720 | H17: 0 | I17: 1.2 | J17: 126640029 | K17: 1260000 | L17: 272101 | M17: 3135 | N17: 533455 | O17: 32127 | P17: 744767 | Q17: 97928 | R17: 119626 | S17: 54150 | T17: 1857289 | U17: 72482 | V17: 10452 | W17: 1940223 | X17: 0 | Y17: 0 | Z17: 1940223 | AA17: 267391 | AB17: 0 | AC17: 417249 | AD17: 0 | AE17: 232923 | AF17: 0 | AG17: 0 | AH17: 218339 | AI17: 6468 | AJ17: 193411 | AK17: 315730 | AL17: 161891 | AM17: 106656 | AN17: 1920058 | AO17: 0 | AP17: 1920058
B18: Town of Knox | C18: =C109 -> 010344300000 | D18: Town of Knox | E18: Albany | F18: 12/31 | G18: 2692 | H18: 0 | I18: 41.8 | J18: 265450406 | K18: 1139981 | L18: 241958 | M18: 2949 | N18: 798626 | O18: 30657 | P18: 6583 | Q18: 0 | R18: 40595 | S18: 23340 | T18: 1144707 | U18: 115187 | V18: 0 | W18: 1259894 | X18: 80000 | Y18: 1000 | Z18: 1340894 | AA18: 1162541 | AB18: 0 | AC18: 102493 | AD18: 1232 | AE18: 557833 | AF18: 0 | AG18: 0 | AH18: 20361 | AI18: 1500 | AJ18: 0 | AK18: 95485 | AL18: 178556 | AM18: 110353 | AN18: 2230354 | AO18: 1000 | AP18: 2231354
B19: Town of New Scotland | C19: =C110 -> 010358100000 | D19: Town of New Scotland | E19: Albany | F19: 12/31 | G19: 8648 | H19: 0 | I19: 57.5 | J19: 972484595 | K19: 2125914 | L19: 2306917 | M19: 7397 | N19: 1765304 | O19: 33096 | P19: 410890 | Q19: 0 | R19: 22178 | S19: 262644 | T19: 4808426 | U19: 403825 | V19: 126169 | W19: 5338420 | X19: 48800 | Y19: 489 | Z19: 5387709 | AA19: 783786 | AB19: 0 | AC19: 985069 | AD19: 1428 | AE19: 1829789 | AF19: 0 | AG19: 0 | AH19: 152813 | AI19: 101221 | AJ19: 293285 | AK19: 615190 | AL19: 659163 | AM19: 239034 | AN19: 5660779 | AO19: 489 | AP19: 5661267
B20: Village of Voorheesville | C20: =C111 -> 010458105090 | D20: Village of Voorheesville | E20: Albany | F20: 05/31 | G20: 2789 | H20: 0 | I20: 2.1 | J20: 238009756 | K20: 3735000 | L20: 259531 | M20: 1156 | N20: 855366 | O20: 53546 | P20: 583967 | Q20: 0 | R20: 22602 | S20: 24052 | T20: 1800220 | U20: 104494 | V20: 2550 | W20: 1907264 | X20: 0 | Y20: 0 | Z20: 1907264 | AA20: 303841 | AB20: 0 | AC20: 70442 | AD20: 750 | AE20: 424202 | AF20: 0 | AG20: 0 | AH20: 21567 | AI20: 1073 | AJ20: 153762 | AK20: 231068 | AL20: 200593 | AM20: 266005 | AN20: 1673303 | AO20: 0 | AP20: 1673303
B21: Town of Rensselaerville | C21: =C112 -> 010370600000 | D21: Town of Rensselaerville | E21: Albany | F21: 12/31 | G21: 1843 | H21: 0 | I21: 61.5 | J21: 260837670 | K21: 810241 | L21: 1194526 | M21: 5133 | N21: 501520 | O21: 2890 | P21: 115047 | Q21: 0 | R21: 14190 | S21: 23667 | T21: 1856973 | U21: 169482 | V21: 0 | W21: 2026455 | X21: 16800 | Y21: 18478 | Z21: 2061733 | AA21: 329075 | AB21: 0 | AC21: 235702 | AD21: 40459 | AE21: 1063367 | AF21: 0 | AG21: 0 | AH21: 76307 | AI21: 7900 | AJ21: 23241 | AK21: 91619 | AL21: 332364 | AM21: 47630 | AN21: 2247664 | AO21: 18478 | AP21: 2266142
B22: City of Watervliet | C22: =C113 -> 010260000000 | D22: City of Watervliet | E22: Albany | F22: 12/31 | G22: 10254 | H22: 0 | I22: 1.4 | J22: 389563501 | K22: 7199463 | L22: 3824057 | M22: 146256 | N22: 3241101 | O22: 162368 | P22: 4552059 | Q22: 331778 | R22: 8997 | S22: 203285 | T22: 12469901 | U22: 6434433 | V22: 246864 | W22: 19151198 | X22: 69500 | Y22: 1147128 | Z22: 20367826 | AA22: 1344622 | AB22: 0 | AC22: 4556418 | AD22: 32634 | AE22: 5649324 | AF22: 0 | AG22: 599105 | AH22: 262835 | AI22: 27453 | AJ22: 1760396 | AK22: 1084699 | AL22: 3134921 | AM22: 932037 | AN22: 19384444 | AO22: 1147128 | AP22: 20531572
B23: Town of Westerlo | C23: =C114 -> 010389000000 | D23: Town of Westerlo | E23: Albany | F23: 12/31 | G23: 3361 | H23: 0 | I23: 57.8 | J23: 334238875 | K23: 1180000 | L23: 994007 | M23: 4604 | N23: 1045726 | O23: 8895 | P23: 104633 | Q23: 0 | R23: 13773 | S23: 25300 | T23: 2196938 | U23: 234381 | V23: 0 | W23: 2431319 | X23: 0 | Y23: 4785 | Z23: 2436104 | AA23: 622015 | AB23: 0 | AC23: 285304 | AD23: 0 | AE23: 778664 | AF23: 0 | AG23: 0 | AH23: 229882 | AI23: 0 | AJ23: 55625 | AK23: 176303 | AL23: 374927 | AM23: 101716 | AN23: 2624436 | AO23: 4785 | AP23: 2629221
B24: Rensselaer County | C24: =C115 -> 380100000000 | D24: County of Rensselaer | E24: Rensselaer | F24: 12/31 | G24: 159429 | H24: 0 | I24: 652.4 | J24: 10505904197 | K24: 172578257 | L24: 54954180 | M24: 5126992 | N24: 69300351 | O24: 2142969 | P24: 56268683 | Q24: 18250491 | R24: 2510295 | S24: 22984755 | T24: 231538716 | U24: 45932941 | V24: 27210705 | W24: 304682362 | X24: 13510618 | Y24: 2873269 | Z24: 321066250 | AA24: 46614760 | AB24: 27965128 | AC24: 29261288 | AD24: 44221883 | AE24: 9468366 | AF24: 83962914 | AG24: 889366 | AH24: 427844 | AI24: 3315388 | AJ24: 0 | AK24: 3590424 | AL24: 48240174 | AM24: 13777806 | AN24: 311735339 | AO24: 2873269 | AP24: 314608608
B25: Village of Nassau | C25: =C116 -> 380456103330 | D25: Village of Nassau | E25: Rensselaer | F25: 05/31 | G25: 1133 | H25: 0 | I25: 0.7 | J25: 69949308 | K25: 181350 | L25: 336290 | M25: 9024 | N25: 63338 | O25: 15538 | P25: 249726 | Q25: 0 | R25: 2213 | S25: 45021 | T25: 721150 | U25: 73182 | V25: 6334 | W25: 800666 | X25: 34600 | Y25: 30300 | Z25: 865566 | AA25: 169761 | AB25: 0 | AC25: 159086 | AD25: 0 | AE25: 123804 | AF25: 0 | AG25: 0 | AH25: 4573 | AI25: 215 | AJ25: 126761 | AK25: 86363 | AL25: 53821 | AM25: 58897 | AN25: 783281 | AO25: 30300 | AP25: 813581
B26: Village of Valley Falls | C26: =C117 -> 380467005020 | D26: Village of Valley Falls | E26: Rensselaer | F26: 05/31 | G26: 466 | H26: 0 | I26: 0.5 | J26: 27333975 | K26: 1880534 | L26: 49500 | M26: 1210 | N26: 29737 | O26: 4151 | P26: 106413 | Q26: 75000 | R26: 44 | S26: 22665 | T26: 288720 | U26: 19513 | V26: 0 | W26: 308233 | X26: 0 | Y26: 4949 | Z26: 313182 | AA26: 59543 | AB26: 0 | AC26: 40548 | AD26: 0 | AE26: 24095 | AF26: 0 | AG26: 0 | AH26: 19346 | AI26: 50827 | AJ26: 0 | AK26: 2222 | AL26: 2592 | AM26: 92600 | AN26: 291773 | AO26: 4949 | AP26: 296722
B27: Town of Berlin | C27: =C118 -> 380306700000 | D27: Town of Berlin | E27: Rensselaer | F27: 12/31 | G27: 1880 | H27: 0 | I27: 59.6 | J27: 169380954 | K27: 0 | L27: 379476 | M27: 2217 | N27: 164826 | O27: 0 | P27: 197090 | Q27: 0 | R27: 2411 | S27: 15111 | T27: 761132 | U27: 116282 | V27: 0 | W27: 877414 | X27: 0 | Y27: 0 | Z27: 877414 | AA27: 122054 | AB27: 0 | AC27: 15121 | AD27: 200 | AE27: 428000 | AF27: 0 | AG27: 0 | AH27: 18726 | AI27: 4344 | AJ27: 38497 | AK27: 111059 | AL27: 82109 | AM27: 13801 | AN27: 833911 | AO27: 0 | AP27: 833911
B28: Town of Brunswick | C28: =C119 -> 380309900000 | D28: Town of Brunswick | E28: Rensselaer | F28: 12/31 | G28: 11941 | H28: 0 | I28: 44.4 | J28: 1013344648 | K28: 2385000 | L28: 3377741 | M28: 30335 | N28: 1016116 | O28: 98478 | P28: 1465368 | Q28: 28199 | R28: 56682 | S28: 18748 | T28: 6091667 | U28: 506240 | V28: 29988 | W28: 6627895 | X28: 0 | Y28: 0 | Z28: 6627895 | AA28: 1076797 | AB28: 0 | AC28: 1058196 | AD28: 2500 | AE28: 1648778 | AF28: 0 | AG28: 146488 | AH28: 360709 | AI28: 15486 | AJ28: 1211908 | AK28: 109626 | AL28: 680243 | AM28: 243166 | AN28: 6553897 | AO28: 0 | AP28: 6553897
B29: Town of East Greenbush | C29: =C120 -> 380324900000 | D29: Town of East Greenbush | E29: Rensselaer | F29: 12/31 | G29: 16473 | H29: 0 | I29: 24 | J29: 1592115009 | K29: 8026820 | L29: 8331228 | M29: 351893 | N29: 1618667 | O29: 199901 | P29: 3495870 | Q29: 241404 | R29: 79874 | S29: 1206752 | T29: 15525590 | U29: 832467 | V29: 0 | W29: 16358057 | X29: 583445 | Y29: 0 | Z29: 16941502 | AA29: 2173457 | AB29: 0 | AC29: 2763705 | AD29: 6739 | AE29: 2281845 | AF29: 0 | AG29: 0 | AH29: 320118 | AI29: 4618 | AJ29: 2138415 | AK29: 2014471 | AL29: 2710658 | AM29: 1376467 | AN29: 15790493 | AO29: 0 | AP29: 15790493
B30: Town of Grafton | C30: =C121 -> 380333500000 | D30: Town of Grafton | E30: Rensselaer | F30: 12/31 | G30: 2130 | H30: 0 | I30: 44.7 | J30: 200300759 | K30: 436900 | L30: 636740 | M30: 1326 | N30: 209402 | O30: 0 | P30: 26374 | Q30: 0 | R30: 9089 | S30: 60983 | T30: 943914 | U30: 142881 | V30: 0 | W30: 1086794 | X30: 0 | Y30: 0 | Z30: 1086794 | AA30: 202877 | AB30: 0 | AC30: 31422 | AD30: 1000 | AE30: 534896 | AF30: 0 | AG30: 0 | AH30: 34429 | AI30: 4138 | AJ30: 0 | AK30: 44554 | AL30: 126696 | AM30: 68711 | AN30: 1048724 | AO30: 0 | AP30: 1048724
B31: Town of Hoosick | C31: =C122 -> 380339800000 | D31: Town of Hoosick | E31: Rensselaer | F31: 12/31 | G31: 6924 | H31: 0 | I31: 63 | J31: 418388532 | K31: 80000 | L31: 1413177 | M31: 10771 | N31: 270637 | O31: 2452 | P31: 70520 | Q31: 8585 | R31: 597 | S31: 68793 | T31: 1845532 | U31: 230281 | V31: 465525 | W31: 2541338 | X31: 0 | Y31: 28593 | Z31: 2569931 | AA31: 353851 | AB31: 0 | AC31: 300523 | AD31: 0 | AE31: 1377035 | AF31: 0 | AG31: 0 | AH31: 169636 | AI31: 12332 | AJ31: 1460 | AK31: 1750 | AL31: 293792 | AM31: 87534 | AN31: 2597913 | AO31: 28593 | AP31: 2626506
B32: Village of Hoosick Falls | C32: =C123 -> 380439802380 | D32: Village of Hoosick Falls | E32: Rensselaer | F32: 05/31 | G32: 3501 | H32: 0 | I32: 1.6 | J32: 152269985 | K32: 14295272 | L32: 1072824 | M32: 41545 | N32: 182123 | O32: 33682 | P32: 1460556 | Q32: 5500 | R32: 1479 | S32: 80066 | T32: 2877775 | U32: 253414 | V32: 0 | W32: 3131189 | X32: 50379 | Y32: 0 | Z32: 3181568 | AA32: 213535 | AB32: 0 | AC32: 426802 | AD32: 0 | AE32: 534825 | AF32: 0 | AG32: 17284 | AH32: 32140 | AI32: 0 | AJ32: 2157244 | AK32: 755907 | AL32: 363542 | AM32: 340315 | AN32: 4841594 | AO32: 0 | AP32: 4841594
B33: Town of Nassau | C33: =C124 -> 380356100000 | D33: Town of Nassau | E33: Rensselaer | F33: 12/31 | G33: 4789 | H33: 0 | I33: 44.4 | J33: 364096939 | K33: 447934 | L33: 971498 | M33: 5079 | N33: 245264 | O33: 19233 | P33: 62521 | Q33: 3725 | R33: 12799 | S33: 190385 | T33: 1510504 | U33: 283192 | V33: 171863 | W33: 1965559 | X33: 150700 | Y33: 201756 | Z33: 2318014 | AA33: 402131 | AB33: 0 | AC33: 219151 | AD33: 2249 | AE33: 911813 | AF33: 169654 | AG33: 0 | AH33: 24131 | AI33: 5422 | AJ33: 0 | AK33: 100586 | AL33: 244107 | AM33: 77163 | AN33: 2156409 | AO33: 201756 | AP33: 2358165
B34: Village of East Nassau | C34: =C125 -> 380456101435 | D34: Village of East Nassau | E34: Rensselaer | F34: 05/31 | G34: 587 | H34: 0 | I34: 4.9 | J34: 41915863 | K34: 0 | L34: 51288 | M34: 231 | N34: 41243 | O34: 0 | P34: 383 | Q34: 0 | R34: 233 | S34: 0 | T34: 93378 | U34: 28379 | V34: 12995 | W34: 134752 | X34: 0 | Y34: 0 | Z34: 134752 | AA34: 45262 | AB34: 0 | AC34: 4170 | AD34: 0 | AE34: 93368 | AF34: 0 | AG34: 0 | AH34: 0 | AI34: 0 | AJ34: 0 | AK34: 0 | AL34: 2106 | AM34: 0 | AN34: 144906 | AO34: 0 | AP34: 144906
B35: Town of North Greenbush | C35: =C126 -> 380359500000 | D35: Town of North Greenbush | E35: Rensselaer | F35: 12/31 | G35: 12075 | H35: 0 | I35: 18.6 | J35: 935986053 | K35: 21774000 | L35: 4914412 | M35: 386328 | N35: 981703 | O35: 216387 | P35: 1659201 | Q35: 0 | R35: 55612 | S35: 296928 | T35: 8510571 | U35: 603610 | V35: 0 | W35: 9114180 | X35: 999000 | Y35: 13049 | Z35: 10126229 | AA35: 2968236 | AB35: 0 | AC35: 1927744 | AD35: 8353 | AE35: 1407954 | AF35: 0 | AG35: 0 | AH35: 466300 | AI35: 10355 | AJ35: 1643522 | AK35: 318238 | AL35: 1345950 | AM35: 2167376 | AN35: 12264027 | AO35: 13049 | AP35: 12277076
B36: Town of Petersburgh | C36: =C127 -> 380365600000 | D36: Town of Petersburgh | E36: Rensselaer | F36: 12/31 | G36: 1525 | H36: 0 | I36: 41.6 | J36: 121889374 | K36: 242400 | L36: 498718 | M36: 2920 | N36: 118643 | O36: 0 | P36: 70087 | Q36: 3218 | R36: 3626 | S36: 10029 | T36: 707241 | U36: 156149 | V36: 339 | W36: 863729 | X36: 0 | Y36: 10109 | Z36: 873838 | AA36: 162547 | AB36: 0 | AC36: 12091 | AD36: 10500 | AE36: 347894 | AF36: 0 | AG36: 0 | AH36: 59519 | AI36: 5740 | AJ36: 24707 | AK36: 73098 | AL36: 84964 | AM36: 35121 | AN36: 816181 | AO36: 10109 | AP36: 826290
B37: Town of Pittstown | C37: =C128 -> 380367000000 | D37: Town of Pittstown | E37: Rensselaer | F37: 12/31 | G37: 5735 | H37: 0 | I37: 61.6 | J37: 380220315 | K37: 16630 | L37: 2028837 | M37: 7478 | N37: 227412 | O37: 0 | P37: 58805 | Q37: 0 | R37: 8213 | S37: 48352 | T37: 2379097 | U37: 102571 | V37: 0 | W37: 2481668 | X37: 0 | Y37: 0 | Z37: 2481668 | AA37: 258078 | AB37: 0 | AC37: 95627 | AD37: 880 | AE37: 1346016 | AF37: 0 | AG37: 507 | AH37: 13780 | AI37: 2751 | AJ37: 0 | AK37: 469238 | AL37: 273282 | AM37: 26304 | AN37: 2486463 | AO37: 0 | AP37: 2486463
B38: Town of Poestenkill | C38: =C129 -> 380367600000 | D38: Town of Poestenkill | E38: Rensselaer | F38: 12/31 | G38: 4530 | H38: 0 | I38: 32.4 | J38: 342159337 | K38: 9629493 | L38: 1114953 | M38: 5359 | N38: 320892 | O38: 7113 | P38: 17946 | Q38: 10561 | R38: 1493 | S38: 51078 | T38: 1529395 | U38: 494313 | V38: 430080 | W38: 2453788 | X38: 0 | Y38: 0 | Z38: 2453788 | AA38: 303513 | AB38: 0 | AC38: 264675 | AD38: 1500 | AE38: 706914 | AF38: 0 | AG38: 0 | AH38: 102292 | AI38: 3250 | AJ38: 9590660 | AK38: 33302 | AL38: 218311 | AM38: 106523 | AN38: 11330940 | AO38: 0 | AP38: 11330940
B39: City of Rensselaer | C39: =C130 -> 380247000000 | D39: City of Rensselaer | E39: Rensselaer | F39: 07/31 | G39: 9392 | H39: 0 | I39: 3.2 | J39: 405901319 | K39: 4592949 | L39: 5410832 | M39: 1570539 | N39: 1912977 | O39: 149262 | P39: 2608833 | Q39: 72800 | R39: 87534 | S39: 284225 | T39: 12097002 | U39: 3125029 | V39: 926667 | W39: 16148698 | X39: 3895747 | Y39: 177500 | Z39: 20221944 | AA39: 2196120 | AB39: 0 | AC39: 3542766 | AD39: 0 | AE39: 2952294 | AF39: 0 | AG39: 1511738 | AH39: 250264 | AI39: 47313 | AJ39: 2165276 | AK39: 820340 | AL39: 2702065 | AM39: 753088 | AN39: 16941267 | AO39: 177500 | AP39: 17118767
B40: Town of Sand Lake | C40: =C131 -> 380374100000 | D40: Town of Sand Lake | E40: Rensselaer | F40: 12/31 | G40: 8530 | H40: 0 | I40: 35.1 | J40: 726584506 | K40: 2411252 | L40: 1625483 | M40: 12511 | N40: 762972 | O40: 128804 | P40: 543841 | Q40: 4487 | R40: 19367 | S40: 79540 | T40: 3177005 | U40: 420271 | V40: 176383 | W40: 3773659 | X40: 1681252 | Y40: 182960 | Z40: 5637871 | AA40: 991779 | AB40: 0 | AC40: 386673 | AD40: 1000 | AE40: 1409899 | AF40: 0 | AG40: 0 | AH40: 257111 | AI40: 44691 | AJ40: 0 | AK40: 977037 | AL40: 458202 | AM40: 317269 | AN40: 4843661 | AO40: 182960 | AP40: 5026621
B41: Town of Schaghticoke | C41: =C132 -> 380375200000 | D41: Town of Schaghticoke | E41: Rensselaer | F41: 12/31 | G41: 7679 | H41: 0 | I41: 49.8 | J41: 582264982 | K41: 5545750 | L41: 2033947 | M41: 7807 | N41: 573781 | O41: 56222 | P41: 397371 | Q41: 55653 | R41: 16096 | S41: 65271 | T41: 3206148 | U41: 371100 | V41: 66556 | W41: 3643804 | X41: 0 | Y41: 34671 | Z41: 3678475 | AA41: 466105 | AB41: 0 | AC41: 244664 | AD41: 3000 | AE41: 1182285 | AF41: 0 | AG41: 0 | AH41: 70578 | AI41: 18800 | AJ41: 422836 | AK41: 720495 | AL41: 427630 | AM41: 397871 | AN41: 3954264 | AO41: 34671 | AP41: 3988935
B42: Village of Schaghticoke | C42: =C133 -> 380475204460 | D42: Village of Schaghticoke | E42: Rensselaer | F42: 05/31 | G42: 592 | H42: 0 | I42: 0.8 | J42: 43080391 | K42: 0 | L42: 146687 | M42: 155 | N42: 55787 | O42: 5497 | P42: 88840 | Q42: 0 | R42: 18818 | S42: 41550 | T42: 357334 | U42: 59184 | V42: 312265 | W42: 728782 | X42: 0 | Y42: 30000 | Z42: 758782 | AA42: 120041 | AB42: 0 | AC42: 386231 | AD42: 0 | AE42: 93972 | AF42: 0 | AG42: 276 | AH42: 13228 | AI42: 4875 | AJ42: 128842 | AK42: 1157 | AL42: 18157 | AM42: 0 | AN42: 766779 | AO42: 30000 | AP42: 796779
B43: Town of Schodack | C43: =C134 -> 380375300000 | D43: Town of Schodack | E43: Rensselaer | F43: 12/31 | G43: 12794 | H43: 0 | I43: 61.9 | J43: 1128496869 | K43: 16469915 | L43: 5536364 | M43: 233405 | N43: 1026675 | O43: 75588 | P43: 793320 | Q43: 10728 | R43: 127923 | S43: 755214 | T43: 8559216 | U43: 577393 | V43: 249773 | W43: 9386382 | X43: 1735863 | Y43: 3722343 | Z43: 14844587 | AA43: 1527507 | AB43: 0 | AC43: 1607356 | AD43: 2266 | AE43: 1870587 | AF43: 235212 | AG43: 4000 | AH43: 499089 | AI43: 21488 | AJ43: 1004572 | AK43: 438657 | AL43: 969406 | AM43: 1416184 | AN43: 9596324 | AO43: 3722343 | AP43: 13318667
B44: Village of Castleton-on-Hudson | C44: =C135 -> 380475300790 | D44: Village of Castleton-On-Hudson | E44: Rensselaer | F44: 05/31 | G44: 1473 | H44: 0 | I44: 0.7 | J44: 118313321 | K44: 2136558 | L44: 414550 | M44: 13580 | N44: 149389 | O44: 3748 | P44: 860838 | Q44: 185879 | R44: 12280 | S44: 31090 | T44: 1671354 | U44: 550774 | V44: 36741 | W44: 2258869 | X44: 0 | Y44: 11933 | Z44: 2270802 | AA44: 151234 | AB44: 0 | AC44: 82815 | AD44: 1200 | AE44: 1069814 | AF44: 0 | AG44: 11029 | AH44: 255233 | AI44: 1462 | AJ44: 126995 | AK44: 583447 | AL44: 173820 | AM44: 165452 | AN44: 2622501 | AO44: 11933 | AP44: 2634434
B45: Town of Stephentown | C45: =C136 -> 380380400000 | D45: Town of Stephentown | E45: Rensselaer | F45: 12/31 | G45: 2903 | H45: 0 | I45: 57.9 | J45: 258190053 | K45: 0 | L45: - | M45: - | N45: - | O45: - | P45: - | Q45: - | R45: - | S45: - | T45: - | U45: - | V45: - | W45: - | X45: - | Y45: - | Z45: - | AA45: - | AB45: - | AC45: - | AD45: - | AE45: - | AF45: - | AG45: - | AH45: - | AI45: - | AJ45: - | AK45: - | AL45: - | AM45: - | AN45: - | AO45: - | AP45: -
B46: City of Troy | C46: =C137 -> 380257000000 | D46: City of Troy | E46: Rensselaer | F46: 12/31 | G46: 50129 | H46: 0 | I46: 10.4 | J46: 1905426906 | K46: 76568550 | L46: 18323507 | M46: 1898020 | N46: 14069098 | O46: 539137 | P46: 19245649 | Q46: 429573 | R46: 3263642 | S46: 4245666 | T46: 62014292 | U46: 16750224 | V46: 9719503 | W46: 88484019 | X46: 1225000 | Y46: 3672867 | Z46: 93381886 | AA46: 8623752 | AB46: 0 | AC46: 22468206 | AD46: 111111 | AE46: 9613486 | AF46: 0 | AG46: 3317796 | AH46: 2846127 | AI46: 1985776 | AJ46: 7644325 | AK46: 3999857 | AL46: 18675799 | AM46: 7282120 | AN46: 86568355 | AO46: 3672867 | AP46: 90241222
B47: Saratoga County | C47: =C138 -> 410100000000 | D47: County of Saratoga | E47: Saratoga | F47: 12/31 | G47: 219607 | H47: 0 | I47: 810 | J47: 21886916706 | K47: 79869000 | L47: 46220413 | M47: 3371156 | N47: 96552344 | O47: 2632032 | P47: 46380225 | Q47: 5656583 | R47: 3734803 | S47: 3523537 | T47: 208071093 | U47: 22285279 | V47: 28159389 | W47: 258515761 | X47: 28974000 | Y47: 21023924 | Z47: 308513685 | AA47: 95283313 | AB47: 17730776 | AC47: 20740882 | AD47: 32082224 | AE47: 16044646 | AF47: 47228329 | AG47: 783671 | AH47: 1758310 | AI47: 3568010 | AJ47: 0 | AK47: 7305998 | AL47: 41820436 | AM47: 4894027 | AN47: 289240623 | AO47: 21023925 | AP47: 310264548
B48: Village of Ballston Spa | C48: =C139 -> 410453400340 | D48: Village of Ballston Spa | E48: Saratoga | F48: 05/31 | G48: 5409 | H48: 0 | I48: 1.6 | J48: 334011245 | K48: 952705 | L48: 1202165 | M48: 3842 | N48: 880430 | O48: 54040 | P48: 912429 | Q48: 346834 | R48: 59783 | S48: 131346 | T48: 3590869 | U48: 343619 | V48: 1040020 | W48: 4974508 | X48: 0 | Y48: 0 | Z48: 4974508 | AA48: 568371 | AB48: 0 | AC48: 774544 | AD48: 5883 | AE48: 456986 | AF48: 988548 | AG48: 3400 | AH48: 322768 | AI48: 17000 | AJ48: 499553 | AK48: 154746 | AL48: 628864 | AM48: 354896 | AN48: 4775559 | AO48: 0 | AP48: 4775559
B49: Town of Ballston | C49: =C140 -> 410304900000 | D49: Town of Ballston | E49: Saratoga | F49: 12/31 | G49: 9776 | H49: 0 | I49: 29.6 | J49: 952484335 | K49: 3970500 | L49: 1176284 | M49: 7700 | N49: 2235176 | O49: 70551 | P49: 686364 | Q49: 26000 | R49: 30808 | S49: 225501 | T49: 4458384 | U49: 493998 | V49: 0 | W49: 4952382 | X49: 0 | Y49: 0 | Z49: 4952382 | AA49: 853477 | AB49: 0 | AC49: 394575 | AD49: 3213 | AE49: 1478818 | AF49: 0 | AG49: 0 | AH49: 479905 | AI49: 17226 | AJ49: 1136490 | AK49: 1279 | AL49: 550536 | AM49: 507569 | AN49: 5423088 | AO49: 0 | AP49: 5423088
B50: Town of Charlton | C50: =C141 -> 410314700000 | D50: Town of Charlton | E50: Saratoga | F50: 12/31 | G50: 4133 | H50: 0 | I50: 32.8 | J50: 441650710 | K50: 1853600 | L50: 138032 | M50: 2472 | N50: 1130663 | O50: 23129 | P50: 153397 | Q50: 360 | R50: 9535 | S50: 63034 | T50: 1520622 | U50: 299256 | V50: 0 | W50: 1819878 | X50: 0 | Y50: 0 | Z50: 1819878 | AA50: 502504 | AB50: 0 | AC50: 88596 | AD50: 1031 | AE50: 637956 | AF50: 0 | AG50: 0 | AH50: 66642 | AI50: 10155 | AJ50: 266966 | AK50: 12846 | AL50: 179598 | AM50: 147919 | AN50: 1914213 | AO50: 0 | AP50: 1914213
B51: Town of Clifton Park | C51: =C142 -> 410317400000 | D51: Town of Clifton Park | E51: Saratoga | F51: 12/31 | G51: 36705 | H51: 0 | I51: 48.2 | J51: 3896606465 | K51: 12057491 | L51: 3014340 | M51: 178159 | N51: 9712419 | O51: 0 | P51: 2550050 | Q51: 1297210 | R51: 780977 | S51: 897141 | T51: 18430295 | U51: 2259487 | V51: 412705 | W51: 21102486 | X51: 41000 | Y51: 3820295 | Z51: 24963781 | AA51: 3805643 | AB51: 0 | AC51: 3923680 | AD51: 21300 | AE51: 4180749 | AF51: 319770 | AG51: 500 | AH51: 3536309 | AI51: 406803 | AJ51: 23361 | AK51: 2367952 | AL51: 3279495 | AM51: 1046495 | AN51: 22912056 | AO51: 3820295 | AP51: 26732351
B52: Town of Corinth | C52: =C143 -> 410320000000 | D52: Town of Corinth | E52: Saratoga | F52: 12/31 | G52: 6531 | H52: 0 | I52: 56.8 | J52: 549529510 | K52: 0 | L52: 1608003 | M52: 318571 | N52: 702444 | O52: 45968 | P52: 525553 | Q52: 0 | R52: 13728 | S52: 56229 | T52: 3270496 | U52: 1439047 | V52: 0 | W52: 4709543 | X52: 0 | Y52: 0 | Z52: 4709543 | AA52: 557591 | AB52: 0 | AC52: 513849 | AD52: 348873 | AE52: 2049043 | AF52: 0 | AG52: 4500 | AH52: 94798 | AI52: 72269 | AJ52: 25376 | AK52: 230817 | AL52: 437423 | AM52: 0 | AN52: 4334538 | AO52: 0 | AP52: 4334538
B53: Village of Corinth | C53: =C144 -> 410420001150 | D53: Village of Corinth | E53: Saratoga | F53: 05/31 | G53: 2559 | H53: 0 | I53: 1.1 | J53: 240958385 | K53: 5990000 | L53: 1433372 | M53: 467441 | N53: 658638 | O53: 0 | P53: 785843 | Q53: 261021 | R53: 22943 | S53: 15085 | T53: 3644343 | U53: 227662 | V53: 915691 | W53: 4787696 | X53: 0 | Y53: 488546 | Z53: 5276242 | AA53: 354145 | AB53: 0 | AC53: 672066 | AD53: 0 | AE53: 813269 | AF53: 466450 | AG53: 439150 | AH53: 60922 | AI53: 7232 | AJ53: 292752 | AK53: 422386 | AL53: 423314 | AM53: 459934 | AN53: 4411620 | AO53: 488546 | AP53: 4900166
B54: Town of Day | C54: =C145 -> 410322000000 | D54: Town of Day | E54: Saratoga | F54: 12/31 | G54: 856 | H54: 0 | I54: 64.1 | J54: 324648383 | K54: 0 | L54: 461663 | M54: 22953 | N54: 778955 | O54: 0 | P54: 11967 | Q54: 0 | R54: 7149 | S54: 7071 | T54: 1289758 | U54: 238567 | V54: 0 | W54: 1528325 | X54: 0 | Y54: 0 | Z54: 1528325 | AA54: 279631 | AB54: 0 | AC54: 95858 | AD54: 1516 | AE54: 835428 | AF54: 0 | AG54: 0 | AH54: 17180 | AI54: 8894 | AJ54: 0 | AK54: 311307 | AL54: 228447 | AM54: 0 | AN54: 1778261 | AO54: 0 | AP54: 1778261
B55: Town of Edinburg | C55: =C146 -> 410325500000 | D55: Town of Edinburg | E55: Saratoga | F55: 12/31 | G55: 1214 | H55: 0 | I55: 60.2 | J55: 409060172 | K55: 0 | L55: 280075 | M55: 5251 | N55: 962445 | O55: 0 | P55: 18969 | Q55: 0 | R55: 9533 | S55: 10240 | T55: 1286513 | U55: 141649 | V55: 0 | W55: 1428162 | X55: 0 | Y55: 50733 | Z55: 1478895 | AA55: 308468 | AB55: 0 | AC55: 106764 | AD55: 2676 | AE55: 584756 | AF55: 0 | AG55: 1253 | AH55: 13977 | AI55: 10330 | AJ55: 0 | AK55: 142103 | AL55: 138797 | AM55: 0 | AN55: 1309124 | AO55: 50733 | AP55: 1359857
B56: Town of Galway | C56: =C147 -> 410331400000 | D56: Town of Galway | E56: Saratoga | F56: 12/31 | G56: 3545 | H56: 0 | I56: 43.8 | J56: 428006969 | K56: 632000 | L56: 564000 | M56: 3386 | N56: 1035159 | O56: 45476 | P56: 9565 | Q56: 7486 | R56: 450 | S56: 29742 | T56: 1695263 | U56: 240885 | V56: 0 | W56: 1936148 | X56: 0 | Y56: 0 | Z56: 1936148 | AA56: 287979 | AB56: 0 | AC56: 328896 | AD56: 1000 | AE56: 949547 | AF56: 4000 | AG56: 0 | AH56: 36028 | AI56: 9159 | AJ56: 0 | AK56: 4442 | AL56: 145612 | AM56: 140621 | AN56: 1907285 | AO56: 0 | AP56: 1907285
B57: Village of Galway | C57: =C148 -> 410431401900 | D57: Village of Galway | E57: Saratoga | F57: 05/31 | G57: 200 | H57: 0 | I57: 0.3 | J57: 13207727 | K57: 0 | L57: 0 | M57: 0 | N57: 39705 | O57: 0 | P57: 185 | Q57: 0 | R57: 2175 | S57: 15375 | T57: 57440 | U57: 5343 | V57: 0 | W57: 62783 | X57: 0 | Y57: 0 | Z57: 62783 | AA57: 16808 | AB57: 0 | AC57: 20315 | AD57: 0 | AE57: 2606 | AF57: 0 | AG57: 0 | AH57: 2891 | AI57: 3088 | AJ57: 0 | AK57: 0 | AL57: 970 | AM57: 0 | AN57: 46678 | AO57: 0 | AP57: 46678
B58: Town of Greenfield | C58: =C149 -> 410334400000 | D58: Town of Greenfield | E58: Saratoga | F58: 12/31 | G58: 7775 | H58: 0 | I58: 67.4 | J58: 748080021 | K58: 0 | L58: 845580 | M58: 6287 | N58: 1840340 | O58: 57788 | P58: 123590 | Q58: 0 | R58: 46291 | S58: 67850 | T58: 2987727 | U58: 414037 | V58: 0 | W58: 3401765 | X58: 0 | Y58: 117505 | Z58: 3519270 | AA58: 499166 | AB58: 0 | AC58: 79381 | AD58: 6051 | AE58: 2202297 | AF58: 0 | AG58: 229083 | AH58: 154823 | AI58: 93533 | AJ58: 0 | AK58: 29608 | AL58: 291490 | AM58: 0 | AN58: 3585432 | AO58: 117505 | AP58: 3702937
B59: Town of Hadley | C59: =C150 -> 410335700000 | D59: Town of Hadley | E59: Saratoga | F59: 12/31 | G59: 2048 | H59: 0 | I59: 39.7 | J59: 258437047 | K59: 250000 | L59: 1049845 | M59: 3187 | N59: 628297 | O59: 17523 | P59: 125688 | Q59: 0 | R59: 8414 | S59: 20863 | T59: 1853817 | U59: 176256 | V59: 202696 | W59: 2232769 | X59: 0 | Y59: 599001 | Z59: 2831771 | AA59: 388086 | AB59: 0 | AC59: 7528 | AD59: 1338 | AE59: 691131 | AF59: 206182 | AG59: 260 | AH59: 64121 | AI59: 16501 | AJ59: 65020 | AK59: 267525 | AL59: 295707 | AM59: 53247 | AN59: 2056646 | AO59: 599001 | AP59: 2655648
B60: Town of Halfmoon | C60: =C151 -> 410336000000 | D60: Town of Halfmoon | E60: Saratoga | F60: 12/31 | G60: 21535 | H60: 0 | I60: 32.6 | J60: 1953841698 | K60: 44886577 | L60: 2795691 | M60: 20003 | N60: 4871503 | O60: 207610 | P60: 3964040 | Q60: 105000 | R60: 99325 | S60: 547913 | T60: 12611086 | U60: 1123827 | V60: 77099 | W60: 13812012 | X60: 0 | Y60: 202550 | Z60: 14014562 | AA60: 2359983 | AB60: 0 | AC60: 1531804 | AD60: 84385 | AE60: 2196444 | AF60: 0 | AG60: 0 | AH60: 990127 | AI60: 87468 | AJ60: 3367464 | AK60: 112141 | AL60: 1285527 | AM60: 4262685 | AN60: 16278028 | AO60: 202550 | AP60: 16480578
B61: Town of Malta | C61: =C152 -> 410350100000 | D61: Town of Malta | E61: Saratoga | F61: 12/31 | G61: 14765 | H61: 0 | I61: 27.9 | J61: 1496744943 | K61: 3220000 | L61: 1287808 | M61: 9967 | N61: 3611321 | O61: 152312 | P61: 4430460 | Q61: 94696 | R61: 155056 | S61: 659339 | T61: 10400959 | U61: 2890493 | V61: 15558 | W61: 13307010 | X61: 0 | Y61: 199933 | Z61: 13506943 | AA61: 3272905 | AB61: 0 | AC61: 1548807 | AD61: 4300 | AE61: 3848494 | AF61: 0 | AG61: 5491 | AH61: 1050674 | AI61: 29111 | AJ61: 0 | AK61: 114200 | AL61: 876963 | AM61: 256008 | AN61: 11006953 | AO61: 199933 | AP61: 11206886
B62: Village of Round Lake | C62: =C153 -> 410450104295 | D62: Village of Round Lake | E62: Saratoga | F62: 05/31 | G62: 623 | H62: 0 | I62: 1.1 | J62: 55288695 | K62: 2108893 | L62: 319347 | M62: 2650 | N62: 135155 | O62: 54543 | P62: 248724 | Q62: 435247 | R62: 21143 | S62: 38334 | T62: 1255143 | U62: 78699 | V62: 0 | W62: 1333842 | X62: 71500 | Y62: 136950 | Z62: 1542292 | AA62: 167924 | AB62: 0 | AC62: 205206 | AD62: 187 | AE62: 192956 | AF62: 0 | AG62: 0 | AH62: 235082 | AI62: 11213 | AJ62: 90110 | AK62: 6854 | AL62: 87507 | AM62: 209841 | AN62: 1206880 | AO62: 136950 | AP62: 1343830
B63: City of Mechanicville | C63: =C154 -> 410229000000 | D63: City of Mechanicville | E63: Saratoga | F63: 12/31 | G63: 5196 | H63: 0 | I63: 0.8 | J63: 209372846 | K63: 6555413 | L63: 1861253 | M63: 92087 | N63: 1165271 | O63: 83288 | P63: 1571962 | Q63: 12379 | R63: 14104 | S63: 108289 | T63: 4908633 | U63: 1075904 | V63: 175937 | W63: 6160474 | X63: 696750 | Y63: 0 | Z63: 6857224 | AA63: 696815 | AB63: 0 | AC63: 2152362 | AD63: 10000 | AE63: 865971 | AF63: 0 | AG63: 385796 | AH63: 84959 | AI63: 23014 | AJ63: 474697 | AK63: 952128 | AL63: 1138931 | AM63: 350975 | AN63: 7135647 | AO63: 0 | AP63: 7135647
B64: Town of Milton | C64: =C155 -> 410353400000 | D64: Town of Milton | E64: Saratoga | F64: 12/31 | G64: 18575 | H64: 0 | I64: 35.7 | J64: 1203300846 | K64: 0 | L64: 456838 | M64: 9850 | N64: 2533365 | O64: 140500 | P64: 135392 | Q64: 0 | R64: 59558 | S64: 97406 | T64: 3432909 | U64: 682812 | V64: 0 | W64: 4115721 | X64: 0 | Y64: 751445 | Z64: 4867166 | AA64: 1039144 | AB64: 0 | AC64: 205996 | AD64: 7313 | AE64: 2044553 | AF64: 0 | AG64: 2899 | AH64: 307727 | AI64: 29451 | AJ64: 0 | AK64: 225 | AL64: 853165 | AM64: 1049 | AN64: 4491522 | AO64: 751445 | AP64: 5242967
B65: Town of Moreau | C65: =C156 -> 410354900000 | D65: Town of Moreau | E65: Saratoga | F65: 12/31 | G65: 14728 | H65: 0 | I65: 41.9 | J65: 1039551342 | K65: 3603707 | L65: 1782427 | M65: 68964 | N65: 1677028 | O65: 153466 | P65: 1432784 | Q65: 0 | R65: 52556 | S65: 313455 | T65: 5480680 | U65: 517299 | V65: 0 | W65: 5997979 | X65: 0 | Y65: 70231 | Z65: 6068210 | AA65: 846832 | AB65: 0 | AC65: 1257290 | AD65: 2089 | AE65: 1314788 | AF65: 0 | AG65: 4203 | AH65: 1059035 | AI65: 246184 | AJ65: 459536 | AK65: 234209 | AL65: 702706 | AM65: 128704 | AN65: 6255576 | AO65: 70231 | AP65: 6325807
B66: Village of South Glens Falls | C66: =C157 -> 410454904730 | D66: Village of South Glens Falls | E66: Saratoga | F66: 05/31 | G66: 3518 | H66: 0 | I66: 1.4 | J66: 222451938 | K66: 0 | L66: 1026532 | M66: 52912 | N66: 566629 | O66: 55006 | P66: 729051 | Q66: 406016 | R66: 14858 | S66: 92409 | T66: 2943413 | U66: 128251 | V66: 147772 | W66: 3219436 | X66: 0 | Y66: 0 | Z66: 3219436 | AA66: 400632 | AB66: 0 | AC66: 928676 | AD66: 450 | AE66: 443905 | AF66: 0 | AG66: 152633 | AH66: 47199 | AI66: 7023 | AJ66: 217394 | AK66: 343874 | AL66: 638495 | AM66: 25859 | AN66: 3206140 | AO66: 0 | AP66: 3206140
B67: Town of Northumberland | C67: =C158 -> 410360100000 | D67: Town of Northumberland | E67: Saratoga | F67: 12/31 | G67: 5087 | H67: 0 | I67: 32.3 | J67: 356992179 | K67: 130000 | L67: 587527 | M67: 5344 | N67: 924822 | O67: 0 | P67: 42807 | Q67: 0 | R67: 7279 | S67: 153871 | T67: 1721650 | U67: 250518 | V67: 122942 | W67: 2095110 | X67: 0 | Y67: 0 | Z67: 2095110 | AA67: 353697 | AB67: 0 | AC67: 161343 | AD67: 8761 | AE67: 1201721 | AF67: 0 | AG67: 0 | AH67: 31303 | AI67: 106082 | AJ67: 0 | AK67: 57279 | AL67: 196120 | AM67: 0 | AN67: 2116306 | AO67: 0 | AP67: 2116306
B68: Town of Providence | C68: =C159 -> 410369300000 | D68: Town of Providence | E68: Saratoga | F68: 12/31 | G68: 1995 | H68: 0 | I68: 44 | J68: 178879200 | K68: 129960 | L68: 690436 | M68: 2935 | N68: 497647 | O68: 18056 | P68: 29935 | Q68: 0 | R68: 47290 | S68: 10488 | T68: 1296787 | U68: 142498 | V68: 0 | W68: 1439285 | X68: 61470 | Y68: 0 | Z68: 1500755 | AA68: 160118 | AB68: 0 | AC68: 50723 | AD68: 267 | AE68: 829235 | AF68: 2230 | AG68: 0 | AH68: 13740 | AI68: 226 | AJ68: 0 | AK68: 23127 | AL68: 191962 | AM68: 81665 | AN68: 1353293 | AO68: 0 | AP68: 1353293
B69: Town of Saratoga | C69: =C160 -> 410374700000 | D69: Town of Saratoga | E69: Saratoga | F69: 12/31 | G69: 5674 | H69: 0 | I69: 40.6 | J69: 531289867 | K69: 2955000 | L69: 602688 | M69: 8451 | N69: 1106553 | O69: 0 | P69: 30384 | Q69: 0 | R69: 147762 | S69: 146415 | T69: 2042252 | U69: 348516 | V69: 196846 | W69: 2587614 | X69: 0 | Y69: 120307 | Z69: 2707921 | AA69: 487385 | AB69: 0 | AC69: 75441 | AD69: 2664 | AE69: 1044374 | AF69: 0 | AG69: 199296 | AH69: 117465 | AI69: 2385 | AJ69: 0 | AK69: 4349 | AL69: 199831 | AM69: 255889 | AN69: 2389079 | AO69: 120307 | AP69: 2509386
B70: Village of Schuylerville | C70: =C161 -> 410474704490 | D70: Village of Schuylerville | E70: Saratoga | F70: 05/31 | G70: 1386 | H70: 0 | I70: 0.5 | J70: 74123420 | K70: 3346489 | L70: 481976 | M70: 8198 | N70: 191670 | O70: 11717 | P70: 387896 | Q70: 311143 | R70: 2069 | S70: 4546 | T70: 1399214 | U70: 194370 | V70: 110719 | W70: 1704303 | X70: 95629 | Y70: 0 | Z70: 1799932 | AA70: 447851 | AB70: 0 | AC70: 96576 | AD70: 2715 | AE70: 233782 | AF70: 0 | AG70: 112747 | AH70: 111805 | AI70: 20684 | AJ70: 3011 | AK70: 593570 | AL70: 84728 | AM70: 256748 | AN70: 1964216 | AO70: 0 | AP70: 1964216
B71: Village of Victory | C71: =C162 -> 410474705070 | D71: Village of Victory | E71: Saratoga | F71: 05/31 | G71: 605 | H71: 0 | I71: 0.5 | J71: 0 | K71: 284040 | L71: 201601 | M71: 2320 | N71: 67218 | O71: 5546 | P71: 112486 | Q71: 62786 | R71: 4556 | S71: 2438 | T71: 458951 | U71: 293907 | V71: 28591 | W71: 781449 | X71: 6000 | Y71: 28505 | Z71: 815954 | AA71: 140007 | AB71: 0 | AC71: 7013 | AD71: 350 | AE71: 177598 | AF71: 0 | AG71: 246183 | AH71: 1180 | AI71: 5017 | AJ71: 0 | AK71: 40503 | AL71: 47032 | AM71: 88081 | AN71: 752964 | AO71: 28505 | AP71: 781469
B72: City of Saratoga Springs | C72: =C163 -> 410252000000 | D72: City of Saratoga Springs | E72: Saratoga | F72: 12/31 | G72: 26586 | H72: 0 | I72: 28.1 | J72: 3792162425 | K72: 37718743 | L72: 18103685 | M72: 635684 | N72: 10852800 | O72: 458552 | P72: 8589557 | Q72: 249179 | R72: 588346 | S72: 2191057 | T72: 41668860 | U72: 11756972 | V72: 3797171 | W72: 57223003 | X72: 1539457 | Y72: 1556766 | Z72: 60319226 | AA72: 5535381 | AB72: 0 | AC72: 12172585 | AD72: 17765 | AE72: 6980987 | AF72: 207230 | AG72: 437853 | AH72: 5956850 | AI72: 232432 | AJ72: 3016611 | AK72: 3978536 | AL72: 10689370 | AM72: 3396648 | AN72: 52622248 | AO72: 1556766 | AP72: 54179014
B73: Town of Stillwater | C73: =C164 -> 410380700000 | D73: Town of Stillwater | E73: Saratoga | F73: 12/31 | G73: 8287 | H73: 0 | I73: 41.2 | J73: 724498532 | K73: 4282819 | L73: 1904871 | M73: 35660 | N73: 1622200 | O73: 59869 | P73: 455749 | Q73: 13727 | R73: 70541 | S73: 265658 | T73: 4428274 | U73: 1332105 | V73: 774574 | W73: 6534953 | X73: 4864564 | Y73: 572230 | Z73: 11971746 | AA73: 924579 | AB73: 0 | AC73: 1141057 | AD73: 1520 | AE73: 1851888 | AF73: 762747 | AG73: 76193 | AH73: 309721 | AI73: 61553 | AJ73: 408396 | AK73: 104483 | AL73: 552214 | AM73: 1626045 | AN73: 7820396 | AO73: 572274 | AP73: 8392669
B74: Village of Stillwater | C74: =C165 -> 410480704820 | D74: Village of Stillwater | E74: Saratoga | F74: 05/31 | G74: 1738 | H74: 0 | I74: 1.3 | J74: 93175850 | K74: 1691500 | L74: 379310 | M74: 4976 | N74: 230065 | O74: 18395 | P74: 604660 | Q74: 0 | R74: 17218 | S74: 5901 | T74: 1260526 | U74: 30013 | V74: 18666 | W74: 1309204 | X74: 117500 | Y74: 64648 | Z74: 1491352 | AA74: 172968 | AB74: 0 | AC74: 70096 | AD74: 190 | AE74: 149230 | AF74: 0 | AG74: 0 | AH74: 7723 | AI74: 314 | AJ74: 598445 | AK74: 182056 | AL74: 113893 | AM74: 289747 | AN74: 1584662 | AO74: 64648 | AP74: 1649310
B75: Town of Waterford | C75: =C166 -> 410387500000 | D75: Town of Waterford | E75: Saratoga | F75: 12/31 | G75: 8423 | H75: 0 | I75: 6.6 | J75: 597504494 | K75: 8739124 | L75: 3310903 | M75: 65536 | N75: 1431866 | O75: 108502 | P75: 862398 | Q75: 32791 | R75: 19888 | S75: 36493 | T75: 5868377 | U75: 878600 | V75: 380436 | W75: 7127413 | X75: 133604 | Y75: 819076 | Z75: 8080093 | AA75: 1371657 | AB75: 1030 | AC75: 1536424 | AD75: 0 | AE75: 767047 | AF75: 251792 | AG75: 128338 | AH75: 347409 | AI75: 62280 | AJ75: 0 | AK75: 929041 | AL75: 858468 | AM75: 941891 | AN75: 7195377 | AO75: 819076 | AP75: 8014453
B76: Village of Waterford | C76: =C167 -> 410487505180 | D76: Village of Waterford | E76: Saratoga | F76: 05/31 | G76: 1990 | H76: 0 | I76: 0.3 | J76: 61340788 | K76: 204500 | L76: 246311 | M76: 2363 | N76: 146012 | O76: 18795 | P76: 80309 | Q76: 182313 | R76: 358 | S76: 35489 | T76: 711950 | U76: 203916 | V76: 361242 | W76: 1277108 | X76: 50000 | Y76: 0 | Z76: 1327108 | AA76: 138713 | AB76: 0 | AC76: 203795 | AD76: 0 | AE76: 281194 | AF76: 279026 | AG76: 0 | AH76: 62650 | AI76: 1345 | AJ76: 0 | AK76: 142989 | AL76: 9988 | AM76: 142785 | AN76: 1262486 | AO76: 0 | AP76: 1262486
B77: Town of Wilton | C77: =C168 -> 410391700000 | D77: Town of Wilton | E77: Saratoga | F77: 12/31 | G77: 16173 | H77: 0 | I77: 35.8 | J77: 1821626122 | K77: 505000 | L77: 558765 | M77: 7569 | N77: 4502733 | O77: 258829 | P77: 558963 | Q77: 11396 | R77: 269858 | S77: 263435 | T77: 6431548 | U77: 690241 | V77: 95555 | W77: 7217344 | X77: 0 | Y77: 25000 | Z77: 7242344 | AA77: 1492551 | AB77: 0 | AC77: 700850 | AD77: 11495 | AE77: 1972591 | AF77: 100518 | AG77: 2479 | AH77: 772414 | AI77: 286508 | AJ77: 0 | AK77: 17091 | AL77: 913753 | AM77: 172475 | AN77: 6442725 | AO77: 25000 | AP77: 6467725
B78: Schenectady County | C78: =C169 -> 420100000000 | D78: County of Schenectady | E78: Schenectady | F78: 12/31 | G78: 154727 | H78: 0 | I78: 204.5 | J78: 10444791771 | K78: 57714665 | L78: 63583228 | M78: 3099810 | N78: 82717843 | O78: 568303 | P78: 30440012 | Q78: 4587849 | R78: 850607 | S78: 14190015 | T78: 200037667 | U78: 46741425 | V78: 34631818 | W78: 281410910 | X78: 6800419 | Y78: 1682882 | Z78: 289894211 | AA78: 50293418 | AB78: 13785064 | AC78: 22301444 | AD78: 30766693 | AE78: 16080227 | AF78: 103568604 | AG78: 662969 | AH78: 6154760 | AI78: 3750312 | AJ78: 0 | AK78: 331867 | AL78: 34644415 | AM78: 8495929 | AN78: 290835702 | AO78: 1682882 | AP78: 292518584
B79: Town of Duanesburg | C79: =C170 -> 420324200000 | D79: Town of Duanesburg | E79: Schenectady | F79: 12/31 | G79: 6122 | H79: 0 | I79: 70.8 | J79: 585414892 | K79: 6985657 | L79: 1484414 | M79: 18644 | N79: 724896 | O79: 34930 | P79: 30585 | Q79: 60813 | R79: 6108 | S79: 166764 | T79: 2527154 | U79: 222014 | V79: 87463 | W79: 2836630 | X79: 0 | Y79: 1000 | Z79: 2837630 | AA79: 606647 | AB79: 0 | AC79: 447340 | AD79: 850 | AE79: 619822 | AF79: 2500 | AG79: 90536 | AH79: 24559 | AI79: 3500 | AJ79: 0 | AK79: 312366 | AL79: 353832 | AM79: 303071 | AN79: 2765023 | AO79: 1000 | AP79: 2766023
B80: Village of Delanson | C80: =C171 -> 420424201250 | D80: Village of Delanson | E80: Schenectady | F80: 05/31 | G80: 377 | H80: 0 | I80: 0.6 | J80: 23167654 | K80: 443700 | L80: 74296 | M80: 188 | N80: 35349 | O80: 10388 | P80: 84422 | Q80: 58854 | R80: 277 | S80: 483 | T80: 264257 | U80: 29495 | V80: 0 | W80: 293752 | X80: 0 | Y80: 0 | Z80: 293752 | AA80: 76031 | AB80: 0 | AC80: 32053 | AD80: 0 | AE80: 54812 | AF80: 0 | AG80: 0 | AH80: 2456 | AI80: 0 | AJ80: 35469 | AK80: 26962 | AL80: 6203 | AM80: 37256 | AN80: 271242 | AO80: 0 | AP80: 271242
B81: Town of Glenville | C81: =C172 -> 420333100000 | D81: Town of Glenville | E81: Schenectady | F81: 12/31 | G81: 29480 | H81: 0 | I81: 49.2 | J81: 2328975445 | K81: 21764820 | L81: 7341433 | M81: 152304 | N81: 2534366 | O81: 317237 | P81: 1987823 | Q81: 375894 | R81: 126285 | S81: 949245 | T81: 13784587 | U81: 894403 | V81: 473431 | W81: 15152421 | X81: 2900583 | Y81: 0 | Z81: 18053004 | AA81: 1470342 | AB81: 0 | AC81: 3684058 | AD81: 1743 | AE81: 2578556 | AF81: 325081 | AG81: 156892 | AH81: 390135 | AI81: 50537 | AJ81: 1190481 | AK81: 769830 | AL81: 2826267 | AM81: 2391001 | AN81: 15834923 | AO81: 0 | AP81: 15834923
B82: Village of Scotia | C82: =C173 -> 420433104500 | D82: Village of Scotia | E82: Schenectady | F82: 05/31 | G82: 7729 | H82: 0 | I82: 1.7 | J82: 426783975 | K82: 1216280 | L82: 3783102 | M82: 84384 | N82: 762478 | O82: 0 | P82: 2305228 | Q82: 387648 | R82: 27857 | S82: 84862 | T82: 7435558 | U82: 1675868 | V82: 640262 | W82: 9751688 | X82: 0 | Y82: 213331 | Z82: 9965020 | AA82: 639606 | AB82: 0 | AC82: 3117960 | AD82: 64 | AE82: 643606 | AF82: 621599 | AG82: 58440 | AH82: 1073825 | AI82: 31406 | AJ82: 474133 | AK82: 1636044 | AL82: 1332814 | AM82: 323796 | AN82: 9953293 | AO82: 213331 | AP82: 10166624
B83: Town of Niskayuna | C83: =C174 -> 420358700000 | D83: Town of Niskayuna | E83: Schenectady | F83: 12/31 | G83: 21781 | H83: 0 | I83: 14.2 | J83: 2423130612 | K83: 10374489 | L83: 10116222 | M83: 327206 | N83: 3026887 | O83: 358202 | P83: 3540286 | Q83: 14329 | R83: 331086 | S83: 131738 | T83: 17845956 | U83: 954275 | V83: 560396 | W83: 19360627 | X83: 9648726 | Y83: 543980 | Z83: 29553333 | AA83: 1705458 | AB83: 0 | AC83: 3321153 | AD83: 34597 | AE83: 3612017 | AF83: 291342 | AG83: 0 | AH83: 1089169 | AI83: 100953 | AJ83: 4052328 | AK83: 2507125 | AL83: 3454495 | AM83: 1527246 | AN83: 21695882 | AO83: 543980 | AP83: 22239862
B84: Town of Princetown | C84: =C175 -> 420369200000 | D84: Town of Princetown | E84: Schenectady | F84: 12/31 | G84: 2115 | H84: 0 | I84: 23.9 | J84: 202235418 | K84: 2709700 | L84: 400188 | M84: 81679 | N84: 193766 | O84: 0 | P84: 141162 | Q84: 0 | R84: 39356 | S84: 248070 | T84: 1104222 | U84: 71230 | V84: 28267 | W84: 1203719 | X84: 330600 | Y84: 77246 | Z84: 1611565 | AA84: 382128 | AB84: 0 | AC84: 276218 | AD84: 100 | AE84: 78270 | AF84: 2345 | AG84: 0 | AH84: 1959 | AI84: 1000 | AJ84: 477801 | AK84: 0 | AL84: 59108 | AM84: 172899 | AN84: 1451828 | AO84: 77246 | AP84: 1529074
B85: Town of Rotterdam | C85: =C176 -> 420372600000 | D85: Town of Rotterdam | E85: Schenectady | F85: 12/31 | G85: 29094 | H85: 0 | I85: 35.7 | J85: 2547009941 | K85: 10110000 | L85: 11465185 | M85: 323015 | N85: 3523483 | O85: 538874 | P85: 906097 | Q85: 177794 | R85: 334020 | S85: 646756 | T85: 17915225 | U85: 1021568 | V85: 1543636 | W85: 20480429 | X85: 70750 | Y85: 51677 | Z85: 20602856 | AA85: 2245334 | AB85: 1022 | AC85: 5788751 | AD85: 3400 | AE85: 4054515 | AF85: 1503575 | AG85: 3660 | AH85: 417267 | AI85: 184764 | AJ85: 1672174 | AK85: 903117 | AL85: 4763104 | AM85: 1483485 | AN85: 23024167 | AO85: 51677 | AP85: 23075844
B86: City of Schenectady | C86: =C177 -> 420253000000 | D86: City of Schenectady | E86: Schenectady | F86: 12/31 | G86: 66135 | H86: 0 | I86: 10.8 | J86: 2417858243 | K86: 95999672 | L86: 25594404 | M86: 1266964 | N86: 11848038 | O86: 793997 | P86: 28980434 | Q86: 266134 | R86: 908758 | S86: 6641333 | T86: 76300062 | U86: 16346137 | V86: 8428494 | W86: 101074693 | X86: 3066714 | Y86: 406000 | Z86: 104547407 | AA86: 22284818 | AB86: 0 | AC86: 26256064 | AD86: 0 | AE86: 8602444 | AF86: 0 | AG86: 11516104 | AH86: 2042518 | AI86: 803457 | AJ86: 5177328 | AK86: 15802846 | AL86: 24262511 | AM86: 8849515 | AN86: 125597605 | AO86: 406000 | AP86: 126003605
B87: Capital District | C87: =SUM(C3:C86)-C13-C14 -> -20769002040 | G87: =G3+G24+G47+G78 -> 837967 | I87: =I3+I24+I47+I78 -> 2189.7 | J87: 67617683856 | K87: 584967953 | L87: 232247698 | M87: 18577335 | N87: 477522222 | O87: 10093167 | P87: 198222893 | Q87: 50889184 | R87: 11280300 | S87: 56511814 | T87: 1055344611 | U87: 189483684 | V87: 172384745 | W87: 1417213040 | X87: 92643537 | Y87: 72004311 | Z87: 1581860889 | AA87: 338502840 | AB87: 83069023 | AC87: 131673034 | AD87: 140718798 | AE87: 67736042 | AF87: 436970636 | AG87: 3861337 | AH87: 14645086 | AI87: 17962539 | AJ87: 0 | AK87: 18905591 | AL87: 193217608 | AM87: 49303538 | AN87: 1496566072 | AO87: 72004312 | AP87: 1568570384
A89: =SUM(B89:AP89) -> 0 | B89: =IF(B1<>B92,1,) -> 0 | C89: =IF(C1<>C92,1,) -> 0 | D89: 0 | E89: 0 | F89: 0 | G89: 0 | H89: 0 | I89: 0 | J89: 0 | K89: 0 | L89: 0 | M89: 0 | N89: 0 | O89: 0 | P89: 0 | Q89: 0 | R89: 0 | S89: 0 | T89: 0 | U89: 0 | V89: 0 | W89: 0 | X89: 0 | Y89: 0 | Z89: 0 | AA89: 0 | AB89: 0 | AC89: 0 | AD89: 0 | AE89: 0 | AF89: 0 | AG89: 0 | AH89: 0 | AI89: 0 | AJ89: 0 | AK89: 0 | AL89: 0 | AM89: 0 | AN89: 0 | AO89: 0 | AP89: 0
A90: =SUM(B90:AP90) -> 0 | B90: =IF(B2<>B93,1,) -> 0 | C90: 0 | D90: 0 | E90: 0 | F90: 0 | G90: 0 | H90: 0 | I90: 0 | J90: 0 | K90: 0 | L90: 0 | M90: 0 | N90: 0 | O90: 0 | P90: 0 | Q90: 0 | R90: 0 | S90: 0 | T90: 0 | U90: 0 | V90: 0 | W90: 0 | X90: 0 | Y90: 0 | Z90: 0 | AA90: 0 | AB90: 0 | AC90: 0 | AD90: 0 | AE90: 0 | AF90: 0 | AG90: 0 | AH90: 0 | AI90: 0 | AJ90: 0 | AK90: 0 | AL90: 0 | AM90: 0 | AN90: 0 | AO90: 0 | AP90: 0
B92: Fiscal Year 2010 | L92: REVENUES | AA92: EXPENDITURES
A93: =SUM(A94:A178) -> 0 | B93: Level One | C93: Municipal Code | D93: Municipal Name | E93: County Name | F93: Fiscal Year End | G93: Population | H93: Enrollment | I93: Land Area (sq. mi.) | J93: Full Value | K93: Total Debt Outstanding at EOFY | L93: Real Property Texes & Assessments | M93: Other Real Property Tax Items | N93: Sales & Use Tax | O93: Other Non-Property Taxes | P93: Charges for Services | Q93: Charges to Other Governments | R93: Use & Sale of Property | S93: Other Local Revenues | T93: Local Revenues | U93: State Aid | V93: Federal Aid | W93: Total Revenues | X93: Proceeds of Debt | Y93: Other Services | Z93: Total Revenues & Other Sources | AA93: General Government | AB93: Education | AC93: Public Safety | AD93: Health | AE93: Transportation | AF93: Social Services | AG93: Economic Development | AH93: Culture & Recreation | AI93: Community Services | AJ93: Utilities | AK93: Sanitation | AL93: Employee Benefits | AM93: Debt Service | AN93: Total Expenditures | AO93: Other Uses | AP93: Total Expenditures & Other Uses
A94: =IF(C3<>C94,1,0) -> 0 | B94: Albany County | C94: 010100000000 | D94: County of Albany | E94: Albany | F94: 12/31 | G94: 304204 | H94: 0 | I94: 522.8 | J94: 24780071182 | K94: 274806031 | L94: 67489877 | M94: 6979377 | N94: 228951684 | O94: 4749863 | P94: 65133973 | Q94: 22394261 | R94: 4184595 | S94: 15813507 | T94: 415697135 | U94: 74524039 | V94: 82382833 | W94: 572604007 | X94: 43358500 | Y94: 46424236 | Z94: 662386743 | AA94: 146311349 | AB94: 23588055 | AC94: 59369420 | AD94: 33647998 | AE94: 26142803 | AF94: 202210789 | AG94: 1525331 | AH94: 6304172 | AI94: 7328829 | AJ94: 0 | AK94: 7677302 | AL94: 68512583 | AM94: 22135776 | AN94: 604754408 | AO94: 46424236 | AP94: 651178644
A95: =IF(C4<>C95,1,0) -> 0 | B95: City of Albany | C95: 010201000000 | D95: City of Albany | E95: Albany | F95: 12/31 | G95: 97856 | H95: 0 | I95: 21.4 | J95: 5125089604 | K95: 152198950 | L95: 53056844 | M95: 26263862 | N95: 30350525 | O95: 1527548 | P95: 15681666 | Q95: 1027889 | R95: 1391115 | S95: 10871572 | T95: 140171021 | U95: 21688863 | V95: 11745596 | W95: 173605480 | X95: 670000 | Y95: 440000 | Z95: 174715480 | AA95: 22113971 | AB95: 0 | AC95: 57732938 | AD95: 208730 | AE95: 18605086 | AF95: 2403238 | AG95: 0 | AH95: 5305920 | AI95: 2961649 | AJ95: 0 | AK95: 13924849 | AL95: 48656526 | AM95: 16725695 | AN95: 188638602 | AO95: 440000 | AP95: 189078602
A96: 0 | B96: Town of Berne | C96: 010306800000 | D96: Town of Berne | E96: Albany | F96: 12/31 | G96: 2794 | H96: 0 | I96: 64 | J96: 299701688 | K96: 591036 | L96: 1160528 | M96: 4605 | N96: 888183 | O96: 14058 | P96: 37542 | Q96: 0 | R96: 10958 | S96: 39055 | T96: 2154929 | U96: 347544 | V96: 0 | W96: 2502472 | X96: 88227 | Y96: 0 | Z96: 2590700 | AA96: 358567 | AB96: 0 | AC96: 510789 | AD96: 1300 | AE96: 989203 | AF96: 0 | AG96: 0 | AH96: 75861 | AI96: 0 | AJ96: 0 | AK96: 108829 | AL96: 191120 | AM96: 98152 | AN96: 2333820 | AO96: 0 | AP96: 2333820
A97: 0 | B97: Town of Bethlehem | C97: 010307100000 | D97: Town of Bethlehem | E97: Albany | F97: 12/31 | G97: 33656 | H97: 0 | I97: 49 | J97: 3396032947 | K97: 20250000 | L97: 10811795 | M97: 1966401 | N97: 9444723 | O97: 707304 | P97: 10683517 | Q97: 40626 | R97: 317646 | S97: 1126579 | T97: 35098591 | U97: 1432107 | V97: 897379 | W97: 37428077 | X97: 43000 | Y97: 261000 | Z97: 37732077 | AA97: 3885268 | AB97: 1192 | AC97: 7144312 | AD97: 3965 | AE97: 5239059 | AF97: 300615 | AG97: 0 | AH97: 2081858 | AI97: 492430 | AJ97: 6477043 | AK97: 5140012 | AL97: 5777893 | AM97: 2044680 | AN97: 38588327 | AO97: 261000 | AP97: 38849327
A98: 0 | B98: Town of Coeymans | C98: 010318000000 | D98: Town of Coeymans | E98: Albany | F98: 12/31 | G98: 7418 | H98: 0 | I98: 50.1 | J98: 607063586 | K98: 3978 | L98: 1738076 | M98: 11440 | N98: 1785256 | O98: 13549 | P98: 316534 | Q98: 436915 | R98: 34311 | S98: 257448 | T98: 4593528 | U98: 242142 | V98: 470895 | W98: 5306565 | X98: 0 | Y98: 1791626 | Z98: 7098191 | AA98: 879875 | AB98: 0 | AC98: 1226159 | AD98: 165968 | AE98: 1274456 | AF98: 484427 | AG98: 844 | AH98: 87344 | AI98: 218139 | AJ98: 0 | AK98: 438386 | AL98: 736272 | AM98: 5189 | AN98: 5517059 | AO98: 1791626 | AP98: 7308685
A99: 0 | B99: Village of Ravena | C99: 010418004140 | D99: Village of Ravena | E99: Albany | F99: 05/31 | G99: 3268 | H99: 0 | I99: 1.5 | J99: 169328756 | K99: 865000 | L99: 761980 | M99: 4857 | N99: 715669 | O99: 0 | P99: 890280 | Q99: 0 | R99: 49207 | S99: 159697 | T99: 2581690 | U99: 81777 | V99: 54586 | W99: 2718053 | X99: 0 | Y99: 110000 | Z99: 2828053 | AA99: 742493 | AB99: 0 | AC99: 138496 | AD99: 512 | AE99: 289166 | AF99: 0 | AG99: 1304 | AH99: 85918 | AI99: 7060 | AJ99: 302019 | AK99: 278148 | AL99: 481656 | AM99: 195701 | AN99: 2522473 | AO99: 110000 | AP99: 2632473
A100: 0 | B100: City of Cohoes | C100: 010209000000 | D100: City of Cohoes | E100: Albany | F100: 12/31 | G100: 16168 | H100: 0 | I100: 3.8 | J100: 689715761 | K100: 10660383 | L100: 6587042 | M100: 785349 | N100: 4886563 | O100: 335351 | P100: 4382652 | Q100: 197928 | R100: 139998 | S100: 619612 | T100: 17934495 | U100: 3717282 | V100: 5979887 | W100: 27631664 | X100: 0 | Y100: 267027 | Z100: 27898691 | AA100: 2631834 | AB100: 0 | AC100: 6982179 | AD100: 0 | AE100: 6231996 | AF100: 0 | AG100: 173947 | AH100: 507297 | AI100: 1323980 | AJ100: 771642 | AK100: 2341882 | AL100: 4588842 | AM100: 1806327 | AN100: 27359926 | AO100: 267027 | AP100: 27626953
A101: 0 | B101: Town of Colonie | C101: 010318700000 | D101: Town of Colonie | E101: Albany | F101: 12/31 | G101: 81591 | H101: 0 | I101: 55.9 | J101: 8629079128 | K101: 104955386 | L101: 29894359 | M101: 1176856 | N101: 19446154 | O101: 0 | P101: 26810938 | Q101: 134889 | R101: 2869394 | S101: 7367366 | T101: 87699956 | U101: 3912479 | V101: 6767989 | W101: 98380424 | X101: 766087 | Y101: 2876000 | Z101: 102022511 | AA101: 19791192 | AB101: 0 | AC101: 23554456 | AD101: 62563 | AE101: 9686674 | AF101: 2162718 | AG101: 893013 | AH101: 8501666 | AI101: 146776 | AJ101: 8837132 | AK101: 7476381 | AL101: 17853505 | AM101: 6791305 | AN101: 105757381 | AO101: 2876000 | AP101: 108633381
A102: 0 | B102: Village of Colonie | C102: 010418701100 | D102: Village of Colonie | E102: Albany | F102: 05/31 | G102: 7793 | H102: 0 | I102: 3.2 | J102: 843702141 | K102: 0 | L102: 1189824 | M102: 11305 | N102: 2326038 | O102: 126683 | P102: 2827590 | Q102: 0 | R102: 57128 | S102: 88573 | T102: 6627141 | U102: 187683 | V102: 115892 | W102: 6930716 | X102: 0 | Y102: 612360 | Z102: 7543076 | AA102: 708727 | AB102: 0 | AC102: 334935 | AD102: 10583 | AE102: 1320687 | AF102: 0 | AG102: 25994 | AH102: 520847 | AI102: 445775 | AJ102: 1179195 | AK102: 1301700 | AL102: 718178 | AM102: 0 | AN102: 6566621 | AO102: 612360 | AP102: 7178981
A103: 0 | B103: Village of Menands | C103: 010418703040 | D103: Village of Menands | E103: Albany | F103: 05/31 | G103: 3990 | H103: 0 | I103: 3.1 | J103: 464248478 | K103: 325000 | L103: 1793552 | M103: 6677 | N103: 1288251 | O103: 81700 | P103: 1307349 | Q103: 181217 | R103: 14943 | S103: 314477 | T103: 4988166 | U103: 131927 | V103: 25848 | W103: 5145941 | X103: 0 | Y103: 0 | Z103: 5145941 | AA103: 630602 | AB103: 0 | AC103: 1176266 | AD103: 0 | AE103: 579255 | AF103: 0 | AG103: 4476 | AH103: 71255 | AI103: 10694 | AJ103: 782294 | AK103: 564448 | AL103: 776927 | AM103: 0 | AN103: 4596217 | AO103: 0 | AP103: 4596217
A104: 0 | B104: Town/Village of Green Island | C104: 010334500000 | D104: Town of Green Island | E104: Albany | F104: 12/31 | G104: 2620 | H104: 0 | I104: 0.8 | J104: 140974052 | K104: 0 | L104: 0 | M104: 787 | N104: 51217 | O104: 0 | P104: 3038 | Q104: 0 | R104: 454 | S104: 143782 | T104: 199278 | U104: 45488 | V104: 0 | W104: 244766 | X104: 0 | Y104: 0 | Z104: 244766 | AA104: 285349 | AB104: 0 | AC104: 2000 | AD104: 0 | AE104: 0 | AF104: 0 | AG104: 0 | AH104: 10000 | AI104: 0 | AJ104: 0 | AK104: 0 | AL104: 27644 | AM104: 0 | AN104: 324993 | AO104: 0 | AP104: 324993
A105: 0 | B105: Town/Village of Green Island | C105: 010434502040 | D105: Village of Green Island | E105: Albany | F105: 05/31 | G105: 2620 | H105: 0 | I105: 0.8 | J105: 156917509 | K105: 885000 | L105: 1702672 | M105: 399374 | N105: 606525 | O105: 42898 | P105: 1122853 | Q105: 414760 | R105: 174977 | S105: 100351 | T105: 4564410 | U105: 129815 | V105: 381400 | W105: 5075625 | X105: 0 | Y105: 0 | Z105: 5075625 | AA105: 557350 | AB105: 0 | AC105: 1120798 | AD105: 0 | AE105: 279140 | AF105: 354625 | AG105: 0 | AH105: 133831 | AI105: 0 | AJ105: 333394 | AK105: 804532 | AL105: 674865 | AM105: 419917 | AN105: 4678452 | AO105: 0 | AP105: 4678452
A106: 0 | B106: Town/Village of Green Island
A107: 0 | B107: Town of Guilderland | C107: 010335500000 | D107: Town of Guilderland | E107: Albany | F107: 12/31 | G107: 35303 | H107: 0 | I107: 57.9 | J107: 3752152566 | K107: 27917000 | L107: 8268629 | M107: 95679 | N107: 9747640 | O107: 519166 | P107: 7240561 | Q107: 164870 | R107: 465505 | S107: 950635 | T107: 27452685 | U107: 1624711 | V107: 586027 | W107: 29663422 | X107: 0 | Y107: 1233638 | Z107: 30897060 | AA107: 2592473 | AB107: 0 | AC107: 6347532 | AD107: 342933 | AE107: 5967413 | AF107: 38627 | AG107: 648865 | AH107: 1668584 | AI107: 284847 | AJ107: 2633803 | AK107: 3287643 | AL107: 4063036 | AM107: 3083298 | AN107: 30959053 | AO107: 1233638 | AP107: 32192690
A108: 0 | B108: Village of Altamont | C108: 010435500120 | D108: Village of Altamont | E108: Albany | F108: 05/31 | G108: 1720 | H108: 0 | I108: 1.2 | J108: 126640029 | K108: 1260000 | L108: 272101 | M108: 3135 | N108: 533455 | O108: 32127 | P108: 744767 | Q108: 97928 | R108: 119626 | S108: 54150 | T108: 1857289 | U108: 72482 | V108: 10452 | W108: 1940223 | X108: 0 | Y108: 0 | Z108: 1940223 | AA108: 267391 | AB108: 0 | AC108: 417249 | AD108: 0 | AE108: 232923 | AF108: 0 | AG108: 0 | AH108: 218339 | AI108: 6468 | AJ108: 193411 | AK108: 315730 | AL108: 161891 | AM108: 106656 | AN108: 1920058 | AO108: 0 | AP108: 1920058
A109: 0 | B109: Town of Knox | C109: 010344300000 | D109: Town of Knox | E109: Albany | F109: 12/31 | G109: 2692 | H109: 0 | I109: 41.8 | J109: 265450406 | K109: 1139981 | L109: 241958 | M109: 2949 | N109: 798626 | O109: 30657 | P109: 6583 | Q109: 0 | R109: 40595 | S109: 23340 | T109: 1144707 | U109: 115187 | V109: 0 | W109: 1259894 | X109: 80000 | Y109: 1000 | Z109: 1340894 | AA109: 1162541 | AB109: 0 | AC109: 102493 | AD109: 1232 | AE109: 557833 | AF109: 0 | AG109: 0 | AH109: 20361 | AI109: 1500 | AJ109: 0 | AK109: 95485 | AL109: 178556 | AM109: 110353 | AN109: 2230354 | AO109: 1000 | AP109: 2231354
A110: 0 | B110: Town of New Scotland | C110: 010358100000 | D110: Town of New Scotland | E110: Albany | F110: 12/31 | G110: 8648 | H110: 0 | I110: 57.5 | J110: 972484595 | K110: 2125914 | L110: 2306917 | M110: 7397 | N110: 1765304 | O110: 33096 | P110: 410890 | Q110: 0 | R110: 22178 | S110: 262644 | T110: 4808426 | U110: 403825 | V110: 126169 | W110: 5338420 | X110: 48800 | Y110: 489 | Z110: 5387709 | AA110: 783786 | AB110: 0 | AC110: 985069 | AD110: 1428 | AE110: 1829789 | AF110: 0 | AG110: 0 | AH110: 152813 | AI110: 101221 | AJ110: 293285 | AK110: 615190 | AL110: 659163 | AM110: 239034 | AN110: 5660779 | AO110: 489 | AP110: 5661267
A111: 0 | B111: Village of Voorheesville | C111: 010458105090 | D111: Village of Voorheesville | E111: Albany | F111: 05/31 | G111: 2789 | H111: 0 | I111: 2.1 | J111: 238009756 | K111: 3735000 | L111: 259531 | M111: 1156 | N111: 855366 | O111: 53546 | P111: 583967 | Q111: 0 | R111: 22602 | S111: 24052 | T111: 1800220 | U111: 104494 | V111: 2550 | W111: 1907264 | X111: 0 | Y111: 0 | Z111: 1907264 | AA111: 303841 | AB111: 0 | AC111: 70442 | AD111: 750 | AE111: 424202 | AF111: 0 | AG111: 0 | AH111: 21567 | AI111: 1073 | AJ111: 153762 | AK111: 231068 | AL111: 200593 | AM111: 266005 | AN111: 1673303 | AO111: 0 | AP111: 1673303
A112: 0 | B112: Town of Rensselaerville | C112: 010370600000 | D112: Town of Rensselaerville | E112: Albany | F112: 12/31 | G112: 1843 | H112: 0 | I112: 61.5 | J112: 260837670 | K112: 810241 | L112: 1194526 | M112: 5133 | N112: 501520 | O112: 2890 | P112: 115047 | Q112: 0 | R112: 14190 | S112: 23667 | T112: 1856973 | U112: 169482 | V112: 0 | W112: 2026455 | X112: 16800 | Y112: 18478 | Z112: 2061733 | AA112: 329075 | AB112: 0 | AC112: 235702 | AD112: 40459 | AE112: 1063367 | AF112: 0 | AG112: 0 | AH112: 76307 | AI112: 7900 | AJ112: 23241 | AK112: 91619 | AL112: 332364 | AM112: 47630 | AN112: 2247664 | AO112: 18478 | AP112: 2266142
A113: 0 | B113: City of Watervliet | C113: 010260000000 | D113: City of Watervliet | E113: Albany | F113: 12/31 | G113: 10254 | H113: 0 | I113: 1.4 | J113: 389563501 | K113: 7199463 | L113: 3824057 | M113: 146256 | N113: 3241101 | O113: 162368 | P113: 4552059 | Q113: 331778 | R113: 8997 | S113: 203285 | T113: 12469901 | U113: 6434433 | V113: 246864 | W113: 19151198 | X113: 69500 | Y113: 1147128 | Z113: 20367826 | AA113: 1344622 | AB113: 0 | AC113: 4556418 | AD113: 32634 | AE113: 5649324 | AF113: 0 | AG113: 599105 | AH113: 262835 | AI113: 27453 | AJ113: 1760396 | AK113: 1084699 | AL113: 3134921 | AM113: 932037 | AN113: 19384444 | AO113: 1147128 | AP113: 20531572
A114: 0 | B114: Town of Westerlo | C114: 010389000000 | D114: Town of Westerlo | E114: Albany | F114: 12/31 | G114: 3361 | H114: 0 | I114: 57.8 | J114: 334238875 | K114: 1180000 | L114: 994007 | M114: 4604 | N114: 1045726 | O114: 8895 | P114: 104633 | Q114: 0 | R114: 13773 | S114: 25300 | T114: 2196938 | U114: 234381 | V114: 0 | W114: 2431319 | X114: 0 | Y114: 4785 | Z114: 2436104 | AA114: 622015 | AB114: 0 | AC114: 285304 | AD114: 0 | AE114: 778664 | AF114: 0 | AG114: 0 | AH114: 229882 | AI114: 0 | AJ114: 55625 | AK114: 176303 | AL114: 374927 | AM114: 101716 | AN114: 2624436 | AO114: 4785 | AP114: 2629221
A115: 0 | B115: Rensselaer County | C115: 380100000000 | D115: County of Rensselaer | E115: Rensselaer | F115: 12/31 | G115: 159429 | H115: 0 | I115: 652.4 | J115: 10505904197 | K115: 172578257 | L115: 54954180 | M115: 5126992 | N115: 69300351 | O115: 2142969 | P115: 56268683 | Q115: 18250491 | R115: 2510295 | S115: 22984755 | T115: 231538716 | U115: 45932941 | V115: 27210705 | W115: 304682362 | X115: 13510618 | Y115: 2873269 | Z115: 321066250 | AA115: 46614760 | AB115: 27965128 | AC115: 29261288 | AD115: 44221883 | AE115: 9468366 | AF115: 83962914 | AG115: 889366 | AH115: 427844 | AI115: 3315388 | AJ115: 0 | AK115: 3590424 | AL115: 48240174 | AM115: 13777806 | AN115: 311735339 | AO115: 2873269 | AP115: 314608608
A116: 0 | B116: Village of Nassau | C116: 380456103330 | D116: Village of Nassau | E116: Rensselaer | F116: 05/31 | G116: 1133 | H116: 0 | I116: 0.7 | J116: 69949308 | K116: 181350 | L116: 336290 | M116: 9024 | N116: 63338 | O116: 15538 | P116: 249726 | Q116: 0 | R116: 2213 | S116: 45021 | T116: 721150 | U116: 73182 | V116: 6334 | W116: 800666 | X116: 34600 | Y116: 30300 | Z116: 865566 | AA116: 169761 | AB116: 0 | AC116: 159086 | AD116: 0 | AE116: 123804 | AF116: 0 | AG116: 0 | AH116: 4573 | AI116: 215 | AJ116: 126761 | AK116: 86363 | AL116: 53821 | AM116: 58897 | AN116: 783281 | AO116: 30300 | AP116: 813581
A117: 0 | B117: Village of Valley Falls | C117: 380467005020 | D117: Village of Valley Falls | E117: Rensselaer | F117: 05/31 | G117: 466 | H117: 0 | I117: 0.5 | J117: 27333975 | K117: 1880534 | L117: 49500 | M117: 1210 | N117: 29737 | O117: 4151 | P117: 106413 | Q117: 75000 | R117: 44 | S117: 22665 | T117: 288720 | U117: 19513 | V117: 0 | W117: 308233 | X117: 0 | Y117: 4949 | Z117: 313182 | AA117: 59543 | AB117: 0 | AC117: 40548 | AD117: 0 | AE117: 24095 | AF117: 0 | AG117: 0 | AH117: 19346 | AI117: 50827 | AJ117: 0 | AK117: 2222 | AL117: 2592 | AM117: 92600 | AN117: 291773 | AO117: 4949 | AP117: 296722
A118: 0 | B118: Town of Berlin | C118: 380306700000 | D118: Town of Berlin | E118: Rensselaer | F118: 12/31 | G118: 1880 | H118: 0 | I118: 59.6 | J118: 169380954 | K118: 0 | L118: 379476 | M118: 2217 | N118: 164826 | O118: 0 | P118: 197090 | Q118: 0 | R118: 2411 | S118: 15111 | T118: 761132 | U118: 116282 | V118: 0 | W118: 877414 | X118: 0 | Y118: 0 | Z118: 877414 | AA118: 122054 | AB118: 0 | AC118: 15121 | AD118: 200 | AE118: 428000 | AF118: 0 | AG118: 0 | AH118: 18726 | AI118: 4344 | AJ118: 38497 | AK118: 111059 | AL118: 82109 | AM118: 13801 | AN118: 833911 | AO118: 0 | AP118: 833911
A119: 0 | B119: Town of Brunswick | C119: 380309900000 | D119: Town of Brunswick | E119: Rensselaer | F119: 12/31 | G119: 11941 | H119: 0 | I119: 44.4 | J119: 1013344648 | K119: 2385000 | L119: 3377741 | M119: 30335 | N119: 1016116 | O119: 98478 | P119: 1465368 | Q119: 28199 | R119: 56682 | S119: 18748 | T119: 6091667 | U119: 506240 | V119: 29988 | W119: 6627895 | X119: 0 | Y119: 0 | Z119: 6627895 | AA119: 1076797 | AB119: 0 | AC119: 1058196 | AD119: 2500 | AE119: 1648778 | AF119: 0 | AG119: 146488 | AH119: 360709 | AI119: 15486 | AJ119: 1211908 | AK119: 109626 | AL119: 680243 | AM119: 243166 | AN119: 6553897 | AO119: 0 | AP119: 6553897
A120: 0 | B120: Town of East Greenbush | C120: 380324900000 | D120: Town of East Greenbush | E120: Rensselaer | F120: 12/31 | G120: 16473 | H120: 0 | I120: 24 | J120: 1592115009 | K120: 8026820 | L120: 8331228 | M120: 351893 | N120: 1618667 | O120: 199901 | P120: 3495870 | Q120: 241404 | R120: 79874 | S120: 1206752 | T120: 15525590 | U120: 832467 | V120: 0 | W120: 16358057 | X120: 583445 | Y120: 0 | Z120: 16941502 | AA120: 2173457 | AB120: 0 | AC120: 2763705 | AD120: 6739 | AE120: 2281845 | AF120: 0 | AG120: 0 | AH120: 320118 | AI120: 4618 | AJ120: 2138415 | AK120: 2014471 | AL120: 2710658 | AM120: 1376467 | AN120: 15790493 | AO120: 0 | AP120: 15790493
A121: 0 | B121: Town of Grafton | C121: 380333500000 | D121: Town of Grafton | E121: Rensselaer | F121: 12/31 | G121: 2130 | H121: 0 | I121: 44.7 | J121: 200300759 | K121: 436900 | L121: 636740 | M121: 1326 | N121: 209402 | O121: 0 | P121: 26374 | Q121: 0 | R121: 9089 | S121: 60983 | T121: 943914 | U121: 142881 | V121: 0 | W121: 1086794 | X121: 0 | Y121: 0 | Z121: 1086794 | AA121: 202877 | AB121: 0 | AC121: 31422 | AD121: 1000 | AE121: 534896 | AF121: 0 | AG121: 0 | AH121: 34429 | AI121: 4138 | AJ121: 0 | AK121: 44554 | AL121: 126696 | AM121: 68711 | AN121: 1048724 | AO121: 0 | AP121: 1048724
A122: 0 | B122: Town of Hoosick | C122: 380339800000 | D122: Town of Hoosick | E122: Rensselaer | F122: 12/31 | G122: 6924 | H122: 0 | I122: 63 | J122: 418388532 | K122: 80000 | L122: 1413177 | M122: 10771 | N122: 270637 | O122: 2452 | P122: 70520 | Q122: 8585 | R122: 597 | S122: 68793 | T122: 1845532 | U122: 230281 | V122: 465525 | W122: 2541338 | X122: 0 | Y122: 28593 | Z122: 2569931 | AA122: 353851 | AB122: 0 | AC122: 300523 | AD122: 0 | AE122: 1377035 | AF122: 0 | AG122: 0 | AH122: 169636 | AI122: 12332 | AJ122: 1460 | AK122: 1750 | AL122: 293792 | AM122: 87534 | AN122: 2597913 | AO122: 28593 | AP122: 2626506
A123: 0 | B123: Village of Hoosick Falls | C123: 380439802380 | D123: Village of Hoosick Falls | E123: Rensselaer | F123: 05/31 | G123: 3501 | H123: 0 | I123: 1.6 | J123: 152269985 | K123: 14295272 | L123: 1072824 | M123: 41545 | N123: 182123 | O123: 33682 | P123: 1460556 | Q123: 5500 | R123: 1479 | S123: 80066 | T123: 2877775 | U123: 253414 | V123: 0 | W123: 3131189 | X123: 50379 | Y123: 0 | Z123: 3181568 | AA123: 213535 | AB123: 0 | AC123: 426802 | AD123: 0 | AE123: 534825 | AF123: 0 | AG123: 17284 | AH123: 32140 | AI123: 0 | AJ123: 2157244 | AK123: 755907 | AL123: 363542 | AM123: 340315 | AN123: 4841594 | AO123: 0 | AP123: 4841594
A124: 0 | B124: Town of Nassau | C124: 380356100000 | D124: Town of Nassau | E124: Rensselaer | F124: 12/31 | G124: 4789 | H124: 0 | I124: 44.4 | J124: 364096939 | K124: 447934 | L124: 971498 | M124: 5079 | N124: 245264 | O124: 19233 | P124: 62521 | Q124: 3725 | R124: 12799 | S124: 190385 | T124: 1510504 | U124: 283192 | V124: 171863 | W124: 1965559 | X124: 150700 | Y124: 201756 | Z124: 2318014 | AA124: 402131 | AB124: 0 | AC124: 219151 | AD124: 2249 | AE124: 911813 | AF124: 169654 | AG124: 0 | AH124: 24131 | AI124: 5422 | AJ124: 0 | AK124: 100586 | AL124: 244107 | AM124: 77163 | AN124: 2156409 | AO124: 201756 | AP124: 2358165
A125: 0 | B125: Village of East Nassau | C125: 380456101435 | D125: Village of East Nassau | E125: Rensselaer | F125: 05/31 | G125: 587 | H125: 0 | I125: 4.9 | J125: 41915863 | K125: 0 | L125: 51288 | M125: 231 | N125: 41243 | O125: 0 | P125: 383 | Q125: 0 | R125: 233 | S125: 0 | T125: 93378 | U125: 28379 | V125: 12995 | W125: 134752 | X125: 0 | Y125: 0 | Z125: 134752 | AA125: 45262 | AB125: 0 | AC125: 4170 | AD125: 0 | AE125: 93368 | AF125: 0 | AG125: 0 | AH125: 0 | AI125: 0 | AJ125: 0 | AK125: 0 | AL125: 2106 | AM125: 0 | AN125: 144906 | AO125: 0 | AP125: 144906
A126: 0 | B126: Town of North Greenbush | C126: 380359500000 | D126: Town of North Greenbush | E126: Rensselaer | F126: 12/31 | G126: 12075 | H126: 0 | I126: 18.6 | J126: 935986053 | K126: 21774000 | L126: 4914412 | M126: 386328 | N126: 981703 | O126: 216387 | P126: 1659201 | Q126: 0 | R126: 55612 | S126: 296928 | T126: 8510571 | U126: 603610 | V126: 0 | W126: 9114180 | X126: 999000 | Y126: 13049 | Z126: 10126229 | AA126: 2968236 | AB126: 0 | AC126: 1927744 | AD126: 8353 | AE126: 1407954 | AF126: 0 | AG126: 0 | AH126: 466300 | AI126: 10355 | AJ126: 1643522 | AK126: 318238 | AL126: 1345950 | AM126: 2167376 | AN126: 12264027 | AO126: 13049 | AP126: 12277076
A127: 0 | B127: Town of Petersburgh | C127: 380365600000 | D127: Town of Petersburgh | E127: Rensselaer | F127: 12/31 | G127: 1525 | H127: 0 | I127: 41.6 | J127: 121889374 | K127: 242400 | L127: 498718 | M127: 2920 | N127: 118643 | O127: 0 | P127: 70087 | Q127: 3218 | R127: 3626 | S127: 10029 | T127: 707241 | U127: 156149 | V127: 339 | W127: 863729 | X127: 0 | Y127: 10109 | Z127: 873838 | AA127: 162547 | AB127: 0 | AC127: 12091 | AD127: 10500 | AE127: 347894 | AF127: 0 | AG127: 0 | AH127: 59519 | AI127: 5740 | AJ127: 24707 | AK127: 73098 | AL127: 84964 | AM127: 35121 | AN127: 816181 | AO127: 10109 | AP127: 826290
A128: 0 | B128: Town of Pittstown | C128: 380367000000 | D128: Town of Pittstown | E128: Rensselaer | F128: 12/31 | G128: 5735 | H128: 0 | I128: 61.6 | J128: 380220315 | K128: 16630 | L128: 2028837 | M128: 7478 | N128: 227412 | O128: 0 | P128: 58805 | Q128: 0 | R128: 8213 | S128: 48352 | T128: 2379097 | U128: 102571 | V128: 0 | W128: 2481668 | X128: 0 | Y128: 0 | Z128: 2481668 | AA128: 258078 | AB128: 0 | AC128: 95627 | AD128: 880 | AE128: 1346016 | AF128: 0 | AG128: 507 | AH128: 13780 | AI128: 2751 | AJ128: 0 | AK128: 469238 | AL128: 273282 | AM128: 26304 | AN128: 2486463 | AO128: 0 | AP128: 2486463
A129: 0 | B129: Town of Poestenkill | C129: 380367600000 | D129: Town of Poestenkill | E129: Rensselaer | F129: 12/31 | G129: 4530 | H129: 0 | I129: 32.4 | J129: 342159337 | K129: 9629493 | L129: 1114953 | M129: 5359 | N129: 320892 | O129: 7113 | P129: 17946 | Q129: 10561 | R129: 1493 | S129: 51078 | T129: 1529395 | U129: 494313 | V129: 430080 | W129: 2453788 | X129: 0 | Y129: 0 | Z129: 2453788 | AA129: 303513 | AB129: 0 | AC129: 264675 | AD129: 1500 | AE129: 706914 | AF129: 0 | AG129: 0 | AH129: 102292 | AI129: 3250 | AJ129: 9590660 | AK129: 33302 | AL129: 218311 | AM129: 106523 | AN129: 11330940 | AO129: 0 | AP129: 11330940
A130: 0 | B130: City of Rensselaer | C130: 380247000000 | D130: City of Rensselaer | E130: Rensselaer | F130: 07/31 | G130: 9392 | H130: 0 | I130: 3.2 | J130: 405901319 | K130: 4592949 | L130: 5410832 | M130: 1570539 | N130: 1912977 | O130: 149262 | P130: 2608833 | Q130: 72800 | R130: 87534 | S130: 284225 | T130: 12097002 | U130: 3125029 | V130: 926667 | W130: 16148698 | X130: 3895747 | Y130: 177500 | Z130: 20221944 | AA130: 2196120 | AB130: 0 | AC130: 3542766 | AD130: 0 | AE130: 2952294 | AF130: 0 | AG130: 1511738 | AH130: 250264 | AI130: 47313 | AJ130: 2165276 | AK130: 820340 | AL130: 2702065 | AM130: 753088 | AN130: 16941267 | AO130: 177500 | AP130: 17118767
A131: 0 | B131: Town of Sand Lake | C131: 380374100000 | D131: Town of Sand Lake | E131: Rensselaer | F131: 12/31 | G131: 8530 | H131: 0 | I131: 35.1 | J131: 726584506 | K131: 2411252 | L131: 1625483 | M131: 12511 | N131: 762972 | O131: 128804 | P131: 543841 | Q131: 4487 | R131: 19367 | S131: 79540 | T131: 3177005 | U131: 420271 | V131: 176383 | W131: 3773659 | X131: 1681252 | Y131: 182960 | Z131: 5637871 | AA131: 991779 | AB131: 0 | AC131: 386673 | AD131: 1000 | AE131: 1409899 | AF131: 0 | AG131: 0 | AH131: 257111 | AI131: 44691 | AJ131: 0 | AK131: 977037 | AL131: 458202 | AM131: 317269 | AN131: 4843661 | AO131: 182960 | AP131: 5026621
A132: 0 | B132: Town of Schaghticoke | C132: 380375200000 | D132: Town of Schaghticoke | E132: Rensselaer | F132: 12/31 | G132: 7679 | H132: 0 | I132: 49.8 | J132: 582264982 | K132: 5545750 | L132: 2033947 | M132: 7807 | N132: 573781 | O132: 56222 | P132: 397371 | Q132: 55653 | R132: 16096 | S132: 65271 | T132: 3206148 | U132: 371100 | V132: 66556 | W132: 3643804 | X132: 0 | Y132: 34671 | Z132: 3678475 | AA132: 466105 | AB132: 0 | AC132: 244664 | AD132: 3000 | AE132: 1182285 | AF132: 0 | AG132: 0 | AH132: 70578 | AI132: 18800 | AJ132: 422836 | AK132: 720495 | AL132: 427630 | AM132: 397871 | AN132: 3954264 | AO132: 34671 | AP132: 3988935
A133: 0 | B133: Village of Schaghticoke | C133: 380475204460 | D133: Village of Schaghticoke | E133: Rensselaer | F133: 05/31 | G133: 592 | H133: 0 | I133: 0.8 | J133: 43080391 | K133: 0 | L133: 146687 | M133: 155 | N133: 55787 | O133: 5497 | P133: 88840 | Q133: 0 | R133: 18818 | S133: 41550 | T133: 357334 | U133: 59184 | V133: 312265 | W133: 728782 | X133: 0 | Y133: 30000 | Z133: 758782 | AA133: 120041 | AB133: 0 | AC133: 386231 | AD133: 0 | AE133: 93972 | AF133: 0 | AG133: 276 | AH133: 13228 | AI133: 4875 | AJ133: 128842 | AK133: 1157 | AL133: 18157 | AM133: 0 | AN133: 766779 | AO133: 30000 | AP133: 796779
A134: 0 | B134: Town of Schodack | C134: 380375300000 | D134: Town of Schodack | E134: Rensselaer | F134: 12/31 | G134: 12794 | H134: 0 | I134: 61.9 | J134: 1128496869 | K134: 16469915 | L134: 5536364 | M134: 233405 | N134: 1026675 | O134: 75588 | P134: 793320 | Q134: 10728 | R134: 127923 | S134: 755214 | T134: 8559216 | U134: 577393 | V134: 249773 | W134: 9386382 | X134: 1735863 | Y134: 3722343 | Z134: 14844587 | AA134: 1527507 | AB134: 0 | AC134: 1607356 | AD134: 2266 | AE134: 1870587 | AF134: 235212 | AG134: 4000 | AH134: 499089 | AI134: 21488 | AJ134: 1004572 | AK134: 438657 | AL134: 969406 | AM134: 1416184 | AN134: 9596324 | AO134: 3722343 | AP134: 13318667
A135: 0 | B135: Village of Castleton-on-Hudson | C135: 380475300790 | D135: Village of Castleton-On-Hudson | E135: Rensselaer | F135: 05/31 | G135: 1473 | H135: 0 | I135: 0.7 | J135: 118313321 | K135: 2136558 | L135: 414550 | M135: 13580 | N135: 149389 | O135: 3748 | P135: 860838 | Q135: 185879 | R135: 12280 | S135: 31090 | T135: 1671354 | U135: 550774 | V135: 36741 | W135: 2258869 | X135: 0 | Y135: 11933 | Z135: 2270802 | AA135: 151234 | AB135: 0 | AC135: 82815 | AD135: 1200 | AE135: 1069814 | AF135: 0 | AG135: 11029 | AH135: 255233 | AI135: 1462 | AJ135: 126995 | AK135: 583447 | AL135: 173820 | AM135: 165452 | AN135: 2622501 | AO135: 11933 | AP135: 2634434
A136: 0 | B136: Town of Stephentown | C136: 380380400000 | D136: Town of Stephentown | E136: Rensselaer | F136: 12/31 | G136: 2903 | H136: 0 | I136: 57.9 | J136: 258190053 | K136: 0 | L136: - | M136: - | N136: - | O136: - | P136: - | Q136: - | R136: - | S136: - | T136: - | U136: - | V136: - | W136: - | X136: - | Y136: - | Z136: - | AA136: - | AB136: - | AC136: - | AD136: - | AE136: - | AF136: - | AG136: - | AH136: - | AI136: - | AJ136: - | AK136: - | AL136: - | AM136: - | AN136: - | AO136: - | AP136: -
A137: 0 | B137: City of Troy | C137: 380257000000 | D137: City of Troy | E137: Rensselaer | F137: 12/31 | G137: 50129 | H137: 0 | I137: 10.4 | J137: 1905426906 | K137: 76568550 | L137: 18323507 | M137: 1898020 | N137: 14069098 | O137: 539137 | P137: 19245649 | Q137: 429573 | R137: 3263642 | S137: 4245666 | T137: 62014292 | U137: 16750224 | V137: 9719503 | W137: 88484019 | X137: 1225000 | Y137: 3672867 | Z137: 93381886 | AA137: 8623752 | AB137: 0 | AC137: 22468206 | AD137: 111111 | AE137: 9613486 | AF137: 0 | AG137: 3317796 | AH137: 2846127 | AI137: 1985776 | AJ137: 7644325 | AK137: 3999857 | AL137: 18675799 | AM137: 7282120 | AN137: 86568355 | AO137: 3672867 | AP137: 90241222
A138: 0 | B138: Saratoga County | C138: 410100000000 | D138: County of Saratoga | E138: Saratoga | F138: 12/31 | G138: 219607 | H138: 0 | I138: 810 | J138: 21886916706 | K138: 79869000 | L138: 46220413 | M138: 3371156 | N138: 96552344 | O138: 2632032 | P138: 46380225 | Q138: 5656583 | R138: 3734803 | S138: 3523537 | T138: 208071093 | U138: 22285279 | V138: 28159389 | W138: 258515761 | X138: 28974000 | Y138: 21023924 | Z138: 308513685 | AA138: 95283313 | AB138: 17730776 | AC138: 20740882 | AD138: 32082224 | AE138: 16044646 | AF138: 47228329 | AG138: 783671 | AH138: 1758310 | AI138: 3568010 | AJ138: 0 | AK138: 7305998 | AL138: 41820436 | AM138: 4894027 | AN138: 289240623 | AO138: 21023925 | AP138: 310264548
A139: 0 | B139: Village of Ballston Spa | C139: 410453400340 | D139: Village of Ballston Spa | E139: Saratoga | F139: 05/31 | G139: 5409 | H139: 0 | I139: 1.6 | J139: 334011245 | K139: 952705 | L139: 1202165 | M139: 3842 | N139: 880430 | O139: 54040 | P139: 912429 | Q139: 346834 | R139: 59783 | S139: 131346 | T139: 3590869 | U139: 343619 | V139: 1040020 | W139: 4974508 | X139: 0 | Y139: 0 | Z139: 4974508 | AA139: 568371 | AB139: 0 | AC139: 774544 | AD139: 5883 | AE139: 456986 | AF139: 988548 | AG139: 3400 | AH139: 322768 | AI139: 17000 | AJ139: 499553 | AK139: 154746 | AL139: 628864 | AM139: 354896 | AN139: 4775559 | AO139: 0 | AP139: 4775559
A140: 0 | B140: Town of Ballston | C140: 410304900000 | D140: Town of Ballston | E140: Saratoga | F140: 12/31 | G140: 9776 | H140: 0 | I140: 29.6 | J140: 952484335 | K140: 3970500 | L140: 1176284 | M140: 7700 | N140: 2235176 | O140: 70551 | P140: 686364 | Q140: 26000 | R140: 30808 | S140: 225501 | T140: 4458384 | U140: 493998 | V140: 0 | W140: 4952382 | X140: 0 | Y140: 0 | Z140: 4952382 | AA140: 853477 | AB140: 0 | AC140: 394575 | AD140: 3213 | AE140: 1478818 | AF140: 0 | AG140: 0 | AH140: 479905 | AI140: 17226 | AJ140: 1136490 | AK140: 1279 | AL140: 550536 | AM140: 507569 | AN140: 5423088 | AO140: 0 | AP140: 5423088
A141: 0 | B141: Town of Charlton | C141: 410314700000 | D141: Town of Charlton | E141: Saratoga | F141: 12/31 | G141: 4133 | H141: 0 | I141: 32.8 | J141: 441650710 | K141: 1853600 | L141: 138032 | M141: 2472 | N141: 1130663 | O141: 23129 | P141: 153397 | Q141: 360 | R141: 9535 | S141: 63034 | T141: 1520622 | U141: 299256 | V141: 0 | W141: 1819878 | X141: 0 | Y141: 0 | Z141: 1819878 | AA141: 502504 | AB141: 0 | AC141: 88596 | AD141: 1031 | AE141: 637956 | AF141: 0 | AG141: 0 | AH141: 66642 | AI141: 10155 | AJ141: 266966 | AK141: 12846 | AL141: 179598 | AM141: 147919 | AN141: 1914213 | AO141: 0 | AP141: 1914213
A142: 0 | B142: Town of Clifton Park | C142: 410317400000 | D142: Town of Clifton Park | E142: Saratoga | F142: 12/31 | G142: 36705 | H142: 0 | I142: 48.2 | J142: 3896606465 | K142: 12057491 | L142: 3014340 | M142: 178159 | N142: 9712419 | O142: 0 | P142: 2550050 | Q142: 1297210 | R142: 780977 | S142: 897141 | T142: 18430295 | U142: 2259487 | V142: 412705 | W142: 21102486 | X142: 41000 | Y142: 3820295 | Z142: 24963781 | AA142: 3805643 | AB142: 0 | AC142: 3923680 | AD142: 21300 | AE142: 4180749 | AF142: 319770 | AG142: 500 | AH142: 3536309 | AI142: 406803 | AJ142: 23361 | AK142: 2367952 | AL142: 3279495 | AM142: 1046495 | AN142: 22912056 | AO142: 3820295 | AP142: 26732351
A143: 0 | B143: Town of Corinth | C143: 410320000000 | D143: Town of Corinth | E143: Saratoga | F143: 12/31 | G143: 6531 | H143: 0 | I143: 56.8 | J143: 549529510 | K143: 0 | L143: 1608003 | M143: 318571 | N143: 702444 | O143: 45968 | P143: 525553 | Q143: 0 | R143: 13728 | S143: 56229 | T143: 3270496 | U143: 1439047 | V143: 0 | W143: 4709543 | X143: 0 | Y143: 0 | Z143: 4709543 | AA143: 557591 | AB143: 0 | AC143: 513849 | AD143: 348873 | AE143: 2049043 | AF143: 0 | AG143: 4500 | AH143: 94798 | AI143: 72269 | AJ143: 25376 | AK143: 230817 | AL143: 437423 | AM143: 0 | AN143: 4334538 | AO143: 0 | AP143: 4334538
A144: 0 | B144: Village of Corinth | C144: 410420001150 | D144: Village of Corinth | E144: Saratoga | F144: 05/31 | G144: 2559 | H144: 0 | I144: 1.1 | J144: 240958385 | K144: 5990000 | L144: 1433372 | M144: 467441 | N144: 658638 | O144: 0 | P144: 785843 | Q144: 261021 | R144: 22943 | S144: 15085 | T144: 3644343 | U144: 227662 | V144: 915691 | W144: 4787696 | X144: 0 | Y144: 488546 | Z144: 5276242 | AA144: 354145 | AB144: 0 | AC144: 672066 | AD144: 0 | AE144: 813269 | AF144: 466450 | AG144: 439150 | AH144: 60922 | AI144: 7232 | AJ144: 292752 | AK144: 422386 | AL144: 423314 | AM144: 459934 | AN144: 4411620 | AO144: 488546 | AP144: 4900166
A145: 0 | B145: Town of Day | C145: 410322000000 | D145: Town of Day | E145: Saratoga | F145: 12/31 | G145: 856 | H145: 0 | I145: 64.1 | J145: 324648383 | K145: 0 | L145: 461663 | M145: 22953 | N145: 778955 | O145: 0 | P145: 11967 | Q145: 0 | R145: 7149 | S145: 7071 | T145: 1289758 | U145: 238567 | V145: 0 | W145: 1528325 | X145: 0 | Y145: 0 | Z145: 1528325 | AA145: 279631 | AB145: 0 | AC145: 95858 | AD145: 1516 | AE145: 835428 | AF145: 0 | AG145: 0 | AH145: 17180 | AI145: 8894 | AJ145: 0 | AK145: 311307 | AL145: 228447 | AM145: 0 | AN145: 1778261 | AO145: 0 | AP145: 1778261
A146: 0 | B146: Town of Edinburg | C146: 410325500000 | D146: Town of Edinburg | E146: Saratoga | F146: 12/31 | G146: 1214 | H146: 0 | I146: 60.2 | J146: 409060172 | K146: 0 | L146: 280075 | M146: 5251 | N146: 962445 | O146: 0 | P146: 18969 | Q146: 0 | R146: 9533 | S146: 10240 | T146: 1286513 | U146: 141649 | V146: 0 | W146: 1428162 | X146: 0 | Y146: 50733 | Z146: 1478895 | AA146: 308468 | AB146: 0 | AC146: 106764 | AD146: 2676 | AE146: 584756 | AF146: 0 | AG146: 1253 | AH146: 13977 | AI146: 10330 | AJ146: 0 | AK146: 142103 | AL146: 138797 | AM146: 0 | AN146: 1309124 | AO146: 50733 | AP146: 1359857
A147: 0 | B147: Town of Galway | C147: 410331400000 | D147: Town of Galway | E147: Saratoga | F147: 12/31 | G147: 3545 | H147: 0 | I147: 43.8 | J147: 428006969 | K147: 632000 | L147: 564000 | M147: 3386 | N147: 1035159 | O147: 45476 | P147: 9565 | Q147: 7486 | R147: 450 | S147: 29742 | T147: 1695263 | U147: 240885 | V147: 0 | W147: 1936148 | X147: 0 | Y147: 0 | Z147: 1936148 | AA147: 287979 | AB147: 0 | AC147: 328896 | AD147: 1000 | AE147: 949547 | AF147: 4000 | AG147: 0 | AH147: 36028 | AI147: 9159 | AJ147: 0 | AK147: 4442 | AL147: 145612 | AM147: 140621 | AN147: 1907285 | AO147: 0 | AP147: 1907285
A148: 0 | B148: Village of Galway | C148: 410431401900 | D148: Village of Galway | E148: Saratoga | F148: 05/31 | G148: 200 | H148: 0 | I148: 0.3 | J148: 13207727 | K148: 0 | L148: 0 | M148: 0 | N148: 39705 | O148: 0 | P148: 185 | Q148: 0 | R148: 2175 | S148: 15375 | T148: 57440 | U148: 5343 | V148: 0 | W148: 62783 | X148: 0 | Y148: 0 | Z148: 62783 | AA148: 16808 | AB148: 0 | AC148: 20315 | AD148: 0 | AE148: 2606 | AF148: 0 | AG148: 0 | AH148: 2891 | AI148: 3088 | AJ148: 0 | AK148: 0 | AL148: 970 | AM148: 0 | AN148: 46678 | AO148: 0 | AP148: 46678
A149: 0 | B149: Town of Greenfield | C149: 410334400000 | D149: Town of Greenfield | E149: Saratoga | F149: 12/31 | G149: 7775 | H149: 0 | I149: 67.4 | J149: 748080021 | K149: 0 | L149: 845580 | M149: 6287 | N149: 1840340 | O149: 57788 | P149: 123590 | Q149: 0 | R149: 46291 | S149: 67850 | T149: 2987727 | U149: 414037 | V149: 0 | W149: 3401765 | X149: 0 | Y149: 117505 | Z149: 3519270 | AA149: 499166 | AB149: 0 | AC149: 79381 | AD149: 6051 | AE149: 2202297 | AF149: 0 | AG149: 229083 | AH149: 154823 | AI149: 93533 | AJ149: 0 | AK149: 29608 | AL149: 291490 | AM149: 0 | AN149: 3585432 | AO149: 117505 | AP149: 3702937
A150: 0 | B150: Town of Hadley | C150: 410335700000 | D150: Town of Hadley | E150: Saratoga | F150: 12/31 | G150: 2048 | H150: 0 | I150: 39.7 | J150: 258437047 | K150: 250000 | L150: 1049845 | M150: 3187 | N150: 628297 | O150: 17523 | P150: 125688 | Q150: 0 | R150: 8414 | S150: 20863 | T150: 1853817 | U150: 176256 | V150: 202696 | W150: 2232769 | X150: 0 | Y150: 599001 | Z150: 2831771 | AA150: 388086 | AB150: 0 | AC150: 7528 | AD150: 1338 | AE150: 691131 | AF150: 206182 | AG150: 260 | AH150: 64121 | AI150: 16501 | AJ150: 65020 | AK150: 267525 | AL150: 295707 | AM150: 53247 | AN150: 2056646 | AO150: 599001 | AP150: 2655648
A151: 0 | B151: Town of Halfmoon | C151: 410336000000 | D151: Town of Halfmoon | E151: Saratoga | F151: 12/31 | G151: 21535 | H151: 0 | I151: 32.6 | J151: 1953841698 | K151: 44886577 | L151: 2795691 | M151: 20003 | N151: 4871503 | O151: 207610 | P151: 3964040 | Q151: 105000 | R151: 99325 | S151: 547913 | T151: 12611086 | U151: 1123827 | V151: 77099 | W151: 13812012 | X151: 0 | Y151: 202550 | Z151: 14014562 | AA151: 2359983 | AB151: 0 | AC151: 1531804 | AD151: 84385 | AE151: 2196444 | AF151: 0 | AG151: 0 | AH151: 990127 | AI151: 87468 | AJ151: 3367464 | AK151: 112141 | AL151: 1285527 | AM151: 4262685 | AN151: 16278028 | AO151: 202550 | AP151: 16480578
A152: 0 | B152: Town of Malta | C152: 410350100000 | D152: Town of Malta | E152: Saratoga | F152: 12/31 | G152: 14765 | H152: 0 | I152: 27.9 | J152: 1496744943 | K152: 3220000 | L152: 1287808 | M152: 9967 | N152: 3611321 | O152: 152312 | P152: 4430460 | Q152: 94696 | R152: 155056 | S152: 659339 | T152: 10400959 | U152: 2890493 | V152: 15558 | W152: 13307010 | X152: 0 | Y152: 199933 | Z152: 13506943 | AA152: 3272905 | AB152: 0 | AC152: 1548807 | AD152: 4300 | AE152: 3848494 | AF152: 0 | AG152: 5491 | AH152: 1050674 | AI152: 29111 | AJ152: 0 | AK152: 114200 | AL152: 876963 | AM152: 256008 | AN152: 11006953 | AO152: 199933 | AP152: 11206886
A153: 0 | B153: Village of Round Lake | C153: 410450104295 | D153: Village of Round Lake | E153: Saratoga | F153: 05/31 | G153: 623 | H153: 0 | I153: 1.1 | J153: 55288695 | K153: 2108893 | L153: 319347 | M153: 2650 | N153: 135155 | O153: 54543 | P153: 248724 | Q153: 435247 | R153: 21143 | S153: 38334 | T153: 1255143 | U153: 78699 | V153: 0 | W153: 1333842 | X153: 71500 | Y153: 136950 | Z153: 1542292 | AA153: 167924 | AB153: 0 | AC153: 205206 | AD153: 187 | AE153: 192956 | AF153: 0 | AG153: 0 | AH153: 235082 | AI153: 11213 | AJ153: 90110 | AK153: 6854 | AL153: 87507 | AM153: 209841 | AN153: 1206880 | AO153: 136950 | AP153: 1343830
A154: 0 | B154: City of Mechanicville | C154: 410229000000 | D154: City of Mechanicville | E154: Saratoga | F154: 12/31 | G154: 5196 | H154: 0 | I154: 0.8 | J154: 209372846 | K154: 6555413 | L154: 1861253 | M154: 92087 | N154: 1165271 | O154: 83288 | P154: 1571962 | Q154: 12379 | R154: 14104 | S154: 108289 | T154: 4908633 | U154: 1075904 | V154: 175937 | W154: 6160474 | X154: 696750 | Y154: 0 | Z154: 6857224 | AA154: 696815 | AB154: 0 | AC154: 2152362 | AD154: 10000 | AE154: 865971 | AF154: 0 | AG154: 385796 | AH154: 84959 | AI154: 23014 | AJ154: 474697 | AK154: 952128 | AL154: 1138931 | AM154: 350975 | AN154: 7135647 | AO154: 0 | AP154: 7135647
A155: 0 | B155: Town of Milton | C155: 410353400000 | D155: Town of Milton | E155: Saratoga | F155: 12/31 | G155: 18575 | H155: 0 | I155: 35.7 | J155: 1203300846 | K155: 0 | L155: 456838 | M155: 9850 | N155: 2533365 | O155: 140500 | P155: 135392 | Q155: 0 | R155: 59558 | S155: 97406 | T155: 3432909 | U155: 682812 | V155: 0 | W155: 4115721 | X155: 0 | Y155: 751445 | Z155: 4867166 | AA155: 1039144 | AB155: 0 | AC155: 205996 | AD155: 7313 | AE155: 2044553 | AF155: 0 | AG155: 2899 | AH155: 307727 | AI155: 29451 | AJ155: 0 | AK155: 225 | AL155: 853165 | AM155: 1049 | AN155: 4491522 | AO155: 751445 | AP155: 5242967
A156: 0 | B156: Town of Moreau | C156: 410354900000 | D156: Town of Moreau | E156: Saratoga | F156: 12/31 | G156: 14728 | H156: 0 | I156: 41.9 | J156: 1039551342 | K156: 3603707 | L156: 1782427 | M156: 68964 | N156: 1677028 | O156: 153466 | P156: 1432784 | Q156: 0 | R156: 52556 | S156: 313455 | T156: 5480680 | U156: 517299 | V156: 0 | W156: 5997979 | X156: 0 | Y156: 70231 | Z156: 6068210 | AA156: 846832 | AB156: 0 | AC156: 1257290 | AD156: 2089 | AE156: 1314788 | AF156: 0 | AG156: 4203 | AH156: 1059035 | AI156: 246184 | AJ156: 459536 | AK156: 234209 | AL156: 702706 | AM156: 128704 | AN156: 6255576 | AO156: 70231 | AP156: 6325807
A157: 0 | B157: Village of South Glens Falls | C157: 410454904730 | D157: Village of South Glens Falls | E157: Saratoga | F157: 05/31 | G157: 3518 | H157: 0 | I157: 1.4 | J157: 222451938 | K157: 0 | L157: 1026532 | M157: 52912 | N157: 566629 | O157: 55006 | P157: 729051 | Q157: 406016 | R157: 14858 | S157: 92409 | T157: 2943413 | U157: 128251 | V157: 147772 | W157: 3219436 | X157: 0 | Y157: 0 | Z157: 3219436 | AA157: 400632 | AB157: 0 | AC157: 928676 | AD157: 450 | AE157: 443905 | AF157: 0 | AG157: 152633 | AH157: 47199 | AI157: 7023 | AJ157: 217394 | AK157: 343874 | AL157: 638495 | AM157: 25859 | AN157: 3206140 | AO157: 0 | AP157: 3206140
A158: 0 | B158: Town of Northumberland | C158: 410360100000 | D158: Town of Northumberland | E158: Saratoga | F158: 12/31 | G158: 5087 | H158: 0 | I158: 32.3 | J158: 356992179 | K158: 130000 | L158: 587527 | M158: 5344 | N158: 924822 | O158: 0 | P158: 42807 | Q158: 0 | R158: 7279 | S158: 153871 | T158: 1721650 | U158: 250518 | V158: 122942 | W158: 2095110 | X158: 0 | Y158: 0 | Z158: 2095110 | AA158: 353697 | AB158: 0 | AC158: 161343 | AD158: 8761 | AE158: 1201721 | AF158: 0 | AG158: 0 | AH158: 31303 | AI158: 106082 | AJ158: 0 | AK158: 57279 | AL158: 196120 | AM158: 0 | AN158: 2116306 | AO158: 0 | AP158: 2116306
A159: =IF(C68<>C159,1,0) -> 0 | B159: Town of Providence | C159: 410369300000 | D159: Town of Providence | E159: Saratoga | F159: 12/31 | G159: 1995 | H159: 0 | I159: 44 | J159: 178879200 | K159: 129960 | L159: 690436 | M159: 2935 | N159: 497647 | O159: 18056 | P159: 29935 | Q159: 0 | R159: 47290 | S159: 10488 | T159: 1296787 | U159: 142498 | V159: 0 | W159: 1439285 | X159: 61470 | Y159: 0 | Z159: 1500755 | AA159: 160118 | AB159: 0 | AC159: 50723 | AD159: 267 | AE159: 829235 | AF159: 2230 | AG159: 0 | AH159: 13740 | AI159: 226 | AJ159: 0 | AK159: 23127 | AL159: 191962 | AM159: 81665 | AN159: 1353293 | AO159: 0 | AP159: 1353293
A160: 0 | B160: Town of Saratoga | C160: 410374700000 | D160: Town of Saratoga | E160: Saratoga | F160: 12/31 | G160: 5674 | H160: 0 | I160: 40.6 | J160: 531289867 | K160: 2955000 | L160: 602688 | M160: 8451 | N160: 1106553 | O160: 0 | P160: 30384 | Q160: 0 | R160: 147762 | S160: 146415 | T160: 2042252 | U160: 348516 | V160: 196846 | W160: 2587614 | X160: 0 | Y160: 120307 | Z160: 2707921 | AA160: 487385 | AB160: 0 | AC160: 75441 | AD160: 2664 | AE160: 1044374 | AF160: 0 | AG160: 199296 | AH160: 117465 | AI160: 2385 | AJ160: 0 | AK160: 4349 | AL160: 199831 | AM160: 255889 | AN160: 2389079 | AO160: 120307 | AP160: 2509386
A161: 0 | B161: Village of Schuylerville | C161: 410474704490 | D161: Village of Schuylerville | E161: Saratoga | F161: 05/31 | G161: 1386 | H161: 0 | I161: 0.5 | J161: 74123420 | K161: 3346489 | L161: 481976 | M161: 8198 | N161: 191670 | O161: 11717 | P161: 387896 | Q161: 311143 | R161: 2069 | S161: 4546 | T161: 1399214 | U161: 194370 | V161: 110719 | W161: 1704303 | X161: 95629 | Y161: 0 | Z161: 1799932 | AA161: 447851 | AB161: 0 | AC161: 96576 | AD161: 2715 | AE161: 233782 | AF161: 0 | AG161: 112747 | AH161: 111805 | AI161: 20684 | AJ161: 3011 | AK161: 593570 | AL161: 84728 | AM161: 256748 | AN161: 1964216 | AO161: 0 | AP161: 1964216
A162: 0 | B162: Village of Victory Mills | C162: 410474705070 | D162: Village of Victory | E162: Saratoga | F162: 05/31 | G162: 605 | H162: 0 | I162: 0.5 | J162: 0 | K162: 284040 | L162: 201601 | M162: 2320 | N162: 67218 | O162: 5546 | P162: 112486 | Q162: 62786 | R162: 4556 | S162: 2438 | T162: 458951 | U162: 293907 | V162: 28591 | W162: 781449 | X162: 6000 | Y162: 28505 | Z162: 815954 | AA162: 140007 | AB162: 0 | AC162: 7013 | AD162: 350 | AE162: 177598 | AF162: 0 | AG162: 246183 | AH162: 1180 | AI162: 5017 | AJ162: 0 | AK162: 40503 | AL162: 47032 | AM162: 88081 | AN162: 752964 | AO162: 28505 | AP162: 781469
A163: 0 | B163: City of Saratoga Springs | C163: 410252000000 | D163: City of Saratoga Springs | E163: Saratoga | F163: 12/31 | G163: 26586 | H163: 0 | I163: 28.1 | J163: 3792162425 | K163: 37718743 | L163: 18103685 | M163: 635684 | N163: 10852800 | O163: 458552 | P163: 8589557 | Q163: 249179 | R163: 588346 | S163: 2191057 | T163: 41668860 | U163: 11756972 | V163: 3797171 | W163: 57223003 | X163: 1539457 | Y163: 1556766 | Z163: 60319226 | AA163: 5535381 | AB163: 0 | AC163: 12172585 | AD163: 17765 | AE163: 6980987 | AF163: 207230 | AG163: 437853 | AH163: 5956850 | AI163: 232432 | AJ163: 3016611 | AK163: 3978536 | AL163: 10689370 | AM163: 3396648 | AN163: 52622248 | AO163: 1556766 | AP163: 54179014
A164: 0 | B164: Town of Stillwater | C164: 410380700000 | D164: Town of Stillwater | E164: Saratoga | F164: 12/31 | G164: 8287 | H164: 0 | I164: 41.2 | J164: 724498532 | K164: 4282819 | L164: 1904871 | M164: 35660 | N164: 1622200 | O164: 59869 | P164: 455749 | Q164: 13727 | R164: 70541 | S164: 265658 | T164: 4428274 | U164: 1332105 | V164: 774574 | W164: 6534953 | X164: 4864564 | Y164: 572230 | Z164: 11971746 | AA164: 924579 | AB164: 0 | AC164: 1141057 | AD164: 1520 | AE164: 1851888 | AF164: 762747 | AG164: 76193 | AH164: 309721 | AI164: 61553 | AJ164: 408396 | AK164: 104483 | AL164: 552214 | AM164: 1626045 | AN164: 7820396 | AO164: 572274 | AP164: 8392669
A165: 0 | B165: Village of Stillwater | C165: 410480704820 | D165: Village of Stillwater | E165: Saratoga | F165: 05/31 | G165: 1738 | H165: 0 | I165: 1.3 | J165: 93175850 | K165: 1691500 | L165: 379310 | M165: 4976 | N165: 230065 | O165: 18395 | P165: 604660 | Q165: 0 | R165: 17218 | S165: 5901 | T165: 1260526 | U165: 30013 | V165: 18666 | W165: 1309204 | X165: 117500 | Y165: 64648 | Z165: 1491352 | AA165: 172968 | AB165: 0 | AC165: 70096 | AD165: 190 | AE165: 149230 | AF165: 0 | AG165: 0 | AH165: 7723 | AI165: 314 | AJ165: 598445 | AK165: 182056 | AL165: 113893 | AM165: 289747 | AN165: 1584662 | AO165: 64648 | AP165: 1649310
A166: 0 | B166: Town of Waterford | C166: 410387500000 | D166: Town of Waterford | E166: Saratoga | F166: 12/31 | G166: 8423 | H166: 0 | I166: 6.6 | J166: 597504494 | K166: 8739124 | L166: 3310903 | M166: 65536 | N166: 1431866 | O166: 108502 | P166: 862398 | Q166: 32791 | R166: 19888 | S166: 36493 | T166: 5868377 | U166: 878600 | V166: 380436 | W166: 7127413 | X166: 133604 | Y166: 819076 | Z166: 8080093 | AA166: 1371657 | AB166: 1030 | AC166: 1536424 | AD166: 0 | AE166: 767047 | AF166: 251792 | AG166: 128338 | AH166: 347409 | AI166: 62280 | AJ166: 0 | AK166: 929041 | AL166: 858468 | AM166: 941891 | AN166: 7195377 | AO166: 819076 | AP166: 8014453
A167: 0 | B167: Village of Waterford | C167: 410487505180 | D167: Village of Waterford | E167: Saratoga | F167: 05/31 | G167: 1990 | H167: 0 | I167: 0.3 | J167: 61340788 | K167: 204500 | L167: 246311 | M167: 2363 | N167: 146012 | O167: 18795 | P167: 80309 | Q167: 182313 | R167: 358 | S167: 35489 | T167: 711950 | U167: 203916 | V167: 361242 | W167: 1277108 | X167: 50000 | Y167: 0 | Z167: 1327108 | AA167: 138713 | AB167: 0 | AC167: 203795 | AD167: 0 | AE167: 281194 | AF167: 279026 | AG167: 0 | AH167: 62650 | AI167: 1345 | AJ167: 0 | AK167: 142989 | AL167: 9988 | AM167: 142785 | AN167: 1262486 | AO167: 0 | AP167: 1262486
A168: 0 | B168: Town of Wilton | C168: 410391700000 | D168: Town of Wilton | E168: Saratoga | F168: 12/31 | G168: 16173 | H168: 0 | I168: 35.8 | J168: 1821626122 | K168: 505000 | L168: 558765 | M168: 7569 | N168: 4502733 | O168: 258829 | P168: 558963 | Q168: 11396 | R168: 269858 | S168: 263435 | T168: 6431548 | U168: 690241 | V168: 95555 | W168: 7217344 | X168: 0 | Y168: 25000 | Z168: 7242344 | AA168: 1492551 | AB168: 0 | AC168: 700850 | AD168: 11495 | AE168: 1972591 | AF168: 100518 | AG168: 2479 | AH168: 772414 | AI168: 286508 | AJ168: 0 | AK168: 17091 | AL168: 913753 | AM168: 172475 | AN168: 6442725 | AO168: 25000 | AP168: 6467725
A169: 0 | B169: Schenectady County | C169: 420100000000 | D169: County of Schenectady | E169: Schenectady | F169: 12/31 | G169: 154727 | H169: 0 | I169: 204.5 | J169: 10444791771 | K169: 57714665 | L169: 63583228 | M169: 3099810 | N169: 82717843 | O169: 568303 | P169: 30440012 | Q169: 4587849 | R169: 850607 | S169: 14190015 | T169: 200037667 | U169: 46741425 | V169: 34631818 | W169: 281410910 | X169: 6800419 | Y169: 1682882 | Z169: 289894211 | AA169: 50293418 | AB169: 13785064 | AC169: 22301444 | AD169: 30766693 | AE169: 16080227 | AF169: 103568604 | AG169: 662969 | AH169: 6154760 | AI169: 3750312 | AJ169: 0 | AK169: 331867 | AL169: 34644415 | AM169: 8495929 | AN169: 290835702 | AO169: 1682882 | AP169: 292518584
A170: 0 | B170: Town of Duanesburg | C170: 420324200000 | D170: Town of Duanesburg | E170: Schenectady | F170: 12/31 | G170: 6122 | H170: 0 | I170: 70.8 | J170: 585414892 | K170: 6985657 | L170: 1484414 | M170: 18644 | N170: 724896 | O170: 34930 | P170: 30585 | Q170: 60813 | R170: 6108 | S170: 166764 | T170: 2527154 | U170: 222014 | V170: 87463 | W170: 2836630 | X170: 0 | Y170: 1000 | Z170: 2837630 | AA170: 606647 | AB170: 0 | AC170: 447340 | AD170: 850 | AE170: 619822 | AF170: 2500 | AG170: 90536 | AH170: 24559 | AI170: 3500 | AJ170: 0 | AK170: 312366 | AL170: 353832 | AM170: 303071 | AN170: 2765023 | AO170: 1000 | AP170: 2766023
A171: 0 | B171: Village of Delanson | C171: 420424201250 | D171: Village of Delanson | E171: Schenectady | F171: 05/31 | G171: 377 | H171: 0 | I171: 0.6 | J171: 23167654 | K171: 443700 | L171: 74296 | M171: 188 | N171: 35349 | O171: 10388 | P171: 84422 | Q171: 58854 | R171: 277 | S171: 483 | T171: 264257 | U171: 29495 | V171: 0 | W171: 293752 | X171: 0 | Y171: 0 | Z171: 293752 | AA171: 76031 | AB171: 0 | AC171: 32053 | AD171: 0 | AE171: 54812 | AF171: 0 | AG171: 0 | AH171: 2456 | AI171: 0 | AJ171: 35469 | AK171: 26962 | AL171: 6203 | AM171: 37256 | AN171: 271242 | AO171: 0 | AP171: 271242
A172: 0 | B172: Town of Glenville | C172: 420333100000 | D172: Town of Glenville | E172: Schenectady | F172: 12/31 | G172: 29480 | H172: 0 | I172: 49.2 | J172: 2328975445 | K172: 21764820 | L172: 7341433 | M172: 152304 | N172: 2534366 | O172: 317237 | P172: 1987823 | Q172: 375894 | R172: 126285 | S172: 949245 | T172: 13784587 | U172: 894403 | V172: 473431 | W172: 15152421 | X172: 2900583 | Y172: 0 | Z172: 18053004 | AA172: 1470342 | AB172: 0 | AC172: 3684058 | AD172: 1743 | AE172: 2578556 | AF172: 325081 | AG172: 156892 | AH172: 390135 | AI172: 50537 | AJ172: 1190481 | AK172: 769830 | AL172: 2826267 | AM172: 2391001 | AN172: 15834923 | AO172: 0 | AP172: 15834923
A173: 0 | B173: Village of Scotia | C173: 420433104500 | D173: Village of Scotia | E173: Schenectady | F173: 05/31 | G173: 7729 | H173: 0 | I173: 1.7 | J173: 426783975 | K173: 1216280 | L173: 3783102 | M173: 84384 | N173: 762478 | O173: 0 | P173: 2305228 | Q173: 387648 | R173: 27857 | S173: 84862 | T173: 7435558 | U173: 1675868 | V173: 640262 | W173: 9751688 | X173: 0 | Y173: 213331 | Z173: 9965020 | AA173: 639606 | AB173: 0 | AC173: 3117960 | AD173: 64 | AE173: 643606 | AF173: 621599 | AG173: 58440 | AH173: 1073825 | AI173: 31406 | AJ173: 474133 | AK173: 1636044 | AL173: 1332814 | AM173: 323796 | AN173: 9953293 | AO173: 213331 | AP173: 10166624
A174: 0 | B174: Town of Niskayuna | C174: 420358700000 | D174: Town of Niskayuna | E174: Schenectady | F174: 12/31 | G174: 21781 | H174: 0 | I174: 14.2 | J174: 2423130612 | K174: 10374489 | L174: 10116222 | M174: 327206 | N174: 3026887 | O174: 358202 | P174: 3540286 | Q174: 14329 | R174: 331086 | S174: 131738 | T174: 17845956 | U174: 954275 | V174: 560396 | W174: 19360627 | X174: 9648726 | Y174: 543980 | Z174: 29553333 | AA174: 1705458 | AB174: 0 | AC174: 3321153 | AD174: 34597 | AE174: 3612017 | AF174: 291342 | AG174: 0 | AH174: 1089169 | AI174: 100953 | AJ174: 4052328 | AK174: 2507125 | AL174: 3454495 | AM174: 1527246 | AN174: 21695882 | AO174: 543980 | AP174: 22239862
A175: 0 | B175: Town of Princetown | C175: 420369200000 | D175: Town of Princetown | E175: Schenectady | F175: 12/31 | G175: 2115 | H175: 0 | I175: 23.9 | J175: 202235418 | K175: 2709700 | L175: 400188 | M175: 81679 | N175: 193766 | O175: 0 | P175: 141162 | Q175: 0 | R175: 39356 | S175: 248070 | T175: 1104222 | U175: 71230 | V175: 28267 | W175: 1203719 | X175: 330600 | Y175: 77246 | Z175: 1611565 | AA175: 382128 | AB175: 0 | AC175: 276218 | AD175: 100 | AE175: 78270 | AF175: 2345 | AG175: 0 | AH175: 1959 | AI175: 1000 | AJ175: 477801 | AK175: 0 | AL175: 59108 | AM175: 172899 | AN175: 1451828 | AO175: 77246 | AP175: 1529074
A176: 0 | B176: Town of Rotterdam | C176: 420372600000 | D176: Town of Rotterdam | E176: Schenectady | F176: 12/31 | G176: 29094 | H176: 0 | I176: 35.7 | J176: 2547009941 | K176: 10110000 | L176: 11465185 | M176: 323015 | N176: 3523483 | O176: 538874 | P176: 906097 | Q176: 177794 | R176: 334020 | S176: 646756 | T176: 17915225 | U176: 1021568 | V176: 1543636 | W176: 20480429 | X176: 70750 | Y176: 51677 | Z176: 20602856 | AA176: 2245334 | AB176: 1022 | AC176: 5788751 | AD176: 3400 | AE176: 4054515 | AF176: 1503575 | AG176: 3660 | AH176: 417267 | AI176: 184764 | AJ176: 1672174 | AK176: 903117 | AL176: 4763104 | AM176: 1483485 | AN176: 23024167 | AO176: 51677 | AP176: 23075844
A177: 0 | B177: City of Schenectady | C177: 420253000000 | D177: City of Schenectady | E177: Schenectady | F177: 12/31 | G177: 66135 | H177: 0 | I177: 10.8 | J177: 2417858243 | K177: 95999672 | L177: 25594404 | M177: 1266964 | N177: 11848038 | O177: 793997 | P177: 28980434 | Q177: 266134 | R177: 908758 | S177: 6641333 | T177: 76300062 | U177: 16346137 | V177: 8428494 | W177: 101074693 | X177: 3066714 | Y177: 406000 | Z177: 104547407 | AA177: 22284818 | AB177: 0 | AC177: 26256064 | AD177: 0 | AE177: 8602444 | AF177: 0 | AG177: 11516104 | AH177: 2042518 | AI177: 803457 | AJ177: 5177328 | AK177: 15802846 | AL177: 24262511 | AM177: 8849515 | AN177: 125597605 | AO177: 406000 | AP177: 126003605
A178: 0 | B178: Capital District | C178: =SUM(C94:C177)-C104-C105 -> -20769002040

Sheet Muni-L2
B1: Fiscal Year 2010 | L1: REVENUES | CT1: EXPENDITURES
L2: Real Property Taxes & Assessments | O2: Other Real Property Tax Items | T2: Sales & Use Tax | X2: Other Non-Property Taxes | AB2: Charges for Services | AO2: Charges to Other Governments | BA2: Use & Sale of Property | BD2: Other Local Revenues | BM2: State Aid | CA2: Federal Aid | CN2: Proceeds of Debt | CQ2: Other Sources | CT2: General Government | CZ2: Education | DG2: Public Safety | DO2: Health | DU2: Transportation | ED2: Social Services | EM2: Economic Development | ER2: Culture & Recreation | EX2: Community Services | FC2: Utilities | FG2: Sanitation | FM2: Employee Benefits | FY2: Debt Service | GB2: Other Uses
B3: Level Two | C3: Municipal Code | D3: Municipal Name | E3: County Name | F3: Fiscal Year End | G3: Population | H3: Enrollment | I3: Land Area (sq. mi.) | J3: Full Value | K3: Total Debt Outstanding at EOFY | L3: Real Property Taxes | N3: Special Assessments | O3: Star Payments | P3: Payments In Lieu Of Taxes | Q3: Interest Penalties | R3: Gain from Sale of Tax Acquired Property | S3: Miscellaneous Tax Items | T3: Sales Tax | U3: Sales Tax Distribution | V3: Utilities Gross Receipts Tax | W3: Miscellaneous Use Taxes | X3: Franchises | Y3: Emergency Telephone System Surcharge | Z3: Miscellaneous Non-Property Taxes | AA3: City Income Tax | AB3: General Government Fees | AC3: Education Fees | AD3: Public Safety Fees | AE3: Health Fees | AG3: Transportation Fees | AH3: Social Services Fees | AI3: Economic Development Fees | AJ3: Culture And Recreation Fees | AK3: Community Services Fees | AL3: Utility Fees | AM3: Sanitation Fees | AN3: Miscellaneous Fees | AO3: General Government Charges | AP3: Education Charges | AQ3: Public Safety Charges | AR3: Health Charges | AS3: Transportation Charges | AT3: Social Services Charges | AU3: Culture & Recreation Charges | AV3: Community Services Charges | AW3: Utility Charges | AX3: Debt Service Charges | AY3: Miscellaneous Inter-Governmental Charges | AZ3: Sanitation Charges | BA3: Interest & Earnings | BB3: Sale of Property | BC3: Rental of Property | BD3: Fines | BE3: Forfeitures | BF3: Compensation for Loss | BG3: Library Grants from Local Governments | BH3: Miscellaneous Grants from Local Governments | BI3: Gifts | BJ3: Employee Contributions | BK3: Miscellaneous Revenues | BL3: Local Revenues | BM3: Unrestricted State Aid | BN3: Mortgage Tax | BO3: State Aid General Government | BP3: State Aid Education | BQ3: State Aid Public Safety | BR3: State Aid Health | BS3: State Aid Transportation | BT3: State Aid Social Services | BU3: State Aid Economic Development | BV3: State Aid Culture And Recreation | BW3: State Aid Community Services | BX3: State Aid Utilities | BY3: State Aid Sanitation | BZ3: Miscellaneous State Aid | CA3: Federal Aid Education | CB3: Federal Aid Public Safety | CC3: Federal Aid Health | CD3: Federal Aid Transportation | CE3: Federal Aid Social Services | CF3: Federal Aid Economic Development | CG3: Federal Aid Culture And Recreation | CH3: Federal Aid Community Services | CI3: Federal Aid General Government | CJ3: Federal Aid Utilities | CK3: Federal Aid Sanitation | CL3: Miscellaneous Federal Aid | CM3: Total Revenues | CN3: Sale Of Obligations | CO3: Bans Redeemed From Appropriations | CP3: Miscellaneous Debt Proceeds | CQ3: Tranfers | CR3: Miscellaneous Other Sources | CS3: Total Revenues & Other Sources | CT3: Operations | CU3: Administration | CV3: County Distribution of Sales Tax | CW3: Miscellaneous General Government | CX3: Zoning And Planning | CY3: Judgements | CZ3: Instruction | DA3: Instructional Support | DB3: Pupil Services | DC3: Education - Transportation | DD3: Student Activities | DE3: Community College | DF3: Miscellaneous Education | DG3: Public Safety Administration | DH3: Police | DI3: Fire Protection | DJ3: Emergency Response | DK3: Correctional Services | DL3: Disaster Response | DM3: Homeland Security and Civil Defense | DN3: Miscellaneous Public Safety | DO3: Public Health Administration | DP3: Public Health Services | DQ3: Mental Health Services | DR3: Environmental Services | DS3: Public Health Facilities | DT3: Miscellaneous Public Health | DU3: Highways | DV3: Highway Services to Other Governments | DW3: Bus Service | DX3: Airports | DY3: Rail Service | DZ3: Waterways | EA3: Transportation Facilities | EB3: Transportation Ancillary | EC3: Miscellaneous Transportation | ED3: Social Service Administration | EE3: Financial Assistance | EF3: Medicaid | EG3: Non-Medicaid Medical Assistance | EH3: Housing Assistance | EI3: Employment Services | EJ3: Youth Services | EK3: Public Facilities | EL3: Miscellaneous Social Services | EM3: Economic Development Administration | EN3: Development Infrastructure | EO3: Promotion | EP3: Economic Development Grants | EQ3: Miscellaneous Economic Development | ER3: Recreation Services | ES3: Adult Recreation | ET3: Youth Recreation | EU3: Library | EV3: Cultural Services | EW3: Miscellaneous Cultural & Recreation | EX3: Constituent Services | EY3: Elder Services | EZ3: Natural Resources | FA3: Student Census | FB3: Miscellaneous Community Services | FC3: Water | FD3: Electricity | FE3: Natural Gas | FF3: Steam | FG3: Sewer | FH3: Storm Sewer | FI3: Refuse & Garbage | FJ3: Landfill Closures | FK3: Drainage | FL3: Miscellaneous Sanitation | FM3: Retirement State Local | FN3: Retirement Police Fire | FO3: Retirement Teacher | FP3: LOSAP / Miscellaneous | FQ3: Social Security | FR3: Medical Insurance | FS3: Disability Insurance | FT3: Life Insurance | FU3: Workers Compensation | FV3: Unemployment Insurance | FW3: Union Benefits Program | FX3: Unclassified Employee Benefits | FY3: Debt Principal | FZ3: Interest On Debt | GA3: Total Expenditures | GB3: Tranfers | GC3: Total Expenditures & Other Uses
B4: Albany County | C4: =C97 -> 010100000000 | D4: =D97 -> County of Albany | E4: Albany | F4: 12/31 | G4: 304204 | H4: 0 | I4: 522.8 | J4: 24780071182 | K4: 274806031 | L4: 67489877 | M4: 0 | N4: 0 | O4: 0 | P4: 1819189 | Q4: 4941620 | R4: 218567 | S4: 0 | T4: 222596790 | U4: 0 | V4: 0 | W4: 6354894 | X4: 0 | Y4: 1411199 | Z4: 3338664 | AA4: 0 | AB4: 15819588 | AC4: 0 | AD4: 1164915 | AE4: 30845738 | AF4: 0 | AG4: 1376420 | AH4: 7864498 | AI4: 50513 | AJ4: 6634621 | AK4: 165988 | AL4: 0 | AM4: 1211693 | AN4: 0 | AO4: 869748 | AP4: 0 | AQ4: 9405962 | AR4: 0 | AS4: 900231 | AT4: 0 | AU4: 0 | AV4: 0 | AW4: 0 | AX4: 1085889 | AY4: 263147 | AZ4: 9869284 | BA4: 1990552 | BB4: 475137 | BC4: 1718905 | BD4: 719627 | BE4: 0 | BF4: 6357569 | BG4: 0 | BH4: 1126924 | BI4: 0 | BJ4: 0 | BK4: 7609387 | BL4: 415697135 | BM4: 0 | BN4: 0 | BO4: 4398753 | BP4: =BP97 -> 8229598 | BQ4: 2133513 | BR4: 20741776 | BS4: 2677937 | BT4: 30183952 | BU4: 0 | BV4: 333491 | BW4: 1855408 | BX4: 0 | BY4: 2784271 | BZ4: 1185340 | CA4: 0 | CB4: 1135459 | CC4: 17079678 | CD4: 6401889 | CE4: 54734723 | CF4: 335565 | CG4: 0 | CH4: 2695520 | CI4: 0 | CJ4: 0 | CK4: 0 | CL4: 0 | CM4: 572604007 | CN4: 41815000 | CO4: 1543500 | CP4: 0 | CQ4: 46424236 | CR4: 0 | CS4: 662386743 | CT4: 23297162 | CU4: 29128036 | CV4: 88873142 | CW4: 4479957 | CX4: 363768 | CY4: 169285 | CZ4: 0 | DA4: 0 | DB4: 0 | DC4: 0 | DD4: 0 | DE4: 10383801 | DF4: 13204254 | DG4: 1885970 | DH4: 13360604 | DI4: 0 | DJ4: 0 | DK4: 38182590 | DL4: 0 | DM4: 0 | DN4: 5940256 | DO4: 8080122 | DP4: 11386127 | DQ4: 14181749 | DR4: 0 | DS4: 0 | DT4: 0 | DU4: 23501085 | DV4: 0 | DW4: 1265011 | DX4: 0 | DY4: 0 | DZ4: 0 | EA4: 1376708 | EB4: =EB97 -> 0 | EC4: 0 | ED4: 20875165 | EE4: 58366242 | EF4: 64999359 | EG4: 28643845 | EH4: 0 | EI4: 0 | EJ4: 6252481 | EK4: 23073699 | EL4: 0 | EM4: 400 | EN4: 0 | EO4: 0 | EP4: 0 | EQ4: 1524931 | ER4: 5713112 | ES4: 0 | ET4: 591061 | EU4: 0 | EV4: 0 | EW4: 0 | EX4: 231885 | EY4: 5711130 | EZ4: 0 | FA4: 0 | FB4: 1385815 | FC4: 0 | FD4: 0 | FE4: 0 | FF4: 0 | FG4: 7677302 | FH4: 0 | FI4: 0 | FJ4: 0 | FK4: 0 | FL4: 0 | FM4: 11531543 | FN4: 0 | FO4: 0 | FP4: 0 | FQ4: 7639483 | FR4: 28347109 | FS4: 0 | FT4: 0 | FU4: 623126 | FV4: 189587 | FW4: 0 | FX4: 20181736 | FY4: 13661771 | FZ4: 8474005 | GA4: 604754408 | GB4: 46424236 | GC4: 651178644
B5: City of Albany | C5: =C98 -> 010201000000 | D5: City of Albany | E5: Albany | F5: 12/31 | G5: 97856 | H5: 0 | I5: 21.4 | J5: 5125089604 | K5: 152198950 | L5: 53056844 | M5: 0 | N5: 0 | O5: 0 | P5: 25974566 | Q5: 289296 | R5: 0 | S5: 0 | T5: 0 | U5: 28451534 | V5: 1891561 | W5: 7430 | X5: 1288645 | Y5: 0 | Z5: 238903 | AA5: 0 | AB5: 466673 | AC5: 0 | AD5: 986623 | AE5: 234477 | AF5: 0 | AG5: 109520 | AH5: 0 | AI5: 0 | AJ5: 1170167 | AK5: 2051420 | AL5: 0 | AM5: 10662786 | AN5: 0 | AO5: 0 | AP5: 0 | AQ5: 0 | AR5: 0 | AS5: 0 | AT5: 0 | AU5: 0 | AV5: 0 | AW5: 0 | AX5: 0 | AY5: 203202 | AZ5: 824687 | BA5: 994512 | BB5: 285008 | BC5: 111595 | BD5: 6218273 | BE5: 0 | BF5: 303930 | BG5: 0 | BH5: 0 | BI5: 703688 | BJ5: 0 | BK5: 3645681 | BL5: 140171021 | BM5: 12865125 | BN5: 1288459 | BO5: =BO98 -> 1627164 | BP5: 0 | BQ5: 1382423 | BR5: 0 | BS5: 1458774 | BT5: 0 | BU5: 0 | BV5: 105595 | BW5: 2849301 | BX5: 0 | BY5: 0 | BZ5: 112022 | CA5: 0 | CB5: 1254597 | CC5: 0 | CD5: 7009101 | CE5: 0 | CF5: 2939671 | CG5: 0 | CH5: 0 | CI5: 0 | CJ5: 0 | CK5: 0 | CL5: 542227 | CM5: 173605480 | CN5: 0 | CO5: 670000 | CP5: 0 | CQ5: 440000 | CR5: 0 | CS5: 174715480 | CT5: 12787185 | CU5: 8448648 | CV5: 0 | CW5: 0 | CX5: 524822 | CY5: 353316 | CZ5: 0 | DA5: 0 | DB5: 0 | DC5: 0 | DD5: 0 | DE5: 0 | DF5: 0 | DG5: 2765622 | DH5: 34227568 | DI5: 19805373 | DJ5: 0 | DK5: 0 | DL5: 0 | DM5: 0 | DN5: 934375 | DO5: 208730 | DP5: 0 | DQ5: 0 | DR5: 0 | DS5: 0 | DT5: 0 | DU5: 12890782 | DV5: 0 | DW5: 0 | DX5: 0 | DY5: 0 | DZ5: 0 | EA5: =EA98 -> 0 | EB5: 5714304 | EC5: 0 | ED5: 0 | EE5: 0 | EF5: 0 | EG5: 0 | EH5: 0 | EI5: 2403238 | EJ5: 0 | EK5: 0 | EL5: 0 | EM5: 0 | EN5: 0 | EO5: 0 | EP5: 0 | EQ5: 0 | ER5: 3906234 | ES5: 0 | ET5: 0 | EU5: 0 | EV5: 1399686 | EW5: 0 | EX5: 86458 | EY5: 0 | EZ5: 0 | FA5: 0 | FB5: 2875191 | FC5: 0 | FD5: 0 | FE5: 0 | FF5: 0 | FG5: 0 | FH5: 0 | FI5: 13924849 | FJ5: 0 | FK5: 0 | FL5: 0 | FM5: 2401919 | FN5: 0 | FO5: 0 | FP5: 0 | FQ5: 0 | FR5: 7761795 | FS5: 0 | FT5: 0 | FU5: 1838815 | FV5: 285419 | FW5: 0 | FX5: 36368578 | FY5: 11955483 | FZ5: 4770212 | GA5: 188638602 | GB5: 440000 | GC5: 189078602
B6: Town of Berne | C6: =C99 -> 010306800000 | D6: Town of Berne | E6: Albany | F6: 12/31 | G6: 2794 | H6: 0 | I6: 64 | J6: 299701688 | K6: 591036 | L6: 1160528 | M6: 0 | N6: 0 | O6: 0 | P6: 0 | Q6: 4605 | R6: 0 | S6: 0 | T6: 0 | U6: 888183 | V6: 0 | W6: 0 | X6: 14058 | Y6: 0 | Z6: 0 | AA6: 0 | AB6: 5462 | AC6: 0 | AD6: 0 | AE6: 15970 | AF6: 0 | AG6: 0 | AH6: 0 | AI6: 0 | AJ6: 4266 | AK6: 9722 | AL6: 0 | AM6: 2122 | AN6: 0 | AO6: 0 | AP6: 0 | AQ6: 0 | AR6: 0 | AS6: 0 | AT6: 0 | AU6: 0 | AV6: 0 | AW6: 0 | AX6: 0 | AY6: 0 | AZ6: 0 | BA6: 5216 | BB6: 5742 | BC6: 0 | BD6: 16734 | BE6: 0 | BF6: 0 | BG6: 0 | BH6: 0 | BI6: 536 | BJ6: 0 | BK6: 21785 | BL6: 2154929 | BM6: 12273 | BN6: 85160 | BO6: =BO99 -> 0 | BP6: 0 | BQ6: 0 | BR6: 0 | BS6: 140031 | BT6: 0 | BU6: 0 | BV6: 3450 | BW6: 0 | BX6: 0 | BY6: 0 | BZ6: 106630 | CA6: 0 | CB6: 0 | CC6: 0 | CD6: 0 | CE6: 0 | CF6: 0 | CG6: 0 | CH6: 0 | CI6: 0 | CJ6: 0 | CK6: 0 | CL6: 0 | CM6: 2502472 | CN6: 0 | CO6: 88227 | CP6: 0 | CQ6: 0 | CR6: 0 | CS6: 2590700 | CT6: 81577 | CU6: 228782 | CV6: 0 | CW6: 0 | CX6: 48208 | CY6: 0 | CZ6: 0 | DA6: 0 | DB6: 0 | DC6: 0 | DD6: 0 | DE6: 0 | DF6: 0 | DG6: 0 | DH6: 62026 | DI6: 330885 | DJ6: 55000 | DK6: 0 | DL6: 0 | DM6: 0 | DN6: 62878 | DO6: 1300 | DP6: 0 | DQ6: 0 | DR6: 0 | DS6: 0 | DT6: 0 | DU6: 853600 | DV6: 0 | DW6: 0 | DX6: 0 | DY6: 0 | DZ6: 0 | EA6: =EA99 -> 125874 | EB6: 9729 | EC6: 0 | ED6: 0 | EE6: 0 | EF6: 0 | EG6: 0 | EH6: 0 | EI6: 0 | EJ6: 0 | EK6: 0 | EL6: 0 | EM6: 0 | EN6: 0 | EO6: 0 | EP6: 0 | EQ6: 0 | ER6: 32590 | ES6: 0 | ET6: 13495 | EU6: 27385 | EV6: 650 | EW6: 1741 | EX6: 0 | EY6: 0 | EZ6: 0 | FA6: 0 | FB6: 0 | FC6: 0 | FD6: 0 | FE6: 0 | FF6: 0 | FG6: 12848 | FH6: 0 | FI6: 95980 | FJ6: 0 | FK6: 0 | FL6: 0 | FM6: 39758 | FN6: 0 | FO6: 0 | FP6: 0 | FQ6: 49099 | FR6: 72045 | FS6: 0 | FT6: 0 | FU6: 29857 | FV6: 361 | FW6: 0 | FX6: 0 | FY6: 88277 | FZ6: 9875 | GA6: 2333820 | GB6: 0 | GC6: 2333820
B7: Town of Bethlehem | C7: =C100 -> 010307100000 | D7: Town of Bethlehem | E7: Albany | F7: 12/31 | G7: 33656 | H7: 0 | I7: 49 | J7: 3396032947 | K7: 20250000 | L7: 10811795 | M7: 0 | N7: 0 | O7: 0 | P7: 1966401 | Q7: 0 | R7: 0 | S7: 0 | T7: 0 | U7: 9444723 | V7: 0 | W7: 0 | X7: 707304 | Y7: 0 | Z7: 0 | AA7: 0 | AB7: 122184 | AC7: 0 | AD7: 275277 | AE7: 8627 | AF7: 0 | AG7: 0 | AH7: 0 | AI7: 0 | AJ7: 631442 | AK7: 195715 | AL7: 6746065 | AM7: 2704207 | AN7: 0 | AO7: 0 | AP7: 0 | AQ7: 0 | AR7: 0 | AS7: 0 | AT7: 0 | AU7: 0 | AV7: 0 | AW7: 0 | AX7: 0 | AY7: 40626 | AZ7: 0 | BA7: 52406 | BB7: 74571 | BC7: 190669 | BD7: 500567 | BE7: 0 | BF7: 105776 | BG7: 0 | BH7: 0 | BI7: 10942 | BJ7: 0 | BK7: 509294 | BL7: 35098591 | BM7: 129222 | BN7: 991195 | BO7: =BO100 -> 5333 | BP7: 0 | BQ7: 7196 | BR7: 0 | BS7: 249059 | BT7: 0 | BU7: 0 | BV7: 12360 | BW7: 30271 | BX7: 0 | BY7: 0 | BZ7: 7471 | CA7: 0 | CB7: 68810 | CC7: 0 | CD7: 0 | CE7: 300572 | CF7: 0 | CG7: 0 | CH7: 0 | CI7: 0 | CJ7: 0 | CK7: 0 | CL7: 527997 | CM7: 37428077 | CN7: 0 | CO7: 43000 | CP7: 0 | CQ7: 261000 | CR7: 0 | CS7: 37732077 | CT7: 1569029 | CU7: 1905379 | CV7: 0 | CW7: 0 | CX7: 410860 | CY7: 0 | CZ7: 0 | DA7: 0 | DB7: 0 | DC7: 0 | DD7: 0 | DE7: 0 | DF7: 1192 | DG7: 810702 | DH7: 4672549 | DI7: 3828 | DJ7: 1190765 | DK7: 0 | DL7: 0 | DM7: 4711 | DN7: 461757 | DO7: 3965 | DP7: 0 | DQ7: 0 | DR7: 0 | DS7: 0 | DT7: 0 | DU7: 4019007 | DV7: 0 | DW7: 0 | DX7: 0 | DY7: 0 | DZ7: 0 | EA7: =EA100 -> 955949 | EB7: 264103 | EC7: 0 | ED7: 0 | EE7: 0 | EF7: 0 | EG7: 0 | EH7: 300615 | EI7: 0 | EJ7: 0 | EK7: 0 | EL7: 0 | EM7: 0 | EN7: 0 | EO7: 0 | EP7: 0 | EQ7: 0 | ER7: 2047255 | ES7: 0 | ET7: 20781 | EU7: 0 | EV7: 13822 | EW7: 0 | EX7: 0 | EY7: 437116 | EZ7: 50953 | FA7: 0 | FB7: 4361 | FC7: 6477043 | FD7: 0 | FE7: 0 | FF7: 0 | FG7: 4250193 | FH7: 0 | FI7: 889819 | FJ7: 0 | FK7: 0 | FL7: 0 | FM7: 0 | FN7: 0 | FO7: 0 | FP7: 0 | FQ7: 0 | FR7: 0 | FS7: 0 | FT7: 0 | FU7: 0 | FV7: 0 | FW7: 0 | FX7: 5777893 | FY7: 1106000 | FZ7: 938680 | GA7: 38588327 | GB7: 261000 | GC7: 38849327
B8: Town of Coeymans | C8: =C101 -> 010318000000 | D8: Town of Coeymans | E8: Albany | F8: 12/31 | G8: 7418 | H8: 0 | I8: 50.1 | J8: 607063586 | K8: 3978 | L8: 1738076 | M8: 0 | N8: 0 | O8: 0 | P8: 6000 | Q8: 5440 | R8: 0 | S8: 0 | T8: 0 | U8: 1785256 | V8: 0 | W8: 0 | X8: 13549 | Y8: 0 | Z8: 0 | AA8: 0 | AB8: 7641 | AC8: 0 | AD8: 9582 | AE8: 22593 | AF8: 0 | AG8: 0 | AH8: 0 | AI8: 0 | AJ8: 24106 | AK8: 20806 | AL8: 0 | AM8: 231805 | AN8: 0 | AO8: 0 | AP8: 0 | AQ8: 0 | AR8: 0 | AS8: 0 | AT8: 0 | AU8: 0 | AV8: 0 | AW8: 0 | AX8: 0 | AY8: 3357 | AZ8: 433557 | BA8: 15122 | BB8: 19188 | BC8: 0 | BD8: 186666 | BE8: 0 | BF8: 13820 | BG8: 0 | BH8: 0 | BI8: 0 | BJ8: 0 | BK8: 56961 | BL8: 4593528 | BM8: 28360 | BN8: 88513 | BO8: =BO101 -> 0 | BP8: 0 | BQ8: 6995 | BR8: 0 | BS8: 87275 | BT8: 0 | BU8: 0 | BV8: 28403 | BW8: 0 | BX8: 0 | BY8: 0 | BZ8: 2597 | CA8: 0 | CB8: 10624 | CC8: 0 | CD8: 0 | CE8: 460271 | CF8: 0 | CG8: 0 | CH8: 0 | CI8: 0 | CJ8: 0 | CK8: 0 | CL8: 0 | CM8: 5306565 | CN8: 0 | CO8: 0 | CP8: 0 | CQ8: 1791626 | CR8: 0 | CS8: 7098191 | CT8: 261263 | CU8: 585548 | CV8: 0 | CW8: 0 | CX8: 22868 | CY8: 10196 | CZ8: 0 | DA8: 0 | DB8: 0 | DC8: 0 | DD8: 0 | DE8: 0 | DF8: 0 | DG8: 226452 | DH8: 818381 | DI8: 250 | DJ8: 71000 | DK8: 0 | DL8: 0 | DM8: 1500 | DN8: 108576 | DO8: 200 | DP8: 0 | DQ8: 0 | DR8: 0 | DS8: 0 | DT8: 165768 | DU8: 1101220 | DV8: 0 | DW8: 0 | DX8: 0 | DY8: 0 | DZ8: 0 | EA8: =EA101 -> 116000 | EB8: 57236 | EC8: 0 | ED8: 0 | EE8: 0 | EF8: 0 | EG8: 0 | EH8: 484427 | EI8: 0 | EJ8: 0 | EK8: 0 | EL8: 0 | EM8: 0 | EN8: 0 | EO8: 844 | EP8: 0 | EQ8: 0 | ER8: 71454 | ES8: 0 | ET8: 8994 | EU8: 0 | EV8: 4774 | EW8: 2122 | EX8: 10000 | EY8: 0 | EZ8: 208138 | FA8: 0 | FB8: 0 | FC8: 0 | FD8: 0 | FE8: 0 | FF8: 0 | FG8: 423828 | FH8: 0 | FI8: 10998 | FJ8: 0 | FK8: 3560 | FL8: 0 | FM8: 190106 | FN8: 0 | FO8: 0 | FP8: 0 | FQ8: 175149 | FR8: 276017 | FS8: 6542 | FT8: 3762 | FU8: 67307 | FV8: 0 | FW8: 17289 | FX8: 100 | FY8: 1768 | FZ8: 3421 | GA8: 5517059 | GB8: 1791626 | GC8: 7308685
B9: Village of Ravena | C9: =C102 -> 010418004140 | D9: Village of Ravena | E9: Albany | F9: 05/31 | G9: 3268 | H9: 0 | I9: 1.5 | J9: 169328756 | K9: 865000 | L9: 761980 | M9: 0 | N9: 0 | O9: 0 | P9: 0 | Q9: 4857 | R9: 0 | S9: 0 | T9: 0 | U9: 662168 | V9: 53501 | W9: 0 | X9: 0 | Y9: 0 | Z9: 0 | AA9: 0 | AB9: 1275 | AC9: 0 | AD9: 0 | AE9: 512 | AF9: 0 | AG9: 0 | AH9: 0 | AI9: 0 | AJ9: 2215 | AK9: 2152 | AL9: 574782 | AM9: 309344 | AN9: 0 | AO9: 0 | AP9: 0 | AQ9: 0 | AR9: 0 | AS9: 0 | AT9: 0 | AU9: 0 | AV9: 0 | AW9: 0 | AX9: 0 | AY9: 0 | AZ9: 0 | BA9: 13293 | BB9: 0 | BC9: 35914 | BD9: 129732 | BE9: 0 | BF9: 25266 | BG9: 0 | BH9: 0 | BI9: 0 | BJ9: 0 | BK9: 4699 | BL9: 2581690 | BM9: 27949 | BN9: 9524 | BO9: =BO102 -> 0 | BP9: 0 | BQ9: 0 | BR9: 0 | BS9: 40956 | BT9: 0 | BU9: 0 | BV9: 3348 | BW9: 0 | BX9: 0 | BY9: 0 | BZ9: 0 | CA9: 0 | CB9: 16410 | CC9: 0 | CD9: 0 | CE9: 0 | CF9: 0 | CG9: 0 | CH9: 0 | CI9: 0 | CJ9: 0 | CK9: 0 | CL9: 38176 | CM9: 2718053 | CN9: 0 | CO9: 0 | CP9: 0 | CQ9: 110000 | CR9: 0 | CS9: 2828053 | CT9: 405186 | CU9: 330532 | CV9: 0 | CW9: 0 | CX9: 6775 | CY9: 0 | CZ9: 0 | DA9: 0 | DB9: 0 | DC9: 0 | DD9: 0 | DE9: 0 | DF9: 0 | DG9: 0 | DH9: 0 | DI9: 77491 | DJ9: 0 | DK9: 0 | DL9: 0 | DM9: 0 | DN9: 61005 | DO9: 512 | DP9: 0 | DQ9: 0 | DR9: 0 | DS9: 0 | DT9: 0 | DU9: 190633 | DV9: 0 | DW9: 0 | DX9: 0 | DY9: 0 | DZ9: 0 | EA9: =EA102 -> 0 | EB9: 98533 | EC9: 0 | ED9: 0 | EE9: 0 | EF9: 0 | EG9: 0 | EH9: 0 | EI9: 0 | EJ9: 0 | EK9: 0 | EL9: 0 | EM9: 0 | EN9: 0 | EO9: 1304 | EP9: 0 | EQ9: 0 | ER9: 85918 | ES9: 0 | ET9: 0 | EU9: 0 | EV9: 0 | EW9: 0 | EX9: 0 | EY9: 0 | EZ9: 60 | FA9: 0 | FB9: 7000 | FC9: 302019 | FD9: 0 | FE9: 0 | FF9: 0 | FG9: 264303 | FH9: 10587 | FI9: 3258 | FJ9: 0 | FK9: 0 | FL9: 0 | FM9: 55936 | FN9: 0 | FO9: 0 | FP9: 0 | FQ9: 61697 | FR9: 254622 | FS9: 705 | FT9: 0 | FU9: 54999 | FV9: 0 | FW9: 0 | FX9: 53697 | FY9: 150000 | FZ9: 45701 | GA9: 2522473 | GB9: 110000 | GC9: 2632473
B10: City of Cohoes | C10: =C103 -> 010209000000 | D10: City of Cohoes | E10: Albany | F10: 12/31 | G10: 16168 | H10: 0 | I10: 3.8 | J10: 689715761 | K10: 10660383 | L10: 6587042 | M10: 0 | N10: 0 | O10: 0 | P10: 754824 | Q10: 30293 | R10: 232 | S10: 0 | T10: 0 | U10: 4682838 | V10: 203725 | W10: 0 | X10: 335351 | Y10: 0 | Z10: 0 | AA10: 0 | AB10: 50783 | AC10: 0 | AD10: 179993 | AE10: 1324 | AF10: 0 | AG10: 29391 | AH10: 0 | AI10: 0 | AJ10: 14009 | AK10: 297512 | AL10: 1730764 | AM10: 2078876 | AN10: 0 | AO10: 0 | AP10: 0 | AQ10: 0 | AR10: 0 | AS10: 0 | AT10: 0 | AU10: 0 | AV10: 0 | AW10: 36278 | AX10: 0 | AY10: 156748 | AZ10: 4902 | BA10: 102972 | BB10: 25638 | BC10: 11388 | BD10: 138673 | BE10: 0 | BF10: 140193 | BG10: 0 | BH10: 0 | BI10: 38448 | BJ10: 0 | BK10: 302298 | BL10: 17934495 | BM10: 2798863 | BN10: 310372 | BO10: =BO103 -> 66980 | BP10: 0 | BQ10: 112136 | BR10: 0 | BS10: 412852 | BT10: 0 | BU10: 0 | BV10: 16079 | BW10: 0 | BX10: 0 | BY10: 0 | BZ10: 0 | CA10: 0 | CB10: 132555 | CC10: 0 | CD10: 5847332 | CE10: 0 | CF10: 0 | CG10: 0 | CH10: 0 | CI10: 0 | CJ10: 0 | CK10: 0 | CL10: 0 | CM10: 27631664 | CN10: 0 | CO10: 0 | CP10: 0 | CQ10: 267027 | CR10: 0 | CS10: 27898691 | CT10: 1520327 | CU10: 1106500 | CV10: 0 | CW10: 0 | CX10: 4405 | CY10: 602 | CZ10: 0 | DA10: 0 | DB10: 0 | DC10: 0 | DD10: 0 | DE10: 0 | DF10: 0 | DG10: 436248 | DH10: 3088504 | DI10: 3111185 | DJ10: 0 | DK10: 0 | DL10: 0 | DM10: 0 | DN10: 346242 | DO10: 0 | DP10: 0 | DQ10: 0 | DR10: 0 | DS10: 0 | DT10: 0 | DU10: 5842240 | DV10: 0 | DW10: 0 | DX10: 0 | DY10: 0 | DZ10: 0 | EA10: =EA103 -> 0 | EB10: 389756 | EC10: 0 | ED10: 0 | EE10: 0 | EF10: 0 | EG10: 0 | EH10: 0 | EI10: 0 | EJ10: 0 | EK10: 0 | EL10: 0 | EM10: 173947 | EN10: 0 | EO10: 0 | EP10: 0 | EQ10: 0 | ER10: 0 | ES10: 0 | ET10: 273371 | EU10: 229868 | EV10: 4058 | EW10: 0 | EX10: 0 | EY10: 0 | EZ10: 0 | FA10: 0 | FB10: 1323980 | FC10: 771642 | FD10: 0 | FE10: 0 | FF10: 0 | FG10: 1374623 | FH10: 0 | FI10: 967259 | FJ10: 0 | FK10: 0 | FL10: 0 | FM10: 328917 | FN10: 869247 | FO10: 0 | FP10: 0 | FQ10: 721714 | FR10: 2339447 | FS10: 0 | FT10: 0 | FU10: 317589 | FV10: 11928 | FW10: 0 | FX10: 0 | FY10: 1162191 | FZ10: 644136 | GA10: 27359926 | GB10: 267027 | GC10: 27626953
B11: Town of Colonie | C11: =C104 -> 010318700000 | D11: Town of Colonie | E11: Albany | F11: 12/31 | G11: 81591 | H11: 0 | I11: 55.9 | J11: 8629079128 | K11: 104955386 | L11: 22964446 | M11: 0 | N11: 6929913 | O11: 0 | P11: 961179 | Q11: 215677 | R11: 0 | S11: 0 | T11: 0 | U11: 19446154 | V11: 0 | W11: 0 | X11: 0 | Y11: 0 | Z11: 0 | AA11: 0 | AB11: 82353 | AC11: 0 | AD11: 234431 | AE11: 3601979 | AF11: 0 | AG11: 837544 | AH11: 0 | AI11: 37683 | AJ11: 2652891 | AK11: 599546 | AL11: 9232224 | AM11: 9532287 | AN11: 0 | AO11: 0 | AP11: 0 | AQ11: 20434 | AR11: 0 | AS11: 114455 | AT11: 0 | AU11: 0 | AV11: 0 | AW11: 0 | AX11: 0 | AY11: 0 | AZ11: 0 | BA11: 132438 | BB11: 2163012 | BC11: 573944 | BD11: 934729 | BE11: 24330 | BF11: 28815 | BG11: 0 | BH11: 0 | BI11: 29369 | BJ11: 0 | BK11: 6350123 | BL11: 87699956 | BM11: 465885 | BN11: 1929436 | BO11: =BO104 -> 656 | BP11: 0 | BQ11: 140321 | BR11: 0 | BS11: 968375 | BT11: 0 | BU11: 0 | BV11: 62374 | BW11: 341374 | BX11: 0 | BY11: 0 | BZ11: 4058 | CA11: 0 | CB11: 5365 | CC11: 124911 | CD11: 0 | CE11: 2519697 | CF11: 402099 | CG11: 661900 | CH11: 3054017 | CI11: 0 | CJ11: 0 | CK11: 0 | CL11: 0 | CM11: 98380424 | CN11: 314138 | CO11: 60930 | CP11: 391019 | CQ11: 2876000 | CR11: 0 | CS11: 102022511 | CT11: 4528288 | CU11: 8266027 | CV11: 0 | CW11: 6071282 | CX11: 848683 | CY11: 76912 | CZ11: 0 | DA11: 0 | DB11: 0 | DC11: 0 | DD11: 0 | DE11: 0 | DF11: 0 | DG11: 2023303 | DH11: 11612797 | DI11: 3599046 | DJ11: 4271643 | DK11: 93727 | DL11: 0 | DM11: 82179 | DN11: 1871761 | DO11: 62563 | DP11: 0 | DQ11: 0 | DR11: 0 | DS11: 0 | DT11: 0 | DU11: 7855643 | DV11: 0 | DW11: 0 | DX11: 0 | DY11: 0 | DZ11: 0 | EA11: =EA104 -> 348842 | EB11: 1250733 | EC11: 231456 | ED11: 0 | EE11: 0 | EF11: 0 | EG11: 0 | EH11: 2162718 | EI11: 0 | EJ11: 0 | EK11: 0 | EL11: 0 | EM11: 443045 | EN11: 416140 | EO11: 0 | EP11: 0 | EQ11: 33828 | ER11: 3414246 | ES11: 675382 | ET11: 1186145 | EU11: 3032004 | EV11: 193889 | EW11: 0 | EX11: 500 | EY11: 0 | EZ11: 17081 | FA11: 0 | FB11: 129195 | FC11: 8837132 | FD11: 0 | FE11: 0 | FF11: 0 | FG11: 3520944 | FH11: 0 | FI11: 2676075 | FJ11: 1279362 | FK11: 0 | FL11: 0 | FM11: 2201458 | FN11: 2380634 | FO11: 0 | FP11: 0 | FQ11: 2492513 | FR11: 5880948 | FS11: 0 | FT11: 11780 | FU11: 872089 | FV11: 37128 | FW11: 0 | FX11: 3976955 | FY11: 3068682 | FZ11: 3722623 | GA11: 105757381 | GB11: 2876000 | GC11: 108633381
B12: Village of Colonie | C12: =C105 -> 010418701100 | D12: Village of Colonie | E12: Albany | F12: 05/31 | G12: 7793 | H12: 0 | I12: 3.2 | J12: 843702141 | K12: 0 | L12: 1189824 | M12: 0 | N12: 0 | O12: 0 | P12: 0 | Q12: 11305 | R12: 0 | S12: 0 | T12: 0 | U12: 2205623 | V12: 120415 | W12: 0 | X12: 126683 | Y12: 0 | Z12: 0 | AA12: 0 | AB12: 14074 | AC12: 0 | AD12: 0 | AE12: 1490 | AF12: 0 | AG12: 0 | AH12: 0 | AI12: 0 | AJ12: 21970 | AK12: 41325 | AL12: 1673435 | AM12: 1075296 | AN12: 0 | AO12: 0 | AP12: 0 | AQ12: 0 | AR12: 0 | AS12: 0 | AT12: 0 | AU12: 0 | AV12: 0 | AW12: 0 | AX12: 0 | AY12: 0 | AZ12: 0 | BA12: 50128 | BB12: 7000 | BC12: 0 | BD12: 0 | BE12: 0 | BF12: 49685 | BG12: 0 | BH12: 0 | BI12: 6306 | BJ12: 0 | BK12: 32582 | BL12: 6627141 | BM12: 67945 | BN12: 116125 | BO12: =BO105 -> 0 | BP12: 0 | BQ12: 0 | BR12: 0 | BS12: 0 | BT12: 0 | BU12: 0 | BV12: 1475 | BW12: 0 | BX12: 0 | BY12: 0 | BZ12: 2138 | CA12: 0 | CB12: 0 | CC12: 0 | CD12: 0 | CE12: 0 | CF12: 0 | CG12: 0 | CH12: 0 | CI12: 0 | CJ12: 0 | CK12: 0 | CL12: 115892 | CM12: 6930716 | CN12: 0 | CO12: 0 | CP12: 0 | CQ12: 612360 | CR12: 0 | CS12: 7543076 | CT12: 301036 | CU12: 395624 | CV12: 0 | CW12: 0 | CX12: 12067 | CY12: 0 | CZ12: 0 | DA12: 0 | DB12: 0 | DC12: 0 | DD12: 0 | DE12: 0 | DF12: 0 | DG12: 0 | DH12: 0 | DI12: 265651 | DJ12: 0 | DK12: 0 | DL12: 0 | DM12: 0 | DN12: 69284 | DO12: 0 | DP12: 0 | DQ12: 0 | DR12: 2543 | DS12: 0 | DT12: 8040 | DU12: 1091730 | DV12: 0 | DW12: 0 | DX12: 0 | DY12: 0 | DZ12: 0 | EA12: =EA105 -> 0 | EB12: 228957 | EC12: 0 | ED12: 0 | EE12: 0 | EF12: 0 | EG12: 0 | EH12: 0 | EI12: 0 | EJ12: 0 | EK12: 0 | EL12: 0 | EM12: 0 | EN12: 0 | EO12: 22209 | EP12: 0 | EQ12: 3785 | ER12: 353262 | ES12: 0 | ET12: 161140 | EU12: 0 | EV12: 4644 | EW12: 1801 | EX12: 0 | EY12: 0 | EZ12: 142479 | FA12: 0 | FB12: 303296 | FC12: 1179195 | FD12: 0 | FE12: 0 | FF12: 0 | FG12: 903781 | FH12: 0 | FI12: 397919 | FJ12: 0 | FK12: 0 | FL12: 0 | FM12: 80665 | FN12: 0 | FO12: 0 | FP12: 0 | FQ12: 124083 | FR12: 422709 | FS12: 1813 | FT12: 6071 | FU12: 79358 | FV12: 0 | FW12: 3479 | FX12: 0 | FY12: 0 | FZ12: 0 | GA12: 6566621 | GB12: 612360 | GC12: 7178981
B13: Village of Menands | C13: =C106 -> 010418703040 | D13: Village of Menands | E13: Albany | F13: 05/31 | G13: 3990 | H13: 0 | I13: 3.1 | J13: 464248478 | K13: 325000 | L13: 1793552 | M13: 0 | N13: 0 | O13: 0 | P13: 0 | Q13: 6677 | R13: 0 | S13: 0 | T13: 0 | U13: 1288251 | V13: 0 | W13: 0 | X13: 81700 | Y13: 0 | Z13: 0 | AA13: 0 | AB13: 3175 | AC13: 0 | AD13: 33260 | AE13: 0 | AF13: 0 | AG13: 900 | AH13: 0 | AI13: 0 | AJ13: 0 | AK13: 0 | AL13: 832735 | AM13: 437279 | AN13: 0 | AO13: 0 | AP13: 0 | AQ13: 7393 | AR13: 0 | AS13: 0 | AT13: 0 | AU13: 0 | AV13: 0 | AW13: 0 | AX13: 0 | AY13: 108302 | AZ13: 65522 | BA13: 14343 | BB13: 600 | BC13: 0 | BD13: 289240 | BE13: 0 | BF13: 10226 | BG13: 0 | BH13: 0 | BI13: 150 | BJ13: 0 | BK13: 14861 | BL13: 4988166 | BM13: 21191 | BN13: 67916 | BO13: =BO106 -> 0 | BP13: 0 | BQ13: 0 | BR13: 0 | BS13: 41553 | BT13: 0 | BU13: 0 | BV13: 1267 | BW13: 0 | BX13: 0 | BY13: 0 | BZ13: 0 | CA13: 0 | CB13: 0 | CC13: 0 | CD13: 0 | CE13: 0 | CF13: 0 | CG13: 0 | CH13: 0 | CI13: 0 | CJ13: 0 | CK13: 0 | CL13: 25848 | CM13: 5145941 | CN13: 0 | CO13: 0 | CP13: 0 | CQ13: 0 | CR13: 0 | CS13: 5145941 | CT13: 151670 | CU13: 475783 | CV13: 0 | CW13: 0 | CX13: 3149 | CY13: 0 | CZ13: 0 | DA13: 0 | DB13: 0 | DC13: 0 | DD13: 0 | DE13: 0 | DF13: 0 | DG13: 0 | DH13: 1010561 | DI13: 135865 | DJ13: 0 | DK13: 0 | DL13: 0 | DM13: 0 | DN13: 29840 | DO13: 0 | DP13: 0 | DQ13: 0 | DR13: 0 | DS13: 0 | DT13: 0 | DU13: 480244 | DV13: 0 | DW13: 0 | DX13: 0 | DY13: 0 | DZ13: 0 | EA13: =EA106 -> 0 | EB13: 99011 | EC13: 0 | ED13: 0 | EE13: 0 | EF13: 0 | EG13: 0 | EH13: 0 | EI13: 0 | EJ13: 0 | EK13: 0 | EL13: 0 | EM13: 0 | EN13: 0 | EO13: 0 | EP13: 0 | EQ13: 4476 | ER13: 15823 | ES13: 0 | ET13: 41282 | EU13: 0 | EV13: 14150 | EW13: 0 | EX13: 0 | EY13: 0 | EZ13: 10694 | FA13: 0 | FB13: 0 | FC13: 782294 | FD13: 0 | FE13: 0 | FF13: 0 | FG13: 341459 | FH13: 36980 | FI13: 186009 | FJ13: 0 | FK13: 0 | FL13: 0 | FM13: 60204 | FN13: 117607 | FO13: 0 | FP13: 27691 | FQ13: 131202 | FR13: 365944 | FS13: 0 | FT13: 6530 | FU13: 57725 | FV13: 0 | FW13: 0 | FX13: 10024 | FY13: 0 | FZ13: 0 | GA13: 4596217 | GB13: 0 | GC13: 4596217
B14: Town/Village of Green Island | C14: =C107 -> 010334500000 | D14: Town of Green Island | E14: Albany | F14: 12/31 | G14: 2620 | H14: 0 | I14: 0.8 | J14: 140974052 | K14: 0 | L14: 0 | M14: 0 | N14: 0 | O14: 0 | P14: 0 | Q14: 787 | R14: 0 | S14: 0 | T14: 0 | U14: 51217 | V14: 0 | W14: 0 | X14: 0 | Y14: 0 | Z14: 0 | AA14: 0 | AB14: 3038 | AC14: 0 | AD14: 0 | AE14: 0 | AF14: 0 | AG14: 0 | AH14: 0 | AI14: 0 | AJ14: 0 | AK14: 0 | AL14: 0 | AM14: 0 | AN14: 0 | AO14: 0 | AP14: 0 | AQ14: 0 | AR14: 0 | AS14: 0 | AT14: 0 | AU14: 0 | AV14: 0 | AW14: 0 | AX14: 0 | AY14: 0 | AZ14: 0 | BA14: 454 | BB14: 0 | BC14: 0 | BD14: 143561 | BE14: 0 | BF14: 0 | BG14: 0 | BH14: 0 | BI14: 0 | BJ14: 0 | BK14: 221 | BL14: 199278 | BM14: 27069 | BN14: 10939 | BO14: =BO107 -> 0 | BP14: 0 | BQ14: 0 | BR14: 0 | BS14: 0 | BT14: 0 | BU14: 0 | BV14: 0 | BW14: 0 | BX14: 0 | BY14: 0 | BZ14: 7480 | CA14: 0 | CB14: 0 | CC14: 0 | CD14: 0 | CE14: 0 | CF14: 0 | CG14: 0 | CH14: 0 | CI14: 0 | CJ14: 0 | CK14: 0 | CL14: 0 | CM14: 244766 | CN14: 0 | CO14: 0 | CP14: 0 | CQ14: 0 | CR14: 0 | CS14: 244766 | CT14: 36669 | CU14: 248680 | CV14: 0 | CW14: 0 | CX14: 0 | CY14: 0 | CZ14: 0 | DA14: 0 | DB14: 0 | DC14: 0 | DD14: 0 | DE14: 0 | DF14: 0 | DG14: 0 | DH14: 0 | DI14: 600 | DJ14: 0 | DK14: 0 | DL14: 0 | DM14: 0 | DN14: 1400 | DO14: 0 | DP14: 0 | DQ14: 0 | DR14: 0 | DS14: 0 | DT14: 0 | DU14: 0 | DV14: 0 | DW14: 0 | DX14: 0 | DY14: 0 | DZ14: 0 | EA14: =EA107 -> 0 | EB14: 0 | EC14: 0 | ED14: 0 | EE14: 0 | EF14: 0 | EG14: 0 | EH14: 0 | EI14: 0 | EJ14: 0 | EK14: 0 | EL14: 0 | EM14: 0 | EN14: 0 | EO14: 0 | EP14: 0 | EQ14: 0 | ER14: 10000 | ES14: 0 | ET14: 0 | EU14: 0 | EV14: 0 | EW14: 0 | EX14: 0 | EY14: 0 | EZ14: 0 | FA14: 0 | FB14: 0 | FC14: 0 | FD14: 0 | FE14: 0 | FF14: 0 | FG14: 0 | FH14: 0 | FI14: 0 | FJ14: 0 | FK14: 0 | FL14: 0 | FM14: 8689 | FN14: 0 | FO14: 0 | FP14: 0 | FQ14: 9623 | FR14: 8991 | FS14: 0 | FT14: 0 | FU14: 0 | FV14: 341 | FW14: 0 | FX14: 0 | FY14: 0 | FZ14: 0 | GA14: 324993 | GB14: 0 | GC14: 324993
B15: Town/Village of Green Island | C15: =C108 -> 010434502040 | D15: Village of Green Island | E15: Albany | F15: 05/31 | G15: 2620 | H15: 0 | I15: 0.8 | J15: 156917509 | K15: 885000 | L15: 1702672 | M15: 0 | N15: 0 | O15: 0 | P15: 391849 | Q15: 7525 | R15: 0 | S15: 0 | T15: 0 | U15: 606525 | V15: 0 | W15: 0 | X15: 42898 | Y15: 0 | Z15: 0 | AA15: 0 | AB15: 39726 | AC15: 0 | AD15: 23827 | AE15: 0 | AF15: 0 | AG15: 0 | AH15: 0 | AI15: 0 | AJ15: 5874 | AK15: 8674 | AL15: 585644 | AM15: 459108 | AN15: 0 | AO15: 0 | AP15: 0 | AQ15: 0 | AR15: 0 | AS15: 0 | AT15: 0 | AU15: 0 | AV15: 0 | AW15: 0 | AX15: 0 | AY15: 0 | AZ15: 414760 | BA15: 5028 | BB15: 0 | BC15: 169949 | BD15: 3815 | BE15: 0 | BF15: 823 | BG15: 0 | BH15: 0 | BI15: 0 | BJ15: 0 | BK15: 95713 | BL15: 4564410 | BM15: 40506 | BN15: 7101 | BO15: =BO108 -> 0 | BP15: 0 | BQ15: 0 | BR15: 0 | BS15: 57338 | BT15: 0 | BU15: 0 | BV15: 418 | BW15: 0 | BX15: 0 | BY15: 0 | BZ15: 24452 | CA15: 0 | CB15: 64165 | CC15: 0 | CD15: 0 | CE15: 217235 | CF15: 0 | CG15: 0 | CH15: 0 | CI15: 0 | CJ15: 0 | CK15: 0 | CL15: 100000 | CM15: 5075625 | CN15: 0 | CO15: 0 | CP15: 0 | CQ15: 0 | CR15: 0 | CS15: 5075625 | CT15: 341871 | CU15: 207168 | CV15: 0 | CW15: 0 | CX15: 8311 | CY15: 0 | CZ15: 0 | DA15: 0 | DB15: 0 | DC15: 0 | DD15: 0 | DE15: 0 | DF15: 0 | DG15: 0 | DH15: 614849 | DI15: 477748 | DJ15: 0 | DK15: 0 | DL15: 0 | DM15: 0 | DN15: 28201 | DO15: 0 | DP15: 0 | DQ15: 0 | DR15: 0 | DS15: 0 | DT15: 0 | DU15: 163010 | DV15: 0 | DW15: 0 | DX15: 0 | DY15: 0 | DZ15: 0 | EA15: =EA108 -> 0 | EB15: 116130 | EC15: 0 | ED15: 0 | EE15: 0 | EF15: 0 | EG15: 0 | EH15: 354625 | EI15: 0 | EJ15: 0 | EK15: 0 | EL15: 0 | EM15: 0 | EN15: 0 | EO15: 0 | EP15: 0 | EQ15: 0 | ER15: 132934 | ES15: 0 | ET15: 0 | EU15: 0 | EV15: 897 | EW15: 0 | EX15: 0 | EY15: 0 | EZ15: 0 | FA15: 0 | FB15: 0 | FC15: 333394 | FD15: 0 | FE15: 0 | FF15: 0 | FG15: 682813 | FH15: 0 | FI15: 121719 | FJ15: 0 | FK15: 0 | FL15: 0 | FM15: 82645 | FN15: 87066 | FO15: 0 | FP15: 0 | FQ15: 131031 | FR15: 305896 | FS15: 0 | FT15: 0 | FU15: 43409 | FV15: 15028 | FW15: 0 | FX15: 9790 | FY15: 385000 | FZ15: 34917 | GA15: 4678452 | GB15: 0 | GC15: 4678452
B16: Town/Village of Green Island
B17: Town of Guilderland | C17: =C110 -> 010335500000 | D17: =D110 -> Town of Guilderland | E17: Albany | F17: 12/31 | G17: 35303 | H17: 0 | I17: 57.9 | J17: 3752152566 | K17: 27917000 | L17: 8268629 | M17: 0 | N17: 0 | O17: 0 | P17: 17582 | Q17: 78098 | R17: 0 | S17: 0 | T17: 0 | U17: 9747640 | V17: 0 | W17: 0 | X17: 519166 | Y17: 0 | Z17: 0 | AA17: 0 | AB17: 23266 | AC17: 0 | AD17: 380546 | AE17: 13221 | AF17: 0 | AG17: 0 | AH17: 0 | AI17: 0 | AJ17: 1358645 | AK17: 23055 | AL17: 2085424 | AM17: 3356404 | AN17: 0 | AO17: 49763 | AP17: 0 | AQ17: 51000 | AR17: 0 | AS17: 0 | AT17: 0 | AU17: 0 | AV17: 0 | AW17: 0 | AX17: 0 | AY17: 0 | AZ17: 64107 | BA17: 206378 | BB17: 4974 | BC17: 254153 | BD17: 589547 | BE17: 0 | BF17: 131876 | BG17: 0 | BH17: 0 | BI17: 0 | BJ17: 0 | BK17: 229211 | BL17: 27452685 | BM17: 138161 | BN17: 744125 | BO17: 0 | BP17: =BP110 -> 0 | BQ17: 72874 | BR17: 0 | BS17: 574721 | BT17: 0 | BU17: 0 | BV17: 69627 | BW17: 0 | BX17: 0 | BY17: 0 | BZ17: 25203 | CA17: 0 | CB17: 0 | CC17: 0 | CD17: 0 | CE17: 586027 | CF17: 0 | CG17: 0 | CH17: 0 | CI17: 0 | CJ17: 0 | CK17: 0 | CL17: 0 | CM17: 29663422 | CN17: 0 | CO17: 0 | CP17: 0 | CQ17: 1233638 | CR17: 0 | CS17: 30897060 | CT17: 967974 | CU17: 1337472 | CV17: 0 | CW17: 0 | CX17: 287027 | CY17: 0 | CZ17: 0 | DA17: 0 | DB17: 0 | DC17: 0 | DD17: 0 | DE17: 0 | DF17: 0 | DG17: 567447 | DH17: 4732341 | DI17: 233632 | DJ17: 437588 | DK17: 0 | DL17: 0 | DM17: 0 | DN17: 376525 | DO17: 342933 | DP17: 0 | DQ17: 0 | DR17: 0 | DS17: 0 | DT17: 0 | DU17: 5428195 | DV17: 0 | DW17: 0 | DX17: 0 | DY17: 0 | DZ17: 0 | EA17: 434545 | EB17: =EB110 -> 104673 | EC17: 0 | ED17: 0 | EE17: 0 | EF17: 0 | EG17: 0 | EH17: 0 | EI17: 0 | EJ17: 0 | EK17: 0 | EL17: 38627 | EM17: 0 | EN17: 640315 | EO17: 8550 | EP17: 0 | EQ17: 0 | ER17: 1557260 | ES17: 0 | ET17: 0 | EU17: 50000 | EV17: 61324 | EW17: 0 | EX17: 1670 | EY17: 219726 | EZ17: 63451 | FA17: 0 | FB17: 0 | FC17: 2633803 | FD17: 0 | FE17: 0 | FF17: 0 | FG17: 2258563 | FH17: 0 | FI17: 877423 | FJ17: 0 | FK17: 151657 | FL17: 0 | FM17: 614984 | FN17: 471056 | FO17: 0 | FP17: 0 | FQ17: 941310 | FR17: 1766862 | FS17: 1704 | FT17: 0 | FU17: 255501 | FV17: 10618 | FW17: 0 | FX17: 1000 | FY17: 1923000 | FZ17: 1160298 | GA17: 30959053 | GB17: 1233638 | GC17: 32192690
B18: Village of Altamont | C18: =C111 -> 010435500120 | D18: Village of Altamont | E18: Albany | F18: 05/31 | G18: 1720 | H18: 0 | I18: 1.2 | J18: 126640029 | K18: 1260000 | L18: 272101 | M18: 0 | N18: 0 | O18: 0 | P18: 0 | Q18: 3135 | R18: 0 | S18: 0 | T18: 0 | U18: 513972 | V18: 19483 | W18: 0 | X18: 32127 | Y18: 0 | Z18: 0 | AA18: 0 | AB18: 1323 | AC18: 0 | AD18: 8210 | AE18: 280 | AF18: 0 | AG18: 40 | AH18: 0 | AI18: 0 | AJ18: 9525 | AK18: 21057 | AL18: 334613 | AM18: 369719 | AN18: 0 | AO18: 0 | AP18: 0 | AQ18: 97928 | AR18: 0 | AS18: 0 | AT18: 0 | AU18: 0 | AV18: 0 | AW18: 0 | AX18: 0 | AY18: 0 | AZ18: 0 | BA18: 1050 | BB18: 105526 | BC18: 13050 | BD18: 13395 | BE18: 0 | BF18: 32280 | BG18: 0 | BH18: 0 | BI18: 4683 | BJ18: 0 | BK18: 3792 | BL18: 1857289 | BM18: 10539 | BN18: 16465 | BO18: =BO111 -> 0 | BP18: 0 | BQ18: 0 | BR18: 0 | BS18: 22040 | BT18: 0 | BU18: 0 | BV18: 0 | BW18: 0 | BX18: 0 | BY18: 0 | BZ18: 23438 | CA18: 0 | CB18: 10452 | CC18: 0 | CD18: 0 | CE18: 0 | CF18: 0 | CG18: 0 | CH18: 0 | CI18: 0 | CJ18: 0 | CK18: 0 | CL18: 0 | CM18: 1940223 | CN18: 0 | CO18: 0 | CP18: 0 | CQ18: 0 | CR18: 0 | CS18: 1940223 | CT18: 134803 | CU18: 125832 | CV18: 0 | CW18: 0 | CX18: 6756 | CY18: 0 | CZ18: 0 | DA18: 0 | DB18: 0 | DC18: 0 | DD18: 0 | DE18: 0 | DF18: 0 | DG18: 0 | DH18: 179526 | DI18: 216759 | DJ18: 0 | DK18: 0 | DL18: 0 | DM18: 0 | DN18: 20964 | DO18: 0 | DP18: 0 | DQ18: 0 | DR18: 0 | DS18: 0 | DT18: 0 | DU18: 209150 | DV18: 0 | DW18: 0 | DX18: 0 | DY18: 0 | DZ18: 0 | EA18: =EA111 -> 0 | EB18: 23773 | EC18: 0 | ED18: 0 | EE18: 0 | EF18: 0 | EG18: 0 | EH18: 0 | EI18: 0 | EJ18: 0 | EK18: 0 | EL18: 0 | EM18: 0 | EN18: 0 | EO18: 0 | EP18: 0 | EQ18: 0 | ER18: 161705 | ES18: 0 | ET18: 1819 | EU18: 50000 | EV18: 4815 | EW18: 0 | EX18: 3000 | EY18: 0 | EZ18: 3468 | FA18: 0 | FB18: 0 | FC18: 193411 | FD18: 0 | FE18: 0 | FF18: 0 | FG18: 286765 | FH18: 28965 | FI18: 0 | FJ18: 0 | FK18: 0 | FL18: 0 | FM18: 21251 | FN18: 6807 | FO18: 0 | FP18: 0 | FQ18: 47191 | FR18: 56515 | FS18: 0 | FT18: 0 | FU18: 24687 | FV18: 5440 | FW18: 0 | FX18: 0 | FY18: 50000 | FZ18: 56656 | GA18: 1920058 | GB18: 0 | GC18: 1920058
B19: Town of Knox | C19: =C112 -> 010344300000 | D19: Town of Knox | E19: Albany | F19: 12/31 | G19: 2692 | H19: 0 | I19: 41.8 | J19: 265450406 | K19: 1139981 | L19: 241958 | M19: 0 | N19: 0 | O19: 0 | P19: 0 | Q19: 2949 | R19: 0 | S19: 0 | T19: 0 | U19: 798626 | V19: 0 | W19: 0 | X19: 30657 | Y19: 0 | Z19: 0 | AA19: 0 | AB19: 1201 | AC19: 0 | AD19: 0 | AE19: 0 | AF19: 0 | AG19: 0 | AH19: 0 | AI19: 0 | AJ19: 0 | AK19: 5382 | AL19: 0 | AM19: 0 | AN19: 0 | AO19: 0 | AP19: 0 | AQ19: 0 | AR19: 0 | AS19: 0 | AT19: 0 | AU19: 0 | AV19: 0 | AW19: 0 | AX19: 0 | AY19: 0 | AZ19: 0 | BA19: 1633 | BB19: 38962 | BC19: 0 | BD19: 380 | BE19: 0 | BF19: 0 | BG19: 0 | BH19: 0 | BI19: 0 | BJ19: 0 | BK19: 22960 | BL19: 1144707 | BM19: 16294 | BN19: 59581 | BO19: =BO112 -> 6266 | BP19: 0 | BQ19: 0 | BR19: 0 | BS19: 32070 | BT19: 0 | BU19: 0 | BV19: 1068 | BW19: 0 | BX19: 0 | BY19: 0 | BZ19: -92 | CA19: 0 | CB19: 0 | CC19: 0 | CD19: 0 | CE19: 0 | CF19: 0 | CG19: 0 | CH19: 0 | CI19: 0 | CJ19: 0 | CK19: 0 | CL19: 0 | CM19: 1259894 | CN19: 0 | CO19: 80000 | CP19: 0 | CQ19: 1000 | CR19: 0 | CS19: 1340894 | CT19: 877995 | CU19: 269426 | CV19: 0 | CW19: 0 | CX19: 15120 | CY19: 0 | CZ19: 0 | DA19: 0 | DB19: 0 | DC19: 0 | DD19: 0 | DE19: 0 | DF19: 0 | DG19: 0 | DH19: 1862 | DI19: 0 | DJ19: 93455 | DK19: 0 | DL19: 0 | DM19: 219 | DN19: 6957 | DO19: 1232 | DP19: 0 | DQ19: 0 | DR19: 0 | DS19: 0 | DT19: 0 | DU19: 518013 | DV19: 0 | DW19: 0 | DX19: 0 | DY19: 0 | DZ19: 0 | EA19: =EA112 -> 36789 | EB19: 3031 | EC19: 0 | ED19: 0 | EE19: 0 | EF19: 0 | EG19: 0 | EH19: 0 | EI19: 0 | EJ19: 0 | EK19: 0 | EL19: 0 | EM19: 0 | EN19: 0 | EO19: 0 | EP19: 0 | EQ19: 0 | ER19: 11756 | ES19: 0 | ET19: -55 | EU19: 7500 | EV19: 1159 | EW19: 0 | EX19: 0 | EY19: 1500 | EZ19: 0 | FA19: 0 | FB19: 0 | FC19: 0 | FD19: 0 | FE19: 0 | FF19: 0 | FG19: 0 | FH19: 0 | FI19: 95485 | FJ19: 0 | FK19: 0 | FL19: 0 | FM19: 43772 | FN19: 0 | FO19: 0 | FP19: 0 | FQ19: 38668 | FR19: 60572 | FS19: 360 | FT19: 0 | FU19: 31362 | FV19: 3822 | FW19: 0 | FX19: 0 | FY19: 80000 | FZ19: 30353 | GA19: 2230354 | GB19: 1000 | GC19: 2231354
B20: Town of New Scotland | C20: =C113 -> 010358100000 | D20: Town of New Scotland | E20: Albany | F20: 12/31 | G20: 8648 | H20: 0 | I20: 57.5 | J20: 972484595 | K20: 2125914 | L20: 2106030 | M20: 0 | N20: 200887 | O20: 0 | P20: 0 | Q20: 7397 | R20: 0 | S20: 0 | T20: 0 | U20: 1765304 | V20: 0 | W20: 0 | X20: 33096 | Y20: 0 | Z20: 0 | AA20: 0 | AB20: 4723 | AC20: 0 | AD20: 26556 | AE20: 1441 | AF20: 0 | AG20: 0 | AH20: 1912 | AI20: 0 | AJ20: 28889 | AK20: 5795 | AL20: 230961 | AM20: 110613 | AN20: 0 | AO20: 0 | AP20: 0 | AQ20: 0 | AR20: 0 | AS20: 0 | AT20: 0 | AU20: 0 | AV20: 0 | AW20: 0 | AX20: 0 | AY20: 0 | AZ20: 0 | BA20: 9306 | BB20: 12872 | BC20: 0 | BD20: 86668 | BE20: 0 | BF20: 0 | BG20: 0 | BH20: 0 | BI20: 6541 | BJ20: 0 | BK20: 169436 | BL20: 4808426 | BM20: 38473 | BN20: 219959 | BO20: =BO113 -> 0 | BP20: 0 | BQ20: 0 | BR20: 0 | BS20: 142840 | BT20: 0 | BU20: 0 | BV20: 0 | BW20: 0 | BX20: 0 | BY20: 0 | BZ20: 2554 | CA20: 0 | CB20: 0 | CC20: 0 | CD20: 90945 | CE20: 0 | CF20: 0 | CG20: 0 | CH20: 0 | CI20: 0 | CJ20: 0 | CK20: 0 | CL20: 35223 | CM20: 5338420 | CN20: 0 | CO20: 48800 | CP20: 0 | CQ20: 489 | CR20: 0 | CS20: 5387709 | CT20: 167345 | CU20: 552765 | CV20: 0 | CW20: 0 | CX20: 63677 | CY20: 0 | CZ20: 0 | DA20: 0 | DB20: 0 | DC20: 0 | DD20: 0 | DE20: 0 | DF20: 0 | DG20: 0 | DH20: 7825 | DI20: 479600 | DJ20: 337136 | DK20: 0 | DL20: 0 | DM20: 0 | DN20: 160508 | DO20: 1428 | DP20: 0 | DQ20: 0 | DR20: 0 | DS20: 0 | DT20: 0 | DU20: 1366504 | DV20: 0 | DW20: 0 | DX20: 0 | DY20: 0 | DZ20: 0 | EA20: =EA113 -> 158790 | EB20: 13831 | EC20: 290664 | ED20: 0 | EE20: 0 | EF20: 0 | EG20: 0 | EH20: 0 | EI20: 0 | EJ20: 0 | EK20: 0 | EL20: 0 | EM20: 0 | EN20: 0 | EO20: 0 | EP20: 0 | EQ20: 0 | ER20: 121124 | ES20: 0 | ET20: 28533 | EU20: 1000 | EV20: 2155 | EW20: 0 | EX20: 849 | EY20: 92023 | EZ20: 0 | FA20: 0 | FB20: 8348 | FC20: 293285 | FD20: 0 | FE20: 0 | FF20: 0 | FG20: 168055 | FH20: 0 | FI20: 447135 | FJ20: 0 | FK20: 0 | FL20: 0 | FM20: 95552 | FN20: 0 | FO20: 0 | FP20: 0 | FQ20: 114535 | FR20: 322339 | FS20: 3487 | FT20: 0 | FU20: 80759 | FV20: 0 | FW20: 0 | FX20: 42492 | FY20: 164713 | FZ20: 74321 | GA20: 5660779 | GB20: 489 | GC20: 5661267
B21: Village of Voorheesville | C21: =C114 -> 010458105090 | D21: Village of Voorheesville | E21: Albany | F21: 05/31 | G21: 2789 | H21: 0 | I21: 2.1 | J21: 238009756 | K21: 3735000 | L21: 259531 | M21: 0 | N21: 0 | O21: 0 | P21: 0 | Q21: 1156 | R21: 0 | S21: 0 | T21: 0 | U21: 821113 | V21: 34253 | W21: 0 | X21: 53546 | Y21: 0 | Z21: 0 | AA21: 0 | AB21: 1807 | AC21: 0 | AD21: 0 | AE21: 11968 | AF21: 0 | AG21: 0 | AH21: 0 | AI21: 0 | AJ21: 9135 | AK21: 5374 | AL21: 358615 | AM21: 197068 | AN21: 0 | AO21: 0 | AP21: 0 | AQ21: 0 | AR21: 0 | AS21: 0 | AT21: 0 | AU21: 0 | AV21: 0 | AW21: 0 | AX21: 0 | AY21: 0 | AZ21: 0 | BA21: 6762 | BB21: 0 | BC21: 15840 | BD21: 19457 | BE21: 0 | BF21: 3233 | BG21: 0 | BH21: 0 | BI21: 0 | BJ21: 0 | BK21: 1362 | BL21: 1800220 | BM21: 19271 | BN21: 38219 | BO21: =BO114 -> 0 | BP21: 0 | BQ21: 425 | BR21: 0 | BS21: 42599 | BT21: 0 | BU21: 0 | BV21: 0 | BW21: 0 | BX21: 0 | BY21: 0 | BZ21: 3980 | CA21: 0 | CB21: 2550 | CC21: 0 | CD21: 0 | CE21: 0 | CF21: 0 | CG21: 0 | CH21: 0 | CI21: 0 | CJ21: 0 | CK21: 0 | CL21: 0 | CM21: 1907264 | CN21: 0 | CO21: 0 | CP21: 0 | CQ21: 0 | CR21: 0 | CS21: 1907264 | CT21: 105268 | CU21: 136922 | CV21: 0 | CW21: 0 | CX21: 61651 | CY21: 0 | CZ21: 0 | DA21: 0 | DB21: 0 | DC21: 0 | DD21: 0 | DE21: 0 | DF21: 0 | DG21: 0 | DH21: 1840 | DI21: 36103 | DJ21: 32237 | DK21: 0 | DL21: 0 | DM21: 0 | DN21: 262 | DO21: 750 | DP21: 0 | DQ21: 0 | DR21: 0 | DS21: 0 | DT21: 0 | DU21: 355841 | DV21: 0 | DW21: 0 | DX21: 0 | DY21: 0 | DZ21: 0 | EA21: =EA114 -> 0 | EB21: 68361 | EC21: 0 | ED21: 0 | EE21: 0 | EF21: 0 | EG21: 0 | EH21: 0 | EI21: 0 | EJ21: 0 | EK21: 0 | EL21: 0 | EM21: 0 | EN21: 0 | EO21: 0 | EP21: 0 | EQ21: 0 | ER21: 16906 | ES21: 0 | ET21: 0 | EU21: 0 | EV21: 4661 | EW21: 0 | EX21: 0 | EY21: 0 | EZ21: 1025 | FA21: 0 | FB21: 48 | FC21: 153762 | FD21: 0 | FE21: 0 | FF21: 0 | FG21: 96315 | FH21: 4302 | FI21: 130451 | FJ21: 0 | FK21: 0 | FL21: 0 | FM21: 32020 | FN21: 0 | FO21: 0 | FP21: 35640 | FQ21: 34919 | FR21: 69911 | FS21: 0 | FT21: 0 | FU21: 28103 | FV21: 0 | FW21: 0 | FX21: 0 | FY21: 150000 | FZ21: 116005 | GA21: 1673303 | GB21: 0 | GC21: 1673303
B22: Town of Rensselaerville | C22: =C115 -> 010370600000 | D22: Town of Rensselaerville | E22: Albany | F22: 12/31 | G22: 1843 | H22: 0 | I22: 61.5 | J22: 260837670 | K22: 810241 | L22: 1194526 | M22: 0 | N22: 0 | O22: 0 | P22: 0 | Q22: 5133 | R22: 0 | S22: 0 | T22: 0 | U22: 501520 | V22: 0 | W22: 0 | X22: 2890 | Y22: 0 | Z22: 0 | AA22: 0 | AB22: 3224 | AC22: 0 | AD22: 0 | AE22: 30000 | AF22: 0 | AG22: 0 | AH22: 0 | AI22: 0 | AJ22: 0 | AK22: 6171 | AL22: 41191 | AM22: 34461 | AN22: 0 | AO22: 0 | AP22: 0 | AQ22: 0 | AR22: 0 | AS22: 0 | AT22: 0 | AU22: 0 | AV22: 0 | AW22: 0 | AX22: 0 | AY22: 0 | AZ22: 0 | BA22: 10546 | BB22: 3644 | BC22: 0 | BD22: 6585 | BE22: 0 | BF22: 0 | BG22: 0 | BH22: 0 | BI22: 2224 | BJ22: 0 | BK22: 14858 | BL22: 1856973 | BM22: 8808 | BN22: 15131 | BO22: =BO115 -> 0 | BP22: 0 | BQ22: 0 | BR22: 0 | BS22: 130543 | BT22: 0 | BU22: 0 | BV22: 0 | BW22: 0 | BX22: 0 | BY22: 0 | BZ22: 15000 | CA22: 0 | CB22: 0 | CC22: 0 | CD22: 0 | CE22: 0 | CF22: 0 | CG22: 0 | CH22: 0 | CI22: 0 | CJ22: 0 | CK22: 0 | CL22: 0 | CM22: 2026455 | CN22: 0 | CO22: 16800 | CP22: 0 | CQ22: 18478 | CR22: 0 | CS22: 2061733 | CT22: 123923 | CU22: 198864 | CV22: 0 | CW22: 0 | CX22: 6288 | CY22: 0 | CZ22: 0 | DA22: 0 | DB22: 0 | DC22: 0 | DD22: 0 | DE22: 0 | DF22: 0 | DG22: 0 | DH22: 1300 | DI22: 162982 | DJ22: 41000 | DK22: 0 | DL22: 0 | DM22: 0 | DN22: 30420 | DO22: 580 | DP22: 0 | DQ22: 0 | DR22: 0 | DS22: 39879 | DT22: 0 | DU22: 849792 | DV22: 0 | DW22: 0 | DX22: 0 | DY22: 0 | DZ22: 0 | EA22: =EA115 -> 197054 | EB22: 7892 | EC22: 8629 | ED22: 0 | EE22: 0 | EF22: 0 | EG22: 0 | EH22: 0 | EI22: 0 | EJ22: 0 | EK22: 0 | EL22: 0 | EM22: 0 | EN22: 0 | EO22: 0 | EP22: 0 | EQ22: 0 | ER22: 22517 | ES22: 24921 | ET22: 3369 | EU22: 25000 | EV22: 500 | EW22: 0 | EX22: 7900 | EY22: 0 | EZ22: 0 | FA22: 0 | FB22: 0 | FC22: 23241 | FD22: 0 | FE22: 0 | FF22: 0 | FG22: 10309 | FH22: 0 | FI22: 81310 | FJ22: 0 | FK22: 0 | FL22: 0 | FM22: 45486 | FN22: 0 | FO22: 0 | FP22: 0 | FQ22: 47293 | FR22: 196828 | FS22: 1315 | FT22: 0 | FU22: 41442 | FV22: 0 | FW22: 0 | FX22: 0 | FY22: 45601 | FZ22: 2029 | GA22: 2247664 | GB22: 18478 | GC22: 2266142
B23: City of Watervliet | C23: =C116 -> 010260000000 | D23: City of Watervliet | E23: Albany | F23: 12/31 | G23: 10254 | H23: 0 | I23: 1.4 | J23: 389563501 | K23: 7199463 | L23: 3824057 | M23: 0 | N23: 0 | O23: 0 | P23: 130013 | Q23: 16243 | R23: 0 | S23: 0 | T23: 0 | U23: 3079552 | V23: 161549 | W23: 0 | X23: 162368 | Y23: 0 | Z23: 0 | AA23: 0 | AB23: 166958 | AC23: 0 | AD23: 0 | AE23: 272623 | AF23: 0 | AG23: 0 | AH23: 0 | AI23: 127846 | AJ23: 2043 | AK23: 21640 | AL23: 2901331 | AM23: 1059618 | AN23: 0 | AO23: 0 | AP23: 0 | AQ23: 96523 | AR23: 0 | AS23: 0 | AT23: 0 | AU23: 0 | AV23: 0 | AW23: 0 | AX23: 0 | AY23: 235255 | AZ23: 0 | BA23: 8997 | BB23: 0 | BC23: 0 | BD23: 0 | BE23: 0 | BF23: 0 | BG23: 0 | BH23: 0 | BI23: 0 | BJ23: 0 | BK23: 203285 | BL23: 12469901 | BM23: 1234891 | BN23: 108556 | BO23: =BO116 -> 0 | BP23: 0 | BQ23: 0 | BR23: 0 | BS23: 0 | BT23: 0 | BU23: 0 | BV23: 0 | BW23: 0 | BX23: 0 | BY23: 0 | BZ23: 5090986 | CA23: 0 | CB23: 0 | CC23: 0 | CD23: 0 | CE23: 0 | CF23: 0 | CG23: 0 | CH23: 0 | CI23: 0 | CJ23: 0 | CK23: 0 | CL23: 246864 | CM23: 19151198 | CN23: 0 | CO23: 69500 | CP23: 0 | CQ23: 1147128 | CR23: 0 | CS23: 20367826 | CT23: 651944 | CU23: 683684 | CV23: 0 | CW23: 0 | CX23: 6794 | CY23: 2200 | CZ23: 0 | DA23: 0 | DB23: 0 | DC23: 0 | DD23: 0 | DE23: 0 | DF23: 0 | DG23: 0 | DH23: 2479748 | DI23: 1961407 | DJ23: 0 | DK23: 0 | DL23: 0 | DM23: 0 | DN23: 115263 | DO23: 32634 | DP23: 0 | DQ23: 0 | DR23: 0 | DS23: 0 | DT23: 0 | DU23: 5491110 | DV23: 0 | DW23: 0 | DX23: 0 | DY23: 0 | DZ23: 0 | EA23: =EA116 -> 0 | EB23: 158214 | EC23: 0 | ED23: 0 | EE23: 0 | EF23: 0 | EG23: 0 | EH23: 0 | EI23: 0 | EJ23: 0 | EK23: 0 | EL23: 0 | EM23: 130800 | EN23: 468305 | EO23: 0 | EP23: 0 | EQ23: 0 | ER23: 201067 | ES23: 0 | ET23: 20769 | EU23: 31000 | EV23: 9999 | EW23: 0 | EX23: 0 | EY23: 23500 | EZ23: 3953 | FA23: 0 | FB23: 0 | FC23: 1760396 | FD23: 0 | FE23: 0 | FF23: 0 | FG23: 618465 | FH23: 0 | FI23: 466234 | FJ23: 0 | FK23: 0 | FL23: 0 | FM23: 877810 | FN23: 0 | FO23: 0 | FP23: 0 | FQ23: 461014 | FR23: 1603721 | FS23: 0 | FT23: 12758 | FU23: 178718 | FV23: 900 | FW23: 0 | FX23: 0 | FY23: 634500 | FZ23: 297537 | GA23: 19384444 | GB23: 1147128 | GC23: 20531572
B24: Town of Westerlo | C24: =C117 -> 010389000000 | D24: Town of Westerlo | E24: Albany | F24: 12/31 | G24: 3361 | H24: 0 | I24: 57.8 | J24: 334238875 | K24: 1180000 | L24: 994007 | M24: 0 | N24: 0 | O24: 0 | P24: 0 | Q24: 4604 | R24: 0 | S24: 0 | T24: 0 | U24: 1045726 | V24: 0 | W24: 0 | X24: 8895 | Y24: 0 | Z24: 0 | AA24: 0 | AB24: 3433 | AC24: 0 | AD24: 0 | AE24: 0 | AF24: 0 | AG24: 0 | AH24: 0 | AI24: 0 | AJ24: 2364 | AK24: 3901 | AL24: 92872 | AM24: 2063 | AN24: 0 | AO24: 0 | AP24: 0 | AQ24: 0 | AR24: 0 | AS24: 0 | AT24: 0 | AU24: 0 | AV24: 0 | AW24: 0 | AX24: 0 | AY24: 0 | AZ24: 0 | BA24: 2517 | BB24: 11256 | BC24: 0 | BD24: 14394 | BE24: 0 | BF24: 8153 | BG24: 0 | BH24: 0 | BI24: 1555 | BJ24: 0 | BK24: 1198 | BL24: 2196938 | BM24: 677 | BN24: 62480 | BO24: =BO117 -> 0 | BP24: 0 | BQ24: 0 | BR24: 0 | BS24: 137424 | BT24: 0 | BU24: 0 | BV24: 33800 | BW24: 0 | BX24: 0 | BY24: 0 | BZ24: 0 | CA24: 0 | CB24: 0 | CC24: 0 | CD24: 0 | CE24: 0 | CF24: 0 | CG24: 0 | CH24: 0 | CI24: 0 | CJ24: 0 | CK24: 0 | CL24: 0 | CM24: 2431319 | CN24: 0 | CO24: 0 | CP24: 0 | CQ24: 4785 | CR24: 0 | CS24: 2436104 | CT24: 327847 | CU24: 260941 | CV24: 0 | CW24: 0 | CX24: 33227 | CY24: 0 | CZ24: 0 | DA24: 0 | DB24: 0 | DC24: 0 | DD24: 0 | DE24: 0 | DF24: 0 | DG24: 992 | DH24: 0 | DI24: 180707 | DJ24: 72700 | DK24: 0 | DL24: 0 | DM24: 0 | DN24: 30905 | DO24: 0 | DP24: 0 | DQ24: 0 | DR24: 0 | DS24: 0 | DT24: 0 | DU24: 683847 | DV24: 0 | DW24: 0 | DX24: 0 | DY24: 0 | DZ24: 0 | EA24: =EA117 -> 86418 | EB24: 8399 | EC24: 0 | ED24: 0 | EE24: 0 | EF24: 0 | EG24: 0 | EH24: 0 | EI24: 0 | EJ24: 0 | EK24: 0 | EL24: 0 | EM24: 0 | EN24: 0 | EO24: 0 | EP24: 0 | EQ24: 0 | ER24: 165438 | ES24: 0 | ET24: -920 | EU24: 63440 | EV24: 1924 | EW24: 0 | EX24: 0 | EY24: 0 | EZ24: 0 | FA24: 0 | FB24: 0 | FC24: 55625 | FD24: 0 | FE24: 0 | FF24: 0 | FG24: 0 | FH24: 0 | FI24: 176303 | FJ24: 0 | FK24: 0 | FL24: 0 | FM24: 56353 | FN24: 0 | FO24: 0 | FP24: 0 | FQ24: 65086 | FR24: 212498 | FS24: 759 | FT24: 0 | FU24: 30712 | FV24: 0 | FW24: 0 | FX24: 9519 | FY24: 89500 | FZ24: 12216 | GA24: 2624436 | GB24: 4785 | GC24: 2629221
B25: Rensselaer County | C25: =C118 -> 380100000000 | D25: County of Rensselaer | E25: Rensselaer | F25: 12/31 | G25: 159429 | H25: 0 | I25: 652.4 | J25: 10505904197 | K25: 172578257 | L25: 54954180 | M25: 0 | N25: 0 | O25: 0 | P25: 2024904 | Q25: 3098765 | R25: 3323 | S25: 0 | T25: 68937650 | U25: 0 | V25: 0 | W25: 362700 | X25: 0 | Y25: 574142 | Z25: 1568826 | AA25: 0 | AB25: 3145312 | AC25: 0 | AD25: 454816 | AE25: 43658379 | AF25: 0 | AG25: 0 | AH25: 3824855 | AI25: 0 | AJ25: 0 | AK25: 159775 | AL25: 0 | AM25: 5025546 | AN25: 0 | AO25: 2061172 | AP25: 10435308 | AQ25: 833221 | AR25: 0 | AS25: 0 | AT25: 0 | AU25: 0 | AV25: 294167 | AW25: 0 | AX25: 0 | AY25: 4626623 | AZ25: 0 | BA25: 424267 | BB25: 34575 | BC25: 2051453 | BD25: 384998 | BE25: 4808 | BF25: 2388858 | BG25: 0 | BH25: 430199 | BI25: 184558 | BJ25: 6136 | BK25: 19585198 | BL25: 231538716 | BM25: 0 | BN25: 0 | BO25: =BO118 -> 1157039 | BP25: 13199623 | BQ25: 1637849 | BR25: 8283390 | BS25: 2226726 | BT25: 17804120 | BU25: 584885 | BV25: 194720 | BW25: 810761 | BX25: 0 | BY25: 0 | BZ25: 33827 | CA25: 0 | CB25: 75000 | CC25: 7141702 | CD25: 990690 | CE25: 16150351 | CF25: 1628205 | CG25: 161566 | CH25: 682350 | CI25: 0 | CJ25: 0 | CK25: 0 | CL25: 380841 | CM25: 304682362 | CN25: 13510618 | CO25: 0 | CP25: 0 | CQ25: 2873269 | CR25: 0 | CS25: 321066250 | CT25: 9350769 | CU25: 10307321 | CV25: 24231050 | CW25: 1548595 | CX25: 1075841 | CY25: 101185 | CZ25: 0 | DA25: 0 | DB25: 0 | DC25: 0 | DD25: 0 | DE25: 14511806 | DF25: 13453321 | DG25: 3468660 | DH25: 4154516 | DI25: 10163 | DJ25: 0 | DK25: 20432977 | DL25: 0 | DM25: 1194972 | DN25: 0 | DO25: 622201 | DP25: 4705174 | DQ25: 10378700 | DR25: 913650 | DS25: 27602158 | DT25: 0 | DU25: 7368087 | DV25: 0 | DW25: 543702 | DX25: 0 | DY25: 0 | DZ25: 0 | EA25: =EA118 -> 1556577 | EB25: 0 | EC25: 0 | ED25: 14591688 | EE25: 23967687 | EF25: 32482117 | EG25: 9039732 | EH25: 0 | EI25: 1027741 | EJ25: 2008385 | EK25: 0 | EL25: 845563 | EM25: 0 | EN25: 794236 | EO25: 95130 | EP25: 0 | EQ25: 0 | ER25: 0 | ES25: 0 | ET25: 427844 | EU25: 0 | EV25: 0 | EW25: 0 | EX25: 273958 | EY25: 2973266 | EZ25: 68164 | FA25: 0 | FB25: 0 | FC25: 0 | FD25: 0 | FE25: 0 | FF25: 0 | FG25: 3589838 | FH25: 0 | FI25: 0 | FJ25: 0 | FK25: 0 | FL25: 586 | FM25: 438455 | FN25: 0 | FO25: 0 | FP25: 0 | FQ25: 312634 | FR25: 17796901 | FS25: 0 | FT25: 0 | FU25: 1694991 | FV25: 181980 | FW25: 0 | FX25: 27815213 | FY25: 6605009 | FZ25: 7172797 | GA25: 311735339 | GB25: 2873269 | GC25: 314608608
B26: Village of Nassau | C26: =C119 -> 380456103330 | D26: Village of Nassau | E26: Rensselaer | F26: 05/31 | G26: 1133 | H26: 0 | I26: 0.7 | J26: 69949308 | K26: 181350 | L26: 336290 | M26: 0 | N26: 0 | O26: 0 | P26: 763 | Q26: 8261 | R26: 0 | S26: 0 | T26: 0 | U26: 63338 | V26: 0 | W26: 0 | X26: 15538 | Y26: 0 | Z26: 0 | AA26: 0 | AB26: 273 | AC26: 0 | AD26: 40 | AE26: 0 | AF26: 0 | AG26: 0 | AH26: 0 | AI26: 0 | AJ26: 25 | AK26: 2959 | AL26: 170797 | AM26: 75632 | AN26: 0 | AO26: 0 | AP26: 0 | AQ26: 0 | AR26: 0 | AS26: 0 | AT26: 0 | AU26: 0 | AV26: 0 | AW26: 0 | AX26: 0 | AY26: 0 | AZ26: 0 | BA26: 2213 | BB26: 0 | BC26: 0 | BD26: 41826 | BE26: 0 | BF26: 0 | BG26: 0 | BH26: 0 | BI26: 0 | BJ26: 0 | BK26: 3195 | BL26: 721150 | BM26: 11456 | BN26: 11522 | BO26: =BO119 -> 0 | BP26: 0 | BQ26: 22670 | BR26: 0 | BS26: 27534 | BT26: 0 | BU26: 0 | BV26: 0 | BW26: 0 | BX26: 0 | BY26: 0 | BZ26: 0 | CA26: 0 | CB26: 6334 | CC26: 0 | CD26: 0 | CE26: 0 | CF26: 0 | CG26: 0 | CH26: 0 | CI26: 0 | CJ26: 0 | CK26: 0 | CL26: 0 | CM26: 800666 | CN26: 34600 | CO26: 0 | CP26: 0 | CQ26: 30300 | CR26: 0 | CS26: 865566 | CT26: 65962 | CU26: 97227 | CV26: 0 | CW26: 0 | CX26: 6572 | CY26: 0 | CZ26: 0 | DA26: 0 | DB26: 0 | DC26: 0 | DD26: 0 | DE26: 0 | DF26: 0 | DG26: 0 | DH26: 145146 | DI26: 0 | DJ26: 0 | DK26: 0 | DL26: 0 | DM26: 0 | DN26: 13940 | DO26: 0 | DP26: 0 | DQ26: 0 | DR26: 0 | DS26: 0 | DT26: 0 | DU26: 77642 | DV26: 0 | DW26: 0 | DX26: 0 | DY26: 0 | DZ26: 0 | EA26: =EA119 -> 0 | EB26: 18626 | EC26: 27536 | ED26: 0 | EE26: 0 | EF26: 0 | EG26: 0 | EH26: 0 | EI26: 0 | EJ26: 0 | EK26: 0 | EL26: 0 | EM26: 0 | EN26: 0 | EO26: 0 | EP26: 0 | EQ26: 0 | ER26: 3486 | ES26: 0 | ET26: 0 | EU26: 0 | EV26: 1087 | EW26: 0 | EX26: 215 | EY26: 0 | EZ26: 0 | FA26: 0 | FB26: 0 | FC26: 126761 | FD26: 0 | FE26: 0 | FF26: 0 | FG26: 0 | FH26: 0 | FI26: 86363 | FJ26: 0 | FK26: 0 | FL26: 0 | FM26: 9258 | FN26: 12679 | FO26: 0 | FP26: 0 | FQ26: 24199 | FR26: 0 | FS26: 0 | FT26: 0 | FU26: 7685 | FV26: 0 | FW26: 0 | FX26: 0 | FY26: 51650 | FZ26: 7247 | GA26: 783281 | GB26: 30300 | GC26: 813581
B27: Village of Valley Falls | C27: =C120 -> 380467005020 | D27: Village of Valley Falls | E27: Rensselaer | F27: 05/31 | G27: 466 | H27: 0 | I27: 0.5 | J27: 27333975 | K27: 1880534 | L27: 49500 | M27: 0 | N27: 0 | O27: 0 | P27: 0 | Q27: 1210 | R27: 0 | S27: 0 | T27: 0 | U27: 25121 | V27: 4616 | W27: 0 | X27: 4151 | Y27: 0 | Z27: 0 | AA27: 0 | AB27: 0 | AC27: 0 | AD27: 0 | AE27: 0 | AF27: 0 | AG27: 0 | AH27: 0 | AI27: 0 | AJ27: 0 | AK27: 0 | AL27: 0 | AM27: 106413 | AN27: 0 | AO27: 0 | AP27: 0 | AQ27: 68000 | AR27: 0 | AS27: 0 | AT27: 0 | AU27: 7000 | AV27: 0 | AW27: 0 | AX27: 0 | AY27: 0 | AZ27: 0 | BA27: 44 | BB27: 0 | BC27: 0 | BD27: 0 | BE27: 0 | BF27: 0 | BG27: 0 | BH27: 0 | BI27: 4310 | BJ27: 0 | BK27: 18355 | BL27: 288720 | BM27: 8818 | BN27: 3362 | BO27: =BO120 -> 0 | BP27: 0 | BQ27: 0 | BR27: 0 | BS27: 0 | BT27: 0 | BU27: 0 | BV27: 6333 | BW27: 0 | BX27: 0 | BY27: 0 | BZ27: 1000 | CA27: 0 | CB27: 0 | CC27: 0 | CD27: 0 | CE27: 0 | CF27: 0 | CG27: 0 | CH27: 0 | CI27: 0 | CJ27: 0 | CK27: 0 | CL27: 0 | CM27: 308233 | CN27: 0 | CO27: 0 | CP27: 0 | CQ27: 4949 | CR27: 0 | CS27: 313182 | CT27: 38870 | CU27: 12447 | CV27: 0 | CW27: 0 | CX27: 8226 | CY27: 0 | CZ27: 0 | DA27: 0 | DB27: 0 | DC27: 0 | DD27: 0 | DE27: 0 | DF27: 0 | DG27: 0 | DH27: 150 | DI27: 37798 | DJ27: 1000 | DK27: 0 | DL27: 0 | DM27: 0 | DN27: 1600 | DO27: 0 | DP27: 0 | DQ27: 0 | DR27: 0 | DS27: 0 | DT27: 0 | DU27: 12446 | DV27: 0 | DW27: 0 | DX27: 0 | DY27: 0 | DZ27: 0 | EA27: =EA120 -> 0 | EB27: 11649 | EC27: 0 | ED27: 0 | EE27: 0 | EF27: 0 | EG27: 0 | EH27: 0 | EI27: 0 | EJ27: 0 | EK27: 0 | EL27: 0 | EM27: 0 | EN27: 0 | EO27: 0 | EP27: 0 | EQ27: 0 | ER27: 178 | ES27: 0 | ET27: 17668 | EU27: 1500 | EV27: 0 | EW27: 0 | EX27: 0 | EY27: 0 | EZ27: 6756 | FA27: 0 | FB27: 44071 | FC27: 0 | FD27: 0 | FE27: 0 | FF27: 0 | FG27: 0 | FH27: 0 | FI27: 2222 | FJ27: 0 | FK27: 0 | FL27: 0 | FM27: 0 | FN27: 0 | FO27: 0 | FP27: 0 | FQ27: 2592 | FR27: 0 | FS27: 0 | FT27: 0 | FU27: 0 | FV27: 0 | FW27: 0 | FX27: 0 | FY27: 83498 | FZ27: 9102 | GA27: 291773 | GB27: 4949 | GC27: 296722
B28: Town of Berlin | C28: =C121 -> 380306700000 | D28: Town of Berlin | E28: Rensselaer | F28: 12/31 | G28: 1880 | H28: 0 | I28: 59.6 | J28: 169380954 | K28: 0 | L28: 379476 | M28: 0 | N28: 0 | O28: 0 | P28: 0 | Q28: 2217 | R28: 0 | S28: 0 | T28: 0 | U28: 164826 | V28: 0 | W28: 0 | X28: 0 | Y28: 0 | Z28: 0 | AA28: 0 | AB28: 973 | AC28: 0 | AD28: 0 | AE28: 0 | AF28: 0 | AG28: 0 | AH28: 0 | AI28: 0 | AJ28: 0 | AK28: 515 | AL28: 69401 | AM28: 126201 | AN28: 0 | AO28: 0 | AP28: 0 | AQ28: 0 | AR28: 0 | AS28: 0 | AT28: 0 | AU28: 0 | AV28: 0 | AW28: 0 | AX28: 0 | AY28: 0 | AZ28: 0 | BA28: 86 | BB28: 2325 | BC28: 0 | BD28: 11563 | BE28: 0 | BF28: 0 | BG28: 0 | BH28: 0 | BI28: 0 | BJ28: 0 | BK28: 3549 | BL28: 761132 | BM28: 9395 | BN28: 21076 | BO28: =BO121 -> 0 | BP28: 0 | BQ28: 0 | BR28: 0 | BS28: 83921 | BT28: 0 | BU28: 0 | BV28: 1890 | BW28: 0 | BX28: 0 | BY28: 0 | BZ28: 0 | CA28: 0 | CB28: 0 | CC28: 0 | CD28: 0 | CE28: 0 | CF28: 0 | CG28: 0 | CH28: 0 | CI28: 0 | CJ28: 0 | CK28: 0 | CL28: 0 | CM28: 877414 | CN28: 0 | CO28: 0 | CP28: 0 | CQ28: 0 | CR28: 0 | CS28: 877414 | CT28: 28923 | CU28: 91347 | CV28: 0 | CW28: 0 | CX28: 1784 | CY28: 0 | CZ28: 0 | DA28: 0 | DB28: 0 | DC28: 0 | DD28: 0 | DE28: 0 | DF28: 0 | DG28: 0 | DH28: 0 | DI28: 0 | DJ28: 0 | DK28: 0 | DL28: 0 | DM28: 0 | DN28: 15121 | DO28: 200 | DP28: 0 | DQ28: 0 | DR28: 0 | DS28: 0 | DT28: 0 | DU28: 370487 | DV28: 0 | DW28: 0 | DX28: 0 | DY28: 0 | DZ28: 0 | EA28: =EA121 -> 47684 | EB28: 9829 | EC28: 0 | ED28: 0 | EE28: 0 | EF28: 0 | EG28: 0 | EH28: 0 | EI28: 0 | EJ28: 0 | EK28: 0 | EL28: 0 | EM28: 0 | EN28: 0 | EO28: 0 | EP28: 0 | EQ28: 0 | ER28: 0 | ES28: 0 | ET28: 9073 | EU28: 7250 | EV28: 2403 | EW28: 0 | EX28: 425 | EY28: 5531 | EZ28: -1612 | FA28: 0 | FB28: 0 | FC28: 38497 | FD28: 0 | FE28: 0 | FF28: 0 | FG28: 0 | FH28: 0 | FI28: 111059 | FJ28: 0 | FK28: 0 | FL28: 0 | FM28: 15718 | FN28: 0 | FO28: 0 | FP28: 0 | FQ28: 22655 | FR28: 25564 | FS28: 0 | FT28: 0 | FU28: 18172 | FV28: 0 | FW28: 0 | FX28: 0 | FY28: 13801 | FZ28: 0 | GA28: 833911 | GB28: 0 | GC28: 833911
B29: Town of Brunswick | C29: =C122 -> 380309900000 | D29: Town of Brunswick | E29: Rensselaer | F29: 12/31 | G29: 11941 | H29: 0 | I29: 44.4 | J29: 1013344648 | K29: 2385000 | L29: 3377741 | M29: 0 | N29: 0 | O29: 0 | P29: 10320 | Q29: 20015 | R29: 0 | S29: 0 | T29: 0 | U29: 1016116 | V29: 0 | W29: 0 | X29: 98478 | Y29: 0 | Z29: 0 | AA29: 0 | AB29: 6462 | AC29: 0 | AD29: 144653 | AE29: 0 | AF29: 0 | AG29: 0 | AH29: 0 | AI29: 0 | AJ29: 43552 | AK29: 227992 | AL29: 917701 | AM29: 125008 | AN29: 0 | AO29: 0 | AP29: 0 | AQ29: 0 | AR29: 0 | AS29: 28199 | AT29: 0 | AU29: 0 | AV29: 0 | AW29: 0 | AX29: 0 | AY29: 0 | AZ29: 0 | BA29: 24682 | BB29: 32000 | BC29: 0 | BD29: 130 | BE29: 0 | BF29: 8776 | BG29: 0 | BH29: 0 | BI29: 0 | BJ29: 0 | BK29: 9842 | BL29: 6091667 | BM29: 79794 | BN29: 255456 | BO29: =BO122 -> 0 | BP29: 0 | BQ29: 0 | BR29: 0 | BS29: 164576 | BT29: 0 | BU29: 0 | BV29: 6414 | BW29: 0 | BX29: 0 | BY29: 0 | BZ29: 0 | CA29: 0 | CB29: 0 | CC29: 0 | CD29: 0 | CE29: 0 | CF29: 0 | CG29: 0 | CH29: 0 | CI29: 29988 | CJ29: 0 | CK29: 0 | CL29: 0 | CM29: 6627895 | CN29: 0 | CO29: 0 | CP29: 0 | CQ29: 0 | CR29: 0 | CS29: 6627895 | CT29: 323941 | CU29: 685197 | CV29: 0 | CW29: 0 | CX29: 67659 | CY29: 0 | CZ29: 0 | DA29: 0 | DB29: 0 | DC29: 0 | DD29: 0 | DE29: 0 | DF29: 0 | DG29: 0 | DH29: 1500 | DI29: 946719 | DJ29: 20400 | DK29: 0 | DL29: 0 | DM29: 0 | DN29: 89577 | DO29: 2500 | DP29: 0 | DQ29: 0 | DR29: 0 | DS29: 0 | DT29: 0 | DU29: 1139367 | DV29: 0 | DW29: 0 | DX29: 0 | DY29: 0 | DZ29: 0 | EA29: =EA122 -> 433562 | EB29: 75849 | EC29: 0 | ED29: 0 | EE29: 0 | EF29: 0 | EG29: 0 | EH29: 0 | EI29: 0 | EJ29: 0 | EK29: 0 | EL29: 0 | EM29: 146488 | EN29: 0 | EO29: 0 | EP29: 0 | EQ29: 0 | ER29: 0 | ES29: 0 | ET29: 239824 | EU29: 101764 | EV29: 19121 | EW29: 0 | EX29: 569 | EY29: 9999 | EZ29: 0 | FA29: 0 | FB29: 4918 | FC29: 1211908 | FD29: 0 | FE29: 0 | FF29: 0 | FG29: 17410 | FH29: 0 | FI29: 92216 | FJ29: 0 | FK29: 0 | FL29: 0 | FM29: 132891 | FN29: 0 | FO29: 0 | FP29: 0 | FQ29: 137847 | FR29: 264175 | FS29: 4267 | FT29: 4110 | FU29: 82468 | FV29: 162 | FW29: 0 | FX29: 54323 | FY29: 155000 | FZ29: 88166 | GA29: 6553897 | GB29: 0 | GC29: 6553897
B30: Town of East Greenbush | C30: =C123 -> 380324900000 | D30: Town of East Greenbush | E30: Rensselaer | F30: 12/31 | G30: 16473 | H30: 0 | I30: 24 | J30: 1592115009 | K30: 8026820 | L30: 8331228 | M30: 0 | N30: 0 | O30: 0 | P30: 327371 | Q30: 24523 | R30: 0 | S30: 0 | T30: 0 | U30: 1618667 | V30: 0 | W30: 0 | X30: 199901 | Y30: 0 | Z30: 0 | AA30: 0 | AB30: 16672 | AC30: 0 | AD30: 172313 | AE30: 0 | AF30: 0 | AG30: 0 | AH30: 0 | AI30: 0 | AJ30: 72632 | AK30: 101658 | AL30: 2046061 | AM30: 1086535 | AN30: 0 | AO30: 0 | AP30: 0 | AQ30: 2005 | AR30: 0 | AS30: 14168 | AT30: 0 | AU30: 0 | AV30: 0 | AW30: 0 | AX30: 180000 | AY30: 0 | AZ30: 45231 | BA30: 56137 | BB30: 23695 | BC30: 42 | BD30: 326418 | BE30: 61250 | BF30: 23730 | BG30: 0 | BH30: 0 | BI30: 0 | BJ30: 11314 | BK30: 784040 | BL30: 15525590 | BM30: 74881 | BN30: 566452 | BO30: =BO123 -> 0 | BP30: 0 | BQ30: 2622 | BR30: 0 | BS30: 103906 | BT30: 0 | BU30: 0 | BV30: 0 | BW30: 0 | BX30: 0 | BY30: 0 | BZ30: 84606 | CA30: 0 | CB30: 0 | CC30: 0 | CD30: 0 | CE30: 0 | CF30: 0 | CG30: 0 | CH30: 0 | CI30: 0 | CJ30: 0 | CK30: 0 | CL30: 0 | CM30: 16358057 | CN30: 0 | CO30: 583445 | CP30: 0 | CQ30: 0 | CR30: 0 | CS30: 16941502 | CT30: 870872 | CU30: 950703 | CV30: 0 | CW30: 0 | CX30: 303061 | CY30: 48821 | CZ30: 0 | DA30: 0 | DB30: 0 | DC30: 0 | DD30: 0 | DE30: 0 | DF30: 0 | DG30: 0 | DH30: 1992743 | DI30: 104969 | DJ30: 488688 | DK30: 0 | DL30: 0 | DM30: 0 | DN30: 177305 | DO30: 6739 | DP30: 0 | DQ30: 0 | DR30: 0 | DS30: 0 | DT30: 0 | DU30: 1710380 | DV30: 0 | DW30: 0 | DX30: 0 | DY30: 0 | DZ30: 0 | EA30: =EA123 -> 404128 | EB30: 167337 | EC30: 0 | ED30: 0 | EE30: 0 | EF30: 0 | EG30: 0 | EH30: 0 | EI30: 0 | EJ30: 0 | EK30: 0 | EL30: 0 | EM30: 0 | EN30: 0 | EO30: 0 | EP30: 0 | EQ30: 0 | ER30: 206456 | ES30: 0 | ET30: 108597 | EU30: 0 | EV30: 5065 | EW30: 0 | EX30: 3000 | EY30: 898 | EZ30: 720 | FA30: 0 | FB30: 0 | FC30: 2138415 | FD30: 0 | FE30: 0 | FF30: 0 | FG30: 1340677 | FH30: 0 | FI30: 272582 | FJ30: 0 | FK30: 0 | FL30: 401212 | FM30: 250328 | FN30: 371739 | FO30: 0 | FP30: 0 | FQ30: 436651 | FR30: 1349578 | FS30: 0 | FT30: 0 | FU30: 178081 | FV30: 46772 | FW30: 0 | FX30: 77509 | FY30: 1205083 | FZ30: 171384 | GA30: 15790493 | GB30: 0 | GC30: 15790493
B31: Town of Grafton | C31: =C124 -> 380333500000 | D31: Town of Grafton | E31: Rensselaer | F31: 12/31 | G31: 2130 | H31: 0 | I31: 44.7 | J31: 200300759 | K31: 436900 | L31: 636740 | M31: 0 | N31: 0 | O31: 0 | P31: 0 | Q31: 1326 | R31: 0 | S31: 0 | T31: 0 | U31: 209402 | V31: 0 | W31: 0 | X31: 0 | Y31: 0 | Z31: 0 | AA31: 0 | AB31: 1310 | AC31: 0 | AD31: 0 | AE31: 0 | AF31: 0 | AG31: 0 | AH31: 0 | AI31: 0 | AJ31: 0 | AK31: 5749 | AL31: 0 | AM31: 19315 | AN31: 0 | AO31: 0 | AP31: 0 | AQ31: 0 | AR31: 0 | AS31: 0 | AT31: 0 | AU31: 0 | AV31: 0 | AW31: 0 | AX31: 0 | AY31: 0 | AZ31: 0 | BA31: 739 | BB31: 50 | BC31: 8300 | BD31: 17840 | BE31: 0 | BF31: 1030 | BG31: 0 | BH31: 0 | BI31: 0 | BJ31: 0 | BK31: 42113 | BL31: 943914 | BM31: 8413 | BN31: 42143 | BO31: =BO124 -> 0 | BP31: 0 | BQ31: 0 | BR31: 0 | BS31: 88834 | BT31: 0 | BU31: 0 | BV31: 1852 | BW31: 0 | BX31: 0 | BY31: 0 | BZ31: 1639 | CA31: 0 | CB31: 0 | CC31: 0 | CD31: 0 | CE31: 0 | CF31: 0 | CG31: 0 | CH31: 0 | CI31: 0 | CJ31: 0 | CK31: 0 | CL31: 0 | CM31: 1086794 | CN31: 0 | CO31: 0 | CP31: 0 | CQ31: 0 | CR31: 0 | CS31: 1086794 | CT31: 72396 | CU31: 125815 | CV31: 0 | CW31: 0 | CX31: 4666 | CY31: 0 | CZ31: 0 | DA31: 0 | DB31: 0 | DC31: 0 | DD31: 0 | DE31: 0 | DF31: 0 | DG31: 0 | DH31: 0 | DI31: 0 | DJ31: 8648 | DK31: 0 | DL31: 0 | DM31: 0 | DN31: 22774 | DO31: 1000 | DP31: 0 | DQ31: 0 | DR31: 0 | DS31: 0 | DT31: 0 | DU31: 434689 | DV31: 0 | DW31: 0 | DX31: 0 | DY31: 0 | DZ31: 0 | EA31: =EA124 -> 93793 | EB31: 6414 | EC31: 0 | ED31: 0 | EE31: 0 | EF31: 0 | EG31: 0 | EH31: 0 | EI31: 0 | EJ31: 0 | EK31: 0 | EL31: 0 | EM31: 0 | EN31: 0 | EO31: 0 | EP31: 0 | EQ31: 0 | ER31: 0 | ES31: 0 | ET31: 10179 | EU31: 24250 | EV31: 0 | EW31: 0 | EX31: 1150 | EY31: 2988 | EZ31: 0 | FA31: 0 | FB31: 0 | FC31: 0 | FD31: 0 | FE31: 0 | FF31: 0 | FG31: 0 | FH31: 0 | FI31: 44554 | FJ31: 0 | FK31: 0 | FL31: 0 | FM31: 26286 | FN31: 0 | FO31: 0 | FP31: 0 | FQ31: 31822 | FR31: 55057 | FS31: 250 | FT31: 0 | FU31: 10950 | FV31: 2331 | FW31: 0 | FX31: 0 | FY31: 53900 | FZ31: 14811 | GA31: 1048724 | GB31: 0 | GC31: 1048724
B32: Town of Hoosick | C32: =C125 -> 380339800000 | D32: Town of Hoosick | E32: Rensselaer | F32: 12/31 | G32: 6924 | H32: 0 | I32: 63 | J32: 418388532 | K32: 80000 | L32: 1413177 | M32: 0 | N32: 0 | O32: 0 | P32: 2713 | Q32: 8058 | R32: 0 | S32: 0 | T32: 0 | U32: 270637 | V32: 0 | W32: 0 | X32: 2452 | Y32: 0 | Z32: 0 | AA32: 0 | AB32: 5915 | AC32: 0 | AD32: 6439 | AE32: 0 | AF32: 0 | AG32: 0 | AH32: 0 | AI32: 0 | AJ32: 52023 | AK32: 175 | AL32: 772 | AM32: 5196 | AN32: 0 | AO32: 0 | AP32: 0 | AQ32: 0 | AR32: 0 | AS32: 0 | AT32: 0 | AU32: 8585 | AV32: 0 | AW32: 0 | AX32: 0 | AY32: 0 | AZ32: 0 | BA32: 597 | BB32: 0 | BC32: 0 | BD32: 40076 | BE32: 0 | BF32: 0 | BG32: 0 | BH32: 0 | BI32: 800 | BJ32: 0 | BK32: 27917 | BL32: 1845532 | BM32: 52351 | BN32: 69201 | BO32: =BO125 -> 0 | BP32: 0 | BQ32: 0 | BR32: 0 | BS32: 102354 | BT32: 0 | BU32: 0 | BV32: 0 | BW32: 0 | BX32: 0 | BY32: 0 | BZ32: 6375 | CA32: 0 | CB32: 0 | CC32: 0 | CD32: 465525 | CE32: 0 | CF32: 0 | CG32: 0 | CH32: 0 | CI32: 0 | CJ32: 0 | CK32: 0 | CL32: 0 | CM32: 2541338 | CN32: 0 | CO32: 0 | CP32: 0 | CQ32: 28593 | CR32: 0 | CS32: 2569931 | CT32: 75606 | CU32: 265475 | CV32: 0 | CW32: 0 | CX32: 12770 | CY32: 0 | CZ32: 0 | DA32: 0 | DB32: 0 | DC32: 0 | DD32: 0 | DE32: 0 | DF32: 0 | DG32: 0 | DH32: 4362 | DI32: 261031 | DJ32: 14500 | DK32: 0 | DL32: 0 | DM32: 0 | DN32: 20630 | DO32: 0 | DP32: 0 | DQ32: 0 | DR32: 0 | DS32: 0 | DT32: 0 | DU32: 958135 | DV32: 136805 | DW32: 0 | DX32: 0 | DY32: 0 | DZ32: 0 | EA32: =EA125 -> 264386 | EB32: 17709 | EC32: 0 | ED32: 0 | EE32: 0 | EF32: 0 | EG32: 0 | EH32: 0 | EI32: 0 | EJ32: 0 | EK32: 0 | EL32: 0 | EM32: 0 | EN32: 0 | EO32: 0 | EP32: 0 | EQ32: 0 | ER32: 83247 | ES32: 0 | ET32: 25403 | EU32: 45000 | EV32: 15986 | EW32: 0 | EX32: 800 | EY32: 5300 | EZ32: 0 | FA32: 0 | FB32: 6232 | FC32: 1460 | FD32: 0 | FE32: 0 | FF32: 0 | FG32: 0 | FH32: 0 | FI32: 1750 | FJ32: 0 | FK32: 0 | FL32: 0 | FM32: 51638 | FN32: 0 | FO32: 0 | FP32: 0 | FQ32: 46163 | FR32: 168998 | FS32: 1770 | FT32: 0 | FU32: 21298 | FV32: 3925 | FW32: 0 | FX32: 0 | FY32: 80000 | FZ32: 7534 | GA32: 2597913 | GB32: 28593 | GC32: 2626506
B33: Village of Hoosick Falls | C33: =C126 -> 380439802380 | D33: Village of Hoosick Falls | E33: Rensselaer | F33: 05/31 | G33: 3501 | H33: 0 | I33: 1.6 | J33: 152269985 | K33: 14295272 | L33: 1072824 | M33: 0 | N33: 0 | O33: 0 | P33: 11257 | Q33: 30288 | R33: 0 | S33: 0 | T33: 0 | U33: 149001 | V33: 33122 | W33: 0 | X33: 27744 | Y33: 0 | Z33: 5938 | AA33: 0 | AB33: 480 | AC33: 0 | AD33: 385 | AE33: 3669 | AF33: 0 | AG33: 0 | AH33: 0 | AI33: 0 | AJ33: 0 | AK33: 4317 | AL33: 481039 | AM33: 970666 | AN33: 0 | AO33: 0 | AP33: 0 | AQ33: 0 | AR33: 0 | AS33: 0 | AT33: 0 | AU33: 0 | AV33: 0 | AW33: 0 | AX33: 0 | AY33: 5500 | AZ33: 0 | BA33: 1479 | BB33: 0 | BC33: 0 | BD33: 35498 | BE33: 0 | BF33: 0 | BG33: 0 | BH33: 0 | BI33: 0 | BJ33: 0 | BK33: 44568 | BL33: 2877775 | BM33: 48203 | BN33: 9302 | BO33: =BO126 -> 0 | BP33: 0 | BQ33: 5200 | BR33: 0 | BS33: 94889 | BT33: 0 | BU33: 0 | BV33: 3266 | BW33: 0 | BX33: 0 | BY33: 83554 | BZ33: 9000 | CA33: 0 | CB33: 0 | CC33: 0 | CD33: 0 | CE33: 0 | CF33: 0 | CG33: 0 | CH33: 0 | CI33: 0 | CJ33: 0 | CK33: 0 | CL33: 0 | CM33: 3131189 | CN33: 0 | CO33: 50379 | CP33: 0 | CQ33: 0 | CR33: 0 | CS33: 3181568 | CT33: 122793 | CU33: 90712 | CV33: 0 | CW33: 0 | CX33: 30 | CY33: 0 | CZ33: 0 | DA33: 0 | DB33: 0 | DC33: 0 | DD33: 0 | DE33: 0 | DF33: 0 | DG33: 64324 | DH33: 315989 | DI33: 0 | DJ33: 6883 | DK33: 0 | DL33: 0 | DM33: 0 | DN33: 39606 | DO33: 0 | DP33: 0 | DQ33: 0 | DR33: 0 | DS33: 0 | DT33: 0 | DU33: 444707 | DV33: 0 | DW33: 0 | DX33: 0 | DY33: 0 | DZ33: 0 | EA33: =EA126 -> 0 | EB33: 90118 | EC33: 0 | ED33: 0 | EE33: 0 | EF33: 0 | EG33: 0 | EH33: 0 | EI33: 0 | EJ33: 0 | EK33: 0 | EL33: 0 | EM33: 0 | EN33: 0 | EO33: 440 | EP33: 0 | EQ33: 16844 | ER33: 12555 | ES33: 0 | ET33: 11585 | EU33: 0 | EV33: 8000 | EW33: 0 | EX33: 0 | EY33: 0 | EZ33: 0 | FA33: 0 | FB33: 0 | FC33: 2157244 | FD33: 0 | FE33: 0 | FF33: 0 | FG33: 522593 | FH33: 0 | FI33: 229238 | FJ33: 0 | FK33: 0 | FL33: 4076 | FM33: 50033 | FN33: 0 | FO33: 0 | FP33: 0 | FQ33: 69827 | FR33: 212682 | FS33: 2517 | FT33: 0 | FU33: 27715 | FV33: 768 | FW33: 0 | FX33: 0 | FY33: 326465 | FZ33: 13850 | GA33: 4841594 | GB33: 0 | GC33: 4841594
B34: Town of Nassau | C34: =C127 -> 380356100000 | D34: Town of Nassau | E34: Rensselaer | F34: 12/31 | G34: 4789 | H34: 0 | I34: 44.4 | J34: 364096939 | K34: 447934 | L34: 971498 | M34: 0 | N34: 0 | O34: 0 | P34: 0 | Q34: 5079 | R34: 0 | S34: 0 | T34: 0 | U34: 245264 | V34: 0 | W34: 0 | X34: 19233 | Y34: 0 | Z34: 0 | AA34: 0 | AB34: 2162 | AC34: 0 | AD34: 315 | AE34: 250 | AF34: 0 | AG34: 0 | AH34: 0 | AI34: 0 | AJ34: 0 | AK34: 8454 | AL34: 0 | AM34: 51340 | AN34: 0 | AO34: 0 | AP34: 0 | AQ34: 0 | AR34: 0 | AS34: 0 | AT34: 0 | AU34: 3725 | AV34: 0 | AW34: 0 | AX34: 0 | AY34: 0 | AZ34: 0 | BA34: 6488 | BB34: 6311 | BC34: 0 | BD34: 12821 | BE34: 0 | BF34: 0 | BG34: 0 | BH34: 0 | BI34: 128000 | BJ34: 0 | BK34: 49564 | BL34: 1510504 | BM34: 28397 | BN34: 87481 | BO34: =BO127 -> 0 | BP34: 0 | BQ34: 0 | BR34: 0 | BS34: 161141 | BT34: 0 | BU34: 0 | BV34: 5349 | BW34: 0 | BX34: 0 | BY34: 0 | BZ34: 824 | CA34: 0 | CB34: 0 | CC34: 0 | CD34: 0 | CE34: 171863 | CF34: 0 | CG34: 0 | CH34: 0 | CI34: 0 | CJ34: 0 | CK34: 0 | CL34: 0 | CM34: 1965559 | CN34: 150700 | CO34: 0 | CP34: 0 | CQ34: 201756 | CR34: 0 | CS34: 2318014 | CT34: 128441 | CU34: 270147 | CV34: 0 | CW34: 0 | CX34: 3543 | CY34: 0 | CZ34: 0 | DA34: 0 | DB34: 0 | DC34: 0 | DD34: 0 | DE34: 0 | DF34: 0 | DG34: 0 | DH34: 808 | DI34: 75000 | DJ34: 98000 | DK34: 0 | DL34: 0 | DM34: 0 | DN34: 45343 | DO34: 449 | DP34: 1800 | DQ34: 0 | DR34: 0 | DS34: 0 | DT34: 0 | DU34: 833316 | DV34: 0 | DW34: 0 | DX34: 0 | DY34: 0 | DZ34: 0 | EA34: =EA127 -> 75315 | EB34: 3183 | EC34: 0 | ED34: 0 | EE34: 0 | EF34: 0 | EG34: 0 | EH34: 169654 | EI34: 0 | EJ34: 0 | EK34: 0 | EL34: 0 | EM34: 0 | EN34: 0 | EO34: 0 | EP34: 0 | EQ34: 0 | ER34: 23543 | ES34: 0 | ET34: 0 | EU34: 0 | EV34: 588 | EW34: 0 | EX34: 1000 | EY34: 4422 | EZ34: 0 | FA34: 0 | FB34: 0 | FC34: 0 | FD34: 0 | FE34: 0 | FF34: 0 | FG34: 39529 | FH34: 0 | FI34: 61057 | FJ34: 0 | FK34: 0 | FL34: 0 | FM34: 47520 | FN34: 0 | FO34: 0 | FP34: 0 | FQ34: 42859 | FR34: 126284 | FS34: 260 | FT34: 0 | FU34: 27184 | FV34: 0 | FW34: 0 | FX34: 0 | FY34: 67766 | FZ34: 9398 | GA34: 2156409 | GB34: 201756 | GC34: 2358165
B35: Village of East Nassau | C35: =C128 -> 380456101435 | D35: Village of East Nassau | E35: Rensselaer | F35: 05/31 | G35: 587 | H35: 0 | I35: 4.9 | J35: 41915863 | K35: 0 | L35: 51288 | M35: 0 | N35: 0 | O35: 0 | P35: 0 | Q35: 231 | R35: 0 | S35: 0 | T35: 0 | U35: 41243 | V35: 0 | W35: 0 | X35: 0 | Y35: 0 | Z35: 0 | AA35: 0 | AB35: 227 | AC35: 0 | AD35: 156 | AE35: 0 | AF35: 0 | AG35: 0 | AH35: 0 | AI35: 0 | AJ35: 0 | AK35: 0 | AL35: 0 | AM35: 0 | AN35: 0 | AO35: 0 | AP35: 0 | AQ35: 0 | AR35: 0 | AS35: 0 | AT35: 0 | AU35: 0 | AV35: 0 | AW35: 0 | AX35: 0 | AY35: 0 | AZ35: 0 | BA35: 233 | BB35: 0 | BC35: 0 | BD35: 0 | BE35: 0 | BF35: 0 | BG35: 0 | BH35: 0 | BI35: 0 | BJ35: 0 | BK35: 0 | BL35: 93378 | BM35: 10565 | BN35: 6631 | BO35: =BO128 -> 0 | BP35: 0 | BQ35: 2166 | BR35: 0 | BS35: 9016 | BT35: 0 | BU35: 0 | BV35: 0 | BW35: 0 | BX35: 0 | BY35: 0 | BZ35: 0 | CA35: 0 | CB35: 12995 | CC35: 0 | CD35: 0 | CE35: 0 | CF35: 0 | CG35: 0 | CH35: 0 | CI35: 0 | CJ35: 0 | CK35: 0 | CL35: 0 | CM35: 134752 | CN35: 0 | CO35: 0 | CP35: 0 | CQ35: 0 | CR35: 0 | CS35: 134752 | CT35: 11669 | CU35: 33593 | CV35: 0 | CW35: 0 | CX35: 0 | CY35: 0 | CZ35: 0 | DA35: 0 | DB35: 0 | DC35: 0 | DD35: 0 | DE35: 0 | DF35: 0 | DG35: 0 | DH35: 0 | DI35: 0 | DJ35: 0 | DK35: 0 | DL35: 0 | DM35: 0 | DN35: 4170 | DO35: 0 | DP35: 0 | DQ35: 0 | DR35: 0 | DS35: 0 | DT35: 0 | DU35: 92449 | DV35: 0 | DW35: 0 | DX35: 0 | DY35: 0 | DZ35: 0 | EA35: =EA128 -> 0 | EB35: 920 | EC35: 0 | ED35: 0 | EE35: 0 | EF35: 0 | EG35: 0 | EH35: 0 | EI35: 0 | EJ35: 0 | EK35: 0 | EL35: 0 | EM35: 0 | EN35: 0 | EO35: 0 | EP35: 0 | EQ35: 0 | ER35: 0 | ES35: 0 | ET35: 0 | EU35: 0 | EV35: 0 | EW35: 0 | EX35: 0 | EY35: 0 | EZ35: 0 | FA35: 0 | FB35: 0 | FC35: 0 | FD35: 0 | FE35: 0 | FF35: 0 | FG35: 0 | FH35: 0 | FI35: 0 | FJ35: 0 | FK35: 0 | FL35: 0 | FM35: 0 | FN35: 0 | FO35: 0 | FP35: 0 | FQ35: 1568 | FR35: 0 | FS35: 0 | FT35: 0 | FU35: 538 | FV35: 0 | FW35: 0 | FX35: 0 | FY35: 0 | FZ35: 0 | GA35: 144906 | GB35: 0 | GC35: 144906
B36: Town of North Greenbush | C36: =C129 -> 380359500000 | D36: Town of North Greenbush | E36: Rensselaer | F36: 12/31 | G36: 12075 | H36: 0 | I36: 18.6 | J36: 935986053 | K36: 21774000 | L36: 3574305 | M36: 0 | N36: 1340107 | O36: 0 | P36: 369458 | Q36: 16871 | R36: 0 | S36: 0 | T36: 0 | U36: 981703 | V36: 0 | W36: 0 | X36: 216387 | Y36: 0 | Z36: 0 | AA36: 0 | AB36: 4811 | AC36: 0 | AD36: 98526 | AE36: 5679 | AF36: 0 | AG36: 0 | AH36: 0 | AI36: 0 | AJ36: 60029 | AK36: 180416 | AL36: 1305389 | AM36: 4350 | AN36: 0 | AO36: 0 | AP36: 0 | AQ36: 0 | AR36: 0 | AS36: 0 | AT36: 0 | AU36: 0 | AV36: 0 | AW36: 0 | AX36: 0 | AY36: 0 | AZ36: 0 | BA36: 30019 | BB36: 471 | BC36: 25122 | BD36: 156067 | BE36: 0 | BF36: 41984 | BG36: 0 | BH36: 0 | BI36: 2380 | BJ36: 0 | BK36: 96497 | BL36: 8510571 | BM36: 106683 | BN36: 319414 | BO36: =BO129 -> 0 | BP36: 0 | BQ36: 36970 | BR36: 0 | BS36: 81990 | BT36: 0 | BU36: 0 | BV36: 5721 | BW36: 52832 | BX36: 0 | BY36: 0 | BZ36: 0 | CA36: 0 | CB36: 0 | CC36: 0 | CD36: 0 | CE36: 0 | CF36: 0 | CG36: 0 | CH36: 0 | CI36: 0 | CJ36: 0 | CK36: 0 | CL36: 0 | CM36: 9114180 | CN36: 465000 | CO36: 534000 | CP36: 0 | CQ36: 13049 | CR36: 0 | CS36: 10126229 | CT36: 2229592 | CU36: 681079 | CV36: 0 | CW36: 0 | CX36: 57515 | CY36: 50 | CZ36: 0 | DA36: 0 | DB36: 0 | DC36: 0 | DD36: 0 | DE36: 0 | DF36: 0 | DG36: 0 | DH36: 1655786 | DI36: 2873 | DJ36: 211000 | DK36: 0 | DL36: 0 | DM36: 0 | DN36: 58085 | DO36: 8353 | DP36: 0 | DQ36: 0 | DR36: 0 | DS36: 0 | DT36: 0 | DU36: 1357822 | DV36: 0 | DW36: 0 | DX36: 0 | DY36: 0 | DZ36: 0 | EA36: =EA129 -> 0 | EB36: 50131 | EC36: 0 | ED36: 0 | EE36: 0 | EF36: 0 | EG36: 0 | EH36: 0 | EI36: 0 | EJ36: 0 | EK36: 0 | EL36: 0 | EM36: 0 | EN36: 0 | EO36: 0 | EP36: 0 | EQ36: 0 | ER36: 57486 | ES36: 0 | ET36: 132965 | EU36: 263981 | EV36: 11868 | EW36: 0 | EX36: 0 | EY36: 10000 | EZ36: 0 | FA36: 0 | FB36: 355 | FC36: 1643522 | FD36: 0 | FE36: 0 | FF36: 0 | FG36: 318238 | FH36: 0 | FI36: 0 | FJ36: 0 | FK36: 0 | FL36: 0 | FM36: 296087 | FN36: 298355 | FO36: 0 | FP36: 0 | FQ36: 239748 | FR36: 350972 | FS36: 3350 | FT36: 0 | FU36: 143247 | FV36: 14191 | FW36: 0 | FX36: 0 | FY36: 1553000 | FZ36: 614376 | GA36: 12264027 | GB36: 13049 | GC36: 12277076
B37: Town of Petersburgh | C37: =C130 -> 380365600000 | D37: Town of Petersburgh | E37: Rensselaer | F37: 12/31 | G37: 1525 | H37: 0 | I37: 41.6 | J37: 121889374 | K37: 242400 | L37: 498718 | M37: 0 | N37: 0 | O37: 0 | P37: 0 | Q37: 2920 | R37: 0 | S37: 0 | T37: 0 | U37: 118643 | V37: 0 | W37: 0 | X37: 0 | Y37: 0 | Z37: 0 | AA37: 0 | AB37: 2035 | AC37: 0 | AD37: 0 | AE37: 0 | AF37: 0 | AG37: 0 | AH37: 0 | AI37: 0 | AJ37: 63 | AK37: 3243 | AL37: 28296 | AM37: 36450 | AN37: 0 | AO37: 0 | AP37: 0 | AQ37: 0 | AR37: 0 | AS37: 3218 | AT37: 0 | AU37: 0 | AV37: 0 | AW37: 0 | AX37: 0 | AY37: 0 | AZ37: 0 | BA37: 931 | BB37: 695 | BC37: 2000 | BD37: 8197 | BE37: 0 | BF37: 1058 | BG37: 774 | BH37: 0 | BI37: 0 | BJ37: 0 | BK37: 0 | BL37: 707241 | BM37: 7794 | BN37: 19910 | BO37: =BO130 -> 0 | BP37: 0 | BQ37: 0 | BR37: 0 | BS37: 126787 | BT37: 0 | BU37: 0 | BV37: 1486 | BW37: 0 | BX37: 0 | BY37: 0 | BZ37: 172 | CA37: 0 | CB37: 0 | CC37: 0 | CD37: 0 | CE37: 0 | CF37: 0 | CG37: 339 | CH37: 0 | CI37: 0 | CJ37: 0 | CK37: 0 | CL37: 0 | CM37: 863729 | CN37: 0 | CO37: 0 | CP37: 0 | CQ37: 10109 | CR37: 0 | CS37: 873838 | CT37: 70970 | CU37: 91008 | CV37: 0 | CW37: 0 | CX37: 569 | CY37: 0 | CZ37: 0 | DA37: 0 | DB37: 0 | DC37: 0 | DD37: 0 | DE37: 0 | DF37: 0 | DG37: 0 | DH37: 0 | DI37: 0 | DJ37: 0 | DK37: 0 | DL37: 0 | DM37: 0 | DN37: 12091 | DO37: 500 | DP37: 0 | DQ37: 0 | DR37: 0 | DS37: 0 | DT37: 10000 | DU37: 289645 | DV37: 0 | DW37: 0 | DX37: 0 | DY37: 0 | DZ37: 0 | EA37: =EA130 -> 51501 | EB37: 6748 | EC37: 0 | ED37: 0 | EE37: 0 | EF37: 0 | EG37: 0 | EH37: 0 | EI37: 0 | EJ37: 0 | EK37: 0 | EL37: 0 | EM37: 0 | EN37: 0 | EO37: 0 | EP37: 0 | EQ37: 0 | ER37: 1908 | ES37: 0 | ET37: 8542 | EU37: 48949 | EV37: 120 | EW37: 0 | EX37: 3340 | EY37: 2400 | EZ37: 0 | FA37: 0 | FB37: 0 | FC37: 24707 | FD37: 0 | FE37: 0 | FF37: 0 | FG37: 0 | FH37: 0 | FI37: 73098 | FJ37: 0 | FK37: 0 | FL37: 0 | FM37: 21938 | FN37: 0 | FO37: 0 | FP37: 0 | FQ37: 19759 | FR37: 33033 | FS37: 91 | FT37: 0 | FU37: 10143 | FV37: 0 | FW37: 0 | FX37: 0 | FY37: 23500 | FZ37: 11621 | GA37: 816181 | GB37: 10109 | GC37: 826290
B38: Town of Pittstown | C38: =C131 -> 380367000000 | D38: Town of Pittstown | E38: Rensselaer | F38: 12/31 | G38: 5735 | H38: 0 | I38: 61.6 | J38: 380220315 | K38: 16630 | L38: 2028837 | M38: 0 | N38: 0 | O38: 0 | P38: 207 | Q38: 7272 | R38: 0 | S38: 0 | T38: 0 | U38: 227412 | V38: 0 | W38: 0 | X38: 0 | Y38: 0 | Z38: 0 | AA38: 0 | AB38: 47717 | AC38: 0 | AD38: 9663 | AE38: 0 | AF38: 0 | AG38: 0 | AH38: 0 | AI38: 0 | AJ38: 0 | AK38: 1425 | AL38: 0 | AM38: 0 | AN38: 0 | AO38: 0 | AP38: 0 | AQ38: 0 | AR38: 0 | AS38: 0 | AT38: 0 | AU38: 0 | AV38: 0 | AW38: 0 | AX38: 0 | AY38: 0 | AZ38: 0 | BA38: 2667 | BB38: 5545 | BC38: 0 | BD38: 48352 | BE38: 0 | BF38: 0 | BG38: 0 | BH38: 0 | BI38: 0 | BJ38: 0 | BK38: 0 | BL38: 2379097 | BM38: 0 | BN38: 91161 | BO38: =BO131 -> 0 | BP38: 0 | BQ38: 0 | BR38: 0 | BS38: 9625 | BT38: 0 | BU38: 0 | BV38: 1785 | BW38: 0 | BX38: 0 | BY38: 0 | BZ38: 0 | CA38: 0 | CB38: 0 | CC38: 0 | CD38: 0 | CE38: 0 | CF38: 0 | CG38: 0 | CH38: 0 | CI38: 0 | CJ38: 0 | CK38: 0 | CL38: 0 | CM38: 2481668 | CN38: 0 | CO38: 0 | CP38: 0 | CQ38: 0 | CR38: 0 | CS38: 2481668 | CT38: 95793 | CU38: 142434 | CV38: 0 | CW38: 0 | CX38: 19852 | CY38: 0 | CZ38: 0 | DA38: 0 | DB38: 0 | DC38: 0 | DD38: 0 | DE38: 0 | DF38: 0 | DG38: 0 | DH38: 0 | DI38: 9200 | DJ38: 45000 | DK38: 0 | DL38: 0 | DM38: 0 | DN38: 41427 | DO38: 880 | DP38: 0 | DQ38: 0 | DR38: 0 | DS38: 0 | DT38: 0 | DU38: 976243 | DV38: 0 | DW38: 0 | DX38: 0 | DY38: 0 | DZ38: 0 | EA38: =EA131 -> 359218 | EB38: 10556 | EC38: 0 | ED38: 0 | EE38: 0 | EF38: 0 | EG38: 0 | EH38: 0 | EI38: 0 | EJ38: 0 | EK38: 0 | EL38: 0 | EM38: 0 | EN38: 0 | EO38: 0 | EP38: 0 | EQ38: 507 | ER38: 0 | ES38: 0 | ET38: 2325 | EU38: 10000 | EV38: 1455 | EW38: 0 | EX38: 1751 | EY38: 1000 | EZ38: 0 | FA38: 0 | FB38: 0 | FC38: 0 | FD38: 0 | FE38: 0 | FF38: 0 | FG38: 0 | FH38: 0 | FI38: 469238 | FJ38: 0 | FK38: 0 | FL38: 0 | FM38: 57469 | FN38: 0 | FO38: 0 | FP38: 0 | FQ38: 41946 | FR38: 151591 | FS38: 484 | FT38: 0 | FU38: 21793 | FV38: 0 | FW38: 0 | FX38: 0 | FY38: 23915 | FZ38: 2389 | GA38: 2486463 | GB38: 0 | GC38: 2486463
B39: Town of Poestenkill | C39: =C132 -> 380367600000 | D39: Town of Poestenkill | E39: Rensselaer | F39: 12/31 | G39: 4530 | H39: 0 | I39: 32.4 | J39: 342159337 | K39: 9629493 | L39: 1114953 | M39: 0 | N39: 0 | O39: 0 | P39: 0 | Q39: 5359 | R39: 0 | S39: 0 | T39: 0 | U39: 320892 | V39: 0 | W39: 0 | X39: 7113 | Y39: 0 | Z39: 0 | AA39: 0 | AB39: 3453 | AC39: 0 | AD39: 0 | AE39: 0 | AF39: 0 | AG39: 0 | AH39: 0 | AI39: 0 | AJ39: 0 | AK39: 14493 | AL39: 0 | AM39: 0 | AN39: 0 | AO39: 0 | AP39: 0 | AQ39: 449 | AR39: 0 | AS39: 10112 | AT39: 0 | AU39: 0 | AV39: 0 | AW39: 0 | AX39: 0 | AY39: 0 | AZ39: 0 | BA39: 1264 | BB39: 219 | BC39: 10 | BD39: 21405 | BE39: 0 | BF39: 0 | BG39: 0 | BH39: 3000 | BI39: 20928 | BJ39: 0 | BK39: 5745 | BL39: 1529395 | BM39: 37940 | BN39: 120668 | BO39: =BO132 -> 0 | BP39: 0 | BQ39: 24258 | BR39: 0 | BS39: 70504 | BT39: 0 | BU39: 0 | BV39: 6338 | BW39: 14605 | BX39: 0 | BY39: 0 | BZ39: 220000 | CA39: 0 | CB39: 430080 | CC39: 0 | CD39: 0 | CE39: 0 | CF39: 0 | CG39: 0 | CH39: 0 | CI39: 0 | CJ39: 0 | CK39: 0 | CL39: 0 | CM39: 2453788 | CN39: 0 | CO39: 0 | CP39: 0 | CQ39: 0 | CR39: 0 | CS39: 2453788 | CT39: 66582 | CU39: 211919 | CV39: 0 | CW39: 0 | CX39: 25012 | CY39: 0 | CZ39: 0 | DA39: 0 | DB39: 0 | DC39: 0 | DD39: 0 | DE39: 0 | DF39: 0 | DG39: 0 | DH39: 302 | DI39: 239590 | DJ39: 0 | DK39: 0 | DL39: 0 | DM39: 0 | DN39: 24783 | DO39: 1500 | DP39: 0 | DQ39: 0 | DR39: 0 | DS39: 0 | DT39: 0 | DU39: 618443 | DV39: 0 | DW39: 0 | DX39: 0 | DY39: 0 | DZ39: 0 | EA39: =EA132 -> 77447 | EB39: 11024 | EC39: 0 | ED39: 0 | EE39: 0 | EF39: 0 | EG39: 0 | EH39: 0 | EI39: 0 | EJ39: 0 | EK39: 0 | EL39: 0 | EM39: 0 | EN39: 0 | EO39: 0 | EP39: 0 | EQ39: 0 | ER39: 5000 | ES39: 0 | ET39: 43054 | EU39: 48767 | EV39: 5471 | EW39: 0 | EX39: 3250 | EY39: 0 | EZ39: 0 | FA39: 0 | FB39: 0 | FC39: 9590660 | FD39: 0 | FE39: 0 | FF39: 0 | FG39: 0 | FH39: 0 | FI39: 33302 | FJ39: 0 | FK39: 0 | FL39: 0 | FM39: 49733 | FN39: 0 | FO39: 0 | FP39: 0 | FQ39: 46689 | FR39: 109731 | FS39: 285 | FT39: 0 | FU39: 10323 | FV39: 1550 | FW39: 0 | FX39: 0 | FY39: 97282 | FZ39: 9241 | GA39: 11330940 | GB39: 0 | GC39: 11330940
B40: City of Rensselaer | C40: =C133 -> 380247000000 | D40: City of Rensselaer | E40: Rensselaer | F40: 07/31 | G40: 9392 | H40: 0 | I40: 3.2 | J40: 405901319 | K40: 4592949 | L40: 5410832 | M40: 0 | N40: 0 | O40: 0 | P40: 1244064 | Q40: 80224 | R40: 246251 | S40: 0 | T40: 0 | U40: 1811810 | V40: 101168 | W40: 0 | X40: 149262 | Y40: 0 | Z40: 0 | AA40: 0 | AB40: 37614 | AC40: 0 | AD40: 180 | AE40: 0 | AF40: 0 | AG40: 0 | AH40: 13236 | AI40: 118287 | AJ40: 7910 | AK40: 20087 | AL40: 1775604 | AM40: 635915 | AN40: 0 | AO40: 0 | AP40: 0 | AQ40: 0 | AR40: 0 | AS40: 59945 | AT40: 0 | AU40: 0 | AV40: 0 | AW40: 0 | AX40: 0 | AY40: 12855 | AZ40: 0 | BA40: 63962 | BB40: 17 | BC40: 23555 | BD40: 113843 | BE40: 0 | BF40: 75413 | BG40: 4001 | BH40: 6000 | BI40: 3521 | BJ40: 0 | BK40: 81448 | BL40: 12097002 | BM40: 1202529 | BN40: 150548 | BO40: =BO133 -> 80316 | BP40: 969570 | BQ40: 101311 | BR40: 0 | BS40: 407463 | BT40: 0 | BU40: 0 | BV40: 9989 | BW40: 0 | BX40: 0 | BY40: 0 | BZ40: 203303 | CA40: 0 | CB40: 0 | CC40: 0 | CD40: 10400 | CE40: 0 | CF40: 916267 | CG40: 0 | CH40: 0 | CI40: 0 | CJ40: 0 | CK40: 0 | CL40: 0 | CM40: 16148698 | CN40: 3397500 | CO40: 498247 | CP40: 0 | CQ40: 177500 | CR40: 0 | CS40: 20221944 | CT40: 1218380 | CU40: 721423 | CV40: 0 | CW40: 0 | CX40: 234603 | CY40: 21714 | CZ40: 0 | DA40: 0 | DB40: 0 | DC40: 0 | DD40: 0 | DE40: 0 | DF40: 0 | DG40: 0 | DH40: 2294571 | DI40: 935925 | DJ40: 0 | DK40: 0 | DL40: 0 | DM40: 0 | DN40: 312270 | DO40: 0 | DP40: 0 | DQ40: 0 | DR40: 0 | DS40: 0 | DT40: 0 | DU40: 2738016 | DV40: 0 | DW40: 0 | DX40: 0 | DY40: 0 | DZ40: 0 | EA40: =EA133 -> 0 | EB40: 214278 | EC40: 0 | ED40: 0 | EE40: 0 | EF40: 0 | EG40: 0 | EH40: 0 | EI40: 0 | EJ40: 0 | EK40: 0 | EL40: 0 | EM40: 0 | EN40: 1207923 | EO40: 0 | EP40: 0 | EQ40: 303815 | ER40: 105991 | ES40: 0 | ET40: 39983 | EU40: 104291 | EV40: 0 | EW40: 0 | EX40: 0 | EY40: 9200 | EZ40: 38113 | FA40: 0 | FB40: 0 | FC40: 2165276 | FD40: 0 | FE40: 0 | FF40: 0 | FG40: 99318 | FH40: 139806 | FI40: 581215 | FJ40: 0 | FK40: 0 | FL40: 0 | FM40: 223348 | FN40: 430141 | FO40: 0 | FP40: 0 | FQ40: 370469 | FR40: 1425402 | FS40: 5550 | FT40: 0 | FU40: 243179 | FV40: 3977 | FW40: 0 | FX40: 0 | FY40: 552247 | FZ40: 200842 | GA40: 16941267 | GB40: 177500 | GC40: 17118767
B41: Town of Sand Lake | C41: =C134 -> 380374100000 | D41: Town of Sand Lake | E41: Rensselaer | F41: 12/31 | G41: 8530 | H41: 0 | I41: 35.1 | J41: 726584506 | K41: 2411252 | L41: 1624744 | M41: 0 | N41: 739 | O41: 0 | P41: 3600 | Q41: 8911 | R41: 0 | S41: 0 | T41: 0 | U41: 762972 | V41: 0 | W41: 0 | X41: 128804 | Y41: 0 | Z41: 0 | AA41: 0 | AB41: 21985 | AC41: 0 | AD41: 27860 | AE41: 0 | AF41: 0 | AG41: 0 | AH41: 0 | AI41: 0 | AJ41: 79955 | AK41: 9590 | AL41: 0 | AM41: 404451 | AN41: 0 | AO41: 0 | AP41: 0 | AQ41: 737 | AR41: 0 | AS41: 0 | AT41: 0 | AU41: 3750 | AV41: 0 | AW41: 0 | AX41: 0 | AY41: 0 | AZ41: 0 | BA41: 3902 | BB41: 8264 | BC41: 7201 | BD41: 48199 | BE41: 0 | BF41: 1048 | BG41: 1500 | BH41: 0 | BI41: 15708 | BJ41: 1392 | BK41: 11694 | BL41: 3177005 | BM41: 36588 | BN41: 210612 | BO41: =BO134 -> 0 | BP41: 0 | BQ41: 0 | BR41: 0 | BS41: 140761 | BT41: 0 | BU41: 0 | BV41: 8218 | BW41: 0 | BX41: 0 | BY41: 0 | BZ41: 24092 | CA41: 0 | CB41: 46741 | CC41: 0 | CD41: 0 | CE41: 0 | CF41: 0 | CG41: 0 | CH41: 0 | CI41: 41250 | CJ41: 0 | CK41: 0 | CL41: 88392 | CM41: 3773659 | CN41: 1681252 | CO41: 0 | CP41: 0 | CQ41: 182960 | CR41: 0 | CS41: 5637871 | CT41: 422744 | CU41: 515146 | CV41: 0 | CW41: 0 | CX41: 53889 | CY41: 0 | CZ41: 0 | DA41: 0 | DB41: 0 | DC41: 0 | DD41: 0 | DE41: 0 | DF41: 0 | DG41: 0 | DH41: 2194 | DI41: 0 | DJ41: 271000 | DK41: 0 | DL41: 0 | DM41: 0 | DN41: 113479 | DO41: 1000 | DP41: 0 | DQ41: 0 | DR41: 0 | DS41: 0 | DT41: 0 | DU41: 1151017 | DV41: 0 | DW41: 0 | DX41: 0 | DY41: 0 | DZ41: 0 | EA41: =EA134 -> 92658 | EB41: 108627 | EC41: 57598 | ED41: 0 | EE41: 0 | EF41: 0 | EG41: 0 | EH41: 0 | EI41: 0 | EJ41: 0 | EK41: 0 | EL41: 0 | EM41: 0 | EN41: 0 | EO41: 0 | EP41: 0 | EQ41: 0 | ER41: 30176 | ES41: 0 | ET41: 74635 | EU41: 141736 | EV41: 8951 | EW41: 1613 | EX41: 44096 | EY41: 0 | EZ41: 596 | FA41: 0 | FB41: 0 | FC41: 0 | FD41: 0 | FE41: 0 | FF41: 0 | FG41: 908116 | FH41: 0 | FI41: 62322 | FJ41: 6598 | FK41: 0 | FL41: 0 | FM41: 88648 | FN41: 0 | FO41: 0 | FP41: 0 | FQ41: 111960 | FR41: 214647 | FS41: 1346 | FT41: 0 | FU41: 38102 | FV41: 3499 | FW41: 0 | FX41: 0 | FY41: 55000 | FZ41: 262269 | GA41: 4843661 | GB41: 182960 | GC41: 5026621
B42: Town of Schaghticoke | C42: =C135 -> 380375200000 | D42: Town of Schaghticoke | E42: Rensselaer | F42: 12/31 | G42: 7679 | H42: 0 | I42: 49.8 | J42: 582264982 | K42: 5545750 | L42: 1356692 | M42: 0 | N42: 677255 | O42: 0 | P42: 0 | Q42: 7807 | R42: 0 | S42: 0 | T42: 0 | U42: 573781 | V42: 0 | W42: 0 | X42: 56222 | Y42: 0 | Z42: 0 | AA42: 0 | AB42: 6024 | AC42: 0 | AD42: 0 | AE42: 3010 | AF42: 0 | AG42: 0 | AH42: 0 | AI42: 0 | AJ42: 11764 | AK42: 10773 | AL42: 314502 | AM42: 51298 | AN42: 0 | AO42: 0 | AP42: 0 | AQ42: 0 | AR42: 0 | AS42: 55653 | AT42: 0 | AU42: 0 | AV42: 0 | AW42: 0 | AX42: 0 | AY42: 0 | AZ42: 0 | BA42: 13869 | BB42: 2227 | BC42: 0 | BD42: 53268 | BE42: 0 | BF42: 10948 | BG42: 0 | BH42: 0 | BI42: 0 | BJ42: 0 | BK42: 1055 | BL42: 3206148 | BM42: 44450 | BN42: 159321 | BO42: =BO135 -> 0 | BP42: 0 | BQ42: 0 | BR42: 0 | BS42: 153339 | BT42: 0 | BU42: 0 | BV42: 10447 | BW42: 0 | BX42: 0 | BY42: 0 | BZ42: 3543 | CA42: 0 | CB42: 0 | CC42: 0 | CD42: 0 | CE42: 0 | CF42: 0 | CG42: 0 | CH42: 66556 | CI42: 0 | CJ42: 0 | CK42: 0 | CL42: 0 | CM42: 3643804 | CN42: 0 | CO42: 0 | CP42: 0 | CQ42: 34671 | CR42: 0 | CS42: 3678475 | CT42: 91990 | CU42: 337256 | CV42: 0 | CW42: 0 | CX42: 33426 | CY42: 3433 | CZ42: 0 | DA42: 0 | DB42: 0 | DC42: 0 | DD42: 0 | DE42: 0 | DF42: 0 | DG42: 0 | DH42: 3978 | DI42: 89098 | DJ42: 105811 | DK42: 0 | DL42: 0 | DM42: 0 | DN42: 45777 | DO42: 3000 | DP42: 0 | DQ42: 0 | DR42: 0 | DS42: 0 | DT42: 0 | DU42: 990604 | DV42: 0 | DW42: 0 | DX42: 0 | DY42: 0 | DZ42: 0 | EA42: =EA135 -> 162032 | EB42: 29649 | EC42: 0 | ED42: 0 | EE42: 0 | EF42: 0 | EG42: 0 | EH42: 0 | EI42: 0 | EJ42: 0 | EK42: 0 | EL42: 0 | EM42: 0 | EN42: 0 | EO42: 0 | EP42: 0 | EQ42: 0 | ER42: 4000 | ES42: 0 | ET42: 43421 | EU42: 9630 | EV42: 13527 | EW42: 0 | EX42: 15800 | EY42: 3000 | EZ42: 0 | FA42: 0 | FB42: 0 | FC42: 422836 | FD42: 0 | FE42: 0 | FF42: 0 | FG42: 141475 | FH42: 0 | FI42: 579020 | FJ42: 0 | FK42: 0 | FL42: 0 | FM42: 61329 | FN42: 0 | FO42: 0 | FP42: 0 | FQ42: 69054 | FR42: 264643 | FS42: 675 | FT42: 0 | FU42: 31677 | FV42: 252 | FW42: 0 | FX42: 0 | FY42: 352950 | FZ42: 44921 | GA42: 3954264 | GB42: 34671 | GC42: 3988935
B43: Village of Schaghticoke | C43: =C136 -> 380475204460 | D43: Village of Schaghticoke | E43: Rensselaer | F43: 05/31 | G43: 592 | H43: 0 | I43: 0.8 | J43: 43080391 | K43: 0 | L43: 146687 | M43: 0 | N43: 0 | O43: 0 | P43: 0 | Q43: 155 | R43: 0 | S43: 0 | T43: 0 | U43: 41509 | V43: 14278 | W43: 0 | X43: 5497 | Y43: 0 | Z43: 0 | AA43: 0 | AB43: 105 | AC43: 0 | AD43: 0 | AE43: 0 | AF43: 0 | AG43: 0 | AH43: 0 | AI43: 0 | AJ43: 0 | AK43: 0 | AL43: 88735 | AM43: 0 | AN43: 0 | AO43: 0 | AP43: 0 | AQ43: 0 | AR43: 0 | AS43: 0 | AT43: 0 | AU43: 0 | AV43: 0 | AW43: 0 | AX43: 0 | AY43: 0 | AZ43: 0 | BA43: 560 | BB43: 2500 | BC43: 15758 | BD43: 0 | BE43: 0 | BF43: 0 | BG43: 0 | BH43: 36868 | BI43: 600 | BJ43: 0 | BK43: 4083 | BL43: 357334 | BM43: 8413 | BN43: 9106 | BO43: =BO136 -> 0 | BP43: 0 | BQ43: 9615 | BR43: 0 | BS43: 31416 | BT43: 0 | BU43: 0 | BV43: 634 | BW43: 0 | BX43: 0 | BY43: 0 | BZ43: 0 | CA43: 0 | CB43: 312265 | CC43: 0 | CD43: 0 | CE43: 0 | CF43: 0 | CG43: 0 | CH43: 0 | CI43: 0 | CJ43: 0 | CK43: 0 | CL43: 0 | CM43: 728782 | CN43: 0 | CO43: 0 | CP43: 0 | CQ43: 30000 | CR43: 0 | CS43: 758782 | CT43: 77997 | CU43: 42044 | CV43: 0 | CW43: 0 | CX43: 0 | CY43: 0 | CZ43: 0 | DA43: 0 | DB43: 0 | DC43: 0 | DD43: 0 | DE43: 0 | DF43: 0 | DG43: 0 | DH43: 0 | DI43: 386231 | DJ43: 0 | DK43: 0 | DL43: 0 | DM43: 0 | DN43: 0 | DO43: 0 | DP43: 0 | DQ43: 0 | DR43: 0 | DS43: 0 | DT43: 0 | DU43: 41707 | DV43: 0 | DW43: 0 | DX43: 0 | DY43: 0 | DZ43: 0 | EA43: =EA136 -> 0 | EB43: 52264 | EC43: 0 | ED43: 0 | EE43: 0 | EF43: 0 | EG43: 0 | EH43: 0 | EI43: 0 | EJ43: 0 | EK43: 0 | EL43: 0 | EM43: 0 | EN43: 0 | EO43: 276 | EP43: 0 | EQ43: 0 | ER43: 853 | ES43: 0 | ET43: 6790 | EU43: 4500 | EV43: 1085 | EW43: 0 | EX43: 0 | EY43: 0 | EZ43: 4875 | FA43: 0 | FB43: 0 | FC43: 128842 | FD43: 0 | FE43: 0 | FF43: 0 | FG43: 0 | FH43: 0 | FI43: 1157 | FJ43: 0 | FK43: 0 | FL43: 0 | FM43: 0 | FN43: 0 | FO43: 0 | FP43: 0 | FQ43: 6042 | FR43: 0 | FS43: 205 | FT43: 0 | FU43: 11025 | FV43: 885 | FW43: 0 | FX43: 0 | FY43: 0 | FZ43: 0 | GA43: 766779 | GB43: 30000 | GC43: 796779
B44: Town of Schodack | C44: =C137 -> 380375300000 | D44: Town of Schodack | E44: Rensselaer | F44: 12/31 | G44: 12794 | H44: 0 | I44: 61.9 | J44: 1128496869 | K44: 16469915 | L44: 5536364 | M44: 0 | N44: 0 | O44: 0 | P44: 203025 | Q44: 30380 | R44: 0 | S44: 0 | T44: 0 | U44: 1026675 | V44: 0 | W44: 0 | X44: 75588 | Y44: 0 | Z44: 0 | AA44: 0 | AB44: 26318 | AC44: 0 | AD44: 64147 | AE44: 2130 | AF44: 0 | AG44: 0 | AH44: 0 | AI44: 0 | AJ44: 52266 | AK44: 109134 | AL44: 259145 | AM44: 280180 | AN44: 0 | AO44: 1570 | AP44: 0 | AQ44: 6765 | AR44: 0 | AS44: 2393 | AT44: 0 | AU44: 0 | AV44: 0 | AW44: 0 | AX44: 0 | AY44: 0 | AZ44: 0 | BA44: 66818 | BB44: 21906 | BC44: 39199 | BD44: 248196 | BE44: 0 | BF44: 21593 | BG44: 0 | BH44: 0 | BI44: 0 | BJ44: 0 | BK44: 485424 | BL44: 8559216 | BM44: 71213 | BN44: 323071 | BO44: =BO137 -> 0 | BP44: 0 | BQ44: 0 | BR44: 0 | BS44: 169652 | BT44: 0 | BU44: 0 | BV44: 6463 | BW44: 6511 | BX44: 0 | BY44: 0 | BZ44: 483 | CA44: 0 | CB44: 22871 | CC44: 0 | CD44: 0 | CE44: 225871 | CF44: 0 | CG44: 0 | CH44: 0 | CI44: 0 | CJ44: 0 | CK44: 1030 | CL44: 0 | CM44: 9386382 | CN44: 1419552 | CO44: 316311 | CP44: 0 | CQ44: 3722343 | CR44: 0 | CS44: 14844587 | CT44: 245010 | CU44: 923117 | CV44: 0 | CW44: 205531 | CX44: 153849 | CY44: 0 | CZ44: 0 | DA44: 0 | DB44: 0 | DC44: 0 | DD44: 0 | DE44: 0 | DF44: 0 | DG44: 0 | DH44: 1048263 | DI44: 173088 | DJ44: 209120 | DK44: 0 | DL44: 0 | DM44: 0 | DN44: 176885 | DO44: 2266 | DP44: 0 | DQ44: 0 | DR44: 0 | DS44: 0 | DT44: 0 | DU44: 1393783 | DV44: 0 | DW44: 0 | DX44: 0 | DY44: 0 | DZ44: 0 | EA44: =EA137 -> 448490 | EB44: 28315 | EC44: 0 | ED44: 0 | EE44: 0 | EF44: 0 | EG44: 0 | EH44: 235212 | EI44: 0 | EJ44: 0 | EK44: 0 | EL44: 0 | EM44: 0 | EN44: 0 | EO44: 4000 | EP44: 0 | EQ44: 0 | ER44: 20702 | ES44: 0 | ET44: 157088 | EU44: 315650 | EV44: 5649 | EW44: 0 | EX44: 14138 | EY44: 7350 | EZ44: 0 | FA44: 0 | FB44: 0 | FC44: 1004572 | FD44: 0 | FE44: 0 | FF44: 0 | FG44: 126801 | FH44: 0 | FI44: 223958 | FJ44: 0 | FK44: 0 | FL44: 87897 | FM44: 144812 | FN44: 108518 | FO44: 0 | FP44: 0 | FQ44: 219830 | FR44: 412210 | FS44: 975 | FT44: 0 | FU44: 78756 | FV44: 0 | FW44: 0 | FX44: 4305 | FY44: 1025092 | FZ44: 391092 | GA44: 9596324 | GB44: 3722343 | GC44: 13318667
B45: Village of Castleton-on-Hudson | C45: =C138 -> 380475300790 | D45: Village of Castleton-On-Hudson | E45: Rensselaer | F45: 05/31 | G45: 1473 | H45: 0 | I45: 0.7 | J45: 118313321 | K45: 2136558 | L45: 414550 | M45: 0 | N45: 0 | O45: 0 | P45: 0 | Q45: 13580 | R45: 0 | S45: 0 | T45: 0 | U45: 115809 | V45: 33580 | W45: 0 | X45: 3748 | Y45: 0 | Z45: 0 | AA45: 0 | AB45: 436 | AC45: 0 | AD45: 0 | AE45: 1170 | AF45: 0 | AG45: 0 | AH45: 0 | AI45: 0 | AJ45: 195644 | AK45: 4306 | AL45: 259866 | AM45: 399416 | AN45: 0 | AO45: 0 | AP45: 0 | AQ45: 37000 | AR45: 0 | AS45: 0 | AT45: 0 | AU45: 104304 | AV45: 0 | AW45: 0 | AX45: 0 | AY45: 0 | AZ45: 44575 | BA45: 11680 | BB45: 0 | BC45: 600 | BD45: 11508 | BE45: 0 | BF45: 0 | BG45: 6120 | BH45: 0 | BI45: 8 | BJ45: 0 | BK45: 13454 | BL45: 1671354 | BM45: 14577 | BN45: 20696 | BO45: =BO138 -> 0 | BP45: 0 | BQ45: 460558 | BR45: 0 | BS45: 54943 | BT45: 0 | BU45: 0 | BV45: 0 | BW45: 0 | BX45: 0 | BY45: 0 | BZ45: 0 | CA45: 0 | CB45: 36741 | CC45: 0 | CD45: 0 | CE45: 0 | CF45: 0 | CG45: 0 | CH45: 0 | CI45: 0 | CJ45: 0 | CK45: 0 | CL45: 0 | CM45: 2258869 | CN45: 0 | CO45: 0 | CP45: 0 | CQ45: 11933 | CR45: 0 | CS45: 2270802 | CT45: 32579 | CU45: 116670 | CV45: 0 | CW45: 0 | CX45: 1985 | CY45: 0 | CZ45: 0 | DA45: 0 | DB45: 0 | DC45: 0 | DD45: 0 | DE45: 0 | DF45: 0 | DG45: 0 | DH45: 0 | DI45: 60642 | DJ45: 0 | DK45: 0 | DL45: 0 | DM45: 0 | DN45: 22173 | DO45: 1200 | DP45: 0 | DQ45: 0 | DR45: 0 | DS45: 0 | DT45: 0 | DU45: 965890 | DV45: 0 | DW45: 0 | DX45: 0 | DY45: 0 | DZ45: 0 | EA45: =EA138 -> 34721 | EB45: 69203 | EC45: 0 | ED45: 0 | EE45: 0 | EF45: 0 | EG45: 0 | EH45: 0 | EI45: 0 | EJ45: 0 | EK45: 0 | EL45: 0 | EM45: 0 | EN45: 0 | EO45: 0 | EP45: 0 | EQ45: 11029 | ER45: 166498 | ES45: 0 | ET45: 0 | EU45: 87571 | EV45: 1164 | EW45: 0 | EX45: 0 | EY45: 0 | EZ45: 1462 | FA45: 0 | FB45: 0 | FC45: 126995 | FD45: 0 | FE45: 0 | FF45: 0 | FG45: 216532 | FH45: 12168 | FI45: 108643 | FJ45: 0 | FK45: 0 | FL45: 246104 | FM45: 39416 | FN45: 0 | FO45: 0 | FP45: 8160 | FQ45: 39821 | FR45: 48000 | FS45: 658 | FT45: 0 | FU45: 26921 | FV45: 9397 | FW45: 0 | FX45: 1447 | FY45: 109057 | FZ45: 56395 | GA45: 2622501 | GB45: 11933 | GC45: 2634434
B46: Town of Stephentown | C46: =C139 -> 380380400000 | D46: Town of Stephentown | E46: Rensselaer | F46: 12/31 | G46: 2903 | H46: 0 | I46: 57.9 | J46: 258190053 | K46: 0 | L46: - | M46: 0 | N46: - | O46: - | P46: - | Q46: - | R46: - | S46: - | T46: - | U46: - | V46: - | W46: - | X46: - | Y46: - | Z46: - | AA46: - | AB46: - | AC46: - | AD46: - | AE46: - | AF46: 0 | AG46: - | AH46: - | AI46: - | AJ46: - | AK46: - | AL46: - | AM46: - | AN46: - | AO46: - | AP46: - | AQ46: - | AR46: - | AS46: - | AT46: - | AU46: - | AV46: - | AW46: - | AX46: - | AY46: - | AZ46: - | BA46: - | BB46: - | BC46: - | BD46: - | BE46: - | BF46: - | BG46: - | BH46: - | BI46: - | BJ46: - | BK46: - | BL46: - | BM46: - | BN46: - | BO46: =BO139 -> - | BP46: - | BQ46: - | BR46: - | BS46: - | BT46: - | BU46: - | BV46: - | BW46: - | BX46: - | BY46: - | BZ46: - | CA46: - | CB46: - | CC46: - | CD46: - | CE46: - | CF46: - | CG46: - | CH46: - | CI46: - | CJ46: - | CK46: - | CL46: - | CM46: - | CN46: - | CO46: - | CP46: - | CQ46: - | CR46: - | CS46: - | CT46: - | CU46: - | CV46: - | CW46: - | CX46: - | CY46: - | CZ46: - | DA46: - | DB46: - | DC46: - | DD46: - | DE46: - | DF46: - | DG46: - | DH46: - | DI46: - | DJ46: - | DK46: - | DL46: - | DM46: - | DN46: - | DO46: - | DP46: - | DQ46: - | DR46: - | DS46: - | DT46: - | DU46: - | DV46: - | DW46: - | DX46: - | DY46: - | DZ46: - | EA46: =EA139 -> - | EB46: - | EC46: - | ED46: - | EE46: - | EF46: - | EG46: - | EH46: - | EI46: - | EJ46: - | EK46: - | EL46: - | EM46: - | EN46: - | EO46: - | EP46: - | EQ46: - | ER46: - | ES46: - | ET46: - | EU46: - | EV46: - | EW46: - | EX46: - | EY46: - | EZ46: - | FA46: - | FB46: - | FC46: - | FD46: - | FE46: - | FF46: - | FG46: - | FH46: - | FI46: - | FJ46: - | FK46: - | FL46: - | FM46: - | FN46: - | FO46: - | FP46: - | FQ46: - | FR46: - | FS46: - | FT46: - | FU46: - | FV46: - | FW46: - | FX46: - | FY46: - | FZ46: - | GA46: - | GB46: - | GC46: -
B47: City of Troy | C47: =C140 -> 380257000000 | D47: City of Troy | E47: Rensselaer | F47: 12/31 | G47: 50129 | H47: 0 | I47: 10.4 | J47: 1905426906 | K47: 76568550 | L47: 18310039 | M47: 0 | N47: 13468 | O47: 0 | P47: 1095428 | Q47: 802592 | R47: 0 | S47: 0 | T47: 7945 | U47: 13374257 | V47: 686896 | W47: 0 | X47: 539137 | Y47: 0 | Z47: 0 | AA47: 0 | AB47: 273155 | AC47: 0 | AD47: 106601 | AE47: 2059288 | AF47: 0 | AG47: 1019086 | AH47: 0 | AI47: 331364 | AJ47: 1530414 | AK47: 475981 | AL47: 10600082 | AM47: 2849678 | AN47: 0 | AO47: 192088 | AP47: 0 | AQ47: 170871 | AR47: 0 | AS47: 37130 | AT47: 0 | AU47: 0 | AV47: 0 | AW47: 29484 | AX47: 0 | AY47: 0 | AZ47: 0 | BA47: 358774 | BB47: 2612303 | BC47: 292565 | BD47: 1315654 | BE47: 110986 | BF47: 19765 | BG47: 0 | BH47: 0 | BI47: 421118 | BJ47: 0 | BK47: 2378143 | BL47: 62014292 | BM47: 12530064 | BN47: 480130 | BO47: =BO140 -> 185479 | BP47: 0 | BQ47: 531162 | BR47: 0 | BS47: 857645 | BT47: 0 | BU47: 0 | BV47: 2059 | BW47: 0 | BX47: 0 | BY47: 0 | BZ47: 2163685 | CA47: 0 | CB47: 930012 | CC47: 0 | CD47: 5761857 | CE47: 0 | CF47: 2340482 | CG47: 0 | CH47: 0 | CI47: 0 | CJ47: 0 | CK47: 0 | CL47: 687152 | CM47: 88484019 | CN47: 1000000 | CO47: 225000 | CP47: 0 | CQ47: 3672867 | CR47: 0 | CS47: 93381886 | CT47: 4206232 | CU47: 3364069 | CV47: 0 | CW47: 0 | CX47: 1018307 | CY47: 35144 | CZ47: 0 | DA47: 0 | DB47: 0 | DC47: 0 | DD47: 0 | DE47: 0 | DF47: 0 | DG47: 0 | DH47: 12051865 | DI47: 9833267 | DJ47: 0 | DK47: 0 | DL47: 0 | DM47: 0 | DN47: 583074 | DO47: 111111 | DP47: 0 | DQ47: 0 | DR47: 0 | DS47: 0 | DT47: 0 | DU47: 8849367 | DV47: 0 | DW47: 0 | DX47: 0 | DY47: 0 | DZ47: 0 | EA47: =EA140 -> 0 | EB47: 296320 | EC47: 467799 | ED47: 0 | EE47: 0 | EF47: 0 | EG47: 0 | EH47: 0 | EI47: 0 | EJ47: 0 | EK47: 0 | EL47: 0 | EM47: 590138 | EN47: 1818179 | EO47: 0 | EP47: 909479 | EQ47: 0 | ER47: 2734377 | ES47: 0 | ET47: 73000 | EU47: 0 | EV47: 38750 | EW47: 0 | EX47: 397025 | EY47: 0 | EZ47: 0 | FA47: 0 | FB47: 1588751 | FC47: 7644325 | FD47: 0 | FE47: 0 | FF47: 0 | FG47: 1588535 | FH47: 0 | FI47: 2411322 | FJ47: 0 | FK47: 0 | FL47: 0 | FM47: 0 | FN47: 0 | FO47: 0 | FP47: 0 | FQ47: 0 | FR47: 4079374 | FS47: 0 | FT47: 0 | FU47: 0 | FV47: 61998 | FW47: 0 | FX47: 14534427 | FY47: 4459485 | FZ47: 2822635 | GA47: 86568355 | GB47: 3672867 | GC47: 90241222
B48: Saratoga County | C48: =C141 -> 410100000000 | D48: County of Saratoga | E48: Saratoga | F48: 12/31 | G48: 219607 | H48: 0 | I48: 810 | J48: 21886916706 | K48: 79869000 | L48: 46220413 | M48: 0 | N48: 0 | O48: 0 | P48: 663963 | Q48: 2630121 | R48: 77072 | S48: 0 | T48: 95560233 | U48: 400000 | V48: 0 | W48: 592111 | X48: 0 | Y48: 812508 | Z48: 1819523 | AA48: 0 | AB48: 6350243 | AC48: 0 | AD48: 816770 | AE48: 23510333 | AF48: 0 | AG48: 77955 | AH48: 2844121 | AI48: 0 | AJ48: 0 | AK48: 268520 | AL48: 0 | AM48: 12512283 | AN48: 0 | AO48: 117931 | AP48: 0 | AQ48: 1155755 | AR48: 0 | AS48: 272614 | AT48: 0 | AU48: 419316 | AV48: 0 | AW48: 0 | AX48: 0 | AY48: 3690967 | AZ48: 0 | BA48: 1591636 | BB48: 773753 | BC48: 1369414 | BD48: 390328 | BE48: 13515 | BF48: 2239193 | BG48: 0 | BH48: 0 | BI48: 0 | BJ48: 0 | BK48: 880500 | BL48: 208071093 | BM48: 0 | BN48: 0 | BO48: =BO141 -> 634476 | BP48: 3507418 | BQ48: 799823 | BR48: 5016070 | BS48: 2611376 | BT48: 7933123 | BU48: 353732 | BV48: 264853 | BW48: 862749 | BX48: 0 | BY48: 0 | BZ48: 301659 | CA48: 3115009 | CB48: 159069 | CC48: 2245969 | CD48: 602760 | CE48: 10750094 | CF48: 1185777 | CG48: 205052 | CH48: 563371 | CI48: 0 | CJ48: 0 | CK48: 6627200 | CL48: 2705088 | CM48: 258515761 | CN48: 28974000 | CO48: 0 | CP48: 0 | CQ48: 21023924 | CR48: 0 | CS48: 308513685 | CT48: 34304826 | CU48: 12355565 | CV48: 46860443 | CW48: 568110 | CX48: 1037576 | CY48: 156794 | CZ48: 0 | DA48: 0 | DB48: 0 | DC48: 0 | DD48: 0 | DE48: 6611094 | DF48: 11119682 | DG48: 132170 | DH48: 11302328 | DI48: 385075 | DJ48: 0 | DK48: 7954552 | DL48: 0 | DM48: 276598 | DN48: 690158 | DO48: 3876072 | DP48: 2747420 | DQ48: 8433053 | DR48: 0 | DS48: 17025679 | DT48: 0 | DU48: 11885622 | DV48: 215712 | DW48: 78597 | DX48: 942228 | DY48: 0 | DZ48: 0 | EA48: =EA141 -> 2162947 | EB48: 0 | EC48: 759541 | ED48: 6135343 | EE48: 14456371 | EF48: 21457615 | EG48: 3980634 | EH48: 0 | EI48: 735246 | EJ48: 403120 | EK48: 0 | EL48: 60000 | EM48: 0 | EN48: 0 | EO48: 783671 | EP48: 0 | EQ48: 0 | ER48: 0 | ES48: 0 | ET48: 641098 | EU48: 34000 | EV48: 87940 | EW48: 995273 | EX48: 296506 | EY48: 2058830 | EZ48: 1212672 | FA48: 0 | FB48: 3 | FC48: 0 | FD48: 0 | FE48: 0 | FF48: 0 | FG48: 7305998 | FH48: 0 | FI48: 0 | FJ48: 0 | FK48: 0 | FL48: 0 | FM48: 0 | FN48: 0 | FO48: 0 | FP48: 0 | FQ48: 0 | FR48: 0 | FS48: 0 | FT48: 0 | FU48: 0 | FV48: 0 | FW48: 0 | FX48: 41820436 | FY48: 2400000 | FZ48: 2494027 | GA48: 289240623 | GB48: 21023925 | GC48: 310264548
B49: Village of Ballston Spa | C49: =C142 -> 410453400340 | D49: Village of Ballston Spa | E49: Saratoga | F49: 05/31 | G49: 5409 | H49: 0 | I49: 1.6 | J49: 334011245 | K49: 952705 | L49: 1202165 | M49: 0 | N49: 0 | O49: 0 | P49: 0 | Q49: 3842 | R49: 0 | S49: 0 | T49: 0 | U49: 818402 | V49: 62028 | W49: 0 | X49: 54040 | Y49: 0 | Z49: 0 | AA49: 0 | AB49: 1994 | AC49: 0 | AD49: 0 | AE49: 5030 | AF49: 0 | AG49: 0 | AH49: 0 | AI49: 0 | AJ49: 47982 | AK49: 8148 | AL49: 675670 | AM49: 173604 | AN49: 0 | AO49: 0 | AP49: 0 | AQ49: 262500 | AR49: 0 | AS49: 0 | AT49: 0 | AU49: 84334 | AV49: 0 | AW49: 0 | AX49: 0 | AY49: 0 | AZ49: 0 | BA49: 879 | BB49: 5260 | BC49: 53644 | BD49: 27256 | BE49: 0 | BF49: 4447 | BG49: 1639 | BH49: 0 | BI49: 1379 | BJ49: 4332 | BK49: 92293 | BL49: 3590869 | BM49: 0 | BN49: 65117 | BO49: =BO142 -> 0 | BP49: 0 | BQ49: 5900 | BR49: 0 | BS49: 74887 | BT49: 0 | BU49: 0 | BV49: 0 | BW49: 0 | BX49: 0 | BY49: 0 | BZ49: 197715 | CA49: 0 | CB49: 0 | CC49: 0 | CD49: 0 | CE49: 986327 | CF49: 3084 | CG49: 0 | CH49: 50609 | CI49: 0 | CJ49: 0 | CK49: 0 | CL49: 0 | CM49: 4974508 | CN49: 0 | CO49: 0 | CP49: 0 | CQ49: 0 | CR49: 0 | CS49: 4974508 | CT49: 284690 | CU49: 272161 | CV49: 0 | CW49: 0 | CX49: 11520 | CY49: 0 | CZ49: 0 | DA49: 0 | DB49: 0 | DC49: 0 | DD49: 0 | DE49: 0 | DF49: 0 | DG49: 0 | DH49: 580758 | DI49: 148284 | DJ49: 0 | DK49: 0 | DL49: 0 | DM49: 0 | DN49: 45502 | DO49: 5883 | DP49: 0 | DQ49: 0 | DR49: 0 | DS49: 0 | DT49: 0 | DU49: 347878 | DV49: 0 | DW49: 0 | DX49: 0 | DY49: 0 | DZ49: 0 | EA49: =EA142 -> 0 | EB49: 102500 | EC49: 6608 | ED49: 0 | EE49: 0 | EF49: 0 | EG49: 0 | EH49: 988548 | EI49: 0 | EJ49: 0 | EK49: 0 | EL49: 0 | EM49: 0 | EN49: 900 | EO49: 2500 | EP49: 0 | EQ49: 0 | ER49: 142824 | ES49: 0 | ET49: 0 | EU49: 161513 | EV49: 18431 | EW49: 0 | EX49: 0 | EY49: 0 | EZ49: 17000 | FA49: 0 | FB49: 0 | FC49: 499553 | FD49: 0 | FE49: 0 | FF49: 0 | FG49: 142599 | FH49: 12147 | FI49: 0 | FJ49: 0 | FK49: 0 | FL49: 0 | FM49: 68033 | FN49: 62066 | FO49: 0 | FP49: 0 | FQ49: 118439 | FR49: 314929 | FS49: 0 | FT49: 0 | FU49: 49627 | FV49: 15770 | FW49: 0 | FX49: 0 | FY49: 301853 | FZ49: 53043 | GA49: 4775559 | GB49: 0 | GC49: 4775559
B50: Town of Ballston | C50: =C143 -> 410304900000 | D50: Town of Ballston | E50: Saratoga | F50: 12/31 | G50: 9776 | H50: 0 | I50: 29.6 | J50: 952484335 | K50: 3970500 | L50: 1176284 | M50: 0 | N50: 0 | O50: 0 | P50: 0 | Q50: 7700 | R50: 0 | S50: 0 | T50: 0 | U50: 2235176 | V50: 0 | W50: 0 | X50: 70551 | Y50: 0 | Z50: 0 | AA50: 0 | AB50: 3571 | AC50: 0 | AD50: 520 | AE50: 2280 | AF50: 0 | AG50: 0 | AH50: 0 | AI50: 0 | AJ50: 17831 | AK50: 137771 | AL50: 524391 | AM50: 0 | AN50: 0 | AO50: 0 | AP50: 0 | AQ50: 0 | AR50: 0 | AS50: 0 | AT50: 0 | AU50: 0 | AV50: 0 | AW50: 0 | AX50: 0 | AY50: 26000 | AZ50: 0 | BA50: 4787 | BB50: 26021 | BC50: 0 | BD50: 69031 | BE50: 0 | BF50: 0 | BG50: 124 | BH50: 0 | BI50: 58175 | BJ50: 0 | BK50: 98171 | BL50: 4458384 | BM50: 50222 | BN50: 356091 | BO50: =BO143 -> 0 | BP50: 0 | BQ50: 0 | BR50: 0 | BS50: 87685 | BT50: 0 | BU50: 0 | BV50: 0 | BW50: 0 | BX50: 0 | BY50: 0 | BZ50: 0 | CA50: 0 | CB50: 0 | CC50: 0 | CD50: 0 | CE50: 0 | CF50: 0 | CG50: 0 | CH50: 0 | CI50: 0 | CJ50: 0 | CK50: 0 | CL50: 0 | CM50: 4952382 | CN50: 0 | CO50: 0 | CP50: 0 | CQ50: 0 | CR50: 0 | CS50: 4952382 | CT50: 159374 | CU50: 380051 | CV50: 0 | CW50: 0 | CX50: 314052 | CY50: 0 | CZ50: 0 | DA50: 0 | DB50: 0 | DC50: 0 | DD50: 0 | DE50: 0 | DF50: 0 | DG50: 0 | DH50: 0 | DI50: 141388 | DJ50: 234836 | DK50: 0 | DL50: 0 | DM50: 0 | DN50: 18351 | DO50: 3213 | DP50: 0 | DQ50: 0 | DR50: 0 | DS50: 0 | DT50: 0 | DU50: 1196306 | DV50: 14761 | DW50: 0 | DX50: 0 | DY50: 0 | DZ50: 0 | EA50: =EA143 -> 223725 | EB50: 14416 | EC50: 29610 | ED50: 0 | EE50: 0 | EF50: 0 | EG50: 0 | EH50: 0 | EI50: 0 | EJ50: 0 | EK50: 0 | EL50: 0 | EM50: 0 | EN50: 0 | EO50: 0 | EP50: 0 | EQ50: 0 | ER50: 19136 | ES50: 0 | ET50: 18500 | EU50: 437089 | EV50: 5180 | EW50: 0 | EX50: 877 | EY50: 16349 | EZ50: 0 | FA50: 0 | FB50: 0 | FC50: 1136490 | FD50: 0 | FE50: 0 | FF50: 0 | FG50: 0 | FH50: 0 | FI50: 1279 | FJ50: 0 | FK50: 0 | FL50: 0 | FM50: 126643 | FN50: 0 | FO50: 0 | FP50: 0 | FQ50: 100006 | FR50: 323284 | FS50: 603 | FT50: 0 | FU50: 0 | FV50: 0 | FW50: 0 | FX50: 0 | FY50: 377500 | FZ50: 130069 | GA50: 5423088 | GB50: 0 | GC50: 5423088
B51: Town of Charlton | C51: =C144 -> 410314700000 | D51: Town of Charlton | E51: Saratoga | F51: 12/31 | G51: 4133 | H51: 0 | I51: 32.8 | J51: 441650710 | K51: 1853600 | L51: 138032 | M51: 0 | N51: 0 | O51: 0 | P51: 0 | Q51: 2472 | R51: 0 | S51: 0 | T51: 0 | U51: 1130663 | V51: 0 | W51: 0 | X51: 23129 | Y51: 0 | Z51: 0 | AA51: 0 | AB51: 2101 | AC51: 0 | AD51: 12110 | AE51: 0 | AF51: 0 | AG51: 0 | AH51: 0 | AI51: 0 | AJ51: 0 | AK51: 36740 | AL51: 102446 | AM51: 0 | AN51: 0 | AO51: 0 | AP51: 0 | AQ51: 0 | AR51: 0 | AS51: 360 | AT51: 0 | AU51: 0 | AV51: 0 | AW51: 0 | AX51: 0 | AY51: 0 | AZ51: 0 | BA51: 9535 | BB51: 0 | BC51: 0 | BD51: 43742 | BE51: 0 | BF51: 1218 | BG51: 0 | BH51: 0 | BI51: 5646 | BJ51: 0 | BK51: 12428 | BL51: 1520622 | BM51: 33362 | BN51: 134799 | BO51: =BO144 -> 28469 | BP51: 0 | BQ51: 0 | BR51: 0 | BS51: 84766 | BT51: 0 | BU51: 0 | BV51: 1361 | BW51: 0 | BX51: 0 | BY51: 0 | BZ51: 16499 | CA51: 0 | CB51: 0 | CC51: 0 | CD51: 0 | CE51: 0 | CF51: 0 | CG51: 0 | CH51: 0 | CI51: 0 | CJ51: 0 | CK51: 0 | CL51: 0 | CM51: 1819878 | CN51: 0 | CO51: 0 | CP51: 0 | CQ51: 0 | CR51: 0 | CS51: 1819878 | CT51: 223897 | CU51: 251679 | CV51: 0 | CW51: 0 | CX51: 24428 | CY51: 2500 | CZ51: 0 | DA51: 0 | DB51: 0 | DC51: 0 | DD51: 0 | DE51: 0 | DF51: 0 | DG51: 0 | DH51: 49446 | DI51: 0 | DJ51: 24780 | DK51: 0 | DL51: 0 | DM51: 0 | DN51: 14370 | DO51: 1031 | DP51: 0 | DQ51: 0 | DR51: 0 | DS51: 0 | DT51: 0 | DU51: 573959 | DV51: 0 | DW51: 0 | DX51: 0 | DY51: 0 | DZ51: 0 | EA51: =EA144 -> 63997 | EB51: 0 | EC51: 0 | ED51: 0 | EE51: 0 | EF51: 0 | EG51: 0 | EH51: 0 | EI51: 0 | EJ51: 0 | EK51: 0 | EL51: 0 | EM51: 0 | EN51: 0 | EO51: 0 | EP51: 0 | EQ51: 0 | ER51: 3640 | ES51: 0 | ET51: 615 | EU51: 48250 | EV51: 14137 | EW51: 0 | EX51: 4602 | EY51: 5553 | EZ51: 0 | FA51: 0 | FB51: 0 | FC51: 266966 | FD51: 0 | FE51: 0 | FF51: 0 | FG51: 0 | FH51: 0 | FI51: 10196 | FJ51: 0 | FK51: 2650 | FL51: 0 | FM51: 49742 | FN51: 0 | FO51: 0 | FP51: 0 | FQ51: 43683 | FR51: 82892 | FS51: 421 | FT51: 0 | FU51: 0 | FV51: 2860 | FW51: 0 | FX51: 0 | FY51: 80450 | FZ51: 67469 | GA51: 1914213 | GB51: 0 | GC51: 1914213
B52: Town of Clifton Park | C52: =C145 -> 410317400000 | D52: Town of Clifton Park | E52: Saratoga | F52: 12/31 | G52: 36705 | H52: 0 | I52: 48.2 | J52: 3896606465 | K52: 12057491 | L52: 3014340 | M52: 0 | N52: 0 | O52: 0 | P52: 152859 | Q52: 25300 | R52: 0 | S52: 0 | T52: 0 | U52: 9712419 | V52: 0 | W52: 0 | X52: 0 | Y52: 0 | Z52: 0 | AA52: 0 | AB52: 899339 | AC52: 0 | AD52: 0 | AE52: 0 | AF52: 0 | AG52: 0 | AH52: 0 | AI52: 0 | AJ52: 996875 | AK52: 321314 | AL52: 13473 | AM52: 319049 | AN52: 0 | AO52: 0 | AP52: 0 | AQ52: 0 | AR52: 0 | AS52: 0 | AT52: 0 | AU52: 0 | AV52: 0 | AW52: 0 | AX52: 693203 | AY52: 454651 | AZ52: 149356 | BA52: 49053 | BB52: 508235 | BC52: 223689 | BD52: 644528 | BE52: 0 | BF52: 7015 | BG52: 0 | BH52: 0 | BI52: 225 | BJ52: 0 | BK52: 245372 | BL52: 18430295 | BM52: 100090 | BN52: 1497611 | BO52: =BO145 -> 0 | BP52: 0 | BQ52: 0 | BR52: 0 | BS52: 273853 | BT52: 0 | BU52: 0 | BV52: 0 | BW52: 0 | BX52: 0 | BY52: 0 | BZ52: 387933 | CA52: 0 | CB52: 0 | CC52: 0 | CD52: 0 | CE52: 324901 | CF52: 0 | CG52: 0 | CH52: 0 | CI52: 0 | CJ52: 0 | CK52: 0 | CL52: 87804 | CM52: 21102486 | CN52: 0 | CO52: 41000 | CP52: 0 | CQ52: 3820295 | CR52: 0 | CS52: 24963781 | CT52: 1747182 | CU52: 1676192 | CV52: 0 | CW52: 0 | CX52: 382269 | CY52: 0 | CZ52: 0 | DA52: 0 | DB52: 0 | DC52: 0 | DD52: 0 | DE52: 0 | DF52: 0 | DG52: 50530 | DH52: 1009896 | DI52: 345428 | DJ52: 1728944 | DK52: 0 | DL52: 13078 | DM52: 0 | DN52: 775804 | DO52: 21300 | DP52: 0 | DQ52: 0 | DR52: 0 | DS52: 0 | DT52: 0 | DU52: 3750269 | DV52: 0 | DW52: 0 | DX52: 0 | DY52: 0 | DZ52: 0 | EA52: =EA145 -> 187017 | EB52: 243463 | EC52: 0 | ED52: 0 | EE52: 0 | EF52: 0 | EG52: 0 | EH52: 319770 | EI52: 0 | EJ52: 0 | EK52: 0 | EL52: 0 | EM52: 0 | EN52: 0 | EO52: 0 | EP52: 0 | EQ52: 500 | ER52: 2652140 | ES52: 0 | ET52: 771644 | EU52: 0 | EV52: 112526 | EW52: 0 | EX52: 1000 | EY52: 250409 | EZ52: 11836 | FA52: 0 | FB52: 143557 | FC52: 23361 | FD52: 0 | FE52: 0 | FF52: 0 | FG52: 1649301 | FH52: 0 | FI52: 670129 | FJ52: 0 | FK52: 48522 | FL52: 0 | FM52: 393303 | FN52: 0 | FO52: 0 | FP52: 0 | FQ52: 480049 | FR52: 2241357 | FS52: 14994 | FT52: 19472 | FU52: 122551 | FV52: 7770 | FW52: 0 | FX52: 0 | FY52: 576957 | FZ52: 469538 | GA52: 22912056 | GB52: 3820295 | GC52: 26732351
B53: Town of Corinth | C53: =C146 -> 410320000000 | D53: Town of Corinth | E53: Saratoga | F53: 12/31 | G53: 6531 | H53: 0 | I53: 56.8 | J53: 549529510 | K53: 0 | L53: 1608003 | M53: 0 | N53: 0 | O53: 0 | P53: 313363 | Q53: 5208 | R53: 0 | S53: 0 | T53: 0 | U53: 702444 | V53: 0 | W53: 0 | X53: 45968 | Y53: 0 | Z53: 0 | AA53: 0 | AB53: 85748 | AC53: 0 | AD53: 90 | AE53: 207492 | AF53: 0 | AG53: 0 | AH53: 0 | AI53: 0 | AJ53: 0 | AK53: 17161 | AL53: 23440 | AM53: 191621 | AN53: 0 | AO53: 0 | AP53: 0 | AQ53: 0 | AR53: 0 | AS53: 0 | AT53: 0 | AU53: 0 | AV53: 0 | AW53: 0 | AX53: 0 | AY53: 0 | AZ53: 0 | BA53: 6528 | BB53: 0 | BC53: 7200 | BD53: 52619 | BE53: 0 | BF53: 99 | BG53: 0 | BH53: 0 | BI53: 0 | BJ53: 0 | BK53: 3510 | BL53: 3270496 | BM53: 22512 | BN53: 76175 | BO53: =BO146 -> 0 | BP53: 0 | BQ53: 0 | BR53: 0 | BS53: 1311755 | BT53: 0 | BU53: 0 | BV53: 26033 | BW53: 2573 | BX53: 0 | BY53: 0 | BZ53: 0 | CA53: 0 | CB53: 0 | CC53: 0 | CD53: 0 | CE53: 0 | CF53: 0 | CG53: 0 | CH53: 0 | CI53: 0 | CJ53: 0 | CK53: 0 | CL53: 0 | CM53: 4709543 | CN53: 0 | CO53: 0 | CP53: 0 | CQ53: 0 | CR53: 0 | CS53: 4709543 | CT53: 148077 | CU53: 372366 | CV53: 0 | CW53: 0 | CX53: 27592 | CY53: 9556 | CZ53: 0 | DA53: 0 | DB53: 0 | DC53: 0 | DD53: 0 | DE53: 0 | DF53: 0 | DG53: 4244 | DH53: 4099 | DI53: 261021 | DJ53: 152814 | DK53: 0 | DL53: 0 | DM53: 0 | DN53: 91670 | DO53: 1518 | DP53: 0 | DQ53: 0 | DR53: 0 | DS53: 48072 | DT53: 299283 | DU53: 901418 | DV53: 0 | DW53: 0 | DX53: 0 | DY53: 983666 | DZ53: 0 | EA53: =EA146 -> 155423 | EB53: 8536 | EC53: 0 | ED53: 0 | EE53: 0 | EF53: 0 | EG53: 0 | EH53: 0 | EI53: 0 | EJ53: 0 | EK53: 0 | EL53: 0 | EM53: 3500 | EN53: 0 | EO53: 0 | EP53: 0 | EQ53: 1000 | ER53: 3396 | ES53: 0 | ET53: 34202 | EU53: 14500 | EV53: 42700 | EW53: 0 | EX53: 7644 | EY53: 64625 | EZ53: 0 | FA53: 0 | FB53: 0 | FC53: 25376 | FD53: 0 | FE53: 0 | FF53: 0 | FG53: 0 | FH53: 0 | FI53: 220679 | FJ53: 4513 | FK53: 0 | FL53: 5625 | FM53: 109520 | FN53: 0 | FO53: 0 | FP53: 0 | FQ53: 97106 | FR53: 217226 | FS53: 1013 | FT53: 0 | FU53: 0 | FV53: 5602 | FW53: 0 | FX53: 6956 | FY53: 0 | FZ53: 0 | GA53: 4334538 | GB53: 0 | GC53: 4334538
B54: Village of Corinth | C54: =C147 -> 410420001150 | D54: Village of Corinth | E54: Saratoga | F54: 05/31 | G54: 2559 | H54: 0 | I54: 1.1 | J54: 240958385 | K54: 5990000 | L54: 1433372 | M54: 0 | N54: 0 | O54: 0 | P54: 456795 | Q54: 10646 | R54: 0 | S54: 0 | T54: 0 | U54: 595008 | V54: 63630 | W54: 0 | X54: 0 | Y54: 0 | Z54: 0 | AA54: 0 | AB54: 86951 | AC54: 0 | AD54: 0 | AE54: 0 | AF54: 0 | AG54: 0 | AH54: 0 | AI54: 13389 | AJ54: 0 | AK54: 4378 | AL54: 344412 | AM54: 336713 | AN54: 0 | AO54: 0 | AP54: 0 | AQ54: 261021 | AR54: 0 | AS54: 0 | AT54: 0 | AU54: 0 | AV54: 0 | AW54: 0 | AX54: 0 | AY54: 0 | AZ54: 0 | BA54: 15897 | BB54: 6746 | BC54: 300 | BD54: 1025 | BE54: 0 | BF54: 12920 | BG54: 0 | BH54: 0 | BI54: 300 | BJ54: 0 | BK54: 840 | BL54: 3644343 | BM54: 24560 | BN54: 21955 | BO54: =BO147 -> 0 | BP54: 0 | BQ54: 0 | BR54: 0 | BS54: 130767 | BT54: 0 | BU54: 0 | BV54: 1405 | BW54: 1000 | BX54: 0 | BY54: 47975 | BZ54: 0 | CA54: 0 | CB54: 0 | CC54: 0 | CD54: 0 | CE54: 589675 | CF54: 326016 | CG54: 0 | CH54: 0 | CI54: 0 | CJ54: 0 | CK54: 0 | CL54: 0 | CM54: 4787696 | CN54: 0 | CO54: 0 | CP54: 0 | CQ54: 488546 | CR54: 0 | CS54: 5276242 | CT54: 137825 | CU54: 176146 | CV54: 0 | CW54: 0 | CX54: 29513 | CY54: 10661 | CZ54: 0 | DA54: 0 | DB54: 0 | DC54: 0 | DD54: 0 | DE54: 0 | DF54: 0 | DG54: 380 | DH54: 397721 | DI54: 255137 | DJ54: 0 | DK54: 0 | DL54: 1416 | DM54: 0 | DN54: 17412 | DO54: 0 | DP54: 0 | DQ54: 0 | DR54: 0 | DS54: 0 | DT54: 0 | DU54: 761988 | DV54: 0 | DW54: 0 | DX54: 0 | DY54: 0 | DZ54: 0 | EA54: =EA147 -> 0 | EB54: 51280 | EC54: 0 | ED54: 0 | EE54: 0 | EF54: 0 | EG54: 0 | EH54: 466450 | EI54: 0 | EJ54: 0 | EK54: 0 | EL54: 0 | EM54: 108099 | EN54: 330531 | EO54: 0 | EP54: 0 | EQ54: 520 | ER54: 20345 | ES54: 0 | ET54: 14145 | EU54: 13500 | EV54: 12932 | EW54: 0 | EX54: 0 | EY54: 1097 | EZ54: 635 | FA54: 0 | FB54: 5500 | FC54: 292752 | FD54: 0 | FE54: 0 | FF54: 0 | FG54: 259182 | FH54: 0 | FI54: 163204 | FJ54: 0 | FK54: 0 | FL54: 0 | FM54: 41873 | FN54: 0 | FO54: 0 | FP54: 27188 | FQ54: 58456 | FR54: 294737 | FS54: 478 | FT54: 0 | FU54: 0 | FV54: 583 | FW54: 0 | FX54: 0 | FY54: 170000 | FZ54: 289934 | GA54: 4411620 | GB54: 488546 | GC54: 4900166
B55: Town of Day | C55: =C148 -> 410322000000 | D55: Town of Day | E55: Saratoga | F55: 12/31 | G55: 856 | H55: 0 | I55: 64.1 | J55: 324648383 | K55: 0 | L55: 461663 | M55: 0 | N55: 0 | O55: 0 | P55: 19848 | Q55: 3105 | R55: 0 | S55: 0 | T55: 0 | U55: 778955 | V55: 0 | W55: 0 | X55: 0 | Y55: 0 | Z55: 0 | AA55: 0 | AB55: 736 | AC55: 0 | AD55: 9101 | AE55: 0 | AF55: 0 | AG55: 0 | AH55: 0 | AI55: 0 | AJ55: 35 | AK55: 50 | AL55: 0 | AM55: 2045 | AN55: 0 | AO55: 0 | AP55: 0 | AQ55: 0 | AR55: 0 | AS55: 0 | AT55: 0 | AU55: 0 | AV55: 0 | AW55: 0 | AX55: 0 | AY55: 0 | AZ55: 0 | BA55: 3509 | BB55: 3640 | BC55: 0 | BD55: 6468 | BE55: 0 | BF55: 0 | BG55: 0 | BH55: 0 | BI55: 0 | BJ55: 0 | BK55: 603 | BL55: 1289758 | BM55: 0 | BN55: 35374 | BO55: =BO148 -> 0 | BP55: 0 | BQ55: 0 | BR55: 0 | BS55: 62206 | BT55: 0 | BU55: 0 | BV55: 3780 | BW55: 991 | BX55: 0 | BY55: 0 | BZ55: 136216 | CA55: 0 | CB55: 0 | CC55: 0 | CD55: 0 | CE55: 0 | CF55: 0 | CG55: 0 | CH55: 0 | CI55: 0 | CJ55: 0 | CK55: 0 | CL55: 0 | CM55: 1528325 | CN55: 0 | CO55: 0 | CP55: 0 | CQ55: 0 | CR55: 0 | CS55: 1528325 | CT55: 82335 | CU55: 182541 | CV55: 0 | CW55: 0 | CX55: 14755 | CY55: 0 | CZ55: 0 | DA55: 0 | DB55: 0 | DC55: 0 | DD55: 0 | DE55: 0 | DF55: 0 | DG55: 0 | DH55: 245 | DI55: 43585 | DJ55: 11000 | DK55: 0 | DL55: 0 | DM55: 0 | DN55: 41028 | DO55: 1516 | DP55: 0 | DQ55: 0 | DR55: 0 | DS55: 0 | DT55: 0 | DU55: 615732 | DV55: 0 | DW55: 0 | DX55: 0 | DY55: 0 | DZ55: 0 | EA55: =EA148 -> 216346 | EB55: 3350 | EC55: 0 | ED55: 0 | EE55: 0 | EF55: 0 | EG55: 0 | EH55: 0 | EI55: 0 | EJ55: 0 | EK55: 0 | EL55: 0 | EM55: 0 | EN55: 0 | EO55: 0 | EP55: 0 | EQ55: 0 | ER55: 684 | ES55: 0 | ET55: 5703 | EU55: 0 | EV55: 10793 | EW55: 0 | EX55: 5661 | EY55: 725 | EZ55: 2508 | FA55: 0 | FB55: 0 | FC55: 0 | FD55: 0 | FE55: 0 | FF55: 0 | FG55: 0 | FH55: 0 | FI55: 311307 | FJ55: 0 | FK55: 0 | FL55: 0 | FM55: 44934 | FN55: 0 | FO55: 0 | FP55: 0 | FQ55: 43930 | FR55: 139110 | FS55: 280 | FT55: 0 | FU55: 0 | FV55: 193 | FW55: 0 | FX55: 0 | FY55: 0 | FZ55: 0 | GA55: 1778261 | GB55: 0 | GC55: 1778261
B56: Town of Edinburg | C56: =C149 -> 410325500000 | D56: Town of Edinburg | E56: Saratoga | F56: 12/31 | G56: 1214 | H56: 0 | I56: 60.2 | J56: 409060172 | K56: 0 | L56: 280075 | M56: 0 | N56: 0 | O56: 0 | P56: 3086 | Q56: 2164 | R56: 0 | S56: 0 | T56: 0 | U56: 962445 | V56: 0 | W56: 0 | X56: 0 | Y56: 0 | Z56: 0 | AA56: 0 | AB56: 1603 | AC56: 0 | AD56: 0 | AE56: 0 | AF56: 0 | AG56: 0 | AH56: 0 | AI56: 0 | AJ56: 2232 | AK56: 15134 | AL56: 0 | AM56: 0 | AN56: 0 | AO56: 0 | AP56: 0 | AQ56: 0 | AR56: 0 | AS56: 0 | AT56: 0 | AU56: 0 | AV56: 0 | AW56: 0 | AX56: 0 | AY56: 0 | AZ56: 0 | BA56: 1963 | BB56: 7570 | BC56: 0 | BD56: 7848 | BE56: 0 | BF56: 0 | BG56: 0 | BH56: 0 | BI56: 0 | BJ56: 0 | BK56: 2392 | BL56: 1286513 | BM56: 5064 | BN56: 45381 | BO56: =BO149 -> 0 | BP56: 0 | BQ56: 0 | BR56: 0 | BS56: 65468 | BT56: 0 | BU56: 0 | BV56: 1736 | BW56: 0 | BX56: 0 | BY56: 0 | BZ56: 23999 | CA56: 0 | CB56: 0 | CC56: 0 | CD56: 0 | CE56: 0 | CF56: 0 | CG56: 0 | CH56: 0 | CI56: 0 | CJ56: 0 | CK56: 0 | CL56: 0 | CM56: 1428162 | CN56: 0 | CO56: 0 | CP56: 0 | CQ56: 50733 | CR56: 0 | CS56: 1478895 | CT56: 111395 | CU56: 182638 | CV56: 0 | CW56: 0 | CX56: 14435 | CY56: 0 | CZ56: 0 | DA56: 0 | DB56: 0 | DC56: 0 | DD56: 0 | DE56: 0 | DF56: 0 | DG56: 0 | DH56: 64 | DI56: 84000 | DJ56: 0 | DK56: 0 | DL56: 0 | DM56: 0 | DN56: 22700 | DO56: 2676 | DP56: 0 | DQ56: 0 | DR56: 0 | DS56: 0 | DT56: 0 | DU56: 472297 | DV56: 0 | DW56: 0 | DX56: 0 | DY56: 0 | DZ56: 0 | EA56: =EA149 -> 110399 | EB56: 2060 | EC56: 0 | ED56: 0 | EE56: 0 | EF56: 0 | EG56: 0 | EH56: 0 | EI56: 0 | EJ56: 0 | EK56: 0 | EL56: 0 | EM56: 0 | EN56: 0 | EO56: 1253 | EP56: 0 | EQ56: 0 | ER56: 782 | ES56: 0 | ET56: 8237 | EU56: 0 | EV56: 4959 | EW56: 0 | EX56: 10024 | EY56: 306 | EZ56: 0 | FA56: 0 | FB56: 0 | FC56: 0 | FD56: 0 | FE56: 0 | FF56: 0 | FG56: 0 | FH56: 0 | FI56: 142103 | FJ56: 0 | FK56: 0 | FL56: 0 | FM56: 43469 | FN56: 0 | FO56: 0 | FP56: 0 | FQ56: 38885 | FR56: 54103 | FS56: 889 | FT56: 0 | FU56: 0 | FV56: 1452 | FW56: 0 | FX56: 0 | FY56: 0 | FZ56: 0 | GA56: 1309124 | GB56: 50733 | GC56: 1359857
B57: Town of Galway | C57: =C150 -> 410331400000 | D57: Town of Galway | E57: Saratoga | F57: 12/31 | G57: 3545 | H57: 0 | I57: 43.8 | J57: 428006969 | K57: 632000 | L57: 564000 | M57: 0 | N57: 0 | O57: 0 | P57: 0 | Q57: 3386 | R57: 0 | S57: 0 | T57: 0 | U57: 1035159 | V57: 0 | W57: 0 | X57: 45476 | Y57: 0 | Z57: 0 | AA57: 0 | AB57: 3998 | AC57: 0 | AD57: 4633 | AE57: 0 | AF57: 0 | AG57: 0 | AH57: 0 | AI57: 0 | AJ57: 0 | AK57: 934 | AL57: 0 | AM57: 0 | AN57: 0 | AO57: 0 | AP57: 0 | AQ57: 190 | AR57: 0 | AS57: 0 | AT57: 0 | AU57: 4925 | AV57: 0 | AW57: 0 | AX57: 0 | AY57: 2371 | AZ57: 0 | BA57: 450 | BB57: 0 | BC57: 0 | BD57: 27893 | BE57: 0 | BF57: 0 | BG57: 0 | BH57: 0 | BI57: 0 | BJ57: 0 | BK57: 1849 | BL57: 1695263 | BM57: 20555 | BN57: 95364 | BO57: =BO150 -> 0 | BP57: 0 | BQ57: 0 | BR57: 0 | BS57: 109104 | BT57: 0 | BU57: 0 | BV57: 15862 | BW57: 0 | BX57: 0 | BY57: 0 | BZ57: 0 | CA57: 0 | CB57: 0 | CC57: 0 | CD57: 0 | CE57: 0 | CF57: 0 | CG57: 0 | CH57: 0 | CI57: 0 | CJ57: 0 | CK57: 0 | CL57: 0 | CM57: 1936148 | CN57: 0 | CO57: 0 | CP57: 0 | CQ57: 0 | CR57: 0 | CS57: 1936148 | CT57: 104601 | CU57: 172350 | CV57: 0 | CW57: 0 | CX57: 11028 | CY57: 0 | CZ57: 0 | DA57: 0 | DB57: 0 | DC57: 0 | DD57: 0 | DE57: 0 | DF57: 0 | DG57: 0 | DH57: 8244 | DI57: 237500 | DJ57: 51700 | DK57: 0 | DL57: 0 | DM57: 0 | DN57: 31452 | DO57: 1000 | DP57: 0 | DQ57: 0 | DR57: 0 | DS57: 0 | DT57: 0 | DU57: 830272 | DV57: 0 | DW57: 0 | DX57: 0 | DY57: 0 | DZ57: 0 | EA57: =EA150 -> 117794 | EB57: 1481 | EC57: 0 | ED57: 4000 | EE57: 0 | EF57: 0 | EG57: 0 | EH57: 0 | EI57: 0 | EJ57: 0 | EK57: 0 | EL57: 0 | EM57: 0 | EN57: 0 | EO57: 0 | EP57: 0 | EQ57: 0 | ER57: 0 | ES57: 0 | ET57: 27429 | EU57: 0 | EV57: 2994 | EW57: 5605 | EX57: 0 | EY57: 9159 | EZ57: 0 | FA57: 0 | FB57: 0 | FC57: 0 | FD57: 0 | FE57: 0 | FF57: 0 | FG57: 0 | FH57: 0 | FI57: 4442 | FJ57: 0 | FK57: 0 | FL57: 0 | FM57: 33000 | FN57: 0 | FO57: 0 | FP57: 0 | FQ57: 44575 | FR57: 63830 | FS57: 0 | FT57: 0 | FU57: 0 | FV57: 4208 | FW57: 0 | FX57: 0 | FY57: 105500 | FZ57: 35121 | GA57: 1907285 | GB57: 0 | GC57: 1907285
B58: Village of Galway | C58: =C151 -> 410431401900 | D58: Village of Galway | E58: Saratoga | F58: 05/31 | G58: 200 | H58: 0 | I58: 0.3 | J58: 13207727 | K58: 0 | L58: 0 | M58: 0 | N58: 0 | O58: 0 | P58: 0 | Q58: 0 | R58: 0 | S58: 0 | T58: 0 | U58: 32278 | V58: 7427 | W58: 0 | X58: 0 | Y58: 0 | Z58: 0 | AA58: 0 | AB58: 0 | AC58: 0 | AD58: 0 | AE58: 0 | AF58: 0 | AG58: 0 | AH58: 0 | AI58: 0 | AJ58: 105 | AK58: 80 | AL58: 0 | AM58: 0 | AN58: 0 | AO58: 0 | AP58: 0 | AQ58: 0 | AR58: 0 | AS58: 0 | AT58: 0 | AU58: 0 | AV58: 0 | AW58: 0 | AX58: 0 | AY58: 0 | AZ58: 0 | BA58: 2175 | BB58: 0 | BC58: 0 | BD58: 14541 | BE58: 0 | BF58: 0 | BG58: 0 | BH58: 0 | BI58: 0 | BJ58: 0 | BK58: 834 | BL58: 57440 | BM58: 3515 | BN58: 1775 | BO58: =BO151 -> 0 | BP58: 0 | BQ58: 0 | BR58: 0 | BS58: 0 | BT58: 0 | BU58: 0 | BV58: 53 | BW58: 0 | BX58: 0 | BY58: 0 | BZ58: 0 | CA58: 0 | CB58: 0 | CC58: 0 | CD58: 0 | CE58: 0 | CF58: 0 | CG58: 0 | CH58: 0 | CI58: 0 | CJ58: 0 | CK58: 0 | CL58: 0 | CM58: 62783 | CN58: 0 | CO58: 0 | CP58: 0 | CQ58: 0 | CR58: 0 | CS58: 62783 | CT58: 6283 | CU58: 10525 | CV58: 0 | CW58: 0 | CX58: 0 | CY58: 0 | CZ58: 0 | DA58: 0 | DB58: 0 | DC58: 0 | DD58: 0 | DE58: 0 | DF58: 0 | DG58: 0 | DH58: 8275 | DI58: 9560 | DJ58: 2480 | DK58: 0 | DL58: 0 | DM58: 0 | DN58: 0 | DO58: 0 | DP58: 0 | DQ58: 0 | DR58: 0 | DS58: 0 | DT58: 0 | DU58: 0 | DV58: 0 | DW58: 0 | DX58: 0 | DY58: 0 | DZ58: 0 | EA58: =EA151 -> 0 | EB58: 2606 | EC58: 0 | ED58: 0 | EE58: 0 | EF58: 0 | EG58: 0 | EH58: 0 | EI58: 0 | EJ58: 0 | EK58: 0 | EL58: 0 | EM58: 0 | EN58: 0 | EO58: 0 | EP58: 0 | EQ58: 0 | ER58: 2891 | ES58: 0 | ET58: 0 | EU58: 0 | EV58: 0 | EW58: 0 | EX58: 0 | EY58: 0 | EZ58: 2588 | FA58: 0 | FB58: 500 | FC58: 0 | FD58: 0 | FE58: 0 | FF58: 0 | FG58: 0 | FH58: 0 | FI58: 0 | FJ58: 0 | FK58: 0 | FL58: 0 | FM58: 0 | FN58: 0 | FO58: 0 | FP58: 0 | FQ58: 970 | FR58: 0 | FS58: 0 | FT58: 0 | FU58: 0 | FV58: 0 | FW58: 0 | FX58: 0 | FY58: 0 | FZ58: 0 | GA58: 46678 | GB58: 0 | GC58: 46678
B59: Town of Greenfield | C59: =C152 -> 410334400000 | D59: Town of Greenfield | E59: Saratoga | F59: 12/31 | G59: 7775 | H59: 0 | I59: 67.4 | J59: 748080021 | K59: 0 | L59: 845580 | M59: 0 | N59: 0 | O59: 0 | P59: 1085 | Q59: 5202 | R59: 0 | S59: 0 | T59: 0 | U59: 1840340 | V59: 0 | W59: 0 | X59: 57788 | Y59: 0 | Z59: 0 | AA59: 0 | AB59: 11498 | AC59: 0 | AD59: 160 | AE59: 0 | AF59: 0 | AG59: 0 | AH59: 0 | AI59: 34394 | AJ59: 23284 | AK59: 54254 | AL59: 0 | AM59: 0 | AN59: 0 | AO59: 0 | AP59: 0 | AQ59: 0 | AR59: 0 | AS59: 0 | AT59: 0 | AU59: 0 | AV59: 0 | AW59: 0 | AX59: 0 | AY59: 0 | AZ59: 0 | BA59: 36192 | BB59: 10100 | BC59: 0 | BD59: 62742 | BE59: 0 | BF59: 4854 | BG59: 0 | BH59: 0 | BI59: 100 | BJ59: 0 | BK59: 155 | BL59: 2987727 | BM59: 23788 | BN59: 201469 | BO59: =BO152 -> 16468 | BP59: 0 | BQ59: 0 | BR59: 0 | BS59: 165398 | BT59: 0 | BU59: 0 | BV59: 4470 | BW59: 0 | BX59: 0 | BY59: 0 | BZ59: 2444 | CA59: 0 | CB59: 0 | CC59: 0 | CD59: 0 | CE59: 0 | CF59: 0 | CG59: 0 | CH59: 0 | CI59: 0 | CJ59: 0 | CK59: 0 | CL59: 0 | CM59: 3401765 | CN59: 0 | CO59: 0 | CP59: 0 | CQ59: 117505 | CR59: 0 | CS59: 3519270 | CT59: 108593 | CU59: 371170 | CV59: 0 | CW59: 0 | CX59: 19403 | CY59: 0 | CZ59: 0 | DA59: 0 | DB59: 0 | DC59: 0 | DD59: 0 | DE59: 0 | DF59: 0 | DG59: 0 | DH59: 19327 | DI59: 0 | DJ59: 42000 | DK59: 0 | DL59: 0 | DM59: 0 | DN59: 18054 | DO59: 6051 | DP59: 0 | DQ59: 0 | DR59: 0 | DS59: 0 | DT59: 0 | DU59: 1877367 | DV59: 0 | DW59: 0 | DX59: 0 | DY59: 0 | DZ59: 0 | EA59: =EA152 -> 305531 | EB59: 19400 | EC59: 0 | ED59: 0 | EE59: 0 | EF59: 0 | EG59: 0 | EH59: 0 | EI59: 0 | EJ59: 0 | EK59: 0 | EL59: 0 | EM59: 7253 | EN59: 220620 | EO59: 1211 | EP59: 0 | EQ59: 0 | ER59: 79695 | ES59: 0 | ET59: 65313 | EU59: 0 | EV59: 9815 | EW59: 0 | EX59: 75980 | EY59: 17554 | EZ59: 0 | FA59: 0 | FB59: 0 | FC59: 0 | FD59: 0 | FE59: 0 | FF59: 0 | FG59: 0 | FH59: 0 | FI59: 29608 | FJ59: 0 | FK59: 0 | FL59: 0 | FM59: 71178 | FN59: 0 | FO59: 0 | FP59: 0 | FQ59: 84888 | FR59: 118555 | FS59: 1726 | FT59: 0 | FU59: 0 | FV59: 6472 | FW59: 8672 | FX59: 0 | FY59: 0 | FZ59: 0 | GA59: 3585432 | GB59: 117505 | GC59: 3702937
B60: Town of Hadley | C60: =C153 -> 410335700000 | D60: Town of Hadley | E60: Saratoga | F60: 12/31 | G60: 2048 | H60: 0 | I60: 39.7 | J60: 258437047 | K60: 250000 | L60: 1049845 | M60: 0 | N60: 0 | O60: 0 | P60: 0 | Q60: 3187 | R60: 0 | S60: 0 | T60: 0 | U60: 628297 | V60: 0 | W60: 0 | X60: 17523 | Y60: 0 | Z60: 0 | AA60: 0 | AB60: 2104 | AC60: 0 | AD60: 10 | AE60: 0 | AF60: 0 | AG60: 0 | AH60: 0 | AI60: 0 | AJ60: 2948 | AK60: 2822 | AL60: 59168 | AM60: 58636 | AN60: 0 | AO60: 0 | AP60: 0 | AQ60: 0 | AR60: 0 | AS60: 0 | AT60: 0 | AU60: 0 | AV60: 0 | AW60: 0 | AX60: 0 | AY60: 0 | AZ60: 0 | BA60: 8414 | BB60: 0 | BC60: 0 | BD60: 13376 | BE60: 0 | BF60: 2873 | BG60: 0 | BH60: 2624 | BI60: 180 | BJ60: 0 | BK60: 1811 | BL60: 1853817 | BM60: 6751 | BN60: 29063 | BO60: =BO153 -> 0 | BP60: 0 | BQ60: 0 | BR60: 0 | BS60: 137047 | BT60: 0 | BU60: 0 | BV60: 3396 | BW60: 0 | BX60: 0 | BY60: 0 | BZ60: 0 | CA60: 0 | CB60: 0 | CC60: 0 | CD60: 0 | CE60: 202696 | CF60: 0 | CG60: 0 | CH60: 0 | CI60: 0 | CJ60: 0 | CK60: 0 | CL60: 0 | CM60: 2232769 | CN60: 0 | CO60: 0 | CP60: 0 | CQ60: 599001 | CR60: 0 | CS60: 2831771 | CT60: 132201 | CU60: 221634 | CV60: 0 | CW60: 0 | CX60: 34250 | CY60: 0 | CZ60: 0 | DA60: 0 | DB60: 0 | DC60: 0 | DD60: 0 | DE60: 0 | DF60: 0 | DG60: 2596 | DH60: 0 | DI60: 0 | DJ60: 0 | DK60: 0 | DL60: 0 | DM60: 0 | DN60: 4932 | DO60: 1338 | DP60: 0 | DQ60: 0 | DR60: 0 | DS60: 0 | DT60: 0 | DU60: 557297 | DV60: 0 | DW60: 0 | DX60: 0 | DY60: 0 | DZ60: 0 | EA60: =EA153 -> 105401 | EB60: 28433 | EC60: 0 | ED60: 0 | EE60: 0 | EF60: 0 | EG60: 0 | EH60: 206182 | EI60: 0 | EJ60: 0 | EK60: 0 | EL60: 0 | EM60: 0 | EN60: 0 | EO60: 0 | EP60: 0 | EQ60: 260 | ER60: 5057 | ES60: 0 | ET60: 36158 | EU60: 16000 | EV60: 6907 | EW60: 0 | EX60: 423 | EY60: 15441 | EZ60: 638 | FA60: 0 | FB60: 0 | FC60: 65020 | FD60: 0 | FE60: 0 | FF60: 0 | FG60: 25019 | FH60: 0 | FI60: 242506 | FJ60: 0 | FK60: 0 | FL60: 0 | FM60: 84297 | FN60: 0 | FO60: 0 | FP60: 0 | FQ60: 61008 | FR60: 145301 | FS60: 601 | FT60: 0 | FU60: 0 | FV60: 0 | FW60: 0 | FX60: 4500 | FY60: 43750 | FZ60: 9497 | GA60: 2056646 | GB60: 599001 | GC60: 2655648
B61: Town of Halfmoon | C61: =C154 -> 410336000000 | D61: Town of Halfmoon | E61: Saratoga | F61: 12/31 | G61: 21535 | H61: 0 | I61: 32.6 | J61: 1953841698 | K61: 44886577 | L61: 2795691 | M61: 0 | N61: 0 | O61: 0 | P61: 0 | Q61: 20003 | R61: 0 | S61: 0 | T61: 0 | U61: 4871503 | V61: 0 | W61: 0 | X61: 207610 | Y61: 0 | Z61: 0 | AA61: 0 | AB61: 13489 | AC61: 0 | AD61: 0 | AE61: 394314 | AF61: 0 | AG61: 91 | AH61: 0 | AI61: 0 | AJ61: 418095 | AK61: 650069 | AL61: 2443464 | AM61: 44518 | AN61: 0 | AO61: 0 | AP61: 0 | AQ61: 0 | AR61: 0 | AS61: 0 | AT61: 0 | AU61: 0 | AV61: 0 | AW61: 0 | AX61: 105000 | AY61: 0 | AZ61: 0 | BA61: 94577 | BB61: 3148 | BC61: 1600 | BD61: 395117 | BE61: 0 | BF61: 19541 | BG61: 0 | BH61: 0 | BI61: 12880 | BJ61: 0 | BK61: 120376 | BL61: 12611086 | BM61: 66979 | BN61: 908386 | BO61: =BO154 -> 0 | BP61: 0 | BQ61: 0 | BR61: 0 | BS61: 123237 | BT61: 0 | BU61: 0 | BV61: 23969 | BW61: 0 | BX61: 0 | BY61: 0 | BZ61: 1256 | CA61: 0 | CB61: 0 | CC61: 0 | CD61: 0 | CE61: 0 | CF61: 0 | CG61: 77099 | CH61: 0 | CI61: 0 | CJ61: 0 | CK61: 0 | CL61: 0 | CM61: 13812012 | CN61: 0 | CO61: 0 | CP61: 0 | CQ61: 202550 | CR61: 0 | CS61: 14014562 | CT61: 936452 | CU61: 1259125 | CV61: 0 | CW61: 0 | CX61: 164407 | CY61: 0 | CZ61: 0 | DA61: 0 | DB61: 0 | DC61: 0 | DD61: 0 | DE61: 0 | DF61: 0 | DG61: 0 | DH61: 224416 | DI61: 0 | DJ61: 1046993 | DK61: 0 | DL61: 0 | DM61: 0 | DN61: 260395 | DO61: 2500 | DP61: 0 | DQ61: 0 | DR61: 0 | DS61: 81885 | DT61: 0 | DU61: 1866566 | DV61: 0 | DW61: 0 | DX61: 0 | DY61: 0 | DZ61: 0 | EA61: =EA154 -> 303871 | EB61: 26006 | EC61: 0 | ED61: 0 | EE61: 0 | EF61: 0 | EG61: 0 | EH61: 0 | EI61: 0 | EJ61: 0 | EK61: 0 | EL61: 0 | EM61: 0 | EN61: 0 | EO61: 0 | EP61: 0 | EQ61: 0 | ER61: 916599 | ES61: 0 | ET61: 8155 | EU61: 0 | EV61: 10500 | EW61: 54872 | EX61: 475 | EY61: 86993 | EZ61: 0 | FA61: 0 | FB61: 0 | FC61: 3367464 | FD61: 0 | FE61: 0 | FF61: 0 | FG61: 2900 | FH61: 0 | FI61: 97856 | FJ61: 7600 | FK61: 3785 | FL61: 0 | FM61: 391061 | FN61: 0 | FO61: 0 | FP61: 0 | FQ61: 269494 | FR61: 580254 | FS61: 3573 | FT61: 0 | FU61: 0 | FV61: 25145 | FW61: 0 | FX61: 16000 | FY61: 2451465 | FZ61: 1811220 | GA61: 16278028 | GB61: 202550 | GC61: 16480578
B62: Town of Malta | C62: =C155 -> 410350100000 | D62: Town of Malta | E62: Saratoga | F62: 12/31 | G62: 14765 | H62: 0 | I62: 27.9 | J62: 1496744943 | K62: 3220000 | L62: 1286626 | M62: 0 | N62: 1182 | O62: 0 | P62: 646 | Q62: 9321 | R62: 0 | S62: 0 | T62: 0 | U62: 3611321 | V62: 0 | W62: 0 | X62: 152312 | Y62: 0 | Z62: 0 | AA62: 0 | AB62: 4288 | AC62: 0 | AD62: 3240 | AE62: 3120 | AF62: 0 | AG62: 0 | AH62: 0 | AI62: 0 | AJ62: 1605420 | AK62: 2687245 | AL62: 0 | AM62: 127147 | AN62: 0 | AO62: 0 | AP62: 0 | AQ62: 130 | AR62: 0 | AS62: 36577 | AT62: 0 | AU62: 2625 | AV62: 0 | AW62: 0 | AX62: 0 | AY62: 55364 | AZ62: 0 | BA62: 90260 | BB62: 15864 | BC62: 48932 | BD62: 306070 | BE62: 0 | BF62: 24082 | BG62: 0 | BH62: 0 | BI62: 3013 | BJ62: 0 | BK62: 326174 | BL62: 10400959 | BM62: 26150 | BN62: 762328 | BO62: =BO155 -> 22813 | BP62: 0 | BQ62: 7581 | BR62: 0 | BS62: 2022233 | BT62: 0 | BU62: 0 | BV62: 46572 | BW62: 0 | BX62: 0 | BY62: 0 | BZ62: 2816 | CA62: 0 | CB62: 0 | CC62: 0 | CD62: 15558 | CE62: 0 | CF62: 0 | CG62: 0 | CH62: 0 | CI62: 0 | CJ62: 0 | CK62: 0 | CL62: 0 | CM62: 13307010 | CN62: 0 | CO62: 0 | CP62: 0 | CQ62: 199933 | CR62: 0 | CS62: 13506943 | CT62: 273147 | CU62: 983132 | CV62: 0 | CW62: 0 | CX62: 2016626 | CY62: 0 | CZ62: 0 | DA62: 0 | DB62: 0 | DC62: 0 | DD62: 0 | DE62: 0 | DF62: 0 | DG62: 0 | DH62: 19870 | DI62: 1134961 | DJ62: 379999 | DK62: 0 | DL62: 0 | DM62: 401 | DN62: 13576 | DO62: 4300 | DP62: 0 | DQ62: 0 | DR62: 0 | DS62: 0 | DT62: 0 | DU62: 3443101 | DV62: 0 | DW62: 0 | DX62: 0 | DY62: 0 | DZ62: 0 | EA62: =EA155 -> 295627 | EB62: 34300 | EC62: 75466 | ED62: 0 | EE62: 0 | EF62: 0 | EG62: 0 | EH62: 0 | EI62: 0 | EJ62: 0 | EK62: 0 | EL62: 0 | EM62: 0 | EN62: 0 | EO62: 5491 | EP62: 0 | EQ62: 0 | ER62: 217852 | ES62: 0 | ET62: 124331 | EU62: 290694 | EV62: 1577 | EW62: 416220 | EX62: 8160 | EY62: 8074 | EZ62: 11827 | FA62: 0 | FB62: 1050 | FC62: 0 | FD62: 0 | FE62: 0 | FF62: 0 | FG62: 113767 | FH62: 0 | FI62: 433 | FJ62: 0 | FK62: 0 | FL62: 0 | FM62: 193541 | FN62: 0 | FO62: 0 | FP62: 0 | FQ62: 161260 | FR62: 357181 | FS62: 1726 | FT62: 0 | FU62: 0 | FV62: 9015 | FW62: 0 | FX62: 154240 | FY62: 125000 | FZ62: 131008 | GA62: 11006953 | GB62: 199933 | GC62: 11206886
B63: Village of Round Lake | C63: =C156 -> 410450104295 | D63: Village of Round Lake | E63: Saratoga | F63: 05/31 | G63: 623 | H63: 0 | I63: 1.1 | J63: 55288695 | K63: 2108893 | L63: 319347 | M63: 0 | N63: 0 | O63: 0 | P63: 0 | Q63: 2650 | R63: 0 | S63: 0 | T63: 0 | U63: 135155 | V63: 0 | W63: 0 | X63: 54543 | Y63: 0 | Z63: 0 | AA63: 0 | AB63: 236 | AC63: 0 | AD63: 0 | AE63: 0 | AF63: 0 | AG63: 0 | AH63: 0 | AI63: 0 | AJ63: 40210 | AK63: 1963 | AL63: 147129 | AM63: 59186 | AN63: 0 | AO63: 0 | AP63: 0 | AQ63: 433447 | AR63: 0 | AS63: 1800 | AT63: 0 | AU63: 0 | AV63: 0 | AW63: 0 | AX63: 0 | AY63: 0 | AZ63: 0 | BA63: 1317 | BB63: 2166 | BC63: 17660 | BD63: 25 | BE63: 0 | BF63: 0 | BG63: 0 | BH63: 0 | BI63: 7375 | BJ63: 0 | BK63: 30934 | BL63: 1255143 | BM63: 6810 | BN63: 15098 | BO63: =BO156 -> 0 | BP63: 0 | BQ63: 0 | BR63: 0 | BS63: 52791 | BT63: 0 | BU63: 0 | BV63: 0 | BW63: 0 | BX63: 4000 | BY63: 0 | BZ63: 0 | CA63: 0 | CB63: 0 | CC63: 0 | CD63: 0 | CE63: 0 | CF63: 0 | CG63: 0 | CH63: 0 | CI63: 0 | CJ63: 0 | CK63: 0 | CL63: 0 | CM63: 1333842 | CN63: 71500 | CO63: 0 | CP63: 0 | CQ63: 136950 | CR63: 0 | CS63: 1542292 | CT63: 49356 | CU63: 115509 | CV63: 0 | CW63: 0 | CX63: 1544 | CY63: 1515 | CZ63: 0 | DA63: 0 | DB63: 0 | DC63: 0 | DD63: 0 | DE63: 0 | DF63: 0 | DG63: 0 | DH63: 0 | DI63: 199828 | DJ63: 0 | DK63: 0 | DL63: 0 | DM63: 0 | DN63: 5378 | DO63: 0 | DP63: 0 | DQ63: 0 | DR63: 0 | DS63: 0 | DT63: 187 | DU63: 180995 | DV63: 0 | DW63: 0 | DX63: 0 | DY63: 0 | DZ63: 0 | EA63: =EA156 -> 0 | EB63: 11961 | EC63: 0 | ED63: 0 | EE63: 0 | EF63: 0 | EG63: 0 | EH63: 0 | EI63: 0 | EJ63: 0 | EK63: 0 | EL63: 0 | EM63: 0 | EN63: 0 | EO63: 0 | EP63: 0 | EQ63: 0 | ER63: 36037 | ES63: 0 | ET63: 333 | EU63: 8000 | EV63: 190712 | EW63: 0 | EX63: 0 | EY63: 0 | EZ63: 11213 | FA63: 0 | FB63: 0 | FC63: 90110 | FD63: 0 | FE63: 0 | FF63: 0 | FG63: 6036 | FH63: 818 | FI63: 0 | FJ63: 0 | FK63: 0 | FL63: 0 | FM63: 12096 | FN63: 0 | FO63: 0 | FP63: 3240 | FQ63: 19406 | FR63: 46513 | FS63: 919 | FT63: 0 | FU63: 1983 | FV63: 3350 | FW63: 0 | FX63: 0 | FY63: 199745 | FZ63: 10096 | GA63: 1206880 | GB63: 136950 | GC63: 1343830
B64: City of Mechanicville | C64: =C157 -> 410229000000 | D64: City of Mechanicville | E64: Saratoga | F64: 12/31 | G64: 5196 | H64: 0 | I64: 0.8 | J64: 209372846 | K64: 6555413 | L64: 1861253 | M64: 0 | N64: 0 | O64: 0 | P64: 39459 | Q64: 52628 | R64: 0 | S64: 0 | T64: 0 | U64: 1115242 | V64: 50029 | W64: 0 | X64: 83288 | Y64: 0 | Z64: 0 | AA64: 0 | AB64: 14050 | AC64: 0 | AD64: 0 | AE64: 0 | AF64: 0 | AG64: 4462 | AH64: 0 | AI64: 0 | AJ64: 231 | AK64: 15179 | AL64: 807242 | AM64: 730798 | AN64: 0 | AO64: 6238 | AP64: 0 | AQ64: 6140 | AR64: 0 | AS64: 0 | AT64: 0 | AU64: 0 | AV64: 0 | AW64: 0 | AX64: 0 | AY64: 0 | AZ64: 0 | BA64: 3230 | BB64: 5834 | BC64: 5040 | BD64: 35270 | BE64: 0 | BF64: 45195 | BG64: 0 | BH64: 0 | BI64: 1060 | BJ64: 0 | BK64: 26764 | BL64: 4908633 | BM64: 675910 | BN64: 58410 | BO64: =BO157 -> 0 | BP64: 0 | BQ64: 0 | BR64: 0 | BS64: 122631 | BT64: 0 | BU64: 27395 | BV64: 2978 | BW64: 0 | BX64: 0 | BY64: 0 | BZ64: 188581 | CA64: 0 | CB64: 0 | CC64: 0 | CD64: 175937 | CE64: 0 | CF64: 0 | CG64: 0 | CH64: 0 | CI64: 0 | CJ64: 0 | CK64: 0 | CL64: 0 | CM64: 6160474 | CN64: 696750 | CO64: 0 | CP64: 0 | CQ64: 0 | CR64: 0 | CS64: 6857224 | CT64: 297431 | CU64: 397059 | CV64: 0 | CW64: 0 | CX64: 2325 | CY64: 0 | CZ64: 0 | DA64: 0 | DB64: 0 | DC64: 0 | DD64: 0 | DE64: 0 | DF64: 0 | DG64: 51182 | DH64: 1031625 | DI64: 857793 | DJ64: 110000 | DK64: 37115 | DL64: 0 | DM64: 0 | DN64: 64647 | DO64: 0 | DP64: 0 | DQ64: 10000 | DR64: 0 | DS64: 0 | DT64: 0 | DU64: 669792 | DV64: 0 | DW64: 74372 | DX64: 0 | DY64: 0 | DZ64: 0 | EA64: =EA157 -> 0 | EB64: 121807 | EC64: 0 | ED64: 0 | EE64: 0 | EF64: 0 | EG64: 0 | EH64: 0 | EI64: 0 | EJ64: 0 | EK64: 0 | EL64: 0 | EM64: 12146 | EN64: 0 | EO64: 0 | EP64: 0 | EQ64: 373651 | ER64: 48754 | ES64: 0 | ET64: 25344 | EU64: 0 | EV64: 10861 | EW64: 0 | EX64: 0 | EY64: 17114 | EZ64: 4935 | FA64: 0 | FB64: 964 | FC64: 474697 | FD64: 0 | FE64: 0 | FF64: 0 | FG64: 602128 | FH64: 0 | FI64: 350000 | FJ64: 0 | FK64: 0 | FL64: 0 | FM64: 110635 | FN64: 138782 | FO64: 0 | FP64: 4150 | FQ64: 156465 | FR64: 724515 | FS64: 1821 | FT64: 0 | FU64: 0 | FV64: 2563 | FW64: 0 | FX64: 0 | FY64: 307334 | FZ64: 43641 | GA64: 7135647 | GB64: 0 | GC64: 7135647
B65: Town of Milton | C65: =C158 -> 410353400000 | D65: Town of Milton | E65: Saratoga | F65: 12/31 | G65: 18575 | H65: 0 | I65: 35.7 | J65: 1203300846 | K65: 0 | L65: 456838 | M65: 0 | N65: 0 | O65: 0 | P65: 529 | Q65: 9321 | R65: 0 | S65: 0 | T65: 0 | U65: 2533365 | V65: 0 | W65: 0 | X65: 140500 | Y65: 0 | Z65: 0 | AA65: 0 | AB65: 49369 | AC65: 0 | AD65: 1360 | AE65: 1860 | AF65: 0 | AG65: 0 | AH65: 0 | AI65: 0 | AJ65: 37185 | AK65: 45618 | AL65: 0 | AM65: 0 | AN65: 0 | AO65: 0 | AP65: 0 | AQ65: 0 | AR65: 0 | AS65: 0 | AT65: 0 | AU65: 0 | AV65: 0 | AW65: 0 | AX65: 0 | AY65: 0 | AZ65: 0 | BA65: 44962 | BB65: 14596 | BC65: 0 | BD65: 94973 | BE65: 0 | BF65: 0 | BG65: 0 | BH65: 0 | BI65: 0 | BJ65: 0 | BK65: 2433 | BL65: 3432909 | BM65: 108214 | BN65: 464113 | BO65: =BO158 -> 0 | BP65: 0 | BQ65: 0 | BR65: 0 | BS65: 104326 | BT65: 0 | BU65: 0 | BV65: 6159 | BW65: 0 | BX65: 0 | BY65: 0 | BZ65: 0 | CA65: 0 | CB65: 0 | CC65: 0 | CD65: 0 | CE65: 0 | CF65: 0 | CG65: 0 | CH65: 0 | CI65: 0 | CJ65: 0 | CK65: 0 | CL65: 0 | CM65: 4115721 | CN65: 0 | CO65: 0 | CP65: 0 | CQ65: 751445 | CR65: 0 | CS65: 4867166 | CT65: 176717 | CU65: 603997 | CV65: 0 | CW65: 0 | CX65: 258430 | CY65: 0 | CZ65: 0 | DA65: 0 | DB65: 0 | DC65: 0 | DD65: 0 | DE65: 0 | DF65: 0 | DG65: 0 | DH65: 3645 | DI65: 152500 | DJ65: 0 | DK65: 0 | DL65: 0 | DM65: 0 | DN65: 49851 | DO65: 7313 | DP65: 0 | DQ65: 0 | DR65: 0 | DS65: 0 | DT65: 0 | DU65: 1654282 | DV65: 0 | DW65: 0 | DX65: 0 | DY65: 0 | DZ65: 0 | EA65: =EA158 -> 368422 | EB65: 21849 | EC65: 0 | ED65: 0 | EE65: 0 | EF65: 0 | EG65: 0 | EH65: 0 | EI65: 0 | EJ65: 0 | EK65: 0 | EL65: 0 | EM65: 0 | EN65: 0 | EO65: 2899 | EP65: 0 | EQ65: 0 | ER65: 112801 | ES65: 0 | ET65: 78229 | EU65: 41000 | EV65: 9940 | EW65: 65757 | EX65: 1000 | EY65: 25546 | EZ65: 0 | FA65: 0 | FB65: 2905 | FC65: 0 | FD65: 0 | FE65: 0 | FF65: 0 | FG65: 0 | FH65: 0 | FI65: 225 | FJ65: 0 | FK65: 0 | FL65: 0 | FM65: 193326 | FN65: 0 | FO65: 0 | FP65: 0 | FQ65: 131450 | FR65: 527478 | FS65: 391 | FT65: 0 | FU65: 0 | FV65: 293 | FW65: 0 | FX65: 227 | FY65: 0 | FZ65: 1049 | GA65: 4491522 | GB65: 751445 | GC65: 5242967
B66: Town of Moreau | C66: =C159 -> 410354900000 | D66: Town of Moreau | E66: Saratoga | F66: 12/31 | G66: 14728 | H66: 0 | I66: 41.9 | J66: 1039551342 | K66: 3603707 | L66: 1782427 | M66: 0 | N66: 0 | O66: 0 | P66: 52143 | Q66: 16821 | R66: 0 | S66: 0 | T66: 0 | U66: 1677028 | V66: 0 | W66: 0 | X66: 153466 | Y66: 0 | Z66: 0 | AA66: 0 | AB66: 8147 | AC66: 0 | AD66: 21607 | AE66: 473131 | AF66: 0 | AG66: 0 | AH66: 0 | AI66: 0 | AJ66: 20892 | AK66: 6109 | AL66: 677147 | AM66: 225751 | AN66: 0 | AO66: 0 | AP66: 0 | AQ66: 0 | AR66: 0 | AS66: 0 | AT66: 0 | AU66: 0 | AV66: 0 | AW66: 0 | AX66: 0 | AY66: 0 | AZ66: 0 | BA66: 50685 | BB66: 1871 | BC66: 0 | BD66: 190166 | BE66: 0 | BF66: 15924 | BG66: 0 | BH66: 0 | BI66: 150 | BJ66: 0 | BK66: 107215 | BL66: 5480680 | BM66: 46153 | BN66: 272130 | BO66: =BO159 -> 0 | BP66: 0 | BQ66: 0 | BR66: 0 | BS66: 115198 | BT66: 0 | BU66: 0 | BV66: 5200 | BW66: 73471 | BX66: 0 | BY66: 0 | BZ66: 5147 | CA66: 0 | CB66: 0 | CC66: 0 | CD66: 0 | CE66: 0 | CF66: 0 | CG66: 0 | CH66: 0 | CI66: 0 | CJ66: 0 | CK66: 0 | CL66: 0 | CM66: 5997979 | CN66: 0 | CO66: 0 | CP66: 0 | CQ66: 70231 | CR66: 0 | CS66: 6068210 | CT66: 101928 | CU66: 707483 | CV66: 0 | CW66: 15299 | CX66: 22122 | CY66: 0 | CZ66: 0 | DA66: 0 | DB66: 0 | DC66: 0 | DD66: 0 | DE66: 0 | DF66: 0 | DG66: 0 | DH66: 35323 | DI66: 406016 | DJ66: 690400 | DK66: 0 | DL66: 0 | DM66: 0 | DN66: 125551 | DO66: 1161 | DP66: 495 | DQ66: 0 | DR66: 433 | DS66: 0 | DT66: 0 | DU66: 1190758 | DV66: 0 | DW66: 4288 | DX66: 0 | DY66: 0 | DZ66: 0 | EA66: =EA159 -> 54278 | EB66: 65464 | EC66: 0 | ED66: 0 | EE66: 0 | EF66: 0 | EG66: 0 | EH66: 0 | EI66: 0 | EJ66: 0 | EK66: 0 | EL66: 0 | EM66: 854 | EN66: 124 | EO66: 2350 | EP66: 0 | EQ66: 875 | ER66: 291331 | ES66: 0 | ET66: 140476 | EU66: 595880 | EV66: 24800 | EW66: 6548 | EX66: 243824 | EY66: 2360 | EZ66: 0 | FA66: 0 | FB66: 0 | FC66: 459536 | FD66: 0 | FE66: 0 | FF66: 0 | FG66: 23897 | FH66: 0 | FI66: 192312 | FJ66: 0 | FK66: 18000 | FL66: 0 | FM66: 131549 | FN66: 0 | FO66: 0 | FP66: 0 | FQ66: 81541 | FR66: 442171 | FS66: 1914 | FT66: 8247 | FU66: 0 | FV66: 860 | FW66: 0 | FX66: 36424 | FY66: 128704 | FZ66: 0 | GA66: 6255576 | GB66: 70231 | GC66: 6325807
B67: Village of South Glens Falls | C67: =C160 -> 410454904730 | D67: Village of South Glens Falls | E67: Saratoga | F67: 05/31 | G67: 3518 | H67: 0 | I67: 1.4 | J67: 222451938 | K67: 0 | L67: 1026532 | M67: 0 | N67: 0 | O67: 0 | P67: 44289 | Q67: 8623 | R67: 0 | S67: 0 | T67: 0 | U67: 521277 | V67: 45352 | W67: 0 | X67: 55006 | Y67: 0 | Z67: 0 | AA67: 0 | AB67: 8763 | AC67: 0 | AD67: 232 | AE67: 460 | AF67: 0 | AG67: 0 | AH67: 0 | AI67: 0 | AJ67: 0 | AK67: 11054 | AL67: 329830 | AM67: 378712 | AN67: 0 | AO67: 0 | AP67: 0 | AQ67: 406016 | AR67: 0 | AS67: 0 | AT67: 0 | AU67: 0 | AV67: 0 | AW67: 0 | AX67: 0 | AY67: 0 | AZ67: 0 | BA67: 7755 | BB67: 7103 | BC67: 0 | BD67: 930 | BE67: 0 | BF67: 23403 | BG67: 0 | BH67: 0 | BI67: 2524 | BJ67: 0 | BK67: 65552 | BL67: 2943413 | BM67: 34762 | BN67: 37470 | BO67: =BO160 -> 0 | BP67: 0 | BQ67: 0 | BR67: 0 | BS67: 33651 | BT67: 0 | BU67: 0 | BV67: 0 | BW67: 0 | BX67: 0 | BY67: 0 | BZ67: 22368 | CA67: 0 | CB67: 0 | CC67: 0 | CD67: 0 | CE67: 0 | CF67: 147772 | CG67: 0 | CH67: 0 | CI67: 0 | CJ67: 0 | CK67: 0 | CL67: 0 | CM67: 3219436 | CN67: 0 | CO67: 0 | CP67: 0 | CQ67: 0 | CR67: 0 | CS67: 3219436 | CT67: 139536 | CU67: 255765 | CV67: 0 | CW67: 0 | CX67: 2536 | CY67: 2795 | CZ67: 0 | DA67: 0 | DB67: 0 | DC67: 0 | DD67: 0 | DE67: 0 | DF67: 0 | DG67: 0 | DH67: 439013 | DI67: 488036 | DJ67: 0 | DK67: 0 | DL67: 0 | DM67: 0 | DN67: 1627 | DO67: 450 | DP67: 0 | DQ67: 0 | DR67: 0 | DS67: 0 | DT67: 0 | DU67: 355679 | DV67: 0 | DW67: 5631 | DX67: 0 | DY67: 0 | DZ67: 0 | EA67: =EA160 -> 0 | EB67: 76219 | EC67: 6376 | ED67: 0 | EE67: 0 | EF67: 0 | EG67: 0 | EH67: 0 | EI67: 0 | EJ67: 0 | EK67: 0 | EL67: 0 | EM67: 25120 | EN67: 122652 | EO67: 4861 | EP67: 0 | EQ67: 0 | ER67: 35744 | ES67: 0 | ET67: 0 | EU67: 0 | EV67: 8790 | EW67: 2665 | EX67: 0 | EY67: 0 | EZ67: 7023 | FA67: 0 | FB67: 0 | FC67: 217394 | FD67: 0 | FE67: 0 | FF67: 0 | FG67: 340517 | FH67: 3357 | FI67: 0 | FJ67: 0 | FK67: 0 | FL67: 0 | FM67: 35709 | FN67: 52953 | FO67: 0 | FP67: 0 | FQ67: 0 | FR67: 456024 | FS67: 0 | FT67: 0 | FU67: 22362 | FV67: 0 | FW67: 0 | FX67: 71447 | FY67: 25000 | FZ67: 859 | GA67: 3206140 | GB67: 0 | GC67: 3206140
B68: Town of Northumberland | C68: =C161 -> 410360100000 | D68: Town of Northumberland | E68: Saratoga | F68: 12/31 | G68: 5087 | H68: 0 | I68: 32.3 | J68: 356992179 | K68: 130000 | L68: 587527 | M68: 0 | N68: 0 | O68: 0 | P68: 0 | Q68: 5344 | R68: 0 | S68: 0 | T68: 0 | U68: 924822 | V68: 0 | W68: 0 | X68: 0 | Y68: 0 | Z68: 0 | AA68: 0 | AB68: 1010 | AC68: 0 | AD68: 0 | AE68: 0 | AF68: 0 | AG68: 0 | AH68: 0 | AI68: 0 | AJ68: 0 | AK68: 17257 | AL68: 0 | AM68: 24540 | AN68: 0 | AO68: 0 | AP68: 0 | AQ68: 0 | AR68: 0 | AS68: 0 | AT68: 0 | AU68: 0 | AV68: 0 | AW68: 0 | AX68: 0 | AY68: 0 | AZ68: 0 | BA68: 5979 | BB68: 1300 | BC68: 0 | BD68: 31399 | BE68: 0 | BF68: 121747 | BG68: 0 | BH68: 0 | BI68: 0 | BJ68: 0 | BK68: 725 | BL68: 1721650 | BM68: 15152 | BN68: 126084 | BO68: =BO161 -> 9351 | BP68: 0 | BQ68: 0 | BR68: 0 | BS68: 93616 | BT68: 0 | BU68: 0 | BV68: 2018 | BW68: 0 | BX68: 0 | BY68: 0 | BZ68: 4297 | CA68: 0 | CB68: 0 | CC68: 0 | CD68: 0 | CE68: 0 | CF68: 0 | CG68: 122942 | CH68: 0 | CI68: 0 | CJ68: 0 | CK68: 0 | CL68: 0 | CM68: 2095110 | CN68: 0 | CO68: 0 | CP68: 0 | CQ68: 0 | CR68: 0 | CS68: 2095110 | CT68: 106296 | CU68: 228176 | CV68: 0 | CW68: 0 | CX68: 19225 | CY68: 0 | CZ68: 0 | DA68: 0 | DB68: 0 | DC68: 0 | DD68: 0 | DE68: 0 | DF68: 0 | DG68: 0 | DH68: 4895 | DI68: 112000 | DJ68: 0 | DK68: 0 | DL68: 0 | DM68: 0 | DN68: 44448 | DO68: 1525 | DP68: 0 | DQ68: 0 | DR68: 7236 | DS68: 0 | DT68: 0 | DU68: 779086 | DV68: 0 | DW68: 0 | DX68: 0 | DY68: 0 | DZ68: 0 | EA68: =EA161 -> 412692 | EB68: 9943 | EC68: 0 | ED68: 0 | EE68: 0 | EF68: 0 | EG68: 0 | EH68: 0 | EI68: 0 | EJ68: 0 | EK68: 0 | EL68: 0 | EM68: 0 | EN68: 0 | EO68: 0 | EP68: 0 | EQ68: 0 | ER68: 8195 | ES68: 0 | ET68: 21720 | EU68: 0 | EV68: 1388 | EW68: 0 | EX68: 0 | EY68: 936 | EZ68: 105146 | FA68: 0 | FB68: 0 | FC68: 0 | FD68: 0 | FE68: 0 | FF68: 0 | FG68: 2122 | FH68: 0 | FI68: 55157 | FJ68: 0 | FK68: 0 | FL68: 0 | FM68: 51462 | FN68: 0 | FO68: 0 | FP68: 0 | FQ68: 44030 | FR68: 92448 | FS68: 252 | FT68: 0 | FU68: 0 | FV68: 5799 | FW68: 0 | FX68: 2129 | FY68: 0 | FZ68: 0 | GA68: 2116306 | GB68: 0 | GC68: 2116306
B69: Town of Providence | C69: =C162 -> 410369300000 | D69: Town of Providence | E69: Saratoga | F69: 12/31 | G69: 1995 | H69: 0 | I69: 44 | J69: 178879200 | K69: 129960 | L69: 690436 | M69: 0 | N69: 0 | O69: 0 | P69: 0 | Q69: 2935 | R69: 0 | S69: 0 | T69: 0 | U69: 497647 | V69: 0 | W69: 0 | X69: 18056 | Y69: 0 | Z69: 0 | AA69: 0 | AB69: 29935 | AC69: 0 | AD69: 0 | AE69: 0 | AF69: 0 | AG69: 0 | AH69: 0 | AI69: 0 | AJ69: 0 | AK69: 0 | AL69: 0 | AM69: 0 | AN69: 0 | AO69: 0 | AP69: 0 | AQ69: 0 | AR69: 0 | AS69: 0 | AT69: 0 | AU69: 0 | AV69: 0 | AW69: 0 | AX69: 0 | AY69: 0 | AZ69: 0 | BA69: 3360 | BB69: 43930 | BC69: 0 | BD69: 4230 | BE69: 0 | BF69: 1600 | BG69: 0 | BH69: 0 | BI69: 0 | BJ69: 0 | BK69: 4658 | BL69: 1296787 | BM69: 6039 | BN69: 48884 | BO69: =BO162 -> 0 | BP69: 0 | BQ69: 0 | BR69: 0 | BS69: 86950 | BT69: 0 | BU69: 0 | BV69: 625 | BW69: 0 | BX69: 0 | BY69: 0 | BZ69: 0 | CA69: 0 | CB69: 0 | CC69: 0 | CD69: 0 | CE69: 0 | CF69: 0 | CG69: 0 | CH69: 0 | CI69: 0 | CJ69: 0 | CK69: 0 | CL69: 0 | CM69: 1439285 | CN69: 61470 | CO69: 0 | CP69: 0 | CQ69: 0 | CR69: 0 | CS69: 1500755 | CT69: 64516 | CU69: 92691 | CV69: 0 | CW69: 0 | CX69: 2911 | CY69: 0 | CZ69: 0 | DA69: 0 | DB69: 0 | DC69: 0 | DD69: 0 | DE69: 0 | DF69: 0 | DG69: 1983 | DH69: 3999 | DI69: 0 | DJ69: 35370 | DK69: 0 | DL69: 0 | DM69: 0 | DN69: 9371 | DO69: 267 | DP69: 0 | DQ69: 0 | DR69: 0 | DS69: 0 | DT69: 0 | DU69: 694720 | DV69: 11817 | DW69: 0 | DX69: 0 | DY69: 0 | DZ69: 0 | EA69: =EA162 -> 122698 | EB69: 0 | EC69: 0 | ED69: 2230 | EE69: 0 | EF69: 0 | EG69: 0 | EH69: 0 | EI69: 0 | EJ69: 0 | EK69: 0 | EL69: 0 | EM69: 0 | EN69: 0 | EO69: 0 | EP69: 0 | EQ69: 0 | ER69: 11298 | ES69: 0 | ET69: 2070 | EU69: 0 | EV69: 372 | EW69: 0 | EX69: 226 | EY69: 0 | EZ69: 0 | FA69: 0 | FB69: 0 | FC69: 0 | FD69: 0 | FE69: 0 | FF69: 0 | FG69: 0 | FH69: 0 | FI69: 23127 | FJ69: 0 | FK69: 0 | FL69: 0 | FM69: 41364 | FN69: 0 | FO69: 0 | FP69: 0 | FQ69: 31282 | FR69: 112379 | FS69: 0 | FT69: 0 | FU69: 0 | FV69: 1411 | FW69: 0 | FX69: 5526 | FY69: 75510 | FZ69: 6155 | GA69: 1353293 | GB69: 0 | GC69: 1353293
B70: Town of Saratoga | C70: =C163 -> 410374700000 | D70: Town of Saratoga | E70: Saratoga | F70: 12/31 | G70: 5674 | H70: 0 | I70: 40.6 | J70: 531289867 | K70: 2955000 | L70: 602688 | M70: 0 | N70: 0 | O70: 0 | P70: 0 | Q70: 8451 | R70: 0 | S70: 0 | T70: 0 | U70: 1106553 | V70: 0 | W70: 0 | X70: 0 | Y70: 0 | Z70: 0 | AA70: 0 | AB70: 4901 | AC70: 0 | AD70: 460 | AE70: 0 | AF70: 0 | AG70: 0 | AH70: 0 | AI70: 0 | AJ70: 0 | AK70: 25023 | AL70: 0 | AM70: 0 | AN70: 0 | AO70: 0 | AP70: 0 | AQ70: 0 | AR70: 0 | AS70: 0 | AT70: 0 | AU70: 0 | AV70: 0 | AW70: 0 | AX70: 0 | AY70: 0 | AZ70: 0 | BA70: 12782 | BB70: 15202 | BC70: 119778 | BD70: 57547 | BE70: 0 | BF70: 0 | BG70: 0 | BH70: 79584 | BI70: 0 | BJ70: 0 | BK70: 9284 | BL70: 2042252 | BM70: 31991 | BN70: 117225 | BO70: =BO163 -> 0 | BP70: 0 | BQ70: 0 | BR70: 0 | BS70: 108258 | BT70: 0 | BU70: 0 | BV70: 1552 | BW70: 0 | BX70: 0 | BY70: 0 | BZ70: 89490 | CA70: 0 | CB70: 0 | CC70: 0 | CD70: 0 | CE70: 0 | CF70: 196846 | CG70: 0 | CH70: 0 | CI70: 0 | CJ70: 0 | CK70: 0 | CL70: 0 | CM70: 2587614 | CN70: 0 | CO70: 0 | CP70: 0 | CQ70: 120307 | CR70: 0 | CS70: 2707921 | CT70: 161728 | CU70: 283238 | CV70: 0 | CW70: 0 | CX70: 42419 | CY70: 0 | CZ70: 0 | DA70: 0 | DB70: 0 | DC70: 0 | DD70: 0 | DE70: 0 | DF70: 0 | DG70: 783 | DH70: 12836 | DI70: 45772 | DJ70: 0 | DK70: 0 | DL70: 0 | DM70: 0 | DN70: 16051 | DO70: 2664 | DP70: 0 | DQ70: 0 | DR70: 0 | DS70: 0 | DT70: 0 | DU70: 805527 | DV70: 0 | DW70: 0 | DX70: 0 | DY70: 0 | DZ70: 0 | EA70: =EA163 -> 234679 | EB70: 4168 | EC70: 0 | ED70: 0 | EE70: 0 | EF70: 0 | EG70: 0 | EH70: 0 | EI70: 0 | EJ70: 0 | EK70: 0 | EL70: 0 | EM70: 0 | EN70: 199296 | EO70: 0 | EP70: 0 | EQ70: 0 | ER70: 105386 | ES70: 0 | ET70: 2194 | EU70: 0 | EV70: 9885 | EW70: 0 | EX70: 0 | EY70: 885 | EZ70: 1500 | FA70: 0 | FB70: 0 | FC70: 0 | FD70: 0 | FE70: 0 | FF70: 0 | FG70: 0 | FH70: 0 | FI70: 4349 | FJ70: 0 | FK70: 0 | FL70: 0 | FM70: 60389 | FN70: 0 | FO70: 0 | FP70: 0 | FQ70: 48429 | FR70: 85236 | FS70: 221 | FT70: 0 | FU70: 0 | FV70: 0 | FW70: 0 | FX70: 5556 | FY70: 130000 | FZ70: 125889 | GA70: 2389079 | GB70: 120307 | GC70: 2509386
B71: Village of Schuylerville | C71: =C164 -> 410474704490 | D71: Village of Schuylerville | E71: Saratoga | F71: 05/31 | G71: 1386 | H71: 0 | I71: 0.5 | J71: 74123420 | K71: 3346489 | L71: 481976 | M71: 0 | N71: 0 | O71: 0 | P71: 0 | Q71: 8198 | R71: 0 | S71: 0 | T71: 0 | U71: 191670 | V71: 0 | W71: 0 | X71: 11717 | Y71: 0 | Z71: 0 | AA71: 0 | AB71: 901 | AC71: 0 | AD71: 0 | AE71: 0 | AF71: 0 | AG71: 0 | AH71: 0 | AI71: 0 | AJ71: 197 | AK71: 2983 | AL71: 0 | AM71: 383815 | AN71: 0 | AO71: 0 | AP71: 0 | AQ71: 162878 | AR71: 0 | AS71: 0 | AT71: 0 | AU71: 75000 | AV71: 0 | AW71: 5890 | AX71: 0 | AY71: 67375 | AZ71: 0 | BA71: 2069 | BB71: 0 | BC71: 0 | BD71: 0 | BE71: 0 | BF71: 1680 | BG71: 0 | BH71: 0 | BI71: 0 | BJ71: 0 | BK71: 2866 | BL71: 1399214 | BM71: 13293 | BN71: 15630 | BO71: =BO164 -> 0 | BP71: 0 | BQ71: 61593 | BR71: 0 | BS71: 0 | BT71: 0 | BU71: 0 | BV71: 23720 | BW71: 0 | BX71: 0 | BY71: 0 | BZ71: 80134 | CA71: 0 | CB71: 0 | CC71: 0 | CD71: 0 | CE71: 0 | CF71: 0 | CG71: 0 | CH71: 0 | CI71: 0 | CJ71: 0 | CK71: 0 | CL71: 110719 | CM71: 1704303 | CN71: 0 | CO71: 95629 | CP71: 0 | CQ71: 0 | CR71: 0 | CS71: 1799932 | CT71: 315768 | CU71: 96611 | CV71: 0 | CW71: 0 | CX71: 35473 | CY71: 0 | CZ71: 0 | DA71: 0 | DB71: 0 | DC71: 0 | DD71: 0 | DE71: 0 | DF71: 0 | DG71: 1873 | DH71: 8987 | DI71: 75516 | DJ71: 0 | DK71: 0 | DL71: 0 | DM71: 0 | DN71: 10200 | DO71: 2715 | DP71: 0 | DQ71: 0 | DR71: 0 | DS71: 0 | DT71: 0 | DU71: 137253 | DV71: 0 | DW71: 0 | DX71: 0 | DY71: 0 | DZ71: 0 | EA71: =EA164 -> 0 | EB71: 96529 | EC71: 0 | ED71: 0 | EE71: 0 | EF71: 0 | EG71: 0 | EH71: 0 | EI71: 0 | EJ71: 0 | EK71: 0 | EL71: 0 | EM71: 0 | EN71: 0 | EO71: 0 | EP71: 0 | EQ71: 112747 | ER71: 10866 | ES71: 0 | ET71: 2556 | EU71: 73687 | EV71: 24696 | EW71: 0 | EX71: 0 | EY71: 0 | EZ71: 9032 | FA71: 0 | FB71: 11652 | FC71: 3011 | FD71: 0 | FE71: 0 | FF71: 0 | FG71: 547178 | FH71: 3456 | FI71: 42936 | FJ71: 0 | FK71: 0 | FL71: 0 | FM71: 17828 | FN71: 0 | FO71: 0 | FP71: 0 | FQ71: 22863 | FR71: 44037 | FS71: 0 | FT71: 0 | FU71: 0 | FV71: 0 | FW71: 0 | FX71: 0 | FY71: 208004 | FZ71: 48744 | GA71: 1964216 | GB71: 0 | GC71: 1964216
B72: Village of Victory | C72: =C165 -> 410474705070 | D72: Village of Victory | E72: Saratoga | F72: 05/31 | G72: 605 | H72: 0 | I72: 0.5 | J72: 0 | K72: 284040 | L72: 201601 | M72: 0 | N72: 0 | O72: 0 | P72: 0 | Q72: 2320 | R72: 0 | S72: 0 | T72: 0 | U72: 63742 | V72: 3476 | W72: 0 | X72: 5546 | Y72: 0 | Z72: 0 | AA72: 0 | AB72: 14956 | AC72: 0 | AD72: 0 | AE72: 0 | AF72: 0 | AG72: 0 | AH72: 0 | AI72: 0 | AJ72: 0 | AK72: 1601 | AL72: 0 | AM72: 95929 | AN72: 0 | AO72: 0 | AP72: 0 | AQ72: 11901 | AR72: 0 | AS72: 0 | AT72: 0 | AU72: 0 | AV72: 0 | AW72: 0 | AX72: 0 | AY72: 50885 | AZ72: 0 | BA72: 556 | BB72: 4000 | BC72: 0 | BD72: 0 | BE72: 0 | BF72: 2438 | BG72: 0 | BH72: 0 | BI72: 0 | BJ72: 0 | BK72: 0 | BL72: 458951 | BM72: 7304 | BN72: 3632 | BO72: =BO165 -> 0 | BP72: 0 | BQ72: 21046 | BR72: 0 | BS72: 22509 | BT72: 0 | BU72: 239416 | BV72: 0 | BW72: 0 | BX72: 0 | BY72: 0 | BZ72: 0 | CA72: 0 | CB72: 28591 | CC72: 0 | CD72: 0 | CE72: 0 | CF72: 0 | CG72: 0 | CH72: 0 | CI72: 0 | CJ72: 0 | CK72: 0 | CL72: 0 | CM72: 781449 | CN72: 0 | CO72: 6000 | CP72: 0 | CQ72: 28505 | CR72: 0 | CS72: 815954 | CT72: 46791 | CU72: 85352 | CV72: 0 | CW72: 0 | CX72: 7864 | CY72: 0 | CZ72: 0 | DA72: 0 | DB72: 0 | DC72: 0 | DD72: 0 | DE72: 0 | DF72: 0 | DG72: 0 | DH72: 0 | DI72: 7013 | DJ72: 0 | DK72: 0 | DL72: 0 | DM72: 0 | DN72: 0 | DO72: 350 | DP72: 0 | DQ72: 0 | DR72: 0 | DS72: 0 | DT72: 0 | DU72: 168704 | DV72: 0 | DW72: 0 | DX72: 0 | DY72: 0 | DZ72: 0 | EA72: =EA165 -> 0 | EB72: 8894 | EC72: 0 | ED72: 0 | EE72: 0 | EF72: 0 | EG72: 0 | EH72: 0 | EI72: 0 | EJ72: 0 | EK72: 0 | EL72: 0 | EM72: 0 | EN72: 246183 | EO72: 0 | EP72: 0 | EQ72: 0 | ER72: 0 | ES72: 0 | ET72: 0 | EU72: 0 | EV72: 1180 | EW72: 0 | EX72: 0 | EY72: 0 | EZ72: 5017 | FA72: 0 | FB72: 0 | FC72: 0 | FD72: 0 | FE72: 0 | FF72: 0 | FG72: 33345 | FH72: 0 | FI72: 7158 | FJ72: 0 | FK72: 0 | FL72: 0 | FM72: 14162 | FN72: 0 | FO72: 0 | FP72: 0 | FQ72: 11109 | FR72: 19642 | FS72: 310 | FT72: 0 | FU72: 1059 | FV72: 0 | FW72: 0 | FX72: 750 | FY72: 77010 | FZ72: 11071 | GA72: 752964 | GB72: 28505 | GC72: 781469
B73: City of Saratoga Springs | C73: =C166 -> 410252000000 | D73: City of Saratoga Springs | E73: Saratoga | F73: 12/31 | G73: 26586 | H73: 0 | I73: 28.1 | J73: 3792162425 | K73: 37718743 | L73: 17546224 | M73: 0 | N73: 557461 | O73: 0 | P73: 366244 | Q73: 269440 | R73: 0 | S73: 0 | T73: 9045606 | U73: 418849 | V73: 557299 | W73: 831046 | X73: 458315 | Y73: 0 | Z73: 237 | AA73: 0 | AB73: 174485 | AC73: 0 | AD73: 57937 | AE73: 41588 | AF73: 0 | AG73: 28575 | AH73: 0 | AI73: 36366 | AJ73: 1262269 | AK73: 289750 | AL73: 2663387 | AM73: 4035200 | AN73: 0 | AO73: 30005 | AP73: 0 | AQ73: 67252 | AR73: 0 | AS73: 0 | AT73: 0 | AU73: 151922 | AV73: 0 | AW73: 0 | AX73: 0 | AY73: 0 | AZ73: 0 | BA73: 170970 | BB73: 14839 | BC73: 402537 | BD73: 672504 | BE73: 0 | BF73: 397379 | BG73: 0 | BH73: 0 | BI73: 60128 | BJ73: 0 | BK73: 1061046 | BL73: 41668860 | BM73: 1683369 | BN73: 1116310 | BO73: =BO166 -> 44098 | BP73: 0 | BQ73: 11358 | BR73: 0 | BS73: 505679 | BT73: 0 | BU73: 0 | BV73: 8354197 | BW73: 0 | BX73: 16460 | BY73: 0 | BZ73: 25501 | CA73: 0 | CB73: 223642 | CC73: 0 | CD73: 2939989 | CE73: 35364 | CF73: 585176 | CG73: 0 | CH73: 0 | CI73: 13000 | CJ73: 0 | CK73: 0 | CL73: 0 | CM73: 57223003 | CN73: 1539457 | CO73: 0 | CP73: 0 | CQ73: 1556766 | CR73: 0 | CS73: 60319226 | CT73: 2284856 | CU73: 2804362 | CV73: 0 | CW73: 9615 | CX73: 396738 | CY73: 39810 | CZ73: 0 | DA73: 0 | DB73: 0 | DC73: 0 | DD73: 0 | DE73: 0 | DF73: 0 | DG73: 887950 | DH73: 6243664 | DI73: 4203780 | DJ73: 0 | DK73: 391197 | DL73: 0 | DM73: 0 | DN73: 445994 | DO73: 17765 | DP73: 0 | DQ73: 0 | DR73: 0 | DS73: 0 | DT73: 0 | DU73: 6520991 | DV73: 0 | DW73: 0 | DX73: 0 | DY73: 0 | DZ73: 0 | EA73: =EA166 -> 0 | EB73: 459996 | EC73: 0 | ED73: 0 | EE73: 0 | EF73: 0 | EG73: 0 | EH73: 180230 | EI73: 0 | EJ73: 0 | EK73: 0 | EL73: 27000 | EM73: 6589 | EN73: 387351 | EO73: 0 | EP73: 0 | EQ73: 43913 | ER73: 5580058 | ES73: 0 | ET73: 156923 | EU73: 0 | EV73: 219869 | EW73: 0 | EX73: 37900 | EY73: 93715 | EZ73: 100817 | FA73: 0 | FB73: 0 | FC73: 3016611 | FD73: 0 | FE73: 0 | FF73: 0 | FG73: 3575843 | FH73: 117046 | FI73: 225254 | FJ73: 0 | FK73: 0 | FL73: 60393 | FM73: 0 | FN73: 0 | FO73: 0 | FP73: 0 | FQ73: 0 | FR73: 0 | FS73: 0 | FT73: 0 | FU73: 0 | FV73: 0 | FW73: 0 | FX73: 10689370 | FY73: 1776316 | FZ73: 1620332 | GA73: 52622248 | GB73: 1556766 | GC73: 54179014
B74: Town of Stillwater | C74: =C167 -> 410380700000 | D74: Town of Stillwater | E74: Saratoga | F74: 12/31 | G74: 8287 | H74: 0 | I74: 41.2 | J74: 724498532 | K74: 4282819 | L74: 1631760 | M74: 0 | N74: 273111 | O74: 0 | P74: 24743 | Q74: 10917 | R74: 0 | S74: 0 | T74: 0 | U74: 1622200 | V74: 0 | W74: 0 | X74: 59869 | Y74: 0 | Z74: 0 | AA74: 0 | AB74: 6719 | AC74: 0 | AD74: 109 | AE74: 0 | AF74: 0 | AG74: 0 | AH74: 0 | AI74: 0 | AJ74: 0 | AK74: 38853 | AL74: 352195 | AM74: 57872 | AN74: 0 | AO74: 0 | AP74: 0 | AQ74: 4229 | AR74: 0 | AS74: 9498 | AT74: 0 | AU74: 0 | AV74: 0 | AW74: 0 | AX74: 0 | AY74: 0 | AZ74: 0 | BA74: 21890 | BB74: 43851 | BC74: 4800 | BD74: 76235 | BE74: 2951 | BF74: 0 | BG74: 0 | BH74: 117180 | BI74: 0 | BJ74: 0 | BK74: 69292 | BL74: 4428274 | BM74: 31538 | BN74: 201797 | BO74: =BO167 -> 0 | BP74: 0 | BQ74: 0 | BR74: 0 | BS74: 783244 | BT74: 0 | BU74: 0 | BV74: 2000 | BW74: 0 | BX74: 0 | BY74: 0 | BZ74: 313526 | CA74: 0 | CB74: 0 | CC74: 0 | CD74: 0 | CE74: 774574 | CF74: 0 | CG74: 0 | CH74: 0 | CI74: 0 | CJ74: 0 | CK74: 0 | CL74: 0 | CM74: 6534953 | CN74: 3410819 | CO74: 1453745 | CP74: 0 | CQ74: 572230 | CR74: 0 | CS74: 11971746 | CT74: 180281 | CU74: 691408 | CV74: 0 | CW74: 0 | CX74: 52874 | CY74: 17 | CZ74: 0 | DA74: 0 | DB74: 0 | DC74: 0 | DD74: 0 | DE74: 0 | DF74: 0 | DG74: 0 | DH74: 211805 | DI74: 0 | DJ74: 113000 | DK74: 0 | DL74: 0 | DM74: 0 | DN74: 816252 | DO74: 1520 | DP74: 0 | DQ74: 0 | DR74: 0 | DS74: 0 | DT74: 0 | DU74: 1216087 | DV74: 51846 | DW74: 0 | DX74: 0 | DY74: 0 | DZ74: 0 | EA74: =EA167 -> 552458 | EB74: 31497 | EC74: 0 | ED74: 0 | EE74: 0 | EF74: 0 | EG74: 0 | EH74: 762747 | EI74: 0 | EJ74: 0 | EK74: 0 | EL74: 0 | EM74: 73293 | EN74: 0 | EO74: 0 | EP74: 0 | EQ74: 2900 | ER74: 75356 | ES74: 0 | ET74: 58000 | EU74: 130860 | EV74: 45504 | EW74: 0 | EX74: 5700 | EY74: 11335 | EZ74: 0 | FA74: 0 | FB74: 44518 | FC74: 408396 | FD74: 0 | FE74: 0 | FF74: 0 | FG74: 82418 | FH74: 0 | FI74: 22065 | FJ74: 0 | FK74: 0 | FL74: 0 | FM74: 121133 | FN74: 11637 | FO74: 0 | FP74: 0 | FQ74: 104744 | FR74: 302027 | FS74: 1530 | FT74: 0 | FU74: 0 | FV74: 2258 | FW74: 0 | FX74: 8885 | FY74: 1530462 | FZ74: 95583 | GA74: 7820396 | GB74: 572274 | GC74: 8392669
B75: Village of Stillwater | C75: =C168 -> 410480704820 | D75: Village of Stillwater | E75: Saratoga | F75: 05/31 | G75: 1738 | H75: 0 | I75: 1.3 | J75: 93175850 | K75: 1691500 | L75: 257047 | M75: 0 | N75: 122263 | O75: 0 | P75: 0 | Q75: 4976 | R75: 0 | S75: 0 | T75: 0 | U75: 230065 | V75: 0 | W75: 0 | X75: 18395 | Y75: 0 | Z75: 0 | AA75: 0 | AB75: 196 | AC75: 0 | AD75: 0 | AE75: 200 | AF75: 0 | AG75: 0 | AH75: 0 | AI75: 0 | AJ75: 0 | AK75: 3122 | AL75: 399958 | AM75: 201184 | AN75: 0 | AO75: 0 | AP75: 0 | AQ75: 0 | AR75: 0 | AS75: 0 | AT75: 0 | AU75: 0 | AV75: 0 | AW75: 0 | AX75: 0 | AY75: 0 | AZ75: 0 | BA75: 3869 | BB75: 13349 | BC75: 0 | BD75: 0 | BE75: 0 | BF75: 2500 | BG75: 0 | BH75: 0 | BI75: 0 | BJ75: 707 | BK75: 2693 | BL75: 1260526 | BM75: 11431 | BN75: 15522 | BO75: =BO168 -> 0 | BP75: 0 | BQ75: 3060 | BR75: 0 | BS75: 0 | BT75: 0 | BU75: 0 | BV75: 0 | BW75: 0 | BX75: 0 | BY75: 0 | BZ75: 0 | CA75: 0 | CB75: 18666 | CC75: 0 | CD75: 0 | CE75: 0 | CF75: 0 | CG75: 0 | CH75: 0 | CI75: 0 | CJ75: 0 | CK75: 0 | CL75: 0 | CM75: 1309204 | CN75: 0 | CO75: 117500 | CP75: 0 | CQ75: 64648 | CR75: 0 | CS75: 1491352 | CT75: 115637 | CU75: 56997 | CV75: 0 | CW75: 0 | CX75: 334 | CY75: 0 | CZ75: 0 | DA75: 0 | DB75: 0 | DC75: 0 | DD75: 0 | DE75: 0 | DF75: 0 | DG75: 0 | DH75: 1139 | DI75: 62621 | DJ75: 0 | DK75: 0 | DL75: 0 | DM75: 0 | DN75: 6337 | DO75: 190 | DP75: 0 | DQ75: 0 | DR75: 0 | DS75: 0 | DT75: 0 | DU75: 107195 | DV75: 0 | DW75: 0 | DX75: 0 | DY75: 0 | DZ75: 0 | EA75: =EA168 -> 24901 | EB75: 17135 | EC75: 0 | ED75: 0 | EE75: 0 | EF75: 0 | EG75: 0 | EH75: 0 | EI75: 0 | EJ75: 0 | EK75: 0 | EL75: 0 | EM75: 0 | EN75: 0 | EO75: 0 | EP75: 0 | EQ75: 0 | ER75: 6779 | ES75: 0 | ET75: 0 | EU75: 0 | EV75: 944 | EW75: 0 | EX75: 0 | EY75: 0 | EZ75: 18 | FA75: 0 | FB75: 296 | FC75: 598445 | FD75: 0 | FE75: 0 | FF75: 0 | FG75: 181214 | FH75: 0 | FI75: 842 | FJ75: 0 | FK75: 0 | FL75: 0 | FM75: 16676 | FN75: 0 | FO75: 0 | FP75: 0 | FQ75: 18785 | FR75: 45836 | FS75: 347 | FT75: 0 | FU75: 31351 | FV75: 899 | FW75: 0 | FX75: 0 | FY75: 249001 | FZ75: 40746 | GA75: 1584662 | GB75: 64648 | GC75: 1649310
B76: Town of Waterford | C76: =C169 -> 410387500000 | D76: Town of Waterford | E76: Saratoga | F76: 12/31 | G76: 8423 | H76: 0 | I76: 6.6 | J76: 597504494 | K76: 8739124 | L76: 3075933 | M76: 0 | N76: 234970 | O76: 0 | P76: 61284 | Q76: 4252 | R76: 0 | S76: 0 | T76: 0 | U76: 1431866 | V76: 0 | W76: 0 | X76: 108502 | Y76: 0 | Z76: 0 | AA76: 0 | AB76: 3735 | AC76: 0 | AD76: 1529 | AE76: 0 | AF76: 0 | AG76: 0 | AH76: 0 | AI76: 104 | AJ76: 18211 | AK76: 42658 | AL76: 0 | AM76: 796161 | AN76: 0 | AO76: 10586 | AP76: 0 | AQ76: 0 | AR76: 0 | AS76: 0 | AT76: 0 | AU76: 2302 | AV76: 0 | AW76: 0 | AX76: 12413 | AY76: 7490 | AZ76: 0 | BA76: 5486 | BB76: 14402 | BC76: 0 | BD76: 28421 | BE76: 0 | BF76: 4952 | BG76: 0 | BH76: 0 | BI76: 550 | BJ76: 0 | BK76: 2570 | BL76: 5868377 | BM76: 42010 | BN76: 172035 | BO76: =BO169 -> 0 | BP76: 0 | BQ76: 355 | BR76: 0 | BS76: 48000 | BT76: 0 | BU76: 0 | BV76: 5917 | BW76: 0 | BX76: 0 | BY76: 605042 | BZ76: 5241 | CA76: 0 | CB76: 306 | CC76: 0 | CD76: 0 | CE76: 285772 | CF76: 94358 | CG76: 0 | CH76: 0 | CI76: 0 | CJ76: 0 | CK76: 0 | CL76: 0 | CM76: 7127413 | CN76: 0 | CO76: 133604 | CP76: 0 | CQ76: 819076 | CR76: 0 | CS76: 8080093 | CT76: 196490 | CU76: 557770 | CV76: 0 | CW76: 0 | CX76: 42846 | CY76: 574551 | CZ76: 0 | DA76: 0 | DB76: 0 | DC76: 0 | DD76: 0 | DE76: 0 | DF76: 1030 | DG76: 63943 | DH76: 908368 | DI76: 181563 | DJ76: 331817 | DK76: 0 | DL76: 0 | DM76: 0 | DN76: 50733 | DO76: 0 | DP76: 0 | DQ76: 0 | DR76: 0 | DS76: 0 | DT76: 0 | DU76: 515608 | DV76: 0 | DW76: 0 | DX76: 0 | DY76: 0 | DZ76: 0 | EA76: =EA169 -> 199140 | EB76: 52299 | EC76: 0 | ED76: 0 | EE76: 0 | EF76: 0 | EG76: 0 | EH76: 251792 | EI76: 0 | EJ76: 0 | EK76: 0 | EL76: 0 | EM76: 33980 | EN76: 94358 | EO76: 0 | EP76: 0 | EQ76: 0 | ER76: 275123 | ES76: 0 | ET76: 29533 | EU76: 2000 | EV76: 23176 | EW76: 17577 | EX76: 59583 | EY76: 1498 | EZ76: 0 | FA76: 0 | FB76: 1199 | FC76: 0 | FD76: 0 | FE76: 0 | FF76: 0 | FG76: 629111 | FH76: 0 | FI76: 282474 | FJ76: 17456 | FK76: 0 | FL76: 0 | FM76: 125805 | FN76: 96627 | FO76: 0 | FP76: 0 | FQ76: 162553 | FR76: 472013 | FS76: 1114 | FT76: 0 | FU76: 0 | FV76: 356 | FW76: 0 | FX76: 0 | FY76: 574047 | FZ76: 367844 | GA76: 7195377 | GB76: 819076 | GC76: 8014453
B77: Village of Waterford | C77: =C170 -> 410487505180 | D77: Village of Waterford | E77: Saratoga | F77: 05/31 | G77: 1990 | H77: 0 | I77: 0.3 | J77: 61340788 | K77: 204500 | L77: 246311 | M77: 0 | N77: 0 | O77: 0 | P77: 0 | Q77: 2363 | R77: 0 | S77: 0 | T77: 0 | U77: 146012 | V77: 0 | W77: 0 | X77: 18795 | Y77: 0 | Z77: 0 | AA77: 0 | AB77: 12841 | AC77: 0 | AD77: 56636 | AE77: 0 | AF77: 0 | AG77: 0 | AH77: 0 | AI77: 0 | AJ77: 10239 | AK77: 593 | AL77: 0 | AM77: 0 | AN77: 0 | AO77: 750 | AP77: 0 | AQ77: 181563 | AR77: 0 | AS77: 0 | AT77: 0 | AU77: 0 | AV77: 0 | AW77: 0 | AX77: 0 | AY77: 0 | AZ77: 0 | BA77: 358 | BB77: 0 | BC77: 0 | BD77: 0 | BE77: 0 | BF77: 2127 | BG77: 0 | BH77: 0 | BI77: 0 | BJ77: 0 | BK77: 33362 | BL77: 711950 | BM77: 73701 | BN77: 32768 | BO77: =BO170 -> 0 | BP77: 0 | BQ77: 0 | BR77: 0 | BS77: 3919 | BT77: 0 | BU77: 0 | BV77: 1388 | BW77: 92141 | BX77: 0 | BY77: 0 | BZ77: 0 | CA77: 0 | CB77: 0 | CC77: 0 | CD77: 0 | CE77: 337731 | CF77: 0 | CG77: 0 | CH77: 0 | CI77: 0 | CJ77: 0 | CK77: 0 | CL77: 23511 | CM77: 1277108 | CN77: 0 | CO77: 50000 | CP77: 0 | CQ77: 0 | CR77: 0 | CS77: 1327108 | CT77: 15210 | CU77: 110626 | CV77: 0 | CW77: 0 | CX77: 12877 | CY77: 0 | CZ77: 0 | DA77: 0 | DB77: 0 | DC77: 0 | DD77: 0 | DE77: 0 | DF77: 0 | DG77: 0 | DH77: 0 | DI77: 202695 | DJ77: 0 | DK77: 0 | DL77: 0 | DM77: 0 | DN77: 1100 | DO77: 0 | DP77: 0 | DQ77: 0 | DR77: 0 | DS77: 0 | DT77: 0 | DU77: 218492 | DV77: 0 | DW77: 0 | DX77: 0 | DY77: 0 | DZ77: 0 | EA77: =EA170 -> 0 | EB77: 62702 | EC77: 0 | ED77: 0 | EE77: 0 | EF77: 0 | EG77: 0 | EH77: 279026 | EI77: 0 | EJ77: 0 | EK77: 0 | EL77: 0 | EM77: 0 | EN77: 0 | EO77: 0 | EP77: 0 | EQ77: 0 | ER77: 58125 | ES77: 0 | ET77: 0 | EU77: 0 | EV77: 4525 | EW77: 0 | EX77: 0 | EY77: 0 | EZ77: 1345 | FA77: 0 | FB77: 0 | FC77: 0 | FD77: 0 | FE77: 0 | FF77: 0 | FG77: 0 | FH77: 0 | FI77: 137330 | FJ77: 0 | FK77: 0 | FL77: 5659 | FM77: 3210 | FN77: 0 | FO77: 0 | FP77: 0 | FQ77: 6778 | FR77: 0 | FS77: 0 | FT77: 0 | FU77: 0 | FV77: 0 | FW77: 0 | FX77: 0 | FY77: 131000 | FZ77: 11785 | GA77: 1262486 | GB77: 0 | GC77: 1262486
B78: Town of Wilton | C78: =C171 -> 410391700000 | D78: Town of Wilton | E78: Saratoga | F78: 12/31 | G78: 16173 | H78: 0 | I78: 35.8 | J78: 1821626122 | K78: 505000 | L78: 558765 | M78: 0 | N78: 0 | O78: 0 | P78: 0 | Q78: 7569 | R78: 0 | S78: 0 | T78: 0 | U78: 4502733 | V78: 0 | W78: 0 | X78: 258829 | Y78: 0 | Z78: 0 | AA78: 0 | AB78: 40698 | AC78: 0 | AD78: 480 | AE78: 2560 | AF78: 0 | AG78: 0 | AH78: 0 | AI78: 2064 | AJ78: 339422 | AK78: 173738 | AL78: 0 | AM78: 0 | AN78: 0 | AO78: 0 | AP78: 0 | AQ78: 0 | AR78: 0 | AS78: 11396 | AT78: 0 | AU78: 0 | AV78: 0 | AW78: 0 | AX78: 0 | AY78: 0 | AZ78: 0 | BA78: 58635 | BB78: 195767 | BC78: 15457 | BD78: 210932 | BE78: 0 | BF78: 19494 | BG78: 0 | BH78: 2492 | BI78: 0 | BJ78: 0 | BK78: 30517 | BL78: 6431548 | BM78: 26067 | BN78: 536416 | BO78: =BO171 -> 0 | BP78: 0 | BQ78: 0 | BR78: 0 | BS78: 123743 | BT78: 0 | BU78: 0 | BV78: 0 | BW78: 0 | BX78: 0 | BY78: 0 | BZ78: 4015 | CA78: 0 | CB78: 0 | CC78: 0 | CD78: 0 | CE78: 95555 | CF78: 0 | CG78: 0 | CH78: 0 | CI78: 0 | CJ78: 0 | CK78: 0 | CL78: 0 | CM78: 7217344 | CN78: 0 | CO78: 0 | CP78: 0 | CQ78: 25000 | CR78: 0 | CS78: 7242344 | CT78: 460137 | CU78: 910288 | CV78: 0 | CW78: 0 | CX78: 122126 | CY78: 0 | CZ78: 0 | DA78: 0 | DB78: 0 | DC78: 0 | DD78: 0 | DE78: 0 | DF78: 0 | DG78: 0 | DH78: 133443 | DI78: 0 | DJ78: 528310 | DK78: 3000 | DL78: 428 | DM78: 0 | DN78: 35669 | DO78: 3000 | DP78: 0 | DQ78: 0 | DR78: 8495 | DS78: 0 | DT78: 0 | DU78: 1627488 | DV78: 0 | DW78: 0 | DX78: 0 | DY78: 0 | DZ78: 0 | EA78: =EA171 -> 331698 | EB78: 13405 | EC78: 0 | ED78: 0 | EE78: 0 | EF78: 0 | EG78: 0 | EH78: 100518 | EI78: 0 | EJ78: 0 | EK78: 0 | EL78: 0 | EM78: 0 | EN78: 0 | EO78: 0 | EP78: 0 | EQ78: 2479 | ER78: 473613 | ES78: 0 | ET78: 244681 | EU78: 0 | EV78: 54120 | EW78: 0 | EX78: 201456 | EY78: 14881 | EZ78: 70170 | FA78: 0 | FB78: 0 | FC78: 0 | FD78: 0 | FE78: 0 | FF78: 0 | FG78: 0 | FH78: 0 | FI78: 17091 | FJ78: 0 | FK78: 0 | FL78: 0 | FM78: 224955 | FN78: 0 | FO78: 0 | FP78: 20105 | FQ78: 188884 | FR78: 454647 | FS78: 4095 | FT78: 0 | FU78: 0 | FV78: 5666 | FW78: 0 | FX78: 15401 | FY78: 155000 | FZ78: 17475 | GA78: 6442725 | GB78: 25000 | GC78: 6467725
B79: Schenectady County | C79: =C172 -> 420100000000 | D79: County of Schenectady | E79: Schenectady | F79: 12/31 | G79: 154727 | H79: 0 | I79: 204.5 | J79: 10444791771 | K79: 57714665 | L79: 63583228 | M79: 0 | N79: 0 | O79: 0 | P79: 938917 | Q79: 2160893 | R79: 0 | S79: 0 | T79: 82304702 | U79: 0 | V79: 0 | W79: 413141 | X79: 0 | Y79: 568303 | Z79: 0 | AA79: 0 | AB79: 4358905 | AC79: 0 | AD79: 409453 | AE79: 20919333 | AF79: 0 | AG79: 789278 | AH79: 2572032 | AI79: 51736 | AJ79: 643696 | AK79: 547776 | AL79: 0 | AM79: 147803 | AN79: 0 | AO79: 1533936 | AP79: 439560 | AQ79: 67253 | AR79: 0 | AS79: 1901422 | AT79: 0 | AU79: 8000 | AV79: 167744 | AW79: 0 | AX79: 0 | AY79: 469934 | AZ79: 0 | BA79: 299536 | BB79: 318947 | BC79: 232124 | BD79: 229861 | BE79: 33098 | BF79: 2604473 | BG79: 0 | BH79: 0 | BI79: 422504 | BJ79: 0 | BK79: 10900079 | BL79: 200037667 | BM79: 0 | BN79: 0 | BO79: =BO172 -> 751884 | BP79: 4682744 | BQ79: 2806620 | BR79: 9170338 | BS79: 2220596 | BT79: 25039170 | BU79: 4763 | BV79: 220352 | BW79: 1174387 | BX79: 0 | BY79: 0 | BZ79: 670571 | CA79: 0 | CB79: 237875 | CC79: 8301115 | CD79: 158812 | CE79: 22234773 | CF79: 1136255 | CG79: 0 | CH79: 781594 | CI79: 0 | CJ79: 0 | CK79: 0 | CL79: 1781394 | CM79: 281410910 | CN79: 6800419 | CO79: 0 | CP79: 0 | CQ79: 1682882 | CR79: 0 | CS79: 289894211 | CT79: 6039442 | CU79: 13414038 | CV79: 29129122 | CW79: 665478 | CX79: 944670 | CY79: 100668 | CZ79: 0 | DA79: 0 | DB79: 0 | DC79: 0 | DD79: 0 | DE79: 5205620 | DF79: 8579444 | DG79: 560278 | DH79: 2258461 | DI79: 0 | DJ79: 190443 | DK79: 19004791 | DL79: 0 | DM79: 287471 | DN79: 0 | DO79: 745768 | DP79: 3187331 | DQ79: 3378583 | DR79: 674164 | DS79: 19786748 | DT79: 2994099 | DU79: 12163031 | DV79: 0 | DW79: 316305 | DX79: 491322 | DY79: 0 | DZ79: 0 | EA79: =EA172 -> 3015156 | EB79: 0 | EC79: 94413 | ED79: 17967811 | EE79: 33028115 | EF79: 34219472 | EG79: 14064980 | EH79: 0 | EI79: 2346535 | EJ79: 1941691 | EK79: 0 | EL79: 0 | EM79: 565469 | EN79: 0 | EO79: 97500 | EP79: 0 | EQ79: 0 | ER79: 127287 | ES79: 0 | ET79: 635799 | EU79: 5055082 | EV79: 302125 | EW79: 34467 | EX79: 540449 | EY79: 2737459 | EZ79: 128325 | FA79: 0 | FB79: 344079 | FC79: 0 | FD79: 0 | FE79: 0 | FF79: 0 | FG79: 0 | FH79: 0 | FI79: 331867 | FJ79: 0 | FK79: 0 | FL79: 0 | FM79: 6165900 | FN79: 0 | FO79: 0 | FP79: 0 | FQ79: 4057558 | FR79: 13613152 | FS79: 0 | FT79: 0 | FU79: 826642 | FV79: 16286 | FW79: 0 | FX79: 9964877 | FY79: 6300500 | FZ79: 2195429 | GA79: 290835702 | GB79: 1682882 | GC79: 292518584
B80: Town of Duanesburg | C80: =C173 -> 420324200000 | D80: Town of Duanesburg | E80: Schenectady | F80: 12/31 | G80: 6122 | H80: 0 | I80: 70.8 | J80: 585414892 | K80: 6985657 | L80: 1484414 | M80: 0 | N80: 0 | O80: 0 | P80: 0 | Q80: 18644 | R80: 0 | S80: 0 | T80: 0 | U80: 724896 | V80: 0 | W80: 0 | X80: 34930 | Y80: 0 | Z80: 0 | AA80: 0 | AB80: 4605 | AC80: 0 | AD80: 0 | AE80: 0 | AF80: 0 | AG80: 0 | AH80: 0 | AI80: 0 | AJ80: 2035 | AK80: 20952 | AL80: 0 | AM80: 2993 | AN80: 0 | AO80: 0 | AP80: 0 | AQ80: 0 | AR80: 0 | AS80: 60528 | AT80: 0 | AU80: 0 | AV80: 0 | AW80: 0 | AX80: 0 | AY80: 285 | AZ80: 0 | BA80: 6108 | BB80: 0 | BC80: 0 | BD80: 164176 | BE80: 0 | BF80: 1520 | BG80: 0 | BH80: 0 | BI80: 1 | BJ80: 0 | BK80: 1067 | BL80: 2527154 | BM80: 21074 | BN80: 117587 | BO80: =BO173 -> 0 | BP80: 0 | BQ80: 0 | BR80: 0 | BS80: 81732 | BT80: 0 | BU80: 0 | BV80: 1621 | BW80: 0 | BX80: 0 | BY80: 0 | BZ80: 0 | CA80: 0 | CB80: 0 | CC80: 0 | CD80: 0 | CE80: 0 | CF80: 87463 | CG80: 0 | CH80: 0 | CI80: 0 | CJ80: 0 | CK80: 0 | CL80: 0 | CM80: 2836630 | CN80: 0 | CO80: 0 | CP80: 0 | CQ80: 1000 | CR80: 0 | CS80: 2837630 | CT80: 141363 | CU80: 337479 | CV80: 0 | CW80: 0 | CX80: 127805 | CY80: 0 | CZ80: 0 | DA80: 0 | DB80: 0 | DC80: 0 | DD80: 0 | DE80: 0 | DF80: 0 | DG80: 7500 | DH80: 0 | DI80: 354654 | DJ80: 73548 | DK80: 0 | DL80: 0 | DM80: 0 | DN80: 11637 | DO80: 850 | DP80: 0 | DQ80: 0 | DR80: 0 | DS80: 0 | DT80: 0 | DU80: 538521 | DV80: 0 | DW80: 0 | DX80: 0 | DY80: 0 | DZ80: 0 | EA80: =EA173 -> 68786 | EB80: 12515 | EC80: 0 | ED80: 2500 | EE80: 0 | EF80: 0 | EG80: 0 | EH80: 0 | EI80: 0 | EJ80: 0 | EK80: 0 | EL80: 0 | EM80: 0 | EN80: 89351 | EO80: 1185 | EP80: 0 | EQ80: 0 | ER80: 16855 | ES80: 0 | ET80: 5656 | EU80: 0 | EV80: 2048 | EW80: 0 | EX80: 1000 | EY80: 2500 | EZ80: 0 | FA80: 0 | FB80: 0 | FC80: 0 | FD80: 0 | FE80: 0 | FF80: 0 | FG80: 283615 | FH80: 0 | FI80: 28751 | FJ80: 0 | FK80: 0 | FL80: 0 | FM80: 73055 | FN80: 0 | FO80: 0 | FP80: 0 | FQ80: 52132 | FR80: 161585 | FS80: 186 | FT80: 0 | FU80: 19698 | FV80: 4676 | FW80: 0 | FX80: 42500 | FY80: 297200 | FZ80: 5871 | GA80: 2765023 | GB80: 1000 | GC80: 2766023
B81: Village of Delanson | C81: =C174 -> 420424201250 | D81: Village of Delanson | E81: Schenectady | F81: 05/31 | G81: 377 | H81: 0 | I81: 0.6 | J81: 23167654 | K81: 443700 | L81: 74296 | M81: 0 | N81: 0 | O81: 0 | P81: 0 | Q81: 188 | R81: 0 | S81: 0 | T81: 0 | U81: 35349 | V81: 0 | W81: 0 | X81: 10388 | Y81: 0 | Z81: 0 | AA81: 0 | AB81: 220 | AC81: 0 | AD81: 0 | AE81: 0 | AF81: 0 | AG81: 0 | AH81: 0 | AI81: 0 | AJ81: 0 | AK81: 210 | AL81: 83992 | AM81: 0 | AN81: 0 | AO81: 0 | AP81: 0 | AQ81: 58854 | AR81: 0 | AS81: 0 | AT81: 0 | AU81: 0 | AV81: 0 | AW81: 0 | AX81: 0 | AY81: 0 | AZ81: 0 | BA81: 277 | BB81: 0 | BC81: 0 | BD81: 0 | BE81: 0 | BF81: 163 | BG81: 0 | BH81: 0 | BI81: 10 | BJ81: 0 | BK81: 310 | BL81: 264257 | BM81: 5049 | BN81: 0 | BO81: =BO174 -> 0 | BP81: 0 | BQ81: 0 | BR81: 0 | BS81: 24446 | BT81: 0 | BU81: 0 | BV81: 0 | BW81: 0 | BX81: 0 | BY81: 0 | BZ81: 0 | CA81: 0 | CB81: 0 | CC81: 0 | CD81: 0 | CE81: 0 | CF81: 0 | CG81: 0 | CH81: 0 | CI81: 0 | CJ81: 0 | CK81: 0 | CL81: 0 | CM81: 293752 | CN81: 0 | CO81: 0 | CP81: 0 | CQ81: 0 | CR81: 0 | CS81: 293752 | CT81: 29717 | CU81: 46234 | CV81: 0 | CW81: 0 | CX81: 80 | CY81: 0 | CZ81: 0 | DA81: 0 | DB81: 0 | DC81: 0 | DD81: 0 | DE81: 0 | DF81: 0 | DG81: 0 | DH81: 0 | DI81: 31349 | DJ81: 0 | DK81: 0 | DL81: 0 | DM81: 0 | DN81: 704 | DO81: 0 | DP81: 0 | DQ81: 0 | DR81: 0 | DS81: 0 | DT81: 0 | DU81: 50323 | DV81: 0 | DW81: 0 | DX81: 0 | DY81: 0 | DZ81: 0 | EA81: =EA174 -> 0 | EB81: 4489 | EC81: 0 | ED81: 0 | EE81: 0 | EF81: 0 | EG81: 0 | EH81: 0 | EI81: 0 | EJ81: 0 | EK81: 0 | EL81: 0 | EM81: 0 | EN81: 0 | EO81: 0 | EP81: 0 | EQ81: 0 | ER81: 2428 | ES81: 0 | ET81: 0 | EU81: 0 | EV81: 28 | EW81: 0 | EX81: 0 | EY81: 0 | EZ81: 0 | FA81: 0 | FB81: 0 | FC81: 35469 | FD81: 0 | FE81: 0 | FF81: 0 | FG81: 0 | FH81: 0 | FI81: 26962 | FJ81: 0 | FK81: 0 | FL81: 0 | FM81: 1481 | FN81: 0 | FO81: 0 | FP81: 0 | FQ81: 3692 | FR81: 0 | FS81: 0 | FT81: 0 | FU81: 1030 | FV81: 0 | FW81: 0 | FX81: 0 | FY81: 20899 | FZ81: 16357 | GA81: 271242 | GB81: 0 | GC81: 271242
B82: Town of Glenville | C82: =C175 -> 420333100000 | D82: Town of Glenville | E82: Schenectady | F82: 12/31 | G82: 29480 | H82: 0 | I82: 49.2 | J82: 2328975445 | K82: 21764820 | L82: 7311333 | M82: 0 | N82: 30100 | O82: 0 | P82: 82745 | Q82: 69559 | R82: 0 | S82: 0 | T82: 0 | U82: 2534366 | V82: 0 | W82: 0 | X82: 317237 | Y82: 0 | Z82: 0 | AA82: 0 | AB82: 49418 | AC82: 0 | AD82: 105257 | AE82: 13130 | AF82: 0 | AG82: 0 | AH82: 0 | AI82: 51353 | AJ82: 17000 | AK82: 41208 | AL82: 1419878 | AM82: 290579 | AN82: 0 | AO82: 0 | AP82: 0 | AQ82: 9024 | AR82: 0 | AS82: 129576 | AT82: 0 | AU82: 0 | AV82: 0 | AW82: 227234 | AX82: 0 | AY82: 0 | AZ82: 10060 | BA82: 80311 | BB82: 18846 | BC82: 27128 | BD82: 205736 | BE82: 10196 | BF82: 42929 | BG82: 0 | BH82: 11000 | BI82: 9937 | BJ82: 0 | BK82: 669447 | BL82: 13784587 | BM82: 180066 | BN82: 624986 | BO82: =BO175 -> 0 | BP82: 0 | BQ82: 19473 | BR82: 0 | BS82: 0 | BT82: 0 | BU82: 12000 | BV82: 15080 | BW82: 0 | BX82: 0 | BY82: 0 | BZ82: 42798 | CA82: 0 | CB82: 4017 | CC82: 0 | CD82: 0 | CE82: 324954 | CF82: 0 | CG82: 0 | CH82: 144460 | CI82: 0 | CJ82: 0 | CK82: 0 | CL82: 0 | CM82: 15152421 | CN82: 2133100 | CO82: 767483 | CP82: 0 | CQ82: 0 | CR82: 0 | CS82: 18053004 | CT82: 365677 | CU82: 1101118 | CV82: 0 | CW82: 0 | CX82: 3547 | CY82: 0 | CZ82: 0 | DA82: 0 | DB82: 0 | DC82: 0 | DD82: 0 | DE82: 0 | DF82: 0 | DG82: 121572 | DH82: 2920447 | DI82: 371479 | DJ82: 0 | DK82: 0 | DL82: 0 | DM82: 0 | DN82: 270560 | DO82: 1743 | DP82: 0 | DQ82: 0 | DR82: 0 | DS82: 0 | DT82: 0 | DU82: 2176494 | DV82: 0 | DW82: 0 | DX82: 0 | DY82: 0 | DZ82: 0 | EA82: =EA175 -> 362731 | EB82: 39331 | EC82: 0 | ED82: 0 | EE82: 0 | EF82: 0 | EG82: 0 | EH82: 325081 | EI82: 0 | EJ82: 0 | EK82: 0 | EL82: 0 | EM82: 22080 | EN82: 134380 | EO82: 0 | EP82: 0 | EQ82: 432 | ER82: 353469 | ES82: 0 | ET82: 27000 | EU82: 0 | EV82: 9666 | EW82: 0 | EX82: 50537 | EY82: 0 | EZ82: 0 | FA82: 0 | FB82: 0 | FC82: 1190481 | FD82: 0 | FE82: 0 | FF82: 0 | FG82: 736300 | FH82: 0 | FI82: 18916 | FJ82: 0 | FK82: 14614 | FL82: 0 | FM82: 354524 | FN82: 365615 | FO82: 0 | FP82: 0 | FQ82: 430697 | FR82: 1534889 | FS82: 8788 | FT82: 0 | FU82: 119338 | FV82: 12416 | FW82: 0 | FX82: 0 | FY82: 1632240 | FZ82: 758761 | GA82: 15834923 | GB82: 0 | GC82: 15834923
B83: Village of Scotia | C83: =C176 -> 420433104500 | D83: Village of Scotia | E83: Schenectady | F83: 05/31 | G83: 7729 | H83: 0 | I83: 1.7 | J83: 426783975 | K83: 1216280 | L83: 3767171 | M83: 0 | N83: 15931 | O83: 0 | P83: 53406 | Q83: 30978 | R83: 0 | S83: 0 | T83: 0 | U83: 675910 | V83: 86569 | W83: 0 | X83: 0 | Y83: 0 | Z83: 0 | AA83: 0 | AB83: 225739 | AC83: 0 | AD83: 75095 | AE83: 0 | AF83: 0 | AG83: 0 | AH83: 0 | AI83: 0 | AJ83: 5752 | AK83: 55072 | AL83: 759690 | AM83: 1183880 | AN83: 0 | AO83: 0 | AP83: 0 | AQ83: 370000 | AR83: 0 | AS83: 10148 | AT83: 0 | AU83: 7500 | AV83: 0 | AW83: 0 | AX83: 0 | AY83: 0 | AZ83: 0 | BA83: 15935 | BB83: 11922 | BC83: 0 | BD83: 72605 | BE83: 0 | BF83: 0 | BG83: 0 | BH83: 0 | BI83: 0 | BJ83: 0 | BK83: 12257 | BL83: 7435558 | BM83: 76498 | BN83: 71792 | BO83: =BO176 -> 0 | BP83: 0 | BQ83: 0 | BR83: 0 | BS83: 162176 | BT83: 0 | BU83: 0 | BV83: 3674 | BW83: 0 | BX83: 0 | BY83: 0 | BZ83: 1361727 | CA83: 0 | CB83: 0 | CC83: 0 | CD83: 0 | CE83: 640262 | CF83: 0 | CG83: 0 | CH83: 0 | CI83: 0 | CJ83: 0 | CK83: 0 | CL83: 0 | CM83: 9751688 | CN83: 0 | CO83: 0 | CP83: 0 | CQ83: 213331 | CR83: 0 | CS83: 9965020 | CT83: 294836 | CU83: 344770 | CV83: 0 | CW83: 0 | CX83: 0 | CY83: 0 | CZ83: 0 | DA83: 0 | DB83: 0 | DC83: 0 | DD83: 0 | DE83: 0 | DF83: 0 | DG83: 0 | DH83: 1110343 | DI83: 1969203 | DJ83: 0 | DK83: 0 | DL83: 0 | DM83: 0 | DN83: 38414 | DO83: 64 | DP83: 0 | DQ83: 0 | DR83: 0 | DS83: 0 | DT83: 0 | DU83: 548071 | DV83: 0 | DW83: 0 | DX83: 0 | DY83: 0 | DZ83: 0 | EA83: =EA176 -> 0 | EB83: 95535 | EC83: 0 | ED83: 0 | EE83: 0 | EF83: 0 | EG83: 0 | EH83: 621599 | EI83: 0 | EJ83: 0 | EK83: 0 | EL83: 0 | EM83: 0 | EN83: 57995 | EO83: 0 | EP83: 0 | EQ83: 445 | ER83: 1001522 | ES83: 0 | ET83: 59983 | EU83: 0 | EV83: 12321 | EW83: 0 | EX83: 0 | EY83: 3000 | EZ83: 12475 | FA83: 0 | FB83: 15931 | FC83: 474133 | FD83: 0 | FE83: 0 | FF83: 0 | FG83: 1077114 | FH83: 20039 | FI83: 538892 | FJ83: 0 | FK83: 0 | FL83: 0 | FM83: 66524 | FN83: 265328 | FO83: 0 | FP83: 0 | FQ83: 226606 | FR83: 739217 | FS83: 0 | FT83: 0 | FU83: 35139 | FV83: 0 | FW83: 0 | FX83: 0 | FY83: 260910 | FZ83: 62886 | GA83: 9953293 | GB83: 213331 | GC83: 10166624
B84: Town of Niskayuna | C84: =C177 -> 420358700000 | D84: Town of Niskayuna | E84: Schenectady | F84: 12/31 | G84: 21781 | H84: 0 | I84: 14.2 | J84: 2423130612 | K84: 10374489 | L84: 6418199 | M84: 0 | N84: 3698023 | O84: 0 | P84: 292779 | Q84: 34426 | R84: 0 | S84: 0 | T84: 0 | U84: 3026887 | V84: 0 | W84: 0 | X84: 358202 | Y84: 0 | Z84: 0 | AA84: 0 | AB84: 41391 | AC84: 0 | AD84: 63911 | AE84: 29240 | AF84: 0 | AG84: 0 | AH84: 0 | AI84: 0 | AJ84: 319582 | AK84: 144464 | AL84: 2808420 | AM84: 133279 | AN84: 0 | AO84: 0 | AP84: 0 | AQ84: 0 | AR84: 0 | AS84: 0 | AT84: 0 | AU84: 0 | AV84: 0 | AW84: 3409 | AX84: 0 | AY84: 8170 | AZ84: 2750 | BA84: 92601 | BB84: 119037 | BC84: 119449 | BD84: 244608 | BE84: 250 | BF84: 15766 | BG84: 0 | BH84: 0 | BI84: 1126 | BJ84: 0 | BK84: -130012 | BL84: 17845956 | BM84: 103750 | BN84: 679349 | BO84: =BO177 -> 0 | BP84: 0 | BQ84: 37642 | BR84: 0 | BS84: 108206 | BT84: 0 | BU84: 0 | BV84: 8388 | BW84: 0 | BX84: 0 | BY84: 0 | BZ84: 16940 | CA84: 0 | CB84: 245169 | CC84: 0 | CD84: 0 | CE84: 277956 | CF84: 0 | CG84: 0 | CH84: 37270 | CI84: 0 | CJ84: 0 | CK84: 0 | CL84: 0 | CM84: 19360627 | CN84: 8905138 | CO84: 743588 | CP84: 0 | CQ84: 543980 | CR84: 0 | CS84: 29553333 | CT84: 574799 | CU84: 983715 | CV84: 0 | CW84: 0 | CX84: 144066 | CY84: 2878 | CZ84: 0 | DA84: 0 | DB84: 0 | DC84: 0 | DD84: 0 | DE84: 0 | DF84: 0 | DG84: 13058 | DH84: 3136588 | DI84: 0 | DJ84: 0 | DK84: 0 | DL84: 0 | DM84: 0 | DN84: 171508 | DO84: 34597 | DP84: 0 | DQ84: 0 | DR84: 0 | DS84: 0 | DT84: 0 | DU84: 3083711 | DV84: 0 | DW84: 0 | DX84: 0 | DY84: 0 | DZ84: 0 | EA84: =EA177 -> 490201 | EB84: 38105 | EC84: 0 | ED84: 0 | EE84: 0 | EF84: 0 | EG84: 0 | EH84: 291342 | EI84: 0 | EJ84: 0 | EK84: 0 | EL84: 0 | EM84: 0 | EN84: 0 | EO84: 0 | EP84: 0 | EQ84: 0 | ER84: 919938 | ES84: 0 | ET84: 161957 | EU84: 0 | EV84: 7274 | EW84: 0 | EX84: 500 | EY84: 94877 | EZ84: 5576 | FA84: 0 | FB84: 0 | FC84: 4052328 | FD84: 0 | FE84: 0 | FF84: 0 | FG84: 2048168 | FH84: 37372 | FI84: 421585 | FJ84: 0 | FK84: 0 | FL84: 0 | FM84: 539800 | FN84: 325577 | FO84: 0 | FP84: 0 | FQ84: 626790 | FR84: 1818645 | FS84: 5479 | FT84: 0 | FU84: 85446 | FV84: 12178 | FW84: 27540 | FX84: 13041 | FY84: 1276175 | FZ84: 251070 | GA84: 21695882 | GB84: 543980 | GC84: 22239862
B85: Town of Princetown | C85: =C178 -> 420369200000 | D85: Town of Princetown | E85: Schenectady | F85: 12/31 | G85: 2115 | H85: 0 | I85: 23.9 | J85: 202235418 | K85: 2709700 | L85: 400188 | M85: 0 | N85: 0 | O85: 0 | P85: 0 | Q85: 5412 | R85: 0 | S85: 76268 | T85: 0 | U85: 193766 | V85: 0 | W85: 0 | X85: 0 | Y85: 0 | Z85: 0 | AA85: 0 | AB85: 1654 | AC85: 0 | AD85: 0 | AE85: 0 | AF85: 0 | AG85: 0 | AH85: 0 | AI85: 0 | AJ85: 0 | AK85: 11790 | AL85: 127146 | AM85: 572 | AN85: 0 | AO85: 0 | AP85: 0 | AQ85: 0 | AR85: 0 | AS85: 0 | AT85: 0 | AU85: 0 | AV85: 0 | AW85: 0 | AX85: 0 | AY85: 0 | AZ85: 0 | BA85: 1288 | BB85: 0 | BC85: 38068 | BD85: 201998 | BE85: 0 | BF85: 0 | BG85: 0 | BH85: 0 | BI85: 0 | BJ85: 0 | BK85: 46073 | BL85: 1104222 | BM85: 16239 | BN85: 43108 | BO85: =BO178 -> 0 | BP85: 0 | BQ85: 0 | BR85: 0 | BS85: 6921 | BT85: 0 | BU85: 0 | BV85: 0 | BW85: 0 | BX85: 0 | BY85: 0 | BZ85: 4962 | CA85: 0 | CB85: 0 | CC85: 0 | CD85: 0 | CE85: 0 | CF85: 0 | CG85: 0 | CH85: 0 | CI85: 0 | CJ85: 28267 | CK85: 0 | CL85: 0 | CM85: 1203719 | CN85: 330600 | CO85: 0 | CP85: 0 | CQ85: 77246 | CR85: 0 | CS85: 1611565 | CT85: 65398 | CU85: 270547 | CV85: 0 | CW85: 0 | CX85: 46184 | CY85: 0 | CZ85: 0 | DA85: 0 | DB85: 0 | DC85: 0 | DD85: 0 | DE85: 0 | DF85: 0 | DG85: 0 | DH85: 23568 | DI85: 188670 | DJ85: 32160 | DK85: 0 | DL85: 3133 | DM85: 0 | DN85: 28687 | DO85: 100 | DP85: 0 | DQ85: 0 | DR85: 0 | DS85: 0 | DT85: 0 | DU85: 78270 | DV85: 0 | DW85: 0 | DX85: 0 | DY85: 0 | DZ85: 0 | EA85: =EA178 -> 0 | EB85: 0 | EC85: 0 | ED85: 0 | EE85: 0 | EF85: 0 | EG85: 0 | EH85: 0 | EI85: 0 | EJ85: 0 | EK85: 0 | EL85: 2345 | EM85: 0 | EN85: 0 | EO85: 0 | EP85: 0 | EQ85: 0 | ER85: 0 | ES85: 0 | ET85: 1069 | EU85: 0 | EV85: 890 | EW85: 0 | EX85: 0 | EY85: 1000 | EZ85: 0 | FA85: 0 | FB85: 0 | FC85: 477801 | FD85: 0 | FE85: 0 | FF85: 0 | FG85: 0 | FH85: 0 | FI85: 0 | FJ85: 0 | FK85: 0 | FL85: 0 | FM85: 21330 | FN85: 0 | FO85: 0 | FP85: 0 | FQ85: 22585 | FR85: 15193 | FS85: 0 | FT85: 0 | FU85: 0 | FV85: 0 | FW85: 0 | FX85: 0 | FY85: 36500 | FZ85: 136399 | GA85: 1451828 | GB85: 77246 | GC85: 1529074
B86: Town of Rotterdam | C86: =C179 -> 420372600000 | D86: Town of Rotterdam | E86: Schenectady | F86: 12/31 | G86: 29094 | H86: 0 | I86: 35.7 | J86: 2547009941 | K86: 10110000 | L86: 11458185 | M86: 0 | N86: 7000 | O86: 0 | P86: 249550 | Q86: 73465 | R86: 0 | S86: 0 | T86: 0 | U86: 3523483 | V86: 0 | W86: 0 | X86: 538874 | Y86: 0 | Z86: 0 | AA86: 0 | AB86: 35363 | AC86: 0 | AD86: 94675 | AE86: 0 | AF86: 0 | AG86: 0 | AH86: 18685 | AI86: 0 | AJ86: 17298 | AK86: 37963 | AL86: 429508 | AM86: 272605 | AN86: 0 | AO86: 0 | AP86: 0 | AQ86: 153729 | AR86: 0 | AS86: 0 | AT86: 0 | AU86: 12915 | AV86: 0 | AW86: 0 | AX86: 0 | AY86: 11150 | AZ86: 0 | BA86: 53253 | BB86: 47318 | BC86: 233449 | BD86: 421289 | BE86: 125 | BF86: 53107 | BG86: 0 | BH86: 0 | BI86: 11417 | BJ86: 0 | BK86: 160818 | BL86: 17915225 | BM86: 176985 | BN86: 601144 | BO86: =BO179 -> 0 | BP86: 0 | BQ86: 50858 | BR86: 0 | BS86: 182507 | BT86: 0 | BU86: 0 | BV86: 10074 | BW86: 0 | BX86: 0 | BY86: 0 | BZ86: 0 | CA86: 0 | CB86: 83378 | CC86: 0 | CD86: 0 | CE86: 1459434 | CF86: 0 | CG86: 0 | CH86: 824 | CI86: 0 | CJ86: 0 | CK86: 0 | CL86: 0 | CM86: 20480429 | CN86: 0 | CO86: 70750 | CP86: 0 | CQ86: 51677 | CR86: 0 | CS86: 20602856 | CT86: 578708 | CU86: 1380080 | CV86: 0 | CW86: 0 | CX86: 187808 | CY86: 98738 | CZ86: 0 | DA86: 0 | DB86: 0 | DC86: 0 | DD86: 0 | DE86: 0 | DF86: 1022 | DG86: 0 | DH86: 5456245 | DI86: 154451 | DJ86: 0 | DK86: 0 | DL86: 0 | DM86: 0 | DN86: 178055 | DO86: 3400 | DP86: 0 | DQ86: 0 | DR86: 0 | DS86: 0 | DT86: 0 | DU86: 3560945 | DV86: 1762 | DW86: 0 | DX86: 0 | DY86: 0 | DZ86: 0 | EA86: =EA179 -> 253860 | EB86: 237948 | EC86: 0 | ED86: 0 | EE86: 0 | EF86: 0 | EG86: 0 | EH86: 1503575 | EI86: 0 | EJ86: 0 | EK86: 0 | EL86: 0 | EM86: 0 | EN86: 0 | EO86: 3660 | EP86: 0 | EQ86: 0 | ER86: 406464 | ES86: 0 | ET86: 4065 | EU86: 0 | EV86: 6738 | EW86: 0 | EX86: 0 | EY86: 184764 | EZ86: 0 | FA86: 0 | FB86: 0 | FC86: 1672174 | FD86: 0 | FE86: 0 | FF86: 0 | FG86: 725612 | FH86: 0 | FI86: 72086 | FJ86: 0 | FK86: 10351 | FL86: 95068 | FM86: 511803 | FN86: 689168 | FO86: 0 | FP86: 0 | FQ86: 688912 | FR86: 2608000 | FS86: 7459 | FT86: 528 | FU86: 228614 | FV86: 28620 | FW86: 0 | FX86: 0 | FY86: 1127750 | FZ86: 355735 | GA86: 23024167 | GB86: 51677 | GC86: 23075844
B87: City of Schenectady | C87: =C180 -> 420253000000 | D87: City of Schenectady | E87: Schenectady | F87: 12/31 | G87: 66135 | H87: 0 | I87: 10.8 | J87: 2417858243 | K87: 95999672 | L87: 25536240 | M87: 0 | N87: 58164 | O87: 0 | P87: 616586 | Q87: 650378 | R87: 0 | S87: 0 | T87: 0 | U87: 11050000 | V87: 798038 | W87: 0 | X87: 793997 | Y87: 0 | Z87: 0 | AA87: 0 | AB87: 493585 | AC87: 0 | AD87: 1109952 | AE87: 0 | AF87: 0 | AG87: 191446 | AH87: 78523 | AI87: 2971451 | AJ87: 892878 | AK87: 741719 | AL87: 7328646 | AM87: 15172234 | AN87: 0 | AO87: 8665 | AP87: 0 | AQ87: 0 | AR87: 0 | AS87: 257469 | AT87: 0 | AU87: 0 | AV87: 0 | AW87: 0 | AX87: 0 | AY87: 0 | AZ87: 0 | BA87: 819470 | BB87: 75438 | BC87: 13850 | BD87: 973448 | BE87: 3265 | BF87: 512250 | BG87: 0 | BH87: 1100457 | BI87: 38685 | BJ87: 0 | BK87: 4013228 | BL87: 76300062 | BM87: 11434688 | BN87: 495671 | BO87: =BO180 -> 72395 | BP87: 80000 | BQ87: 192964 | BR87: 0 | BS87: 980428 | BT87: 0 | BU87: 0 | BV87: 3089991 | BW87: 0 | BX87: 0 | BY87: 0 | BZ87: 0 | CA87: 0 | CB87: 0 | CC87: 0 | CD87: 0 | CE87: 0 | CF87: 5158194 | CG87: 0 | CH87: 1276422 | CI87: 0 | CJ87: 0 | CK87: 0 | CL87: 1993878 | CM87: 101074693 | CN87: 2516714 | CO87: 550000 | CP87: 0 | CQ87: 406000 | CR87: 0 | CS87: 104547407 | CT87: 18818239 | CU87: 3342129 | CV87: 0 | CW87: 0 | CX87: 7905 | CY87: 116545 | CZ87: 0 | DA87: 0 | DB87: 0 | DC87: 0 | DD87: 0 | DE87: 0 | DF87: 0 | DG87: 26064 | DH87: 16209764 | DI87: 9804683 | DJ87: 0 | DK87: 0 | DL87: 0 | DM87: 0 | DN87: 215553 | DO87: 0 | DP87: 0 | DQ87: 0 | DR87: 0 | DS87: 0 | DT87: 0 | DU87: 6589307 | DV87: 0 | DW87: 0 | DX87: 0 | DY87: 0 | DZ87: 0 | EA87: =EA180 -> 0 | EB87: 2013137 | EC87: 0 | ED87: 0 | EE87: 0 | EF87: 0 | EG87: 0 | EH87: 0 | EI87: 0 | EJ87: 0 | EK87: 0 | EL87: 0 | EM87: 2400532 | EN87: 9115572 | EO87: 0 | EP87: 0 | EQ87: 0 | ER87: 1846326 | ES87: 0 | ET87: 95000 | EU87: 0 | EV87: 52422 | EW87: 48770 | EX87: 803457 | EY87: 0 | EZ87: 0 | FA87: 0 | FB87: 0 | FC87: 5177328 | FD87: 0 | FE87: 0 | FF87: 0 | FG87: 11713167 | FH87: 0 | FI87: 4089679 | FJ87: 0 | FK87: 0 | FL87: 0 | FM87: 1382888 | FN87: 3873550 | FO87: 0 | FP87: 8918 | FQ87: 2755058 | FR87: 13353425 | FS87: 23098 | FT87: 10360 | FU87: 2066414 | FV87: 83497 | FW87: 0 | FX87: 705303 | FY87: 5997202 | FZ87: 2852313 | GA87: 125597605 | GB87: 406000 | GC87: 126003605
B88: Capital District | G88: =G4+G25+G48+G79 -> 837967 | H88: 0 | I88: 2189.7 | J88: 67617683856 | K88: 584967953 | L88: 232247698 | M88: 0 | N88: 0 | O88: 0 | P88: 5446973 | Q88: 12831399 | R88: 298962 | S88: 0 | T88: 469399375 | U88: 400000 | V88: 0 | W88: 7722846 | X88: 0 | Y88: 3366152 | Z88: 6727013 | AA88: 0 | AB88: 29674048 | AC88: 0 | AD88: 2845954 | AE88: 118933783 | AF88: 0 | AG88: 2243653 | AH88: 17105506 | AI88: 102249 | AJ88: 7278317 | AK88: 1142059 | AL88: 0 | AM88: =AM4+AM25+AM48+AM79 -> 18897325 | AN88: 0 | AO88: 4582787 | AP88: 10874868 | AQ88: 11462191 | AR88: 0 | AS88: 3074267 | AT88: 0 | AU88: 427316 | AV88: 461911 | AW88: 0 | AX88: 1085889 | AY88: 9050671 | AZ88: 9869284 | BA88: 4305991 | BB88: 1602412 | BC88: 5371896 | BD88: 1724814 | BE88: 51421 | BF88: 13590093 | BG88: 0 | BH88: 1557123 | BI88: 607062 | BJ88: 6136 | BK88: 38975164 | BL88: 1055344611 | BM88: 0 | BN88: 0 | BO88: 6942152 | BP88: 29619383 | BQ88: 7377805 | BR88: 43211574 | BS88: =BS4+BS25+BS48+BS79 -> 9736635 | BT88: 80960365 | BU88: 943380 | BV88: 1013416 | BW88: 4703305 | BX88: 0 | BY88: 2784271 | BZ88: 2191397 | CA88: 3115009 | CB88: 1607403 | CC88: 34768464 | CD88: 8154151 | CE88: 103869941 | CF88: 4285802 | CG88: 366618 | CH88: 4722835 | CI88: 0 | CJ88: 0 | CK88: 6627200 | CL88: 4867323 | CM88: 1417213040 | CN88: 91100037 | CO88: 1543500 | CP88: 0 | CQ88: 72004311 | CR88: 0 | CS88: 1581860889 | CT88: 72992199 | CU88: 65204960 | CV88: 189093757 | CW88: 7262140 | CX88: 3421855 | CY88: =CY4+CY25+CY48+CY79 -> 527932 | CZ88: 0 | DA88: 0 | DB88: 0 | DC88: 0 | DD88: 0 | DE88: 36712321 | DF88: 46356701 | DG88: 6047078 | DH88: 31075909 | DI88: 395238 | DJ88: 190443 | DK88: 85574910 | DL88: 0 | DM88: 1759041 | DN88: 6630414 | DO88: 13324163 | DP88: 22026052 | DQ88: 36372085 | DR88: 1587814 | DS88: 64414585 | DT88: 2994099 | DU88: 54917825 | DV88: 215712 | DW88: 2203615 | DX88: 1433550 | DY88: 0 | DZ88: 0 | EA88: 8111388 | EB88: 0 | EC88: 853954 | ED88: 59570007 | EE88: =EE4+EE25+EE48+EE79 -> 129818415 | EF88: 153158563 | EG88: 55729191 | EH88: 0 | EI88: 4109522 | EJ88: 10605677 | EK88: 23073699 | EL88: 905563 | EM88: 565869 | EN88: 794236 | EO88: 976301 | EP88: 0 | EQ88: 1524931 | ER88: 5840399 | ES88: 0 | ET88: 2295802 | EU88: 5089082 | EV88: 390065 | EW88: 1029740 | EX88: 1342798 | EY88: 13480685 | EZ88: 1409161 | FA88: 0 | FB88: 1729897 | FC88: 0 | FD88: 0 | FE88: 0 | FF88: 0 | FG88: 18573138 | FH88: 0 | FI88: 331867 | FJ88: 0 | FK88: =FK4+FK25+FK48+FK79 -> 0 | FL88: 586 | FM88: 18135898 | FN88: 0 | FO88: 0 | FP88: 0 | FQ88: 12009675 | FR88: 59757162 | FS88: 0 | FT88: 0 | FU88: 3144759 | FV88: 387853 | FW88: 0 | FX88: 99782262 | FY88: 28967280 | FZ88: 20336258 | GA88: 1496566072 | GB88: 72004312 | GC88: 1568570384
A90: =SUM(B90:GC90) -> 0 | B90: =IF(B1<>B94,1,) -> 0 | C90: =IF(C1<>C94,1,) -> 0 | D90: 0 | E90: 0 | F90: 0 | G90: 0 | H90: 0 | I90: 0 | J90: 0 | K90: 0 | L90: 0 | M90: 0 | N90: 0 | O90: 0 | P90: 0 | Q90: 0 | R90: 0 | S90: 0 | T90: 0 | U90: 0 | V90: 0 | W90: 0 | X90: 0 | Y90: 0 | Z90: 0 | AA90: 0 | AB90: 0 | AC90: 0 | AD90: 0 | AE90: 0 | AF90: 0 | AG90: 0 | AH90: 0 | AI90: 0 | AJ90: 0 | AK90: 0 | AL90: 0 | AM90: 0 | AN90: 0 | AO90: 0 | AP90: 0 | AQ90: 0 | AR90: 0 | AS90: 0 | AT90: 0 | AU90: 0 | AV90: 0 | AW90: 0 | AX90: 0 | AY90: 0 | AZ90: 0 | BA90: 0 | BB90: 0 | BC90: 0 | BD90: 0 | BE90: 0 | BF90: 0 | BG90: 0 | BH90: 0 | BI90: 0 | BJ90: 0 | BK90: 0 | BL90: 0 | BM90: 0 | BN90: 0 | BO90: =IF(BO1<>BO94,1,) -> 0 | BP90: 0 | BQ90: 0 | BR90: 0 | BS90: 0 | BT90: 0 | BU90: 0 | BV90: 0 | BW90: 0 | BX90: 0 | BY90: 0 | BZ90: 0 | CA90: 0 | CB90: 0 | CC90: 0 | CD90: 0 | CE90: 0 | CF90: 0 | CG90: 0 | CH90: 0 | CI90: 0 | CJ90: 0 | CK90: 0 | CL90: 0 | CM90: 0 | CN90: 0 | CO90: 0 | CP90: 0 | CQ90: 0 | CR90: 0 | CS90: 0 | CT90: 0 | CU90: 0 | CV90: 0 | CW90: 0 | CX90: 0 | CY90: 0 | CZ90: 0 | DA90: 0 | DB90: 0 | DC90: 0 | DD90: 0 | DE90: 0 | DF90: 0 | DG90: 0 | DH90: 0 | DI90: 0 | DJ90: 0 | DK90: 0 | DL90: 0 | DM90: 0 | DN90: 0 | DO90: 0 | DP90: 0 | DQ90: 0 | DR90: 0 | DS90: 0 | DT90: 0 | DU90: 0 | DV90: 0 | DW90: 0 | DX90: 0 | DY90: 0 | DZ90: 0 | EA90: =IF(EA1<>EA94,1,) -> 0 | EB90: 0 | EC90: 0 | ED90: 0 | EE90: 0 | EF90: 0 | EG90: 0 | EH90: 0 | EI90: 0 | EJ90: 0 | EK90: 0 | EL90: 0 | EM90: 0 | EN90: 0 | EO90: 0 | EP90: 0 | EQ90: 0 | ER90: 0 | ES90: 0 | ET90: 0 | EU90: 0 | EV90: 0 | EW90: 0 | EX90: 0 | EY90: 0 | EZ90: 0 | FA90: 0 | FB90: 0 | FC90: 0 | FD90: 0 | FE90: 0 | FF90: 0 | FG90: 0 | FH90: 0 | FI90: 0 | FJ90: 0 | FK90: 0 | FL90: 0 | FM90: 0 | FN90: 0 | FO90: 0 | FP90: 0 | FQ90: 0 | FR90: 0 | FS90: 0 | FT90: 0 | FU90: 0 | FV90: 0 | FW90: 0 | FX90: 0 | FY90: 0 | FZ90: 0 | GA90: 0 | GB90: 0 | GC90: 0
A91: =SUM(B91:GC91) -> 0 | B91: =IF(B2<>B95,1,) -> 0 | C91: 0 | D91: 0 | E91: 0 | F91: 0 | G91: 0 | H91: 0 | I91: 0 | J91: 0 | K91: 0 | L91: 0 | M91: 0 | N91: 0 | O91: 0 | P91: 0 | Q91: 0 | R91: 0 | S91: 0 | T91: 0 | U91: 0 | V91: 0 | W91: 0 | X91: 0 | Y91: 0 | Z91: 0 | AA91: 0 | AB91: 0 | AC91: 0 | AD91: 0 | AE91: 0 | AF91: 0 | AG91: 0 | AH91: 0 | AI91: 0 | AJ91: 0 | AK91: 0 | AL91: 0 | AM91: 0 | AN91: 0 | AO91: 0 | AP91: 0 | AQ91: 0 | AR91: 0 | AS91: 0 | AT91: 0 | AU91: 0 | AV91: 0 | AW91: 0 | AX91: 0 | AY91: 0 | AZ91: 0 | BA91: 0 | BB91: 0 | BC91: 0 | BD91: 0 | BE91: 0 | BF91: 0 | BG91: 0 | BH91: 0 | BI91: 0 | BJ91: 0 | BK91: 0 | BL91: 0 | BM91: 0 | BN91: =IF(BN2<>BN95,1,) -> 0 | BO91: 0 | BP91: 0 | BQ91: 0 | BR91: 0 | BS91: 0 | BT91: 0 | BU91: 0 | BV91: 0 | BW91: 0 | BX91: 0 | BY91: 0 | BZ91: 0 | CA91: 0 | CB91: 0 | CC91: 0 | CD91: 0 | CE91: 0 | CF91: 0 | CG91: 0 | CH91: 0 | CI91: 0 | CJ91: 0 | CK91: 0 | CL91: 0 | CM91: 0 | CN91: 0 | CO91: 0 | CP91: 0 | CQ91: 0 | CR91: 0 | CS91: 0 | CT91: 0 | CU91: 0 | CV91: 0 | CW91: 0 | CX91: 0 | CY91: 0 | CZ91: 0 | DA91: 0 | DB91: 0 | DC91: 0 | DD91: 0 | DE91: 0 | DF91: 0 | DG91: 0 | DH91: 0 | DI91: 0 | DJ91: 0 | DK91: 0 | DL91: 0 | DM91: 0 | DN91: 0 | DO91: 0 | DP91: 0 | DQ91: 0 | DR91: 0 | DS91: 0 | DT91: 0 | DU91: 0 | DV91: 0 | DW91: 0 | DX91: 0 | DY91: 0 | DZ91: =IF(DZ2<>DZ95,1,) -> 0 | EA91: 0 | EB91: 0 | EC91: 0 | ED91: 0 | EE91: 0 | EF91: 0 | EG91: 0 | EH91: 0 | EI91: 0 | EJ91: 0 | EK91: 0 | EL91: 0 | EM91: 0 | EN91: 0 | EO91: 0 | EP91: 0 | EQ91: 0 | ER91: 0 | ES91: 0 | ET91: 0 | EU91: 0 | EV91: 0 | EW91: 0 | EX91: 0 | EY91: 0 | EZ91: 0 | FA91: 0 | FB91: 0 | FC91: 0 | FD91: 0 | FE91: 0 | FF91: 0 | FG91: 0 | FH91: 0 | FI91: 0 | FJ91: 0 | FK91: 0 | FL91: 0 | FM91: 0 | FN91: 0 | FO91: 0 | FP91: 0 | FQ91: 0 | FR91: 0 | FS91: 0 | FT91: 0 | FU91: 0 | FV91: 0 | FW91: 0 | FX91: 0 | FY91: 0 | FZ91: 0 | GA91: 0 | GB91: 0 | GC91: 0
